Workbook

Sheet 記入方法
B1: ≪提出不要≫ ※必ず最初にお読みください。
B2: 従業者の勤務の体制及び勤務形態一覧表 記入方法 （定期巡回・随時対応型訪問介護看護）
C4: ・・・直接入力する必要がある箇所です。 | F4: 下記の記入方法に従って、入力してください。
C5: ・・・プルダウンから選択して入力する必要がある箇所です。
B6: なお、「従業者の勤務の体制及び勤務形態一覧表」に「シフト記号表（勤務時間帯）」も必ず添付して提出してください。
B8: ・最初に「年月欄」「サービス種別」「事業所名」を入力してください。
B10: (1) 「計画」・「実績」のいずれかを選択してください。
B11: 指定基準の確認に際しては、「計画」を選択し、４週分の勤務時間を入力してください。
B12: 実績を表す場合は、「実績」を選択し、暦月分で勤務時間を入力してください。
B14: (2) 事業所における常勤の従業者が勤務すべき時間数を入力してください。
B16: (3) 従業者の職種について、下記のうち該当する職種をプルダウンより選択してください。
B17: 記入の順序は、職種ごとにまとめてください。
C19: No | D19: 職種名 | E19: 備考
C20: 1 | D20: 管理者
C21: 2 | D21: オペレーター
C22: 3 | D22: 訪問介護員等_定期巡回 | E22: 定期巡回サービスを行う訪問介護員等
C23: 4 | D23: 訪問介護員等_随時訪問 | E23: 随時訪問サービスを行う訪問介護員等
C24: 5 | D24: 訪問看護員 | E24: ここでは、訪問看護サービスを行う看護師等のうち、登録看護職員以外の看護師等を指します。
C25: 6 | D25: 登録看護職員 | E25: 勤務日及び勤務時間が不定期な訪問看護員を指します。
C26: 7 | D26: 理学療法士
C27: 8 | D27: 作業療法士
C28: 9 | D28: 言語聴覚士
C29: 10 | D29: 計画作成責任者
B31: (4) 従業者の勤務形態について、下記のうち該当する区分の記号をプルダウンより選択してください。
B32: 記入の順序は、各職種の中で勤務形態の区分ごとにまとめてください。
C34: 記号 | D34: 区分
C35: A | D35: 常勤で専従
C36: B | D36: 常勤で兼務
C37: C | D37: 非常勤で専従
C38: D | D38: 非常勤で兼務
C40: （注）常勤・非常勤の区分について
C41: 当該事業所における勤務時間が、当該事業所において定められている常勤の従業者が勤務すべき時間数に達していることをいいます。雇用の形態は考慮しません。
C42: （例えば、常勤者は週に40時間勤務することとされた事業所であれば、非正規雇用であっても、週40時間勤務する従業者は常勤扱いとなります。）
B45: (5) 従業者の保有する資格について、該当する資格名称をプルダウンより選択してください。
B46: 保有資格を全て記入するのではなく、人員基準上、求められる資格等を入力してください。
B47: ※選択した資格及び研修に関して、必要に応じて、資格証又は研修修了証等の写しを添付資料として提出してください。
B49: (6) 従業者の氏名を記入してください。
B51: (7) 申請する事業に係る従業者（管理者を含む。）の1ヶ月分の勤務時間数を入力してください。（別シートの「シフト記号表」を作成し、シフト記号を選択してください。）
B52: ※指定基準の確認に際しては、4週分の入力で可とします。実績を表す場合には、暦月で入力ください。
B54: (8) 従業者ごとに、合計勤務時間数が自動計算されますので、誤りがないか確認してください。
B55: ※入力することができる時間数は、当該事業所において常勤の従業者が勤務すべき勤務時間数を上限とします。
B57: (9) 従業者ごとに、週平均の勤務時間数が自動計算されますので、誤りがないか確認してください。
B59: (10) 申請する事業所以外の事業所・施設との兼務がある場合は、兼務先の事業所・施設の名称、兼務する職務の内容及び勤務時間数について記入してください。
B60: 同一事業所内の兼務についても兼務する職務の内容を記入してください。
B62: (11) 常勤換算による配置が求められる職種について、各欄に該当する数字を入力し、常勤換算後の人数を算出してください。
B74: (12) 登録看護職員について、各欄に該当する数字を入力し、常勤換算後の人数を算出してください。
B75: 登録看護職員1人当たりの勤務時間数は、当該事業所の登録看護職員の前年度の週当たりの平均稼働時間（サービス提供時間及び移動時間をいいます。）とします。
B76: 登録看護職員1人当たりの勤務時間数と登録看護職員の人数を乗じて得た値を、常勤換算の対象時間数の欄に入力してください。
B77: 登録看護職員によるサービス提供の実績がない事業所又は極めて短期の実績しかない等のため、上記の方法によって勤務延時間数の算定を行うことが適当ではない
B78: と認められる事業所については、当該登録看護職員が確実に稼働できるものとして勤務表に明記されている時間のみを勤務延時間数に算入しますので、
B79: その時間数を常勤換算の対象時間数の欄に入力してください。

Sheet 定期巡回・随時対応型
C1: （参考様式1-7） | H1: 従業者の勤務の体制及び勤務形態一覧表 | AO1: サービス種別 | AP1: ( | AQ1: 定期巡回・随時対応型訪問介護看護（一体型） | BF1: ）
X2: 令和 | Y2: 4 | AA2: ( | AB2: =IF(Y2=0,"",YEAR(DATE(2018+Y2,1,1))) -> 2022 | AD2: ) | AE2: 年 | AF2: 4 | AH2: 月 | AO2: 事業所名 | AP2: ( | BF2: ）
BC3: (1) | BD3: 計画
AH5: (2)事業所における常勤の従業者が勤務すべき時間数 | AT5: 8 | AV5: 時間/日 | AX5: 40 | AZ5: 時間/週 | BB5: 160 | BD5: 時間/月
AY7: 当月の日数 | BB7: =DAY(EOMONTH(DATE(AB2,AF2,1),0)) -> 30 | BD7: 日
B11: No | C11: (3) 職種 | F11: (4) 勤務 形態 | H11: (5) 資格 | M11: (6) 氏 名 | T11: (7) 勤 務 時 間 数 | AY11: =IF(BD3="計画","(8)1～4週目の勤務時間数合計","(8)1か月の勤務時間数合計") -> (8)1～4週目の勤務時間数合計 | BA11: (9) 週平均 勤務時間数 | BC11: (10) 兼務状況 （兼務先／兼務する職務の内容 ／兼務先の勤務時間数）
T12: 1週目 | AA12: 2週目 | AH12: 3週目 | AO12: 4週目 | AV12: 5週目
T13: =DAY(DATE($AB$2,$AF$2,1)) -> 1 | U13: =DAY(DATE($AB$2,$AF$2,2)) -> 2 | V13: =DAY(DATE($AB$2,$AF$2,3)) -> 3 | W13: =DAY(DATE($AB$2,$AF$2,4)) -> 4 | X13: =DAY(DATE($AB$2,$AF$2,5)) -> 5 | Y13: =DAY(DATE($AB$2,$AF$2,6)) -> 6 | Z13: =DAY(DATE($AB$2,$AF$2,7)) -> 7 | AA13: =DAY(DATE($AB$2,$AF$2,8)) -> 8 | AB13: =DAY(DATE($AB$2,$AF$2,9)) -> 9 | AC13: =DAY(DATE($AB$2,$AF$2,10)) -> 10 | AD13: =DAY(DATE($AB$2,$AF$2,11)) -> 11 | AE13: =DAY(DATE($AB$2,$AF$2,12)) -> 12 | AF13: =DAY(DATE($AB$2,$AF$2,13)) -> 13 | AG13: =DAY(DATE($AB$2,$AF$2,14)) -> 14 | AH13: =DAY(DATE($AB$2,$AF$2,15)) -> 15 | AI13: =DAY(DATE($AB$2,$AF$2,16)) -> 16 | AJ13: =DAY(DATE($AB$2,$AF$2,17)) -> 17 | AK13: =DAY(DATE($AB$2,$AF$2,18)) -> 18 | AL13: =DAY(DATE($AB$2,$AF$2,19)) -> 19 | AM13: =DAY(DATE($AB$2,$AF$2,20)) -> 20 | AN13: =DAY(DATE($AB$2,$AF$2,21)) -> 21 | AO13: =DAY(DATE($AB$2,$AF$2,22)) -> 22 | AP13: =DAY(DATE($AB$2,$AF$2,23)) -> 23 | AQ13: =DAY(DATE($AB$2,$AF$2,24)) -> 24 | AR13: =DAY(DATE($AB$2,$AF$2,25)) -> 25 | AS13: =DAY(DATE($AB$2,$AF$2,26)) -> 26 | AT13: =DAY(DATE($AB$2,$AF$2,27)) -> 27 | AU13: =DAY(DATE($AB$2,$AF$2,28)) -> 28 | AV13: =IF(BD3="実績",IF(DAY(DATE($AB$2,$AF$2,29))=29,29,""),"") ->  | AW13: =IF(BD3="実績",IF(DAY(DATE($AB$2,$AF$2,30))=30,30,""),"") ->  | AX13: =IF(BD3="実績",IF(DAY(DATE($AB$2,$AF$2,31))=31,31,""),"") -> 
T14: =WEEKDAY(DATE($AB$2,$AF$2,1)) -> 6 | U14: =WEEKDAY(DATE($AB$2,$AF$2,2)) -> 7 | V14: =WEEKDAY(DATE($AB$2,$AF$2,3)) -> 1 | W14: =WEEKDAY(DATE($AB$2,$AF$2,4)) -> 2 | X14: =WEEKDAY(DATE($AB$2,$AF$2,5)) -> 3 | Y14: =WEEKDAY(DATE($AB$2,$AF$2,6)) -> 4 | Z14: =WEEKDAY(DATE($AB$2,$AF$2,7)) -> 5 | AA14: =WEEKDAY(DATE($AB$2,$AF$2,8)) -> 6 | AB14: =WEEKDAY(DATE($AB$2,$AF$2,9)) -> 7 | AC14: =WEEKDAY(DATE($AB$2,$AF$2,10)) -> 1 | AD14: =WEEKDAY(DATE($AB$2,$AF$2,11)) -> 2 | AE14: =WEEKDAY(DATE($AB$2,$AF$2,12)) -> 3 | AF14: =WEEKDAY(DATE($AB$2,$AF$2,13)) -> 4 | AG14: =WEEKDAY(DATE($AB$2,$AF$2,14)) -> 5 | AH14: =WEEKDAY(DATE($AB$2,$AF$2,15)) -> 6 | AI14: =WEEKDAY(DATE($AB$2,$AF$2,16)) -> 7 | AJ14: =WEEKDAY(DATE($AB$2,$AF$2,17)) -> 1 | AK14: =WEEKDAY(DATE($AB$2,$AF$2,18)) -> 2 | AL14: =WEEKDAY(DATE($AB$2,$AF$2,19)) -> 3 | AM14: =WEEKDAY(DATE($AB$2,$AF$2,20)) -> 4 | AN14: =WEEKDAY(DATE($AB$2,$AF$2,21)) -> 5 | AO14: =WEEKDAY(DATE($AB$2,$AF$2,22)) -> 6 | AP14: =WEEKDAY(DATE($AB$2,$AF$2,23)) -> 7 | AQ14: =WEEKDAY(DATE($AB$2,$AF$2,24)) -> 1 | AR14: =WEEKDAY(DATE($AB$2,$AF$2,25)) -> 2 | AS14: =WEEKDAY(DATE($AB$2,$AF$2,26)) -> 3 | AT14: =WEEKDAY(DATE($AB$2,$AF$2,27)) -> 4 | AU14: =WEEKDAY(DATE($AB$2,$AF$2,28)) -> 5 | AV14: =IF(AV13=29,WEEKDAY(DATE($AB$2,$AF$2,29)),0) -> 0 | AW14: =IF(AW13=30,WEEKDAY(DATE($AB$2,$AF$2,30)),0) -> 0 | AX14: =IF(AX13=31,WEEKDAY(DATE($AB$2,$AF$2,31)),0) -> 0
T15: =IF(T14=1,"日",IF(T14=2,"月",IF(T14=3,"火",IF(T14=4,"水",IF(T14=5,"木",IF(T14=6,"金","土")))))) -> 金 | U15: =IF(U14=1,"日",IF(U14=2,"月",IF(U14=3,"火",IF(U14=4,"水",IF(U14=5,"木",IF(U14=6,"金","土")))))) -> 土 | V15: 日 | W15: 月 | X15: 火 | Y15: 水 | Z15: 木 | AA15: =IF(AA14=1,"日",IF(AA14=2,"月",IF(AA14=3,"火",IF(AA14=4,"水",IF(AA14=5,"木",IF(AA14=6,"金","土")))))) -> 金 | AB15: =IF(AB14=1,"日",IF(AB14=2,"月",IF(AB14=3,"火",IF(AB14=4,"水",IF(AB14=5,"木",IF(AB14=6,"金","土")))))) -> 土 | AC15: =IF(AC14=1,"日",IF(AC14=2,"月",IF(AC14=3,"火",IF(AC14=4,"水",IF(AC14=5,"木",IF(AC14=6,"金","土")))))) -> 日 | AD15: =IF(AD14=1,"日",IF(AD14=2,"月",IF(AD14=3,"火",IF(AD14=4,"水",IF(AD14=5,"木",IF(AD14=6,"金","土")))))) -> 月 | AE15: =IF(AE14=1,"日",IF(AE14=2,"月",IF(AE14=3,"火",IF(AE14=4,"水",IF(AE14=5,"木",IF(AE14=6,"金","土")))))) -> 火 | AF15: =IF(AF14=1,"日",IF(AF14=2,"月",IF(AF14=3,"火",IF(AF14=4,"水",IF(AF14=5,"木",IF(AF14=6,"金","土")))))) -> 水 | AG15: =IF(AG14=1,"日",IF(AG14=2,"月",IF(AG14=3,"火",IF(AG14=4,"水",IF(AG14=5,"木",IF(AG14=6,"金","土")))))) -> 木 | AH15: =IF(AH14=1,"日",IF(AH14=2,"月",IF(AH14=3,"火",IF(AH14=4,"水",IF(AH14=5,"木",IF(AH14=6,"金","土")))))) -> 金 | AI15: =IF(AI14=1,"日",IF(AI14=2,"月",IF(AI14=3,"火",IF(AI14=4,"水",IF(AI14=5,"木",IF(AI14=6,"金","土")))))) -> 土 | AJ15: =IF(AJ14=1,"日",IF(AJ14=2,"月",IF(AJ14=3,"火",IF(AJ14=4,"水",IF(AJ14=5,"木",IF(AJ14=6,"金","土")))))) -> 日 | AK15: =IF(AK14=1,"日",IF(AK14=2,"月",IF(AK14=3,"火",IF(AK14=4,"水",IF(AK14=5,"木",IF(AK14=6,"金","土")))))) -> 月 | AL15: =IF(AL14=1,"日",IF(AL14=2,"月",IF(AL14=3,"火",IF(AL14=4,"水",IF(AL14=5,"木",IF(AL14=6,"金","土")))))) -> 火 | AM15: =IF(AM14=1,"日",IF(AM14=2,"月",IF(AM14=3,"火",IF(AM14=4,"水",IF(AM14=5,"木",IF(AM14=6,"金","土")))))) -> 水 | AN15: =IF(AN14=1,"日",IF(AN14=2,"月",IF(AN14=3,"火",IF(AN14=4,"水",IF(AN14=5,"木",IF(AN14=6,"金","土")))))) -> 木 | AO15: =IF(AO14=1,"日",IF(AO14=2,"月",IF(AO14=3,"火",IF(AO14=4,"水",IF(AO14=5,"木",IF(AO14=6,"金","土")))))) -> 金 | AP15: =IF(AP14=1,"日",IF(AP14=2,"月",IF(AP14=3,"火",IF(AP14=4,"水",IF(AP14=5,"木",IF(AP14=6,"金","土")))))) -> 土 | AQ15: =IF(AQ14=1,"日",IF(AQ14=2,"月",IF(AQ14=3,"火",IF(AQ14=4,"水",IF(AQ14=5,"木",IF(AQ14=6,"金","土")))))) -> 日 | AR15: =IF(AR14=1,"日",IF(AR14=2,"月",IF(AR14=3,"火",IF(AR14=4,"水",IF(AR14=5,"木",IF(AR14=6,"金","土")))))) -> 月 | AS15: =IF(AS14=1,"日",IF(AS14=2,"月",IF(AS14=3,"火",IF(AS14=4,"水",IF(AS14=5,"木",IF(AS14=6,"金","土")))))) -> 火 | AT15: =IF(AT14=1,"日",IF(AT14=2,"月",IF(AT14=3,"火",IF(AT14=4,"水",IF(AT14=5,"木",IF(AT14=6,"金","土")))))) -> 水 | AU15: =IF(AU14=1,"日",IF(AU14=2,"月",IF(AU14=3,"火",IF(AU14=4,"水",IF(AU14=5,"木",IF(AU14=6,"金","土")))))) -> 木 | AV15: =IF(AV14=1,"日",IF(AV14=2,"月",IF(AV14=3,"火",IF(AV14=4,"水",IF(AV14=5,"木",IF(AV14=6,"金",IF(AV14=0,"","土"))))))) ->  | AW15: =IF(AW14=1,"日",IF(AW14=2,"月",IF(AW14=3,"火",IF(AW14=4,"水",IF(AW14=5,"木",IF(AW14=6,"金",IF(AW14=0,"","土"))))))) ->  | AX15: =IF(AX14=1,"日",IF(AX14=2,"月",IF(AX14=3,"火",IF(AX14=4,"水",IF(AX14=5,"木",IF(AX14=6,"金",IF(AX14=0,"","土"))))))) -> 
B16: 1 | Q16: シフト記号 | AY16: =IF($BD$3="計画",SUM(T17:AU17),IF($BD$3="実績",SUM(T17:AX17),"")) -> 0 | BA16: =IF($BD$3="計画",AY16/4,IF($BD$3="実績",AY16/($BB$7/7),"")) -> 0
Q17: 勤務時間数 | T17: =IF(T16="","",VLOOKUP(T16,'シフト記号表（勤務時間帯）'!$C$4:$K$35,9,FALSE)) ->  | U17: =IF(U16="","",VLOOKUP(U16,'シフト記号表（勤務時間帯）'!$C$4:$K$35,9,FALSE)) ->  | V17: =IF(V16="","",VLOOKUP(V16,'シフト記号表（勤務時間帯）'!$C$4:$K$35,9,FALSE)) ->  | W17: =IF(W16="","",VLOOKUP(W16,'シフト記号表（勤務時間帯）'!$C$4:$K$35,9,FALSE)) ->  | X17: =IF(X16="","",VLOOKUP(X16,'シフト記号表（勤務時間帯）'!$C$4:$K$35,9,FALSE)) ->  | Y17: =IF(Y16="","",VLOOKUP(Y16,'シフト記号表（勤務時間帯）'!$C$4:$K$35,9,FALSE)) ->  | Z17: =IF(Z16="","",VLOOKUP(Z16,'シフト記号表（勤務時間帯）'!$C$4:$K$35,9,FALSE)) ->  | AA17: =IF(AA16="","",VLOOKUP(AA16,'シフト記号表（勤務時間帯）'!$C$4:$K$35,9,FALSE)) ->  | AB17: =IF(AB16="","",VLOOKUP(AB16,'シフト記号表（勤務時間帯）'!$C$4:$K$35,9,FALSE)) ->  | AC17: =IF(AC16="","",VLOOKUP(AC16,'シフト記号表（勤務時間帯）'!$C$4:$K$35,9,FALSE)) ->  | AD17: =IF(AD16="","",VLOOKUP(AD16,'シフト記号表（勤務時間帯）'!$C$4:$K$35,9,FALSE)) ->  | AE17: =IF(AE16="","",VLOOKUP(AE16,'シフト記号表（勤務時間帯）'!$C$4:$K$35,9,FALSE)) ->  | AF17: =IF(AF16="","",VLOOKUP(AF16,'シフト記号表（勤務時間帯）'!$C$4:$K$35,9,FALSE)) ->  | AG17: =IF(AG16="","",VLOOKUP(AG16,'シフト記号表（勤務時間帯）'!$C$4:$K$35,9,FALSE)) ->  | AH17: =IF(AH16="","",VLOOKUP(AH16,'シフト記号表（勤務時間帯）'!$C$4:$K$35,9,FALSE)) ->  | AI17: =IF(AI16="","",VLOOKUP(AI16,'シフト記号表（勤務時間帯）'!$C$4:$K$35,9,FALSE)) ->  | AJ17: =IF(AJ16="","",VLOOKUP(AJ16,'シフト記号表（勤務時間帯）'!$C$4:$K$35,9,FALSE)) ->  | AK17: =IF(AK16="","",VLOOKUP(AK16,'シフト記号表（勤務時間帯）'!$C$4:$K$35,9,FALSE)) ->  | AL17: =IF(AL16="","",VLOOKUP(AL16,'シフト記号表（勤務時間帯）'!$C$4:$K$35,9,FALSE)) ->  | AM17: =IF(AM16="","",VLOOKUP(AM16,'シフト記号表（勤務時間帯）'!$C$4:$K$35,9,FALSE)) ->  | AN17: =IF(AN16="","",VLOOKUP(AN16,'シフト記号表（勤務時間帯）'!$C$4:$K$35,9,FALSE)) ->  | AO17: =IF(AO16="","",VLOOKUP(AO16,'シフト記号表（勤務時間帯）'!$C$4:$K$35,9,FALSE)) ->  | AP17: =IF(AP16="","",VLOOKUP(AP16,'シフト記号表（勤務時間帯）'!$C$4:$K$35,9,FALSE)) ->  | AQ17: =IF(AQ16="","",VLOOKUP(AQ16,'シフト記号表（勤務時間帯）'!$C$4:$K$35,9,FALSE)) ->  | AR17: =IF(AR16="","",VLOOKUP(AR16,'シフト記号表（勤務時間帯）'!$C$4:$K$35,9,FALSE)) ->  | AS17: =IF(AS16="","",VLOOKUP(AS16,'シフト記号表（勤務時間帯）'!$C$4:$K$35,9,FALSE)) ->  | AT17: =IF(AT16="","",VLOOKUP(AT16,'シフト記号表（勤務時間帯）'!$C$4:$K$35,9,FALSE)) ->  | AU17: =IF(AU16="","",VLOOKUP(AU16,'シフト記号表（勤務時間帯）'!$C$4:$K$35,9,FALSE)) ->  | AV17: =IF(AV16="","",VLOOKUP(AV16,'シフト記号表（勤務時間帯）'!$C$4:$K$35,9,FALSE)) ->  | AW17: =IF(AW16="","",VLOOKUP(AW16,'シフト記号表（勤務時間帯）'!$C$4:$K$35,9,FALSE)) ->  | AX17: =IF(AX16="","",VLOOKUP(AX16,'シフト記号表（勤務時間帯）'!$C$4:$K$35,9,FALSE)) -> 
B18: =B16+1 -> 2 | Q18: シフト記号 | AY18: =IF($BD$3="計画",SUM(T19:AU19),IF($BD$3="実績",SUM(T19:AX19),"")) -> 0 | BA18: =IF($BD$3="計画",AY18/4,IF($BD$3="実績",AY18/($BB$7/7),"")) -> 0
Q19: 勤務時間数 | T19: =IF(T18="","",VLOOKUP(T18,'シフト記号表（勤務時間帯）'!$C$4:$K$35,9,FALSE)) ->  | U19: =IF(U18="","",VLOOKUP(U18,'シフト記号表（勤務時間帯）'!$C$4:$K$35,9,FALSE)) ->  | V19: =IF(V18="","",VLOOKUP(V18,'シフト記号表（勤務時間帯）'!$C$4:$K$35,9,FALSE)) ->  | W19: =IF(W18="","",VLOOKUP(W18,'シフト記号表（勤務時間帯）'!$C$4:$K$35,9,FALSE)) ->  | X19: =IF(X18="","",VLOOKUP(X18,'シフト記号表（勤務時間帯）'!$C$4:$K$35,9,FALSE)) ->  | Y19: =IF(Y18="","",VLOOKUP(Y18,'シフト記号表（勤務時間帯）'!$C$4:$K$35,9,FALSE)) ->  | Z19: =IF(Z18="","",VLOOKUP(Z18,'シフト記号表（勤務時間帯）'!$C$4:$K$35,9,FALSE)) ->  | AA19: =IF(AA18="","",VLOOKUP(AA18,'シフト記号表（勤務時間帯）'!$C$4:$K$35,9,FALSE)) ->  | AB19: =IF(AB18="","",VLOOKUP(AB18,'シフト記号表（勤務時間帯）'!$C$4:$K$35,9,FALSE)) ->  | AC19: =IF(AC18="","",VLOOKUP(AC18,'シフト記号表（勤務時間帯）'!$C$4:$K$35,9,FALSE)) ->  | AD19: =IF(AD18="","",VLOOKUP(AD18,'シフト記号表（勤務時間帯）'!$C$4:$K$35,9,FALSE)) ->  | AE19: =IF(AE18="","",VLOOKUP(AE18,'シフト記号表（勤務時間帯）'!$C$4:$K$35,9,FALSE)) ->  | AF19: =IF(AF18="","",VLOOKUP(AF18,'シフト記号表（勤務時間帯）'!$C$4:$K$35,9,FALSE)) ->  | AG19: =IF(AG18="","",VLOOKUP(AG18,'シフト記号表（勤務時間帯）'!$C$4:$K$35,9,FALSE)) ->  | AH19: =IF(AH18="","",VLOOKUP(AH18,'シフト記号表（勤務時間帯）'!$C$4:$K$35,9,FALSE)) ->  | AI19: =IF(AI18="","",VLOOKUP(AI18,'シフト記号表（勤務時間帯）'!$C$4:$K$35,9,FALSE)) ->  | AJ19: =IF(AJ18="","",VLOOKUP(AJ18,'シフト記号表（勤務時間帯）'!$C$4:$K$35,9,FALSE)) ->  | AK19: =IF(AK18="","",VLOOKUP(AK18,'シフト記号表（勤務時間帯）'!$C$4:$K$35,9,FALSE)) ->  | AL19: =IF(AL18="","",VLOOKUP(AL18,'シフト記号表（勤務時間帯）'!$C$4:$K$35,9,FALSE)) ->  | AM19: =IF(AM18="","",VLOOKUP(AM18,'シフト記号表（勤務時間帯）'!$C$4:$K$35,9,FALSE)) ->  | AN19: =IF(AN18="","",VLOOKUP(AN18,'シフト記号表（勤務時間帯）'!$C$4:$K$35,9,FALSE)) ->  | AO19: =IF(AO18="","",VLOOKUP(AO18,'シフト記号表（勤務時間帯）'!$C$4:$K$35,9,FALSE)) ->  | AP19: =IF(AP18="","",VLOOKUP(AP18,'シフト記号表（勤務時間帯）'!$C$4:$K$35,9,FALSE)) ->  | AQ19: =IF(AQ18="","",VLOOKUP(AQ18,'シフト記号表（勤務時間帯）'!$C$4:$K$35,9,FALSE)) ->  | AR19: =IF(AR18="","",VLOOKUP(AR18,'シフト記号表（勤務時間帯）'!$C$4:$K$35,9,FALSE)) ->  | AS19: =IF(AS18="","",VLOOKUP(AS18,'シフト記号表（勤務時間帯）'!$C$4:$K$35,9,FALSE)) ->  | AT19: =IF(AT18="","",VLOOKUP(AT18,'シフト記号表（勤務時間帯）'!$C$4:$K$35,9,FALSE)) ->  | AU19: =IF(AU18="","",VLOOKUP(AU18,'シフト記号表（勤務時間帯）'!$C$4:$K$35,9,FALSE)) ->  | AV19: =IF(AV18="","",VLOOKUP(AV18,'シフト記号表（勤務時間帯）'!$C$4:$K$35,9,FALSE)) ->  | AW19: =IF(AW18="","",VLOOKUP(AW18,'シフト記号表（勤務時間帯）'!$C$4:$K$35,9,FALSE)) ->  | AX19: =IF(AX18="","",VLOOKUP(AX18,'シフト記号表（勤務時間帯）'!$C$4:$K$35,9,FALSE)) -> 
B20: =B18+1 -> 3 | Q20: シフト記号 | AY20: =IF($BD$3="計画",SUM(T21:AU21),IF($BD$3="実績",SUM(T21:AX21),"")) -> 0 | BA20: =IF($BD$3="計画",AY20/4,IF($BD$3="実績",AY20/($BB$7/7),"")) -> 0
Q21: 勤務時間数 | T21: =IF(T20="","",VLOOKUP(T20,'シフト記号表（勤務時間帯）'!$C$4:$K$35,9,FALSE)) ->  | U21: =IF(U20="","",VLOOKUP(U20,'シフト記号表（勤務時間帯）'!$C$4:$K$35,9,FALSE)) ->  | V21: =IF(V20="","",VLOOKUP(V20,'シフト記号表（勤務時間帯）'!$C$4:$K$35,9,FALSE)) ->  | W21: =IF(W20="","",VLOOKUP(W20,'シフト記号表（勤務時間帯）'!$C$4:$K$35,9,FALSE)) ->  | X21: =IF(X20="","",VLOOKUP(X20,'シフト記号表（勤務時間帯）'!$C$4:$K$35,9,FALSE)) ->  | Y21: =IF(Y20="","",VLOOKUP(Y20,'シフト記号表（勤務時間帯）'!$C$4:$K$35,9,FALSE)) ->  | Z21: =IF(Z20="","",VLOOKUP(Z20,'シフト記号表（勤務時間帯）'!$C$4:$K$35,9,FALSE)) ->  | AA21: =IF(AA20="","",VLOOKUP(AA20,'シフト記号表（勤務時間帯）'!$C$4:$K$35,9,FALSE)) ->  | AB21: =IF(AB20="","",VLOOKUP(AB20,'シフト記号表（勤務時間帯）'!$C$4:$K$35,9,FALSE)) ->  | AC21: =IF(AC20="","",VLOOKUP(AC20,'シフト記号表（勤務時間帯）'!$C$4:$K$35,9,FALSE)) ->  | AD21: =IF(AD20="","",VLOOKUP(AD20,'シフト記号表（勤務時間帯）'!$C$4:$K$35,9,FALSE)) ->  | AE21: =IF(AE20="","",VLOOKUP(AE20,'シフト記号表（勤務時間帯）'!$C$4:$K$35,9,FALSE)) ->  | AF21: =IF(AF20="","",VLOOKUP(AF20,'シフト記号表（勤務時間帯）'!$C$4:$K$35,9,FALSE)) ->  | AG21: =IF(AG20="","",VLOOKUP(AG20,'シフト記号表（勤務時間帯）'!$C$4:$K$35,9,FALSE)) ->  | AH21: =IF(AH20="","",VLOOKUP(AH20,'シフト記号表（勤務時間帯）'!$C$4:$K$35,9,FALSE)) ->  | AI21: =IF(AI20="","",VLOOKUP(AI20,'シフト記号表（勤務時間帯）'!$C$4:$K$35,9,FALSE)) ->  | AJ21: =IF(AJ20="","",VLOOKUP(AJ20,'シフト記号表（勤務時間帯）'!$C$4:$K$35,9,FALSE)) ->  | AK21: =IF(AK20="","",VLOOKUP(AK20,'シフト記号表（勤務時間帯）'!$C$4:$K$35,9,FALSE)) ->  | AL21: =IF(AL20="","",VLOOKUP(AL20,'シフト記号表（勤務時間帯）'!$C$4:$K$35,9,FALSE)) ->  | AM21: =IF(AM20="","",VLOOKUP(AM20,'シフト記号表（勤務時間帯）'!$C$4:$K$35,9,FALSE)) ->  | AN21: =IF(AN20="","",VLOOKUP(AN20,'シフト記号表（勤務時間帯）'!$C$4:$K$35,9,FALSE)) ->  | AO21: =IF(AO20="","",VLOOKUP(AO20,'シフト記号表（勤務時間帯）'!$C$4:$K$35,9,FALSE)) ->  | AP21: =IF(AP20="","",VLOOKUP(AP20,'シフト記号表（勤務時間帯）'!$C$4:$K$35,9,FALSE)) ->  | AQ21: =IF(AQ20="","",VLOOKUP(AQ20,'シフト記号表（勤務時間帯）'!$C$4:$K$35,9,FALSE)) ->  | AR21: =IF(AR20="","",VLOOKUP(AR20,'シフト記号表（勤務時間帯）'!$C$4:$K$35,9,FALSE)) ->  | AS21: =IF(AS20="","",VLOOKUP(AS20,'シフト記号表（勤務時間帯）'!$C$4:$K$35,9,FALSE)) ->  | AT21: =IF(AT20="","",VLOOKUP(AT20,'シフト記号表（勤務時間帯）'!$C$4:$K$35,9,FALSE)) ->  | AU21: =IF(AU20="","",VLOOKUP(AU20,'シフト記号表（勤務時間帯）'!$C$4:$K$35,9,FALSE)) ->  | AV21: =IF(AV20="","",VLOOKUP(AV20,'シフト記号表（勤務時間帯）'!$C$4:$K$35,9,FALSE)) ->  | AW21: =IF(AW20="","",VLOOKUP(AW20,'シフト記号表（勤務時間帯）'!$C$4:$K$35,9,FALSE)) ->  | AX21: =IF(AX20="","",VLOOKUP(AX20,'シフト記号表（勤務時間帯）'!$C$4:$K$35,9,FALSE)) -> 
B22: =B20+1 -> 4 | Q22: シフト記号 | AY22: =IF($BD$3="計画",SUM(T23:AU23),IF($BD$3="実績",SUM(T23:AX23),"")) -> 0 | BA22: =IF($BD$3="計画",AY22/4,IF($BD$3="実績",AY22/($BB$7/7),"")) -> 0
Q23: 勤務時間数 | T23: =IF(T22="","",VLOOKUP(T22,'シフト記号表（勤務時間帯）'!$C$4:$K$35,9,FALSE)) ->  | U23: =IF(U22="","",VLOOKUP(U22,'シフト記号表（勤務時間帯）'!$C$4:$K$35,9,FALSE)) ->  | V23: =IF(V22="","",VLOOKUP(V22,'シフト記号表（勤務時間帯）'!$C$4:$K$35,9,FALSE)) ->  | W23: =IF(W22="","",VLOOKUP(W22,'シフト記号表（勤務時間帯）'!$C$4:$K$35,9,FALSE)) ->  | X23: =IF(X22="","",VLOOKUP(X22,'シフト記号表（勤務時間帯）'!$C$4:$K$35,9,FALSE)) ->  | Y23: =IF(Y22="","",VLOOKUP(Y22,'シフト記号表（勤務時間帯）'!$C$4:$K$35,9,FALSE)) ->  | Z23: =IF(Z22="","",VLOOKUP(Z22,'シフト記号表（勤務時間帯）'!$C$4:$K$35,9,FALSE)) ->  | AA23: =IF(AA22="","",VLOOKUP(AA22,'シフト記号表（勤務時間帯）'!$C$4:$K$35,9,FALSE)) ->  | AB23: =IF(AB22="","",VLOOKUP(AB22,'シフト記号表（勤務時間帯）'!$C$4:$K$35,9,FALSE)) ->  | AC23: =IF(AC22="","",VLOOKUP(AC22,'シフト記号表（勤務時間帯）'!$C$4:$K$35,9,FALSE)) ->  | AD23: =IF(AD22="","",VLOOKUP(AD22,'シフト記号表（勤務時間帯）'!$C$4:$K$35,9,FALSE)) ->  | AE23: =IF(AE22="","",VLOOKUP(AE22,'シフト記号表（勤務時間帯）'!$C$4:$K$35,9,FALSE)) ->  | AF23: =IF(AF22="","",VLOOKUP(AF22,'シフト記号表（勤務時間帯）'!$C$4:$K$35,9,FALSE)) ->  | AG23: =IF(AG22="","",VLOOKUP(AG22,'シフト記号表（勤務時間帯）'!$C$4:$K$35,9,FALSE)) ->  | AH23: =IF(AH22="","",VLOOKUP(AH22,'シフト記号表（勤務時間帯）'!$C$4:$K$35,9,FALSE)) ->  | AI23: =IF(AI22="","",VLOOKUP(AI22,'シフト記号表（勤務時間帯）'!$C$4:$K$35,9,FALSE)) ->  | AJ23: =IF(AJ22="","",VLOOKUP(AJ22,'シフト記号表（勤務時間帯）'!$C$4:$K$35,9,FALSE)) ->  | AK23: =IF(AK22="","",VLOOKUP(AK22,'シフト記号表（勤務時間帯）'!$C$4:$K$35,9,FALSE)) ->  | AL23: =IF(AL22="","",VLOOKUP(AL22,'シフト記号表（勤務時間帯）'!$C$4:$K$35,9,FALSE)) ->  | AM23: =IF(AM22="","",VLOOKUP(AM22,'シフト記号表（勤務時間帯）'!$C$4:$K$35,9,FALSE)) ->  | AN23: =IF(AN22="","",VLOOKUP(AN22,'シフト記号表（勤務時間帯）'!$C$4:$K$35,9,FALSE)) ->  | AO23: =IF(AO22="","",VLOOKUP(AO22,'シフト記号表（勤務時間帯）'!$C$4:$K$35,9,FALSE)) ->  | AP23: =IF(AP22="","",VLOOKUP(AP22,'シフト記号表（勤務時間帯）'!$C$4:$K$35,9,FALSE)) ->  | AQ23: =IF(AQ22="","",VLOOKUP(AQ22,'シフト記号表（勤務時間帯）'!$C$4:$K$35,9,FALSE)) ->  | AR23: =IF(AR22="","",VLOOKUP(AR22,'シフト記号表（勤務時間帯）'!$C$4:$K$35,9,FALSE)) ->  | AS23: =IF(AS22="","",VLOOKUP(AS22,'シフト記号表（勤務時間帯）'!$C$4:$K$35,9,FALSE)) ->  | AT23: =IF(AT22="","",VLOOKUP(AT22,'シフト記号表（勤務時間帯）'!$C$4:$K$35,9,FALSE)) ->  | AU23: =IF(AU22="","",VLOOKUP(AU22,'シフト記号表（勤務時間帯）'!$C$4:$K$35,9,FALSE)) ->  | AV23: =IF(AV22="","",VLOOKUP(AV22,'シフト記号表（勤務時間帯）'!$C$4:$K$35,9,FALSE)) ->  | AW23: =IF(AW22="","",VLOOKUP(AW22,'シフト記号表（勤務時間帯）'!$C$4:$K$35,9,FALSE)) ->  | AX23: =IF(AX22="","",VLOOKUP(AX22,'シフト記号表（勤務時間帯）'!$C$4:$K$35,9,FALSE)) -> 
B24: =B22+1 -> 5 | Q24: シフト記号 | AY24: =IF($BD$3="計画",SUM(T25:AU25),IF($BD$3="実績",SUM(T25:AX25),"")) -> 0 | BA24: =IF($BD$3="計画",AY24/4,IF($BD$3="実績",AY24/($BB$7/7),"")) -> 0
Q25: 勤務時間数 | T25: =IF(T24="","",VLOOKUP(T24,'シフト記号表（勤務時間帯）'!$C$4:$K$35,9,FALSE)) ->  | U25: =IF(U24="","",VLOOKUP(U24,'シフト記号表（勤務時間帯）'!$C$4:$K$35,9,FALSE)) ->  | V25: =IF(V24="","",VLOOKUP(V24,'シフト記号表（勤務時間帯）'!$C$4:$K$35,9,FALSE)) ->  | W25: =IF(W24="","",VLOOKUP(W24,'シフト記号表（勤務時間帯）'!$C$4:$K$35,9,FALSE)) ->  | X25: =IF(X24="","",VLOOKUP(X24,'シフト記号表（勤務時間帯）'!$C$4:$K$35,9,FALSE)) ->  | Y25: =IF(Y24="","",VLOOKUP(Y24,'シフト記号表（勤務時間帯）'!$C$4:$K$35,9,FALSE)) ->  | Z25: =IF(Z24="","",VLOOKUP(Z24,'シフト記号表（勤務時間帯）'!$C$4:$K$35,9,FALSE)) ->  | AA25: =IF(AA24="","",VLOOKUP(AA24,'シフト記号表（勤務時間帯）'!$C$4:$K$35,9,FALSE)) ->  | AB25: =IF(AB24="","",VLOOKUP(AB24,'シフト記号表（勤務時間帯）'!$C$4:$K$35,9,FALSE)) ->  | AC25: =IF(AC24="","",VLOOKUP(AC24,'シフト記号表（勤務時間帯）'!$C$4:$K$35,9,FALSE)) ->  | AD25: =IF(AD24="","",VLOOKUP(AD24,'シフト記号表（勤務時間帯）'!$C$4:$K$35,9,FALSE)) ->  | AE25: =IF(AE24="","",VLOOKUP(AE24,'シフト記号表（勤務時間帯）'!$C$4:$K$35,9,FALSE)) ->  | AF25: =IF(AF24="","",VLOOKUP(AF24,'シフト記号表（勤務時間帯）'!$C$4:$K$35,9,FALSE)) ->  | AG25: =IF(AG24="","",VLOOKUP(AG24,'シフト記号表（勤務時間帯）'!$C$4:$K$35,9,FALSE)) ->  | AH25: =IF(AH24="","",VLOOKUP(AH24,'シフト記号表（勤務時間帯）'!$C$4:$K$35,9,FALSE)) ->  | AI25: =IF(AI24="","",VLOOKUP(AI24,'シフト記号表（勤務時間帯）'!$C$4:$K$35,9,FALSE)) ->  | AJ25: =IF(AJ24="","",VLOOKUP(AJ24,'シフト記号表（勤務時間帯）'!$C$4:$K$35,9,FALSE)) ->  | AK25: =IF(AK24="","",VLOOKUP(AK24,'シフト記号表（勤務時間帯）'!$C$4:$K$35,9,FALSE)) ->  | AL25: =IF(AL24="","",VLOOKUP(AL24,'シフト記号表（勤務時間帯）'!$C$4:$K$35,9,FALSE)) ->  | AM25: =IF(AM24="","",VLOOKUP(AM24,'シフト記号表（勤務時間帯）'!$C$4:$K$35,9,FALSE)) ->  | AN25: =IF(AN24="","",VLOOKUP(AN24,'シフト記号表（勤務時間帯）'!$C$4:$K$35,9,FALSE)) ->  | AO25: =IF(AO24="","",VLOOKUP(AO24,'シフト記号表（勤務時間帯）'!$C$4:$K$35,9,FALSE)) ->  | AP25: =IF(AP24="","",VLOOKUP(AP24,'シフト記号表（勤務時間帯）'!$C$4:$K$35,9,FALSE)) ->  | AQ25: =IF(AQ24="","",VLOOKUP(AQ24,'シフト記号表（勤務時間帯）'!$C$4:$K$35,9,FALSE)) ->  | AR25: =IF(AR24="","",VLOOKUP(AR24,'シフト記号表（勤務時間帯）'!$C$4:$K$35,9,FALSE)) ->  | AS25: =IF(AS24="","",VLOOKUP(AS24,'シフト記号表（勤務時間帯）'!$C$4:$K$35,9,FALSE)) ->  | AT25: =IF(AT24="","",VLOOKUP(AT24,'シフト記号表（勤務時間帯）'!$C$4:$K$35,9,FALSE)) ->  | AU25: =IF(AU24="","",VLOOKUP(AU24,'シフト記号表（勤務時間帯）'!$C$4:$K$35,9,FALSE)) ->  | AV25: =IF(AV24="","",VLOOKUP(AV24,'シフト記号表（勤務時間帯）'!$C$4:$K$35,9,FALSE)) ->  | AW25: =IF(AW24="","",VLOOKUP(AW24,'シフト記号表（勤務時間帯）'!$C$4:$K$35,9,FALSE)) ->  | AX25: =IF(AX24="","",VLOOKUP(AX24,'シフト記号表（勤務時間帯）'!$C$4:$K$35,9,FALSE)) -> 
B26: =B24+1 -> 6 | Q26: シフト記号 | AY26: =IF($BD$3="計画",SUM(T27:AU27),IF($BD$3="実績",SUM(T27:AX27),"")) -> 0 | BA26: =IF($BD$3="計画",AY26/4,IF($BD$3="実績",AY26/($BB$7/7),"")) -> 0
Q27: 勤務時間数 | T27: =IF(T26="","",VLOOKUP(T26,'シフト記号表（勤務時間帯）'!$C$4:$K$35,9,FALSE)) ->  | U27: =IF(U26="","",VLOOKUP(U26,'シフト記号表（勤務時間帯）'!$C$4:$K$35,9,FALSE)) ->  | V27: =IF(V26="","",VLOOKUP(V26,'シフト記号表（勤務時間帯）'!$C$4:$K$35,9,FALSE)) ->  | W27: =IF(W26="","",VLOOKUP(W26,'シフト記号表（勤務時間帯）'!$C$4:$K$35,9,FALSE)) ->  | X27: =IF(X26="","",VLOOKUP(X26,'シフト記号表（勤務時間帯）'!$C$4:$K$35,9,FALSE)) ->  | Y27: =IF(Y26="","",VLOOKUP(Y26,'シフト記号表（勤務時間帯）'!$C$4:$K$35,9,FALSE)) ->  | Z27: =IF(Z26="","",VLOOKUP(Z26,'シフト記号表（勤務時間帯）'!$C$4:$K$35,9,FALSE)) ->  | AA27: =IF(AA26="","",VLOOKUP(AA26,'シフト記号表（勤務時間帯）'!$C$4:$K$35,9,FALSE)) ->  | AB27: =IF(AB26="","",VLOOKUP(AB26,'シフト記号表（勤務時間帯）'!$C$4:$K$35,9,FALSE)) ->  | AC27: =IF(AC26="","",VLOOKUP(AC26,'シフト記号表（勤務時間帯）'!$C$4:$K$35,9,FALSE)) ->  | AD27: =IF(AD26="","",VLOOKUP(AD26,'シフト記号表（勤務時間帯）'!$C$4:$K$35,9,FALSE)) ->  | AE27: =IF(AE26="","",VLOOKUP(AE26,'シフト記号表（勤務時間帯）'!$C$4:$K$35,9,FALSE)) ->  | AF27: =IF(AF26="","",VLOOKUP(AF26,'シフト記号表（勤務時間帯）'!$C$4:$K$35,9,FALSE)) ->  | AG27: =IF(AG26="","",VLOOKUP(AG26,'シフト記号表（勤務時間帯）'!$C$4:$K$35,9,FALSE)) ->  | AH27: =IF(AH26="","",VLOOKUP(AH26,'シフト記号表（勤務時間帯）'!$C$4:$K$35,9,FALSE)) ->  | AI27: =IF(AI26="","",VLOOKUP(AI26,'シフト記号表（勤務時間帯）'!$C$4:$K$35,9,FALSE)) ->  | AJ27: =IF(AJ26="","",VLOOKUP(AJ26,'シフト記号表（勤務時間帯）'!$C$4:$K$35,9,FALSE)) ->  | AK27: =IF(AK26="","",VLOOKUP(AK26,'シフト記号表（勤務時間帯）'!$C$4:$K$35,9,FALSE)) ->  | AL27: =IF(AL26="","",VLOOKUP(AL26,'シフト記号表（勤務時間帯）'!$C$4:$K$35,9,FALSE)) ->  | AM27: =IF(AM26="","",VLOOKUP(AM26,'シフト記号表（勤務時間帯）'!$C$4:$K$35,9,FALSE)) ->  | AN27: =IF(AN26="","",VLOOKUP(AN26,'シフト記号表（勤務時間帯）'!$C$4:$K$35,9,FALSE)) ->  | AO27: =IF(AO26="","",VLOOKUP(AO26,'シフト記号表（勤務時間帯）'!$C$4:$K$35,9,FALSE)) ->  | AP27: =IF(AP26="","",VLOOKUP(AP26,'シフト記号表（勤務時間帯）'!$C$4:$K$35,9,FALSE)) ->  | AQ27: =IF(AQ26="","",VLOOKUP(AQ26,'シフト記号表（勤務時間帯）'!$C$4:$K$35,9,FALSE)) ->  | AR27: =IF(AR26="","",VLOOKUP(AR26,'シフト記号表（勤務時間帯）'!$C$4:$K$35,9,FALSE)) ->  | AS27: =IF(AS26="","",VLOOKUP(AS26,'シフト記号表（勤務時間帯）'!$C$4:$K$35,9,FALSE)) ->  | AT27: =IF(AT26="","",VLOOKUP(AT26,'シフト記号表（勤務時間帯）'!$C$4:$K$35,9,FALSE)) ->  | AU27: =IF(AU26="","",VLOOKUP(AU26,'シフト記号表（勤務時間帯）'!$C$4:$K$35,9,FALSE)) ->  | AV27: =IF(AV26="","",VLOOKUP(AV26,'シフト記号表（勤務時間帯）'!$C$4:$K$35,9,FALSE)) ->  | AW27: =IF(AW26="","",VLOOKUP(AW26,'シフト記号表（勤務時間帯）'!$C$4:$K$35,9,FALSE)) ->  | AX27: =IF(AX26="","",VLOOKUP(AX26,'シフト記号表（勤務時間帯）'!$C$4:$K$35,9,FALSE)) -> 
B28: =B26+1 -> 7 | Q28: シフト記号 | AY28: =IF($BD$3="計画",SUM(T29:AU29),IF($BD$3="実績",SUM(T29:AX29),"")) -> 0 | BA28: =IF($BD$3="計画",AY28/4,IF($BD$3="実績",AY28/($BB$7/7),"")) -> 0
Q29: 勤務時間数 | T29: =IF(T28="","",VLOOKUP(T28,'シフト記号表（勤務時間帯）'!$C$4:$K$35,9,FALSE)) ->  | U29: =IF(U28="","",VLOOKUP(U28,'シフト記号表（勤務時間帯）'!$C$4:$K$35,9,FALSE)) ->  | V29: =IF(V28="","",VLOOKUP(V28,'シフト記号表（勤務時間帯）'!$C$4:$K$35,9,FALSE)) ->  | W29: =IF(W28="","",VLOOKUP(W28,'シフト記号表（勤務時間帯）'!$C$4:$K$35,9,FALSE)) ->  | X29: =IF(X28="","",VLOOKUP(X28,'シフト記号表（勤務時間帯）'!$C$4:$K$35,9,FALSE)) ->  | Y29: =IF(Y28="","",VLOOKUP(Y28,'シフト記号表（勤務時間帯）'!$C$4:$K$35,9,FALSE)) ->  | Z29: =IF(Z28="","",VLOOKUP(Z28,'シフト記号表（勤務時間帯）'!$C$4:$K$35,9,FALSE)) ->  | AA29: =IF(AA28="","",VLOOKUP(AA28,'シフト記号表（勤務時間帯）'!$C$4:$K$35,9,FALSE)) ->  | AB29: =IF(AB28="","",VLOOKUP(AB28,'シフト記号表（勤務時間帯）'!$C$4:$K$35,9,FALSE)) ->  | AC29: =IF(AC28="","",VLOOKUP(AC28,'シフト記号表（勤務時間帯）'!$C$4:$K$35,9,FALSE)) ->  | AD29: =IF(AD28="","",VLOOKUP(AD28,'シフト記号表（勤務時間帯）'!$C$4:$K$35,9,FALSE)) ->  | AE29: =IF(AE28="","",VLOOKUP(AE28,'シフト記号表（勤務時間帯）'!$C$4:$K$35,9,FALSE)) ->  | AF29: =IF(AF28="","",VLOOKUP(AF28,'シフト記号表（勤務時間帯）'!$C$4:$K$35,9,FALSE)) ->  | AG29: =IF(AG28="","",VLOOKUP(AG28,'シフト記号表（勤務時間帯）'!$C$4:$K$35,9,FALSE)) ->  | AH29: =IF(AH28="","",VLOOKUP(AH28,'シフト記号表（勤務時間帯）'!$C$4:$K$35,9,FALSE)) ->  | AI29: =IF(AI28="","",VLOOKUP(AI28,'シフト記号表（勤務時間帯）'!$C$4:$K$35,9,FALSE)) ->  | AJ29: =IF(AJ28="","",VLOOKUP(AJ28,'シフト記号表（勤務時間帯）'!$C$4:$K$35,9,FALSE)) ->  | AK29: =IF(AK28="","",VLOOKUP(AK28,'シフト記号表（勤務時間帯）'!$C$4:$K$35,9,FALSE)) ->  | AL29: =IF(AL28="","",VLOOKUP(AL28,'シフト記号表（勤務時間帯）'!$C$4:$K$35,9,FALSE)) ->  | AM29: =IF(AM28="","",VLOOKUP(AM28,'シフト記号表（勤務時間帯）'!$C$4:$K$35,9,FALSE)) ->  | AN29: =IF(AN28="","",VLOOKUP(AN28,'シフト記号表（勤務時間帯）'!$C$4:$K$35,9,FALSE)) ->  | AO29: =IF(AO28="","",VLOOKUP(AO28,'シフト記号表（勤務時間帯）'!$C$4:$K$35,9,FALSE)) ->  | AP29: =IF(AP28="","",VLOOKUP(AP28,'シフト記号表（勤務時間帯）'!$C$4:$K$35,9,FALSE)) ->  | AQ29: =IF(AQ28="","",VLOOKUP(AQ28,'シフト記号表（勤務時間帯）'!$C$4:$K$35,9,FALSE)) ->  | AR29: =IF(AR28="","",VLOOKUP(AR28,'シフト記号表（勤務時間帯）'!$C$4:$K$35,9,FALSE)) ->  | AS29: =IF(AS28="","",VLOOKUP(AS28,'シフト記号表（勤務時間帯）'!$C$4:$K$35,9,FALSE)) ->  | AT29: =IF(AT28="","",VLOOKUP(AT28,'シフト記号表（勤務時間帯）'!$C$4:$K$35,9,FALSE)) ->  | AU29: =IF(AU28="","",VLOOKUP(AU28,'シフト記号表（勤務時間帯）'!$C$4:$K$35,9,FALSE)) ->  | AV29: =IF(AV28="","",VLOOKUP(AV28,'シフト記号表（勤務時間帯）'!$C$4:$K$35,9,FALSE)) ->  | AW29: =IF(AW28="","",VLOOKUP(AW28,'シフト記号表（勤務時間帯）'!$C$4:$K$35,9,FALSE)) ->  | AX29: =IF(AX28="","",VLOOKUP(AX28,'シフト記号表（勤務時間帯）'!$C$4:$K$35,9,FALSE)) -> 
B30: =B28+1 -> 8 | Q30: シフト記号 | AY30: =IF($BD$3="計画",SUM(T31:AU31),IF($BD$3="実績",SUM(T31:AX31),"")) -> 0 | BA30: =IF($BD$3="計画",AY30/4,IF($BD$3="実績",AY30/($BB$7/7),"")) -> 0
Q31: 勤務時間数 | T31: =IF(T30="","",VLOOKUP(T30,'シフト記号表（勤務時間帯）'!$C$4:$K$35,9,FALSE)) ->  | U31: =IF(U30="","",VLOOKUP(U30,'シフト記号表（勤務時間帯）'!$C$4:$K$35,9,FALSE)) ->  | V31: =IF(V30="","",VLOOKUP(V30,'シフト記号表（勤務時間帯）'!$C$4:$K$35,9,FALSE)) ->  | W31: =IF(W30="","",VLOOKUP(W30,'シフト記号表（勤務時間帯）'!$C$4:$K$35,9,FALSE)) ->  | X31: =IF(X30="","",VLOOKUP(X30,'シフト記号表（勤務時間帯）'!$C$4:$K$35,9,FALSE)) ->  | Y31: =IF(Y30="","",VLOOKUP(Y30,'シフト記号表（勤務時間帯）'!$C$4:$K$35,9,FALSE)) ->  | Z31: =IF(Z30="","",VLOOKUP(Z30,'シフト記号表（勤務時間帯）'!$C$4:$K$35,9,FALSE)) ->  | AA31: =IF(AA30="","",VLOOKUP(AA30,'シフト記号表（勤務時間帯）'!$C$4:$K$35,9,FALSE)) ->  | AB31: =IF(AB30="","",VLOOKUP(AB30,'シフト記号表（勤務時間帯）'!$C$4:$K$35,9,FALSE)) ->  | AC31: =IF(AC30="","",VLOOKUP(AC30,'シフト記号表（勤務時間帯）'!$C$4:$K$35,9,FALSE)) ->  | AD31: =IF(AD30="","",VLOOKUP(AD30,'シフト記号表（勤務時間帯）'!$C$4:$K$35,9,FALSE)) ->  | AE31: =IF(AE30="","",VLOOKUP(AE30,'シフト記号表（勤務時間帯）'!$C$4:$K$35,9,FALSE)) ->  | AF31: =IF(AF30="","",VLOOKUP(AF30,'シフト記号表（勤務時間帯）'!$C$4:$K$35,9,FALSE)) ->  | AG31: =IF(AG30="","",VLOOKUP(AG30,'シフト記号表（勤務時間帯）'!$C$4:$K$35,9,FALSE)) ->  | AH31: =IF(AH30="","",VLOOKUP(AH30,'シフト記号表（勤務時間帯）'!$C$4:$K$35,9,FALSE)) ->  | AI31: =IF(AI30="","",VLOOKUP(AI30,'シフト記号表（勤務時間帯）'!$C$4:$K$35,9,FALSE)) ->  | AJ31: =IF(AJ30="","",VLOOKUP(AJ30,'シフト記号表（勤務時間帯）'!$C$4:$K$35,9,FALSE)) ->  | AK31: =IF(AK30="","",VLOOKUP(AK30,'シフト記号表（勤務時間帯）'!$C$4:$K$35,9,FALSE)) ->  | AL31: =IF(AL30="","",VLOOKUP(AL30,'シフト記号表（勤務時間帯）'!$C$4:$K$35,9,FALSE)) ->  | AM31: =IF(AM30="","",VLOOKUP(AM30,'シフト記号表（勤務時間帯）'!$C$4:$K$35,9,FALSE)) ->  | AN31: =IF(AN30="","",VLOOKUP(AN30,'シフト記号表（勤務時間帯）'!$C$4:$K$35,9,FALSE)) ->  | AO31: =IF(AO30="","",VLOOKUP(AO30,'シフト記号表（勤務時間帯）'!$C$4:$K$35,9,FALSE)) ->  | AP31: =IF(AP30="","",VLOOKUP(AP30,'シフト記号表（勤務時間帯）'!$C$4:$K$35,9,FALSE)) ->  | AQ31: =IF(AQ30="","",VLOOKUP(AQ30,'シフト記号表（勤務時間帯）'!$C$4:$K$35,9,FALSE)) ->  | AR31: =IF(AR30="","",VLOOKUP(AR30,'シフト記号表（勤務時間帯）'!$C$4:$K$35,9,FALSE)) ->  | AS31: =IF(AS30="","",VLOOKUP(AS30,'シフト記号表（勤務時間帯）'!$C$4:$K$35,9,FALSE)) ->  | AT31: =IF(AT30="","",VLOOKUP(AT30,'シフト記号表（勤務時間帯）'!$C$4:$K$35,9,FALSE)) ->  | AU31: =IF(AU30="","",VLOOKUP(AU30,'シフト記号表（勤務時間帯）'!$C$4:$K$35,9,FALSE)) ->  | AV31: =IF(AV30="","",VLOOKUP(AV30,'シフト記号表（勤務時間帯）'!$C$4:$K$35,9,FALSE)) ->  | AW31: =IF(AW30="","",VLOOKUP(AW30,'シフト記号表（勤務時間帯）'!$C$4:$K$35,9,FALSE)) ->  | AX31: =IF(AX30="","",VLOOKUP(AX30,'シフト記号表（勤務時間帯）'!$C$4:$K$35,9,FALSE)) -> 
B32: =B30+1 -> 9 | Q32: シフト記号 | AY32: =IF($BD$3="計画",SUM(T33:AU33),IF($BD$3="実績",SUM(T33:AX33),"")) -> 0 | BA32: =IF($BD$3="計画",AY32/4,IF($BD$3="実績",AY32/($BB$7/7),"")) -> 0
Q33: 勤務時間数 | T33: =IF(T32="","",VLOOKUP(T32,'シフト記号表（勤務時間帯）'!$C$4:$K$35,9,FALSE)) ->  | U33: =IF(U32="","",VLOOKUP(U32,'シフト記号表（勤務時間帯）'!$C$4:$K$35,9,FALSE)) ->  | V33: =IF(V32="","",VLOOKUP(V32,'シフト記号表（勤務時間帯）'!$C$4:$K$35,9,FALSE)) ->  | W33: =IF(W32="","",VLOOKUP(W32,'シフト記号表（勤務時間帯）'!$C$4:$K$35,9,FALSE)) ->  | X33: =IF(X32="","",VLOOKUP(X32,'シフト記号表（勤務時間帯）'!$C$4:$K$35,9,FALSE)) ->  | Y33: =IF(Y32="","",VLOOKUP(Y32,'シフト記号表（勤務時間帯）'!$C$4:$K$35,9,FALSE)) ->  | Z33: =IF(Z32="","",VLOOKUP(Z32,'シフト記号表（勤務時間帯）'!$C$4:$K$35,9,FALSE)) ->  | AA33: =IF(AA32="","",VLOOKUP(AA32,'シフト記号表（勤務時間帯）'!$C$4:$K$35,9,FALSE)) ->  | AB33: =IF(AB32="","",VLOOKUP(AB32,'シフト記号表（勤務時間帯）'!$C$4:$K$35,9,FALSE)) ->  | AC33: =IF(AC32="","",VLOOKUP(AC32,'シフト記号表（勤務時間帯）'!$C$4:$K$35,9,FALSE)) ->  | AD33: =IF(AD32="","",VLOOKUP(AD32,'シフト記号表（勤務時間帯）'!$C$4:$K$35,9,FALSE)) ->  | AE33: =IF(AE32="","",VLOOKUP(AE32,'シフト記号表（勤務時間帯）'!$C$4:$K$35,9,FALSE)) ->  | AF33: =IF(AF32="","",VLOOKUP(AF32,'シフト記号表（勤務時間帯）'!$C$4:$K$35,9,FALSE)) ->  | AG33: =IF(AG32="","",VLOOKUP(AG32,'シフト記号表（勤務時間帯）'!$C$4:$K$35,9,FALSE)) ->  | AH33: =IF(AH32="","",VLOOKUP(AH32,'シフト記号表（勤務時間帯）'!$C$4:$K$35,9,FALSE)) ->  | AI33: =IF(AI32="","",VLOOKUP(AI32,'シフト記号表（勤務時間帯）'!$C$4:$K$35,9,FALSE)) ->  | AJ33: =IF(AJ32="","",VLOOKUP(AJ32,'シフト記号表（勤務時間帯）'!$C$4:$K$35,9,FALSE)) ->  | AK33: =IF(AK32="","",VLOOKUP(AK32,'シフト記号表（勤務時間帯）'!$C$4:$K$35,9,FALSE)) ->  | AL33: =IF(AL32="","",VLOOKUP(AL32,'シフト記号表（勤務時間帯）'!$C$4:$K$35,9,FALSE)) ->  | AM33: =IF(AM32="","",VLOOKUP(AM32,'シフト記号表（勤務時間帯）'!$C$4:$K$35,9,FALSE)) ->  | AN33: =IF(AN32="","",VLOOKUP(AN32,'シフト記号表（勤務時間帯）'!$C$4:$K$35,9,FALSE)) ->  | AO33: =IF(AO32="","",VLOOKUP(AO32,'シフト記号表（勤務時間帯）'!$C$4:$K$35,9,FALSE)) ->  | AP33: =IF(AP32="","",VLOOKUP(AP32,'シフト記号表（勤務時間帯）'!$C$4:$K$35,9,FALSE)) ->  | AQ33: =IF(AQ32="","",VLOOKUP(AQ32,'シフト記号表（勤務時間帯）'!$C$4:$K$35,9,FALSE)) ->  | AR33: =IF(AR32="","",VLOOKUP(AR32,'シフト記号表（勤務時間帯）'!$C$4:$K$35,9,FALSE)) ->  | AS33: =IF(AS32="","",VLOOKUP(AS32,'シフト記号表（勤務時間帯）'!$C$4:$K$35,9,FALSE)) ->  | AT33: =IF(AT32="","",VLOOKUP(AT32,'シフト記号表（勤務時間帯）'!$C$4:$K$35,9,FALSE)) ->  | AU33: =IF(AU32="","",VLOOKUP(AU32,'シフト記号表（勤務時間帯）'!$C$4:$K$35,9,FALSE)) ->  | AV33: =IF(AV32="","",VLOOKUP(AV32,'シフト記号表（勤務時間帯）'!$C$4:$K$35,9,FALSE)) ->  | AW33: =IF(AW32="","",VLOOKUP(AW32,'シフト記号表（勤務時間帯）'!$C$4:$K$35,9,FALSE)) ->  | AX33: =IF(AX32="","",VLOOKUP(AX32,'シフト記号表（勤務時間帯）'!$C$4:$K$35,9,FALSE)) -> 
B34: =B32+1 -> 10 | Q34: シフト記号 | AY34: =IF($BD$3="計画",SUM(T35:AU35),IF($BD$3="実績",SUM(T35:AX35),"")) -> 0 | BA34: =IF($BD$3="計画",AY34/4,IF($BD$3="実績",AY34/($BB$7/7),"")) -> 0
Q35: 勤務時間数 | T35: =IF(T34="","",VLOOKUP(T34,'シフト記号表（勤務時間帯）'!$C$4:$K$35,9,FALSE)) ->  | U35: =IF(U34="","",VLOOKUP(U34,'シフト記号表（勤務時間帯）'!$C$4:$K$35,9,FALSE)) ->  | V35: =IF(V34="","",VLOOKUP(V34,'シフト記号表（勤務時間帯）'!$C$4:$K$35,9,FALSE)) ->  | W35: =IF(W34="","",VLOOKUP(W34,'シフト記号表（勤務時間帯）'!$C$4:$K$35,9,FALSE)) ->  | X35: =IF(X34="","",VLOOKUP(X34,'シフト記号表（勤務時間帯）'!$C$4:$K$35,9,FALSE)) ->  | Y35: =IF(Y34="","",VLOOKUP(Y34,'シフト記号表（勤務時間帯）'!$C$4:$K$35,9,FALSE)) ->  | Z35: =IF(Z34="","",VLOOKUP(Z34,'シフト記号表（勤務時間帯）'!$C$4:$K$35,9,FALSE)) ->  | AA35: =IF(AA34="","",VLOOKUP(AA34,'シフト記号表（勤務時間帯）'!$C$4:$K$35,9,FALSE)) ->  | AB35: =IF(AB34="","",VLOOKUP(AB34,'シフト記号表（勤務時間帯）'!$C$4:$K$35,9,FALSE)) ->  | AC35: =IF(AC34="","",VLOOKUP(AC34,'シフト記号表（勤務時間帯）'!$C$4:$K$35,9,FALSE)) ->  | AD35: =IF(AD34="","",VLOOKUP(AD34,'シフト記号表（勤務時間帯）'!$C$4:$K$35,9,FALSE)) ->  | AE35: =IF(AE34="","",VLOOKUP(AE34,'シフト記号表（勤務時間帯）'!$C$4:$K$35,9,FALSE)) ->  | AF35: =IF(AF34="","",VLOOKUP(AF34,'シフト記号表（勤務時間帯）'!$C$4:$K$35,9,FALSE)) ->  | AG35: =IF(AG34="","",VLOOKUP(AG34,'シフト記号表（勤務時間帯）'!$C$4:$K$35,9,FALSE)) ->  | AH35: =IF(AH34="","",VLOOKUP(AH34,'シフト記号表（勤務時間帯）'!$C$4:$K$35,9,FALSE)) ->  | AI35: =IF(AI34="","",VLOOKUP(AI34,'シフト記号表（勤務時間帯）'!$C$4:$K$35,9,FALSE)) ->  | AJ35: =IF(AJ34="","",VLOOKUP(AJ34,'シフト記号表（勤務時間帯）'!$C$4:$K$35,9,FALSE)) ->  | AK35: =IF(AK34="","",VLOOKUP(AK34,'シフト記号表（勤務時間帯）'!$C$4:$K$35,9,FALSE)) ->  | AL35: =IF(AL34="","",VLOOKUP(AL34,'シフト記号表（勤務時間帯）'!$C$4:$K$35,9,FALSE)) ->  | AM35: =IF(AM34="","",VLOOKUP(AM34,'シフト記号表（勤務時間帯）'!$C$4:$K$35,9,FALSE)) ->  | AN35: =IF(AN34="","",VLOOKUP(AN34,'シフト記号表（勤務時間帯）'!$C$4:$K$35,9,FALSE)) ->  | AO35: =IF(AO34="","",VLOOKUP(AO34,'シフト記号表（勤務時間帯）'!$C$4:$K$35,9,FALSE)) ->  | AP35: =IF(AP34="","",VLOOKUP(AP34,'シフト記号表（勤務時間帯）'!$C$4:$K$35,9,FALSE)) ->  | AQ35: =IF(AQ34="","",VLOOKUP(AQ34,'シフト記号表（勤務時間帯）'!$C$4:$K$35,9,FALSE)) ->  | AR35: =IF(AR34="","",VLOOKUP(AR34,'シフト記号表（勤務時間帯）'!$C$4:$K$35,9,FALSE)) ->  | AS35: =IF(AS34="","",VLOOKUP(AS34,'シフト記号表（勤務時間帯）'!$C$4:$K$35,9,FALSE)) ->  | AT35: =IF(AT34="","",VLOOKUP(AT34,'シフト記号表（勤務時間帯）'!$C$4:$K$35,9,FALSE)) ->  | AU35: =IF(AU34="","",VLOOKUP(AU34,'シフト記号表（勤務時間帯）'!$C$4:$K$35,9,FALSE)) ->  | AV35: =IF(AV34="","",VLOOKUP(AV34,'シフト記号表（勤務時間帯）'!$C$4:$K$35,9,FALSE)) ->  | AW35: =IF(AW34="","",VLOOKUP(AW34,'シフト記号表（勤務時間帯）'!$C$4:$K$35,9,FALSE)) ->  | AX35: =IF(AX34="","",VLOOKUP(AX34,'シフト記号表（勤務時間帯）'!$C$4:$K$35,9,FALSE)) -> 
B36: 11 | Q36: シフト記号 | AY36: =IF($BD$3="計画",SUM(T37:AU37),IF($BD$3="実績",SUM(T37:AX37),"")) -> 0 | BA36: =IF($BD$3="計画",AY36/4,IF($BD$3="実績",AY36/($BB$7/7),"")) -> 0
Q37: 勤務時間数 | T37: =IF(T36="","",VLOOKUP(T36,'シフト記号表（勤務時間帯）'!$C$4:$K$35,9,FALSE)) ->  | U37: =IF(U36="","",VLOOKUP(U36,'シフト記号表（勤務時間帯）'!$C$4:$K$35,9,FALSE)) ->  | V37: =IF(V36="","",VLOOKUP(V36,'シフト記号表（勤務時間帯）'!$C$4:$K$35,9,FALSE)) ->  | W37: =IF(W36="","",VLOOKUP(W36,'シフト記号表（勤務時間帯）'!$C$4:$K$35,9,FALSE)) ->  | X37: =IF(X36="","",VLOOKUP(X36,'シフト記号表（勤務時間帯）'!$C$4:$K$35,9,FALSE)) ->  | Y37: =IF(Y36="","",VLOOKUP(Y36,'シフト記号表（勤務時間帯）'!$C$4:$K$35,9,FALSE)) ->  | Z37: =IF(Z36="","",VLOOKUP(Z36,'シフト記号表（勤務時間帯）'!$C$4:$K$35,9,FALSE)) ->  | AA37: =IF(AA36="","",VLOOKUP(AA36,'シフト記号表（勤務時間帯）'!$C$4:$K$35,9,FALSE)) ->  | AB37: =IF(AB36="","",VLOOKUP(AB36,'シフト記号表（勤務時間帯）'!$C$4:$K$35,9,FALSE)) ->  | AC37: =IF(AC36="","",VLOOKUP(AC36,'シフト記号表（勤務時間帯）'!$C$4:$K$35,9,FALSE)) ->  | AD37: =IF(AD36="","",VLOOKUP(AD36,'シフト記号表（勤務時間帯）'!$C$4:$K$35,9,FALSE)) ->  | AE37: =IF(AE36="","",VLOOKUP(AE36,'シフト記号表（勤務時間帯）'!$C$4:$K$35,9,FALSE)) ->  | AF37: =IF(AF36="","",VLOOKUP(AF36,'シフト記号表（勤務時間帯）'!$C$4:$K$35,9,FALSE)) ->  | AG37: =IF(AG36="","",VLOOKUP(AG36,'シフト記号表（勤務時間帯）'!$C$4:$K$35,9,FALSE)) ->  | AH37: =IF(AH36="","",VLOOKUP(AH36,'シフト記号表（勤務時間帯）'!$C$4:$K$35,9,FALSE)) ->  | AI37: =IF(AI36="","",VLOOKUP(AI36,'シフト記号表（勤務時間帯）'!$C$4:$K$35,9,FALSE)) ->  | AJ37: =IF(AJ36="","",VLOOKUP(AJ36,'シフト記号表（勤務時間帯）'!$C$4:$K$35,9,FALSE)) ->  | AK37: =IF(AK36="","",VLOOKUP(AK36,'シフト記号表（勤務時間帯）'!$C$4:$K$35,9,FALSE)) ->  | AL37: =IF(AL36="","",VLOOKUP(AL36,'シフト記号表（勤務時間帯）'!$C$4:$K$35,9,FALSE)) ->  | AM37: =IF(AM36="","",VLOOKUP(AM36,'シフト記号表（勤務時間帯）'!$C$4:$K$35,9,FALSE)) ->  | AN37: =IF(AN36="","",VLOOKUP(AN36,'シフト記号表（勤務時間帯）'!$C$4:$K$35,9,FALSE)) ->  | AO37: =IF(AO36="","",VLOOKUP(AO36,'シフト記号表（勤務時間帯）'!$C$4:$K$35,9,FALSE)) ->  | AP37: =IF(AP36="","",VLOOKUP(AP36,'シフト記号表（勤務時間帯）'!$C$4:$K$35,9,FALSE)) ->  | AQ37: =IF(AQ36="","",VLOOKUP(AQ36,'シフト記号表（勤務時間帯）'!$C$4:$K$35,9,FALSE)) ->  | AR37: =IF(AR36="","",VLOOKUP(AR36,'シフト記号表（勤務時間帯）'!$C$4:$K$35,9,FALSE)) ->  | AS37: =IF(AS36="","",VLOOKUP(AS36,'シフト記号表（勤務時間帯）'!$C$4:$K$35,9,FALSE)) ->  | AT37: =IF(AT36="","",VLOOKUP(AT36,'シフト記号表（勤務時間帯）'!$C$4:$K$35,9,FALSE)) ->  | AU37: =IF(AU36="","",VLOOKUP(AU36,'シフト記号表（勤務時間帯）'!$C$4:$K$35,9,FALSE)) ->  | AV37: =IF(AV36="","",VLOOKUP(AV36,'シフト記号表（勤務時間帯）'!$C$4:$K$35,9,FALSE)) ->  | AW37: =IF(AW36="","",VLOOKUP(AW36,'シフト記号表（勤務時間帯）'!$C$4:$K$35,9,FALSE)) ->  | AX37: =IF(AX36="","",VLOOKUP(AX36,'シフト記号表（勤務時間帯）'!$C$4:$K$35,9,FALSE)) -> 
B38: =B36+1 -> 12 | Q38: シフト記号 | AY38: =IF($BD$3="計画",SUM(T39:AU39),IF($BD$3="実績",SUM(T39:AX39),"")) -> 0 | BA38: =IF($BD$3="計画",AY38/4,IF($BD$3="実績",AY38/($BB$7/7),"")) -> 0
Q39: 勤務時間数 | T39: =IF(T38="","",VLOOKUP(T38,'シフト記号表（勤務時間帯）'!$C$4:$K$35,9,FALSE)) ->  | U39: =IF(U38="","",VLOOKUP(U38,'シフト記号表（勤務時間帯）'!$C$4:$K$35,9,FALSE)) ->  | V39: =IF(V38="","",VLOOKUP(V38,'シフト記号表（勤務時間帯）'!$C$4:$K$35,9,FALSE)) ->  | W39: =IF(W38="","",VLOOKUP(W38,'シフト記号表（勤務時間帯）'!$C$4:$K$35,9,FALSE)) ->  | X39: =IF(X38="","",VLOOKUP(X38,'シフト記号表（勤務時間帯）'!$C$4:$K$35,9,FALSE)) ->  | Y39: =IF(Y38="","",VLOOKUP(Y38,'シフト記号表（勤務時間帯）'!$C$4:$K$35,9,FALSE)) ->  | Z39: =IF(Z38="","",VLOOKUP(Z38,'シフト記号表（勤務時間帯）'!$C$4:$K$35,9,FALSE)) ->  | AA39: =IF(AA38="","",VLOOKUP(AA38,'シフト記号表（勤務時間帯）'!$C$4:$K$35,9,FALSE)) ->  | AB39: =IF(AB38="","",VLOOKUP(AB38,'シフト記号表（勤務時間帯）'!$C$4:$K$35,9,FALSE)) ->  | AC39: =IF(AC38="","",VLOOKUP(AC38,'シフト記号表（勤務時間帯）'!$C$4:$K$35,9,FALSE)) ->  | AD39: =IF(AD38="","",VLOOKUP(AD38,'シフト記号表（勤務時間帯）'!$C$4:$K$35,9,FALSE)) ->  | AE39: =IF(AE38="","",VLOOKUP(AE38,'シフト記号表（勤務時間帯）'!$C$4:$K$35,9,FALSE)) ->  | AF39: =IF(AF38="","",VLOOKUP(AF38,'シフト記号表（勤務時間帯）'!$C$4:$K$35,9,FALSE)) ->  | AG39: =IF(AG38="","",VLOOKUP(AG38,'シフト記号表（勤務時間帯）'!$C$4:$K$35,9,FALSE)) ->  | AH39: =IF(AH38="","",VLOOKUP(AH38,'シフト記号表（勤務時間帯）'!$C$4:$K$35,9,FALSE)) ->  | AI39: =IF(AI38="","",VLOOKUP(AI38,'シフト記号表（勤務時間帯）'!$C$4:$K$35,9,FALSE)) ->  | AJ39: =IF(AJ38="","",VLOOKUP(AJ38,'シフト記号表（勤務時間帯）'!$C$4:$K$35,9,FALSE)) ->  | AK39: =IF(AK38="","",VLOOKUP(AK38,'シフト記号表（勤務時間帯）'!$C$4:$K$35,9,FALSE)) ->  | AL39: =IF(AL38="","",VLOOKUP(AL38,'シフト記号表（勤務時間帯）'!$C$4:$K$35,9,FALSE)) ->  | AM39: =IF(AM38="","",VLOOKUP(AM38,'シフト記号表（勤務時間帯）'!$C$4:$K$35,9,FALSE)) ->  | AN39: =IF(AN38="","",VLOOKUP(AN38,'シフト記号表（勤務時間帯）'!$C$4:$K$35,9,FALSE)) ->  | AO39: =IF(AO38="","",VLOOKUP(AO38,'シフト記号表（勤務時間帯）'!$C$4:$K$35,9,FALSE)) ->  | AP39: =IF(AP38="","",VLOOKUP(AP38,'シフト記号表（勤務時間帯）'!$C$4:$K$35,9,FALSE)) ->  | AQ39: =IF(AQ38="","",VLOOKUP(AQ38,'シフト記号表（勤務時間帯）'!$C$4:$K$35,9,FALSE)) ->  | AR39: =IF(AR38="","",VLOOKUP(AR38,'シフト記号表（勤務時間帯）'!$C$4:$K$35,9,FALSE)) ->  | AS39: =IF(AS38="","",VLOOKUP(AS38,'シフト記号表（勤務時間帯）'!$C$4:$K$35,9,FALSE)) ->  | AT39: =IF(AT38="","",VLOOKUP(AT38,'シフト記号表（勤務時間帯）'!$C$4:$K$35,9,FALSE)) ->  | AU39: =IF(AU38="","",VLOOKUP(AU38,'シフト記号表（勤務時間帯）'!$C$4:$K$35,9,FALSE)) ->  | AV39: =IF(AV38="","",VLOOKUP(AV38,'シフト記号表（勤務時間帯）'!$C$4:$K$35,9,FALSE)) ->  | AW39: =IF(AW38="","",VLOOKUP(AW38,'シフト記号表（勤務時間帯）'!$C$4:$K$35,9,FALSE)) ->  | AX39: =IF(AX38="","",VLOOKUP(AX38,'シフト記号表（勤務時間帯）'!$C$4:$K$35,9,FALSE)) -> 
B40: =B38+1 -> 13 | Q40: シフト記号 | AY40: =IF($BD$3="計画",SUM(T41:AU41),IF($BD$3="実績",SUM(T41:AX41),"")) -> 0 | BA40: =IF($BD$3="計画",AY40/4,IF($BD$3="実績",AY40/($BB$7/7),"")) -> 0
Q41: 勤務時間数 | T41: =IF(T40="","",VLOOKUP(T40,'シフト記号表（勤務時間帯）'!$C$4:$K$35,9,FALSE)) ->  | U41: =IF(U40="","",VLOOKUP(U40,'シフト記号表（勤務時間帯）'!$C$4:$K$35,9,FALSE)) ->  | V41: =IF(V40="","",VLOOKUP(V40,'シフト記号表（勤務時間帯）'!$C$4:$K$35,9,FALSE)) ->  | W41: =IF(W40="","",VLOOKUP(W40,'シフト記号表（勤務時間帯）'!$C$4:$K$35,9,FALSE)) ->  | X41: =IF(X40="","",VLOOKUP(X40,'シフト記号表（勤務時間帯）'!$C$4:$K$35,9,FALSE)) ->  | Y41: =IF(Y40="","",VLOOKUP(Y40,'シフト記号表（勤務時間帯）'!$C$4:$K$35,9,FALSE)) ->  | Z41: =IF(Z40="","",VLOOKUP(Z40,'シフト記号表（勤務時間帯）'!$C$4:$K$35,9,FALSE)) ->  | AA41: =IF(AA40="","",VLOOKUP(AA40,'シフト記号表（勤務時間帯）'!$C$4:$K$35,9,FALSE)) ->  | AB41: =IF(AB40="","",VLOOKUP(AB40,'シフト記号表（勤務時間帯）'!$C$4:$K$35,9,FALSE)) ->  | AC41: =IF(AC40="","",VLOOKUP(AC40,'シフト記号表（勤務時間帯）'!$C$4:$K$35,9,FALSE)) ->  | AD41: =IF(AD40="","",VLOOKUP(AD40,'シフト記号表（勤務時間帯）'!$C$4:$K$35,9,FALSE)) ->  | AE41: =IF(AE40="","",VLOOKUP(AE40,'シフト記号表（勤務時間帯）'!$C$4:$K$35,9,FALSE)) ->  | AF41: =IF(AF40="","",VLOOKUP(AF40,'シフト記号表（勤務時間帯）'!$C$4:$K$35,9,FALSE)) ->  | AG41: =IF(AG40="","",VLOOKUP(AG40,'シフト記号表（勤務時間帯）'!$C$4:$K$35,9,FALSE)) ->  | AH41: =IF(AH40="","",VLOOKUP(AH40,'シフト記号表（勤務時間帯）'!$C$4:$K$35,9,FALSE)) ->  | AI41: =IF(AI40="","",VLOOKUP(AI40,'シフト記号表（勤務時間帯）'!$C$4:$K$35,9,FALSE)) ->  | AJ41: =IF(AJ40="","",VLOOKUP(AJ40,'シフト記号表（勤務時間帯）'!$C$4:$K$35,9,FALSE)) ->  | AK41: =IF(AK40="","",VLOOKUP(AK40,'シフト記号表（勤務時間帯）'!$C$4:$K$35,9,FALSE)) ->  | AL41: =IF(AL40="","",VLOOKUP(AL40,'シフト記号表（勤務時間帯）'!$C$4:$K$35,9,FALSE)) ->  | AM41: =IF(AM40="","",VLOOKUP(AM40,'シフト記号表（勤務時間帯）'!$C$4:$K$35,9,FALSE)) ->  | AN41: =IF(AN40="","",VLOOKUP(AN40,'シフト記号表（勤務時間帯）'!$C$4:$K$35,9,FALSE)) ->  | AO41: =IF(AO40="","",VLOOKUP(AO40,'シフト記号表（勤務時間帯）'!$C$4:$K$35,9,FALSE)) ->  | AP41: =IF(AP40="","",VLOOKUP(AP40,'シフト記号表（勤務時間帯）'!$C$4:$K$35,9,FALSE)) ->  | AQ41: =IF(AQ40="","",VLOOKUP(AQ40,'シフト記号表（勤務時間帯）'!$C$4:$K$35,9,FALSE)) ->  | AR41: =IF(AR40="","",VLOOKUP(AR40,'シフト記号表（勤務時間帯）'!$C$4:$K$35,9,FALSE)) ->  | AS41: =IF(AS40="","",VLOOKUP(AS40,'シフト記号表（勤務時間帯）'!$C$4:$K$35,9,FALSE)) ->  | AT41: =IF(AT40="","",VLOOKUP(AT40,'シフト記号表（勤務時間帯）'!$C$4:$K$35,9,FALSE)) ->  | AU41: =IF(AU40="","",VLOOKUP(AU40,'シフト記号表（勤務時間帯）'!$C$4:$K$35,9,FALSE)) ->  | AV41: =IF(AV40="","",VLOOKUP(AV40,'シフト記号表（勤務時間帯）'!$C$4:$K$35,9,FALSE)) ->  | AW41: =IF(AW40="","",VLOOKUP(AW40,'シフト記号表（勤務時間帯）'!$C$4:$K$35,9,FALSE)) ->  | AX41: =IF(AX40="","",VLOOKUP(AX40,'シフト記号表（勤務時間帯）'!$C$4:$K$35,9,FALSE)) -> 
B42: =B40+1 -> 14 | Q42: シフト記号 | AY42: =IF($BD$3="計画",SUM(T43:AU43),IF($BD$3="実績",SUM(T43:AX43),"")) -> 0 | BA42: =IF($BD$3="計画",AY42/4,IF($BD$3="実績",AY42/($BB$7/7),"")) -> 0
Q43: 勤務時間数 | T43: =IF(T42="","",VLOOKUP(T42,'シフト記号表（勤務時間帯）'!$C$4:$K$35,9,FALSE)) ->  | U43: =IF(U42="","",VLOOKUP(U42,'シフト記号表（勤務時間帯）'!$C$4:$K$35,9,FALSE)) ->  | V43: =IF(V42="","",VLOOKUP(V42,'シフト記号表（勤務時間帯）'!$C$4:$K$35,9,FALSE)) ->  | W43: =IF(W42="","",VLOOKUP(W42,'シフト記号表（勤務時間帯）'!$C$4:$K$35,9,FALSE)) ->  | X43: =IF(X42="","",VLOOKUP(X42,'シフト記号表（勤務時間帯）'!$C$4:$K$35,9,FALSE)) ->  | Y43: =IF(Y42="","",VLOOKUP(Y42,'シフト記号表（勤務時間帯）'!$C$4:$K$35,9,FALSE)) ->  | Z43: =IF(Z42="","",VLOOKUP(Z42,'シフト記号表（勤務時間帯）'!$C$4:$K$35,9,FALSE)) ->  | AA43: =IF(AA42="","",VLOOKUP(AA42,'シフト記号表（勤務時間帯）'!$C$4:$K$35,9,FALSE)) ->  | AB43: =IF(AB42="","",VLOOKUP(AB42,'シフト記号表（勤務時間帯）'!$C$4:$K$35,9,FALSE)) ->  | AC43: =IF(AC42="","",VLOOKUP(AC42,'シフト記号表（勤務時間帯）'!$C$4:$K$35,9,FALSE)) ->  | AD43: =IF(AD42="","",VLOOKUP(AD42,'シフト記号表（勤務時間帯）'!$C$4:$K$35,9,FALSE)) ->  | AE43: =IF(AE42="","",VLOOKUP(AE42,'シフト記号表（勤務時間帯）'!$C$4:$K$35,9,FALSE)) ->  | AF43: =IF(AF42="","",VLOOKUP(AF42,'シフト記号表（勤務時間帯）'!$C$4:$K$35,9,FALSE)) ->  | AG43: =IF(AG42="","",VLOOKUP(AG42,'シフト記号表（勤務時間帯）'!$C$4:$K$35,9,FALSE)) ->  | AH43: =IF(AH42="","",VLOOKUP(AH42,'シフト記号表（勤務時間帯）'!$C$4:$K$35,9,FALSE)) ->  | AI43: =IF(AI42="","",VLOOKUP(AI42,'シフト記号表（勤務時間帯）'!$C$4:$K$35,9,FALSE)) ->  | AJ43: =IF(AJ42="","",VLOOKUP(AJ42,'シフト記号表（勤務時間帯）'!$C$4:$K$35,9,FALSE)) ->  | AK43: =IF(AK42="","",VLOOKUP(AK42,'シフト記号表（勤務時間帯）'!$C$4:$K$35,9,FALSE)) ->  | AL43: =IF(AL42="","",VLOOKUP(AL42,'シフト記号表（勤務時間帯）'!$C$4:$K$35,9,FALSE)) ->  | AM43: =IF(AM42="","",VLOOKUP(AM42,'シフト記号表（勤務時間帯）'!$C$4:$K$35,9,FALSE)) ->  | AN43: =IF(AN42="","",VLOOKUP(AN42,'シフト記号表（勤務時間帯）'!$C$4:$K$35,9,FALSE)) ->  | AO43: =IF(AO42="","",VLOOKUP(AO42,'シフト記号表（勤務時間帯）'!$C$4:$K$35,9,FALSE)) ->  | AP43: =IF(AP42="","",VLOOKUP(AP42,'シフト記号表（勤務時間帯）'!$C$4:$K$35,9,FALSE)) ->  | AQ43: =IF(AQ42="","",VLOOKUP(AQ42,'シフト記号表（勤務時間帯）'!$C$4:$K$35,9,FALSE)) ->  | AR43: =IF(AR42="","",VLOOKUP(AR42,'シフト記号表（勤務時間帯）'!$C$4:$K$35,9,FALSE)) ->  | AS43: =IF(AS42="","",VLOOKUP(AS42,'シフト記号表（勤務時間帯）'!$C$4:$K$35,9,FALSE)) ->  | AT43: =IF(AT42="","",VLOOKUP(AT42,'シフト記号表（勤務時間帯）'!$C$4:$K$35,9,FALSE)) ->  | AU43: =IF(AU42="","",VLOOKUP(AU42,'シフト記号表（勤務時間帯）'!$C$4:$K$35,9,FALSE)) ->  | AV43: =IF(AV42="","",VLOOKUP(AV42,'シフト記号表（勤務時間帯）'!$C$4:$K$35,9,FALSE)) ->  | AW43: =IF(AW42="","",VLOOKUP(AW42,'シフト記号表（勤務時間帯）'!$C$4:$K$35,9,FALSE)) ->  | AX43: =IF(AX42="","",VLOOKUP(AX42,'シフト記号表（勤務時間帯）'!$C$4:$K$35,9,FALSE)) -> 
B44: =B42+1 -> 15 | Q44: シフト記号 | AY44: =IF($BD$3="計画",SUM(T45:AU45),IF($BD$3="実績",SUM(T45:AX45),"")) -> 0 | BA44: =IF($BD$3="計画",AY44/4,IF($BD$3="実績",AY44/($BB$7/7),"")) -> 0
Q45: 勤務時間数 | T45: =IF(T44="","",VLOOKUP(T44,'シフト記号表（勤務時間帯）'!$C$4:$K$35,9,FALSE)) ->  | U45: =IF(U44="","",VLOOKUP(U44,'シフト記号表（勤務時間帯）'!$C$4:$K$35,9,FALSE)) ->  | V45: =IF(V44="","",VLOOKUP(V44,'シフト記号表（勤務時間帯）'!$C$4:$K$35,9,FALSE)) ->  | W45: =IF(W44="","",VLOOKUP(W44,'シフト記号表（勤務時間帯）'!$C$4:$K$35,9,FALSE)) ->  | X45: =IF(X44="","",VLOOKUP(X44,'シフト記号表（勤務時間帯）'!$C$4:$K$35,9,FALSE)) ->  | Y45: =IF(Y44="","",VLOOKUP(Y44,'シフト記号表（勤務時間帯）'!$C$4:$K$35,9,FALSE)) ->  | Z45: =IF(Z44="","",VLOOKUP(Z44,'シフト記号表（勤務時間帯）'!$C$4:$K$35,9,FALSE)) ->  | AA45: =IF(AA44="","",VLOOKUP(AA44,'シフト記号表（勤務時間帯）'!$C$4:$K$35,9,FALSE)) ->  | AB45: =IF(AB44="","",VLOOKUP(AB44,'シフト記号表（勤務時間帯）'!$C$4:$K$35,9,FALSE)) ->  | AC45: =IF(AC44="","",VLOOKUP(AC44,'シフト記号表（勤務時間帯）'!$C$4:$K$35,9,FALSE)) ->  | AD45: =IF(AD44="","",VLOOKUP(AD44,'シフト記号表（勤務時間帯）'!$C$4:$K$35,9,FALSE)) ->  | AE45: =IF(AE44="","",VLOOKUP(AE44,'シフト記号表（勤務時間帯）'!$C$4:$K$35,9,FALSE)) ->  | AF45: =IF(AF44="","",VLOOKUP(AF44,'シフト記号表（勤務時間帯）'!$C$4:$K$35,9,FALSE)) ->  | AG45: =IF(AG44="","",VLOOKUP(AG44,'シフト記号表（勤務時間帯）'!$C$4:$K$35,9,FALSE)) ->  | AH45: =IF(AH44="","",VLOOKUP(AH44,'シフト記号表（勤務時間帯）'!$C$4:$K$35,9,FALSE)) ->  | AI45: =IF(AI44="","",VLOOKUP(AI44,'シフト記号表（勤務時間帯）'!$C$4:$K$35,9,FALSE)) ->  | AJ45: =IF(AJ44="","",VLOOKUP(AJ44,'シフト記号表（勤務時間帯）'!$C$4:$K$35,9,FALSE)) ->  | AK45: =IF(AK44="","",VLOOKUP(AK44,'シフト記号表（勤務時間帯）'!$C$4:$K$35,9,FALSE)) ->  | AL45: =IF(AL44="","",VLOOKUP(AL44,'シフト記号表（勤務時間帯）'!$C$4:$K$35,9,FALSE)) ->  | AM45: =IF(AM44="","",VLOOKUP(AM44,'シフト記号表（勤務時間帯）'!$C$4:$K$35,9,FALSE)) ->  | AN45: =IF(AN44="","",VLOOKUP(AN44,'シフト記号表（勤務時間帯）'!$C$4:$K$35,9,FALSE)) ->  | AO45: =IF(AO44="","",VLOOKUP(AO44,'シフト記号表（勤務時間帯）'!$C$4:$K$35,9,FALSE)) ->  | AP45: =IF(AP44="","",VLOOKUP(AP44,'シフト記号表（勤務時間帯）'!$C$4:$K$35,9,FALSE)) ->  | AQ45: =IF(AQ44="","",VLOOKUP(AQ44,'シフト記号表（勤務時間帯）'!$C$4:$K$35,9,FALSE)) ->  | AR45: =IF(AR44="","",VLOOKUP(AR44,'シフト記号表（勤務時間帯）'!$C$4:$K$35,9,FALSE)) ->  | AS45: =IF(AS44="","",VLOOKUP(AS44,'シフト記号表（勤務時間帯）'!$C$4:$K$35,9,FALSE)) ->  | AT45: =IF(AT44="","",VLOOKUP(AT44,'シフト記号表（勤務時間帯）'!$C$4:$K$35,9,FALSE)) ->  | AU45: =IF(AU44="","",VLOOKUP(AU44,'シフト記号表（勤務時間帯）'!$C$4:$K$35,9,FALSE)) ->  | AV45: =IF(AV44="","",VLOOKUP(AV44,'シフト記号表（勤務時間帯）'!$C$4:$K$35,9,FALSE)) ->  | AW45: =IF(AW44="","",VLOOKUP(AW44,'シフト記号表（勤務時間帯）'!$C$4:$K$35,9,FALSE)) ->  | AX45: =IF(AX44="","",VLOOKUP(AX44,'シフト記号表（勤務時間帯）'!$C$4:$K$35,9,FALSE)) -> 
B46: =B44+1 -> 16 | Q46: シフト記号 | AY46: =IF($BD$3="計画",SUM(T47:AU47),IF($BD$3="実績",SUM(T47:AX47),"")) -> 0 | BA46: =IF($BD$3="計画",AY46/4,IF($BD$3="実績",AY46/($BB$7/7),"")) -> 0
Q47: 勤務時間数 | T47: =IF(T46="","",VLOOKUP(T46,'シフト記号表（勤務時間帯）'!$C$4:$K$35,9,FALSE)) ->  | U47: =IF(U46="","",VLOOKUP(U46,'シフト記号表（勤務時間帯）'!$C$4:$K$35,9,FALSE)) ->  | V47: =IF(V46="","",VLOOKUP(V46,'シフト記号表（勤務時間帯）'!$C$4:$K$35,9,FALSE)) ->  | W47: =IF(W46="","",VLOOKUP(W46,'シフト記号表（勤務時間帯）'!$C$4:$K$35,9,FALSE)) ->  | X47: =IF(X46="","",VLOOKUP(X46,'シフト記号表（勤務時間帯）'!$C$4:$K$35,9,FALSE)) ->  | Y47: =IF(Y46="","",VLOOKUP(Y46,'シフト記号表（勤務時間帯）'!$C$4:$K$35,9,FALSE)) ->  | Z47: =IF(Z46="","",VLOOKUP(Z46,'シフト記号表（勤務時間帯）'!$C$4:$K$35,9,FALSE)) ->  | AA47: =IF(AA46="","",VLOOKUP(AA46,'シフト記号表（勤務時間帯）'!$C$4:$K$35,9,FALSE)) ->  | AB47: =IF(AB46="","",VLOOKUP(AB46,'シフト記号表（勤務時間帯）'!$C$4:$K$35,9,FALSE)) ->  | AC47: =IF(AC46="","",VLOOKUP(AC46,'シフト記号表（勤務時間帯）'!$C$4:$K$35,9,FALSE)) ->  | AD47: =IF(AD46="","",VLOOKUP(AD46,'シフト記号表（勤務時間帯）'!$C$4:$K$35,9,FALSE)) ->  | AE47: =IF(AE46="","",VLOOKUP(AE46,'シフト記号表（勤務時間帯）'!$C$4:$K$35,9,FALSE)) ->  | AF47: =IF(AF46="","",VLOOKUP(AF46,'シフト記号表（勤務時間帯）'!$C$4:$K$35,9,FALSE)) ->  | AG47: =IF(AG46="","",VLOOKUP(AG46,'シフト記号表（勤務時間帯）'!$C$4:$K$35,9,FALSE)) ->  | AH47: =IF(AH46="","",VLOOKUP(AH46,'シフト記号表（勤務時間帯）'!$C$4:$K$35,9,FALSE)) ->  | AI47: =IF(AI46="","",VLOOKUP(AI46,'シフト記号表（勤務時間帯）'!$C$4:$K$35,9,FALSE)) ->  | AJ47: =IF(AJ46="","",VLOOKUP(AJ46,'シフト記号表（勤務時間帯）'!$C$4:$K$35,9,FALSE)) ->  | AK47: =IF(AK46="","",VLOOKUP(AK46,'シフト記号表（勤務時間帯）'!$C$4:$K$35,9,FALSE)) ->  | AL47: =IF(AL46="","",VLOOKUP(AL46,'シフト記号表（勤務時間帯）'!$C$4:$K$35,9,FALSE)) ->  | AM47: =IF(AM46="","",VLOOKUP(AM46,'シフト記号表（勤務時間帯）'!$C$4:$K$35,9,FALSE)) ->  | AN47: =IF(AN46="","",VLOOKUP(AN46,'シフト記号表（勤務時間帯）'!$C$4:$K$35,9,FALSE)) ->  | AO47: =IF(AO46="","",VLOOKUP(AO46,'シフト記号表（勤務時間帯）'!$C$4:$K$35,9,FALSE)) ->  | AP47: =IF(AP46="","",VLOOKUP(AP46,'シフト記号表（勤務時間帯）'!$C$4:$K$35,9,FALSE)) ->  | AQ47: =IF(AQ46="","",VLOOKUP(AQ46,'シフト記号表（勤務時間帯）'!$C$4:$K$35,9,FALSE)) ->  | AR47: =IF(AR46="","",VLOOKUP(AR46,'シフト記号表（勤務時間帯）'!$C$4:$K$35,9,FALSE)) ->  | AS47: =IF(AS46="","",VLOOKUP(AS46,'シフト記号表（勤務時間帯）'!$C$4:$K$35,9,FALSE)) ->  | AT47: =IF(AT46="","",VLOOKUP(AT46,'シフト記号表（勤務時間帯）'!$C$4:$K$35,9,FALSE)) ->  | AU47: =IF(AU46="","",VLOOKUP(AU46,'シフト記号表（勤務時間帯）'!$C$4:$K$35,9,FALSE)) ->  | AV47: =IF(AV46="","",VLOOKUP(AV46,'シフト記号表（勤務時間帯）'!$C$4:$K$35,9,FALSE)) ->  | AW47: =IF(AW46="","",VLOOKUP(AW46,'シフト記号表（勤務時間帯）'!$C$4:$K$35,9,FALSE)) ->  | AX47: =IF(AX46="","",VLOOKUP(AX46,'シフト記号表（勤務時間帯）'!$C$4:$K$35,9,FALSE)) -> 
B48: =B46+1 -> 17 | Q48: シフト記号 | AY48: =IF($BD$3="計画",SUM(T49:AU49),IF($BD$3="実績",SUM(T49:AX49),"")) -> 0 | BA48: =IF($BD$3="計画",AY48/4,IF($BD$3="実績",AY48/($BB$7/7),"")) -> 0
Q49: 勤務時間数 | T49: =IF(T48="","",VLOOKUP(T48,'シフト記号表（勤務時間帯）'!$C$4:$K$35,9,FALSE)) ->  | U49: =IF(U48="","",VLOOKUP(U48,'シフト記号表（勤務時間帯）'!$C$4:$K$35,9,FALSE)) ->  | V49: =IF(V48="","",VLOOKUP(V48,'シフト記号表（勤務時間帯）'!$C$4:$K$35,9,FALSE)) ->  | W49: =IF(W48="","",VLOOKUP(W48,'シフト記号表（勤務時間帯）'!$C$4:$K$35,9,FALSE)) ->  | X49: =IF(X48="","",VLOOKUP(X48,'シフト記号表（勤務時間帯）'!$C$4:$K$35,9,FALSE)) ->  | Y49: =IF(Y48="","",VLOOKUP(Y48,'シフト記号表（勤務時間帯）'!$C$4:$K$35,9,FALSE)) ->  | Z49: =IF(Z48="","",VLOOKUP(Z48,'シフト記号表（勤務時間帯）'!$C$4:$K$35,9,FALSE)) ->  | AA49: =IF(AA48="","",VLOOKUP(AA48,'シフト記号表（勤務時間帯）'!$C$4:$K$35,9,FALSE)) ->  | AB49: =IF(AB48="","",VLOOKUP(AB48,'シフト記号表（勤務時間帯）'!$C$4:$K$35,9,FALSE)) ->  | AC49: =IF(AC48="","",VLOOKUP(AC48,'シフト記号表（勤務時間帯）'!$C$4:$K$35,9,FALSE)) ->  | AD49: =IF(AD48="","",VLOOKUP(AD48,'シフト記号表（勤務時間帯）'!$C$4:$K$35,9,FALSE)) ->  | AE49: =IF(AE48="","",VLOOKUP(AE48,'シフト記号表（勤務時間帯）'!$C$4:$K$35,9,FALSE)) ->  | AF49: =IF(AF48="","",VLOOKUP(AF48,'シフト記号表（勤務時間帯）'!$C$4:$K$35,9,FALSE)) ->  | AG49: =IF(AG48="","",VLOOKUP(AG48,'シフト記号表（勤務時間帯）'!$C$4:$K$35,9,FALSE)) ->  | AH49: =IF(AH48="","",VLOOKUP(AH48,'シフト記号表（勤務時間帯）'!$C$4:$K$35,9,FALSE)) ->  | AI49: =IF(AI48="","",VLOOKUP(AI48,'シフト記号表（勤務時間帯）'!$C$4:$K$35,9,FALSE)) ->  | AJ49: =IF(AJ48="","",VLOOKUP(AJ48,'シフト記号表（勤務時間帯）'!$C$4:$K$35,9,FALSE)) ->  | AK49: =IF(AK48="","",VLOOKUP(AK48,'シフト記号表（勤務時間帯）'!$C$4:$K$35,9,FALSE)) ->  | AL49: =IF(AL48="","",VLOOKUP(AL48,'シフト記号表（勤務時間帯）'!$C$4:$K$35,9,FALSE)) ->  | AM49: =IF(AM48="","",VLOOKUP(AM48,'シフト記号表（勤務時間帯）'!$C$4:$K$35,9,FALSE)) ->  | AN49: =IF(AN48="","",VLOOKUP(AN48,'シフト記号表（勤務時間帯）'!$C$4:$K$35,9,FALSE)) ->  | AO49: =IF(AO48="","",VLOOKUP(AO48,'シフト記号表（勤務時間帯）'!$C$4:$K$35,9,FALSE)) ->  | AP49: =IF(AP48="","",VLOOKUP(AP48,'シフト記号表（勤務時間帯）'!$C$4:$K$35,9,FALSE)) ->  | AQ49: =IF(AQ48="","",VLOOKUP(AQ48,'シフト記号表（勤務時間帯）'!$C$4:$K$35,9,FALSE)) ->  | AR49: =IF(AR48="","",VLOOKUP(AR48,'シフト記号表（勤務時間帯）'!$C$4:$K$35,9,FALSE)) ->  | AS49: =IF(AS48="","",VLOOKUP(AS48,'シフト記号表（勤務時間帯）'!$C$4:$K$35,9,FALSE)) ->  | AT49: =IF(AT48="","",VLOOKUP(AT48,'シフト記号表（勤務時間帯）'!$C$4:$K$35,9,FALSE)) ->  | AU49: =IF(AU48="","",VLOOKUP(AU48,'シフト記号表（勤務時間帯）'!$C$4:$K$35,9,FALSE)) ->  | AV49: =IF(AV48="","",VLOOKUP(AV48,'シフト記号表（勤務時間帯）'!$C$4:$K$35,9,FALSE)) ->  | AW49: =IF(AW48="","",VLOOKUP(AW48,'シフト記号表（勤務時間帯）'!$C$4:$K$35,9,FALSE)) ->  | AX49: =IF(AX48="","",VLOOKUP(AX48,'シフト記号表（勤務時間帯）'!$C$4:$K$35,9,FALSE)) -> 
B50: =B48+1 -> 18 | Q50: シフト記号 | AY50: =IF($BD$3="計画",SUM(T51:AU51),IF($BD$3="実績",SUM(T51:AX51),"")) -> 0 | BA50: =IF($BD$3="計画",AY50/4,IF($BD$3="実績",AY50/($BB$7/7),"")) -> 0
Q51: 勤務時間数 | T51: =IF(T50="","",VLOOKUP(T50,'シフト記号表（勤務時間帯）'!$C$4:$K$35,9,FALSE)) ->  | U51: =IF(U50="","",VLOOKUP(U50,'シフト記号表（勤務時間帯）'!$C$4:$K$35,9,FALSE)) ->  | V51: =IF(V50="","",VLOOKUP(V50,'シフト記号表（勤務時間帯）'!$C$4:$K$35,9,FALSE)) ->  | W51: =IF(W50="","",VLOOKUP(W50,'シフト記号表（勤務時間帯）'!$C$4:$K$35,9,FALSE)) ->  | X51: =IF(X50="","",VLOOKUP(X50,'シフト記号表（勤務時間帯）'!$C$4:$K$35,9,FALSE)) ->  | Y51: =IF(Y50="","",VLOOKUP(Y50,'シフト記号表（勤務時間帯）'!$C$4:$K$35,9,FALSE)) ->  | Z51: =IF(Z50="","",VLOOKUP(Z50,'シフト記号表（勤務時間帯）'!$C$4:$K$35,9,FALSE)) ->  | AA51: =IF(AA50="","",VLOOKUP(AA50,'シフト記号表（勤務時間帯）'!$C$4:$K$35,9,FALSE)) ->  | AB51: =IF(AB50="","",VLOOKUP(AB50,'シフト記号表（勤務時間帯）'!$C$4:$K$35,9,FALSE)) ->  | AC51: =IF(AC50="","",VLOOKUP(AC50,'シフト記号表（勤務時間帯）'!$C$4:$K$35,9,FALSE)) ->  | AD51: =IF(AD50="","",VLOOKUP(AD50,'シフト記号表（勤務時間帯）'!$C$4:$K$35,9,FALSE)) ->  | AE51: =IF(AE50="","",VLOOKUP(AE50,'シフト記号表（勤務時間帯）'!$C$4:$K$35,9,FALSE)) ->  | AF51: =IF(AF50="","",VLOOKUP(AF50,'シフト記号表（勤務時間帯）'!$C$4:$K$35,9,FALSE)) ->  | AG51: =IF(AG50="","",VLOOKUP(AG50,'シフト記号表（勤務時間帯）'!$C$4:$K$35,9,FALSE)) ->  | AH51: =IF(AH50="","",VLOOKUP(AH50,'シフト記号表（勤務時間帯）'!$C$4:$K$35,9,FALSE)) ->  | AI51: =IF(AI50="","",VLOOKUP(AI50,'シフト記号表（勤務時間帯）'!$C$4:$K$35,9,FALSE)) ->  | AJ51: =IF(AJ50="","",VLOOKUP(AJ50,'シフト記号表（勤務時間帯）'!$C$4:$K$35,9,FALSE)) ->  | AK51: =IF(AK50="","",VLOOKUP(AK50,'シフト記号表（勤務時間帯）'!$C$4:$K$35,9,FALSE)) ->  | AL51: =IF(AL50="","",VLOOKUP(AL50,'シフト記号表（勤務時間帯）'!$C$4:$K$35,9,FALSE)) ->  | AM51: =IF(AM50="","",VLOOKUP(AM50,'シフト記号表（勤務時間帯）'!$C$4:$K$35,9,FALSE)) ->  | AN51: =IF(AN50="","",VLOOKUP(AN50,'シフト記号表（勤務時間帯）'!$C$4:$K$35,9,FALSE)) ->  | AO51: =IF(AO50="","",VLOOKUP(AO50,'シフト記号表（勤務時間帯）'!$C$4:$K$35,9,FALSE)) ->  | AP51: =IF(AP50="","",VLOOKUP(AP50,'シフト記号表（勤務時間帯）'!$C$4:$K$35,9,FALSE)) ->  | AQ51: =IF(AQ50="","",VLOOKUP(AQ50,'シフト記号表（勤務時間帯）'!$C$4:$K$35,9,FALSE)) ->  | AR51: =IF(AR50="","",VLOOKUP(AR50,'シフト記号表（勤務時間帯）'!$C$4:$K$35,9,FALSE)) ->  | AS51: =IF(AS50="","",VLOOKUP(AS50,'シフト記号表（勤務時間帯）'!$C$4:$K$35,9,FALSE)) ->  | AT51: =IF(AT50="","",VLOOKUP(AT50,'シフト記号表（勤務時間帯）'!$C$4:$K$35,9,FALSE)) ->  | AU51: =IF(AU50="","",VLOOKUP(AU50,'シフト記号表（勤務時間帯）'!$C$4:$K$35,9,FALSE)) ->  | AV51: =IF(AV50="","",VLOOKUP(AV50,'シフト記号表（勤務時間帯）'!$C$4:$K$35,9,FALSE)) ->  | AW51: =IF(AW50="","",VLOOKUP(AW50,'シフト記号表（勤務時間帯）'!$C$4:$K$35,9,FALSE)) ->  | AX51: =IF(AX50="","",VLOOKUP(AX50,'シフト記号表（勤務時間帯）'!$C$4:$K$35,9,FALSE)) -> 
B52: =B50+1 -> 19 | Q52: シフト記号 | AY52: =IF($BD$3="計画",SUM(T53:AU53),IF($BD$3="実績",SUM(T53:AX53),"")) -> 0 | BA52: =IF($BD$3="計画",AY52/4,IF($BD$3="実績",AY52/($BB$7/7),"")) -> 0
Q53: 勤務時間数 | T53: =IF(T52="","",VLOOKUP(T52,'シフト記号表（勤務時間帯）'!$C$4:$K$35,9,FALSE)) ->  | U53: =IF(U52="","",VLOOKUP(U52,'シフト記号表（勤務時間帯）'!$C$4:$K$35,9,FALSE)) ->  | V53: =IF(V52="","",VLOOKUP(V52,'シフト記号表（勤務時間帯）'!$C$4:$K$35,9,FALSE)) ->  | W53: =IF(W52="","",VLOOKUP(W52,'シフト記号表（勤務時間帯）'!$C$4:$K$35,9,FALSE)) ->  | X53: =IF(X52="","",VLOOKUP(X52,'シフト記号表（勤務時間帯）'!$C$4:$K$35,9,FALSE)) ->  | Y53: =IF(Y52="","",VLOOKUP(Y52,'シフト記号表（勤務時間帯）'!$C$4:$K$35,9,FALSE)) ->  | Z53: =IF(Z52="","",VLOOKUP(Z52,'シフト記号表（勤務時間帯）'!$C$4:$K$35,9,FALSE)) ->  | AA53: =IF(AA52="","",VLOOKUP(AA52,'シフト記号表（勤務時間帯）'!$C$4:$K$35,9,FALSE)) ->  | AB53: =IF(AB52="","",VLOOKUP(AB52,'シフト記号表（勤務時間帯）'!$C$4:$K$35,9,FALSE)) ->  | AC53: =IF(AC52="","",VLOOKUP(AC52,'シフト記号表（勤務時間帯）'!$C$4:$K$35,9,FALSE)) ->  | AD53: =IF(AD52="","",VLOOKUP(AD52,'シフト記号表（勤務時間帯）'!$C$4:$K$35,9,FALSE)) ->  | AE53: =IF(AE52="","",VLOOKUP(AE52,'シフト記号表（勤務時間帯）'!$C$4:$K$35,9,FALSE)) ->  | AF53: =IF(AF52="","",VLOOKUP(AF52,'シフト記号表（勤務時間帯）'!$C$4:$K$35,9,FALSE)) ->  | AG53: =IF(AG52="","",VLOOKUP(AG52,'シフト記号表（勤務時間帯）'!$C$4:$K$35,9,FALSE)) ->  | AH53: =IF(AH52="","",VLOOKUP(AH52,'シフト記号表（勤務時間帯）'!$C$4:$K$35,9,FALSE)) ->  | AI53: =IF(AI52="","",VLOOKUP(AI52,'シフト記号表（勤務時間帯）'!$C$4:$K$35,9,FALSE)) ->  | AJ53: =IF(AJ52="","",VLOOKUP(AJ52,'シフト記号表（勤務時間帯）'!$C$4:$K$35,9,FALSE)) ->  | AK53: =IF(AK52="","",VLOOKUP(AK52,'シフト記号表（勤務時間帯）'!$C$4:$K$35,9,FALSE)) ->  | AL53: =IF(AL52="","",VLOOKUP(AL52,'シフト記号表（勤務時間帯）'!$C$4:$K$35,9,FALSE)) ->  | AM53: =IF(AM52="","",VLOOKUP(AM52,'シフト記号表（勤務時間帯）'!$C$4:$K$35,9,FALSE)) ->  | AN53: =IF(AN52="","",VLOOKUP(AN52,'シフト記号表（勤務時間帯）'!$C$4:$K$35,9,FALSE)) ->  | AO53: =IF(AO52="","",VLOOKUP(AO52,'シフト記号表（勤務時間帯）'!$C$4:$K$35,9,FALSE)) ->  | AP53: =IF(AP52="","",VLOOKUP(AP52,'シフト記号表（勤務時間帯）'!$C$4:$K$35,9,FALSE)) ->  | AQ53: =IF(AQ52="","",VLOOKUP(AQ52,'シフト記号表（勤務時間帯）'!$C$4:$K$35,9,FALSE)) ->  | AR53: =IF(AR52="","",VLOOKUP(AR52,'シフト記号表（勤務時間帯）'!$C$4:$K$35,9,FALSE)) ->  | AS53: =IF(AS52="","",VLOOKUP(AS52,'シフト記号表（勤務時間帯）'!$C$4:$K$35,9,FALSE)) ->  | AT53: =IF(AT52="","",VLOOKUP(AT52,'シフト記号表（勤務時間帯）'!$C$4:$K$35,9,FALSE)) ->  | AU53: =IF(AU52="","",VLOOKUP(AU52,'シフト記号表（勤務時間帯）'!$C$4:$K$35,9,FALSE)) ->  | AV53: =IF(AV52="","",VLOOKUP(AV52,'シフト記号表（勤務時間帯）'!$C$4:$K$35,9,FALSE)) ->  | AW53: =IF(AW52="","",VLOOKUP(AW52,'シフト記号表（勤務時間帯）'!$C$4:$K$35,9,FALSE)) ->  | AX53: =IF(AX52="","",VLOOKUP(AX52,'シフト記号表（勤務時間帯）'!$C$4:$K$35,9,FALSE)) -> 
B54: =B52+1 -> 20 | Q54: シフト記号 | AY54: =IF($BD$3="計画",SUM(T55:AU55),IF($BD$3="実績",SUM(T55:AX55),"")) -> 0 | BA54: =IF($BD$3="計画",AY54/4,IF($BD$3="実績",AY54/($BB$7/7),"")) -> 0
Q55: 勤務時間数 | T55: =IF(T54="","",VLOOKUP(T54,'シフト記号表（勤務時間帯）'!$C$4:$K$35,9,FALSE)) ->  | U55: =IF(U54="","",VLOOKUP(U54,'シフト記号表（勤務時間帯）'!$C$4:$K$35,9,FALSE)) ->  | V55: =IF(V54="","",VLOOKUP(V54,'シフト記号表（勤務時間帯）'!$C$4:$K$35,9,FALSE)) ->  | W55: =IF(W54="","",VLOOKUP(W54,'シフト記号表（勤務時間帯）'!$C$4:$K$35,9,FALSE)) ->  | X55: =IF(X54="","",VLOOKUP(X54,'シフト記号表（勤務時間帯）'!$C$4:$K$35,9,FALSE)) ->  | Y55: =IF(Y54="","",VLOOKUP(Y54,'シフト記号表（勤務時間帯）'!$C$4:$K$35,9,FALSE)) ->  | Z55: =IF(Z54="","",VLOOKUP(Z54,'シフト記号表（勤務時間帯）'!$C$4:$K$35,9,FALSE)) ->  | AA55: =IF(AA54="","",VLOOKUP(AA54,'シフト記号表（勤務時間帯）'!$C$4:$K$35,9,FALSE)) ->  | AB55: =IF(AB54="","",VLOOKUP(AB54,'シフト記号表（勤務時間帯）'!$C$4:$K$35,9,FALSE)) ->  | AC55: =IF(AC54="","",VLOOKUP(AC54,'シフト記号表（勤務時間帯）'!$C$4:$K$35,9,FALSE)) ->  | AD55: =IF(AD54="","",VLOOKUP(AD54,'シフト記号表（勤務時間帯）'!$C$4:$K$35,9,FALSE)) ->  | AE55: =IF(AE54="","",VLOOKUP(AE54,'シフト記号表（勤務時間帯）'!$C$4:$K$35,9,FALSE)) ->  | AF55: =IF(AF54="","",VLOOKUP(AF54,'シフト記号表（勤務時間帯）'!$C$4:$K$35,9,FALSE)) ->  | AG55: =IF(AG54="","",VLOOKUP(AG54,'シフト記号表（勤務時間帯）'!$C$4:$K$35,9,FALSE)) ->  | AH55: =IF(AH54="","",VLOOKUP(AH54,'シフト記号表（勤務時間帯）'!$C$4:$K$35,9,FALSE)) ->  | AI55: =IF(AI54="","",VLOOKUP(AI54,'シフト記号表（勤務時間帯）'!$C$4:$K$35,9,FALSE)) ->  | AJ55: =IF(AJ54="","",VLOOKUP(AJ54,'シフト記号表（勤務時間帯）'!$C$4:$K$35,9,FALSE)) ->  | AK55: =IF(AK54="","",VLOOKUP(AK54,'シフト記号表（勤務時間帯）'!$C$4:$K$35,9,FALSE)) ->  | AL55: =IF(AL54="","",VLOOKUP(AL54,'シフト記号表（勤務時間帯）'!$C$4:$K$35,9,FALSE)) ->  | AM55: =IF(AM54="","",VLOOKUP(AM54,'シフト記号表（勤務時間帯）'!$C$4:$K$35,9,FALSE)) ->  | AN55: =IF(AN54="","",VLOOKUP(AN54,'シフト記号表（勤務時間帯）'!$C$4:$K$35,9,FALSE)) ->  | AO55: =IF(AO54="","",VLOOKUP(AO54,'シフト記号表（勤務時間帯）'!$C$4:$K$35,9,FALSE)) ->  | AP55: =IF(AP54="","",VLOOKUP(AP54,'シフト記号表（勤務時間帯）'!$C$4:$K$35,9,FALSE)) ->  | AQ55: =IF(AQ54="","",VLOOKUP(AQ54,'シフト記号表（勤務時間帯）'!$C$4:$K$35,9,FALSE)) ->  | AR55: =IF(AR54="","",VLOOKUP(AR54,'シフト記号表（勤務時間帯）'!$C$4:$K$35,9,FALSE)) ->  | AS55: =IF(AS54="","",VLOOKUP(AS54,'シフト記号表（勤務時間帯）'!$C$4:$K$35,9,FALSE)) ->  | AT55: =IF(AT54="","",VLOOKUP(AT54,'シフト記号表（勤務時間帯）'!$C$4:$K$35,9,FALSE)) ->  | AU55: =IF(AU54="","",VLOOKUP(AU54,'シフト記号表（勤務時間帯）'!$C$4:$K$35,9,FALSE)) ->  | AV55: =IF(AV54="","",VLOOKUP(AV54,'シフト記号表（勤務時間帯）'!$C$4:$K$35,9,FALSE)) ->  | AW55: =IF(AW54="","",VLOOKUP(AW54,'シフト記号表（勤務時間帯）'!$C$4:$K$35,9,FALSE)) ->  | AX55: =IF(AX54="","",VLOOKUP(AX54,'シフト記号表（勤務時間帯）'!$C$4:$K$35,9,FALSE)) -> 
B56: =B54+1 -> 21 | Q56: シフト記号 | AY56: =IF($BD$3="計画",SUM(T57:AU57),IF($BD$3="実績",SUM(T57:AX57),"")) -> 0 | BA56: =IF($BD$3="計画",AY56/4,IF($BD$3="実績",AY56/($BB$7/7),"")) -> 0
Q57: 勤務時間数 | T57: =IF(T56="","",VLOOKUP(T56,'シフト記号表（勤務時間帯）'!$C$4:$K$35,9,FALSE)) ->  | U57: =IF(U56="","",VLOOKUP(U56,'シフト記号表（勤務時間帯）'!$C$4:$K$35,9,FALSE)) ->  | V57: =IF(V56="","",VLOOKUP(V56,'シフト記号表（勤務時間帯）'!$C$4:$K$35,9,FALSE)) ->  | W57: =IF(W56="","",VLOOKUP(W56,'シフト記号表（勤務時間帯）'!$C$4:$K$35,9,FALSE)) ->  | X57: =IF(X56="","",VLOOKUP(X56,'シフト記号表（勤務時間帯）'!$C$4:$K$35,9,FALSE)) ->  | Y57: =IF(Y56="","",VLOOKUP(Y56,'シフト記号表（勤務時間帯）'!$C$4:$K$35,9,FALSE)) ->  | Z57: =IF(Z56="","",VLOOKUP(Z56,'シフト記号表（勤務時間帯）'!$C$4:$K$35,9,FALSE)) ->  | AA57: =IF(AA56="","",VLOOKUP(AA56,'シフト記号表（勤務時間帯）'!$C$4:$K$35,9,FALSE)) ->  | AB57: =IF(AB56="","",VLOOKUP(AB56,'シフト記号表（勤務時間帯）'!$C$4:$K$35,9,FALSE)) ->  | AC57: =IF(AC56="","",VLOOKUP(AC56,'シフト記号表（勤務時間帯）'!$C$4:$K$35,9,FALSE)) ->  | AD57: =IF(AD56="","",VLOOKUP(AD56,'シフト記号表（勤務時間帯）'!$C$4:$K$35,9,FALSE)) ->  | AE57: =IF(AE56="","",VLOOKUP(AE56,'シフト記号表（勤務時間帯）'!$C$4:$K$35,9,FALSE)) ->  | AF57: =IF(AF56="","",VLOOKUP(AF56,'シフト記号表（勤務時間帯）'!$C$4:$K$35,9,FALSE)) ->  | AG57: =IF(AG56="","",VLOOKUP(AG56,'シフト記号表（勤務時間帯）'!$C$4:$K$35,9,FALSE)) ->  | AH57: =IF(AH56="","",VLOOKUP(AH56,'シフト記号表（勤務時間帯）'!$C$4:$K$35,9,FALSE)) ->  | AI57: =IF(AI56="","",VLOOKUP(AI56,'シフト記号表（勤務時間帯）'!$C$4:$K$35,9,FALSE)) ->  | AJ57: =IF(AJ56="","",VLOOKUP(AJ56,'シフト記号表（勤務時間帯）'!$C$4:$K$35,9,FALSE)) ->  | AK57: =IF(AK56="","",VLOOKUP(AK56,'シフト記号表（勤務時間帯）'!$C$4:$K$35,9,FALSE)) ->  | AL57: =IF(AL56="","",VLOOKUP(AL56,'シフト記号表（勤務時間帯）'!$C$4:$K$35,9,FALSE)) ->  | AM57: =IF(AM56="","",VLOOKUP(AM56,'シフト記号表（勤務時間帯）'!$C$4:$K$35,9,FALSE)) ->  | AN57: =IF(AN56="","",VLOOKUP(AN56,'シフト記号表（勤務時間帯）'!$C$4:$K$35,9,FALSE)) ->  | AO57: =IF(AO56="","",VLOOKUP(AO56,'シフト記号表（勤務時間帯）'!$C$4:$K$35,9,FALSE)) ->  | AP57: =IF(AP56="","",VLOOKUP(AP56,'シフト記号表（勤務時間帯）'!$C$4:$K$35,9,FALSE)) ->  | AQ57: =IF(AQ56="","",VLOOKUP(AQ56,'シフト記号表（勤務時間帯）'!$C$4:$K$35,9,FALSE)) ->  | AR57: =IF(AR56="","",VLOOKUP(AR56,'シフト記号表（勤務時間帯）'!$C$4:$K$35,9,FALSE)) ->  | AS57: =IF(AS56="","",VLOOKUP(AS56,'シフト記号表（勤務時間帯）'!$C$4:$K$35,9,FALSE)) ->  | AT57: =IF(AT56="","",VLOOKUP(AT56,'シフト記号表（勤務時間帯）'!$C$4:$K$35,9,FALSE)) ->  | AU57: =IF(AU56="","",VLOOKUP(AU56,'シフト記号表（勤務時間帯）'!$C$4:$K$35,9,FALSE)) ->  | AV57: =IF(AV56="","",VLOOKUP(AV56,'シフト記号表（勤務時間帯）'!$C$4:$K$35,9,FALSE)) ->  | AW57: =IF(AW56="","",VLOOKUP(AW56,'シフト記号表（勤務時間帯）'!$C$4:$K$35,9,FALSE)) ->  | AX57: =IF(AX56="","",VLOOKUP(AX56,'シフト記号表（勤務時間帯）'!$C$4:$K$35,9,FALSE)) -> 
B58: =B56+1 -> 22 | Q58: シフト記号 | AY58: =IF($BD$3="計画",SUM(T59:AU59),IF($BD$3="実績",SUM(T59:AX59),"")) -> 0 | BA58: =IF($BD$3="計画",AY58/4,IF($BD$3="実績",AY58/($BB$7/7),"")) -> 0
Q59: 勤務時間数 | T59: =IF(T58="","",VLOOKUP(T58,'シフト記号表（勤務時間帯）'!$C$4:$K$35,9,FALSE)) ->  | U59: =IF(U58="","",VLOOKUP(U58,'シフト記号表（勤務時間帯）'!$C$4:$K$35,9,FALSE)) ->  | V59: =IF(V58="","",VLOOKUP(V58,'シフト記号表（勤務時間帯）'!$C$4:$K$35,9,FALSE)) ->  | W59: =IF(W58="","",VLOOKUP(W58,'シフト記号表（勤務時間帯）'!$C$4:$K$35,9,FALSE)) ->  | X59: =IF(X58="","",VLOOKUP(X58,'シフト記号表（勤務時間帯）'!$C$4:$K$35,9,FALSE)) ->  | Y59: =IF(Y58="","",VLOOKUP(Y58,'シフト記号表（勤務時間帯）'!$C$4:$K$35,9,FALSE)) ->  | Z59: =IF(Z58="","",VLOOKUP(Z58,'シフト記号表（勤務時間帯）'!$C$4:$K$35,9,FALSE)) ->  | AA59: =IF(AA58="","",VLOOKUP(AA58,'シフト記号表（勤務時間帯）'!$C$4:$K$35,9,FALSE)) ->  | AB59: =IF(AB58="","",VLOOKUP(AB58,'シフト記号表（勤務時間帯）'!$C$4:$K$35,9,FALSE)) ->  | AC59: =IF(AC58="","",VLOOKUP(AC58,'シフト記号表（勤務時間帯）'!$C$4:$K$35,9,FALSE)) ->  | AD59: =IF(AD58="","",VLOOKUP(AD58,'シフト記号表（勤務時間帯）'!$C$4:$K$35,9,FALSE)) ->  | AE59: =IF(AE58="","",VLOOKUP(AE58,'シフト記号表（勤務時間帯）'!$C$4:$K$35,9,FALSE)) ->  | AF59: =IF(AF58="","",VLOOKUP(AF58,'シフト記号表（勤務時間帯）'!$C$4:$K$35,9,FALSE)) ->  | AG59: =IF(AG58="","",VLOOKUP(AG58,'シフト記号表（勤務時間帯）'!$C$4:$K$35,9,FALSE)) ->  | AH59: =IF(AH58="","",VLOOKUP(AH58,'シフト記号表（勤務時間帯）'!$C$4:$K$35,9,FALSE)) ->  | AI59: =IF(AI58="","",VLOOKUP(AI58,'シフト記号表（勤務時間帯）'!$C$4:$K$35,9,FALSE)) ->  | AJ59: =IF(AJ58="","",VLOOKUP(AJ58,'シフト記号表（勤務時間帯）'!$C$4:$K$35,9,FALSE)) ->  | AK59: =IF(AK58="","",VLOOKUP(AK58,'シフト記号表（勤務時間帯）'!$C$4:$K$35,9,FALSE)) ->  | AL59: =IF(AL58="","",VLOOKUP(AL58,'シフト記号表（勤務時間帯）'!$C$4:$K$35,9,FALSE)) ->  | AM59: =IF(AM58="","",VLOOKUP(AM58,'シフト記号表（勤務時間帯）'!$C$4:$K$35,9,FALSE)) ->  | AN59: =IF(AN58="","",VLOOKUP(AN58,'シフト記号表（勤務時間帯）'!$C$4:$K$35,9,FALSE)) ->  | AO59: =IF(AO58="","",VLOOKUP(AO58,'シフト記号表（勤務時間帯）'!$C$4:$K$35,9,FALSE)) ->  | AP59: =IF(AP58="","",VLOOKUP(AP58,'シフト記号表（勤務時間帯）'!$C$4:$K$35,9,FALSE)) ->  | AQ59: =IF(AQ58="","",VLOOKUP(AQ58,'シフト記号表（勤務時間帯）'!$C$4:$K$35,9,FALSE)) ->  | AR59: =IF(AR58="","",VLOOKUP(AR58,'シフト記号表（勤務時間帯）'!$C$4:$K$35,9,FALSE)) ->  | AS59: =IF(AS58="","",VLOOKUP(AS58,'シフト記号表（勤務時間帯）'!$C$4:$K$35,9,FALSE)) ->  | AT59: =IF(AT58="","",VLOOKUP(AT58,'シフト記号表（勤務時間帯）'!$C$4:$K$35,9,FALSE)) ->  | AU59: =IF(AU58="","",VLOOKUP(AU58,'シフト記号表（勤務時間帯）'!$C$4:$K$35,9,FALSE)) ->  | AV59: =IF(AV58="","",VLOOKUP(AV58,'シフト記号表（勤務時間帯）'!$C$4:$K$35,9,FALSE)) ->  | AW59: =IF(AW58="","",VLOOKUP(AW58,'シフト記号表（勤務時間帯）'!$C$4:$K$35,9,FALSE)) ->  | AX59: =IF(AX58="","",VLOOKUP(AX58,'シフト記号表（勤務時間帯）'!$C$4:$K$35,9,FALSE)) -> 
B60: =B58+1 -> 23 | Q60: シフト記号 | AY60: =IF($BD$3="計画",SUM(T61:AU61),IF($BD$3="実績",SUM(T61:AX61),"")) -> 0 | BA60: =IF($BD$3="計画",AY60/4,IF($BD$3="実績",AY60/($BB$7/7),"")) -> 0
Q61: 勤務時間数 | T61: =IF(T60="","",VLOOKUP(T60,'シフト記号表（勤務時間帯）'!$C$4:$K$35,9,FALSE)) ->  | U61: =IF(U60="","",VLOOKUP(U60,'シフト記号表（勤務時間帯）'!$C$4:$K$35,9,FALSE)) ->  | V61: =IF(V60="","",VLOOKUP(V60,'シフト記号表（勤務時間帯）'!$C$4:$K$35,9,FALSE)) ->  | W61: =IF(W60="","",VLOOKUP(W60,'シフト記号表（勤務時間帯）'!$C$4:$K$35,9,FALSE)) ->  | X61: =IF(X60="","",VLOOKUP(X60,'シフト記号表（勤務時間帯）'!$C$4:$K$35,9,FALSE)) ->  | Y61: =IF(Y60="","",VLOOKUP(Y60,'シフト記号表（勤務時間帯）'!$C$4:$K$35,9,FALSE)) ->  | Z61: =IF(Z60="","",VLOOKUP(Z60,'シフト記号表（勤務時間帯）'!$C$4:$K$35,9,FALSE)) ->  | AA61: =IF(AA60="","",VLOOKUP(AA60,'シフト記号表（勤務時間帯）'!$C$4:$K$35,9,FALSE)) ->  | AB61: =IF(AB60="","",VLOOKUP(AB60,'シフト記号表（勤務時間帯）'!$C$4:$K$35,9,FALSE)) ->  | AC61: =IF(AC60="","",VLOOKUP(AC60,'シフト記号表（勤務時間帯）'!$C$4:$K$35,9,FALSE)) ->  | AD61: =IF(AD60="","",VLOOKUP(AD60,'シフト記号表（勤務時間帯）'!$C$4:$K$35,9,FALSE)) ->  | AE61: =IF(AE60="","",VLOOKUP(AE60,'シフト記号表（勤務時間帯）'!$C$4:$K$35,9,FALSE)) ->  | AF61: =IF(AF60="","",VLOOKUP(AF60,'シフト記号表（勤務時間帯）'!$C$4:$K$35,9,FALSE)) ->  | AG61: =IF(AG60="","",VLOOKUP(AG60,'シフト記号表（勤務時間帯）'!$C$4:$K$35,9,FALSE)) ->  | AH61: =IF(AH60="","",VLOOKUP(AH60,'シフト記号表（勤務時間帯）'!$C$4:$K$35,9,FALSE)) ->  | AI61: =IF(AI60="","",VLOOKUP(AI60,'シフト記号表（勤務時間帯）'!$C$4:$K$35,9,FALSE)) ->  | AJ61: =IF(AJ60="","",VLOOKUP(AJ60,'シフト記号表（勤務時間帯）'!$C$4:$K$35,9,FALSE)) ->  | AK61: =IF(AK60="","",VLOOKUP(AK60,'シフト記号表（勤務時間帯）'!$C$4:$K$35,9,FALSE)) ->  | AL61: =IF(AL60="","",VLOOKUP(AL60,'シフト記号表（勤務時間帯）'!$C$4:$K$35,9,FALSE)) ->  | AM61: =IF(AM60="","",VLOOKUP(AM60,'シフト記号表（勤務時間帯）'!$C$4:$K$35,9,FALSE)) ->  | AN61: =IF(AN60="","",VLOOKUP(AN60,'シフト記号表（勤務時間帯）'!$C$4:$K$35,9,FALSE)) ->  | AO61: =IF(AO60="","",VLOOKUP(AO60,'シフト記号表（勤務時間帯）'!$C$4:$K$35,9,FALSE)) ->  | AP61: =IF(AP60="","",VLOOKUP(AP60,'シフト記号表（勤務時間帯）'!$C$4:$K$35,9,FALSE)) ->  | AQ61: =IF(AQ60="","",VLOOKUP(AQ60,'シフト記号表（勤務時間帯）'!$C$4:$K$35,9,FALSE)) ->  | AR61: =IF(AR60="","",VLOOKUP(AR60,'シフト記号表（勤務時間帯）'!$C$4:$K$35,9,FALSE)) ->  | AS61: =IF(AS60="","",VLOOKUP(AS60,'シフト記号表（勤務時間帯）'!$C$4:$K$35,9,FALSE)) ->  | AT61: =IF(AT60="","",VLOOKUP(AT60,'シフト記号表（勤務時間帯）'!$C$4:$K$35,9,FALSE)) ->  | AU61: =IF(AU60="","",VLOOKUP(AU60,'シフト記号表（勤務時間帯）'!$C$4:$K$35,9,FALSE)) ->  | AV61: =IF(AV60="","",VLOOKUP(AV60,'シフト記号表（勤務時間帯）'!$C$4:$K$35,9,FALSE)) ->  | AW61: =IF(AW60="","",VLOOKUP(AW60,'シフト記号表（勤務時間帯）'!$C$4:$K$35,9,FALSE)) ->  | AX61: =IF(AX60="","",VLOOKUP(AX60,'シフト記号表（勤務時間帯）'!$C$4:$K$35,9,FALSE)) -> 
B62: =B60+1 -> 24 | Q62: シフト記号 | AY62: =IF($BD$3="計画",SUM(T63:AU63),IF($BD$3="実績",SUM(T63:AX63),"")) -> 0 | BA62: =IF($BD$3="計画",AY62/4,IF($BD$3="実績",AY62/($BB$7/7),"")) -> 0
Q63: 勤務時間数 | T63: =IF(T62="","",VLOOKUP(T62,'シフト記号表（勤務時間帯）'!$C$4:$K$35,9,FALSE)) ->  | U63: =IF(U62="","",VLOOKUP(U62,'シフト記号表（勤務時間帯）'!$C$4:$K$35,9,FALSE)) ->  | V63: =IF(V62="","",VLOOKUP(V62,'シフト記号表（勤務時間帯）'!$C$4:$K$35,9,FALSE)) ->  | W63: =IF(W62="","",VLOOKUP(W62,'シフト記号表（勤務時間帯）'!$C$4:$K$35,9,FALSE)) ->  | X63: =IF(X62="","",VLOOKUP(X62,'シフト記号表（勤務時間帯）'!$C$4:$K$35,9,FALSE)) ->  | Y63: =IF(Y62="","",VLOOKUP(Y62,'シフト記号表（勤務時間帯）'!$C$4:$K$35,9,FALSE)) ->  | Z63: =IF(Z62="","",VLOOKUP(Z62,'シフト記号表（勤務時間帯）'!$C$4:$K$35,9,FALSE)) ->  | AA63: =IF(AA62="","",VLOOKUP(AA62,'シフト記号表（勤務時間帯）'!$C$4:$K$35,9,FALSE)) ->  | AB63: =IF(AB62="","",VLOOKUP(AB62,'シフト記号表（勤務時間帯）'!$C$4:$K$35,9,FALSE)) ->  | AC63: =IF(AC62="","",VLOOKUP(AC62,'シフト記号表（勤務時間帯）'!$C$4:$K$35,9,FALSE)) ->  | AD63: =IF(AD62="","",VLOOKUP(AD62,'シフト記号表（勤務時間帯）'!$C$4:$K$35,9,FALSE)) ->  | AE63: =IF(AE62="","",VLOOKUP(AE62,'シフト記号表（勤務時間帯）'!$C$4:$K$35,9,FALSE)) ->  | AF63: =IF(AF62="","",VLOOKUP(AF62,'シフト記号表（勤務時間帯）'!$C$4:$K$35,9,FALSE)) ->  | AG63: =IF(AG62="","",VLOOKUP(AG62,'シフト記号表（勤務時間帯）'!$C$4:$K$35,9,FALSE)) ->  | AH63: =IF(AH62="","",VLOOKUP(AH62,'シフト記号表（勤務時間帯）'!$C$4:$K$35,9,FALSE)) ->  | AI63: =IF(AI62="","",VLOOKUP(AI62,'シフト記号表（勤務時間帯）'!$C$4:$K$35,9,FALSE)) ->  | AJ63: =IF(AJ62="","",VLOOKUP(AJ62,'シフト記号表（勤務時間帯）'!$C$4:$K$35,9,FALSE)) ->  | AK63: =IF(AK62="","",VLOOKUP(AK62,'シフト記号表（勤務時間帯）'!$C$4:$K$35,9,FALSE)) ->  | AL63: =IF(AL62="","",VLOOKUP(AL62,'シフト記号表（勤務時間帯）'!$C$4:$K$35,9,FALSE)) ->  | AM63: =IF(AM62="","",VLOOKUP(AM62,'シフト記号表（勤務時間帯）'!$C$4:$K$35,9,FALSE)) ->  | AN63: =IF(AN62="","",VLOOKUP(AN62,'シフト記号表（勤務時間帯）'!$C$4:$K$35,9,FALSE)) ->  | AO63: =IF(AO62="","",VLOOKUP(AO62,'シフト記号表（勤務時間帯）'!$C$4:$K$35,9,FALSE)) ->  | AP63: =IF(AP62="","",VLOOKUP(AP62,'シフト記号表（勤務時間帯）'!$C$4:$K$35,9,FALSE)) ->  | AQ63: =IF(AQ62="","",VLOOKUP(AQ62,'シフト記号表（勤務時間帯）'!$C$4:$K$35,9,FALSE)) ->  | AR63: =IF(AR62="","",VLOOKUP(AR62,'シフト記号表（勤務時間帯）'!$C$4:$K$35,9,FALSE)) ->  | AS63: =IF(AS62="","",VLOOKUP(AS62,'シフト記号表（勤務時間帯）'!$C$4:$K$35,9,FALSE)) ->  | AT63: =IF(AT62="","",VLOOKUP(AT62,'シフト記号表（勤務時間帯）'!$C$4:$K$35,9,FALSE)) ->  | AU63: =IF(AU62="","",VLOOKUP(AU62,'シフト記号表（勤務時間帯）'!$C$4:$K$35,9,FALSE)) ->  | AV63: =IF(AV62="","",VLOOKUP(AV62,'シフト記号表（勤務時間帯）'!$C$4:$K$35,9,FALSE)) ->  | AW63: =IF(AW62="","",VLOOKUP(AW62,'シフト記号表（勤務時間帯）'!$C$4:$K$35,9,FALSE)) ->  | AX63: =IF(AX62="","",VLOOKUP(AX62,'シフト記号表（勤務時間帯）'!$C$4:$K$35,9,FALSE)) -> 
B64: =B62+1 -> 25 | Q64: シフト記号 | AY64: =IF($BD$3="計画",SUM(T65:AU65),IF($BD$3="実績",SUM(T65:AX65),"")) -> 0 | BA64: =IF($BD$3="計画",AY64/4,IF($BD$3="実績",AY64/($BB$7/7),"")) -> 0
Q65: 勤務時間数 | T65: =IF(T64="","",VLOOKUP(T64,'シフト記号表（勤務時間帯）'!$C$4:$K$35,9,FALSE)) ->  | U65: =IF(U64="","",VLOOKUP(U64,'シフト記号表（勤務時間帯）'!$C$4:$K$35,9,FALSE)) ->  | V65: =IF(V64="","",VLOOKUP(V64,'シフト記号表（勤務時間帯）'!$C$4:$K$35,9,FALSE)) ->  | W65: =IF(W64="","",VLOOKUP(W64,'シフト記号表（勤務時間帯）'!$C$4:$K$35,9,FALSE)) ->  | X65: =IF(X64="","",VLOOKUP(X64,'シフト記号表（勤務時間帯）'!$C$4:$K$35,9,FALSE)) ->  | Y65: =IF(Y64="","",VLOOKUP(Y64,'シフト記号表（勤務時間帯）'!$C$4:$K$35,9,FALSE)) ->  | Z65: =IF(Z64="","",VLOOKUP(Z64,'シフト記号表（勤務時間帯）'!$C$4:$K$35,9,FALSE)) ->  | AA65: =IF(AA64="","",VLOOKUP(AA64,'シフト記号表（勤務時間帯）'!$C$4:$K$35,9,FALSE)) ->  | AB65: =IF(AB64="","",VLOOKUP(AB64,'シフト記号表（勤務時間帯）'!$C$4:$K$35,9,FALSE)) ->  | AC65: =IF(AC64="","",VLOOKUP(AC64,'シフト記号表（勤務時間帯）'!$C$4:$K$35,9,FALSE)) ->  | AD65: =IF(AD64="","",VLOOKUP(AD64,'シフト記号表（勤務時間帯）'!$C$4:$K$35,9,FALSE)) ->  | AE65: =IF(AE64="","",VLOOKUP(AE64,'シフト記号表（勤務時間帯）'!$C$4:$K$35,9,FALSE)) ->  | AF65: =IF(AF64="","",VLOOKUP(AF64,'シフト記号表（勤務時間帯）'!$C$4:$K$35,9,FALSE)) ->  | AG65: =IF(AG64="","",VLOOKUP(AG64,'シフト記号表（勤務時間帯）'!$C$4:$K$35,9,FALSE)) ->  | AH65: =IF(AH64="","",VLOOKUP(AH64,'シフト記号表（勤務時間帯）'!$C$4:$K$35,9,FALSE)) ->  | AI65: =IF(AI64="","",VLOOKUP(AI64,'シフト記号表（勤務時間帯）'!$C$4:$K$35,9,FALSE)) ->  | AJ65: =IF(AJ64="","",VLOOKUP(AJ64,'シフト記号表（勤務時間帯）'!$C$4:$K$35,9,FALSE)) ->  | AK65: =IF(AK64="","",VLOOKUP(AK64,'シフト記号表（勤務時間帯）'!$C$4:$K$35,9,FALSE)) ->  | AL65: =IF(AL64="","",VLOOKUP(AL64,'シフト記号表（勤務時間帯）'!$C$4:$K$35,9,FALSE)) ->  | AM65: =IF(AM64="","",VLOOKUP(AM64,'シフト記号表（勤務時間帯）'!$C$4:$K$35,9,FALSE)) ->  | AN65: =IF(AN64="","",VLOOKUP(AN64,'シフト記号表（勤務時間帯）'!$C$4:$K$35,9,FALSE)) ->  | AO65: =IF(AO64="","",VLOOKUP(AO64,'シフト記号表（勤務時間帯）'!$C$4:$K$35,9,FALSE)) ->  | AP65: =IF(AP64="","",VLOOKUP(AP64,'シフト記号表（勤務時間帯）'!$C$4:$K$35,9,FALSE)) ->  | AQ65: =IF(AQ64="","",VLOOKUP(AQ64,'シフト記号表（勤務時間帯）'!$C$4:$K$35,9,FALSE)) ->  | AR65: =IF(AR64="","",VLOOKUP(AR64,'シフト記号表（勤務時間帯）'!$C$4:$K$35,9,FALSE)) ->  | AS65: =IF(AS64="","",VLOOKUP(AS64,'シフト記号表（勤務時間帯）'!$C$4:$K$35,9,FALSE)) ->  | AT65: =IF(AT64="","",VLOOKUP(AT64,'シフト記号表（勤務時間帯）'!$C$4:$K$35,9,FALSE)) ->  | AU65: =IF(AU64="","",VLOOKUP(AU64,'シフト記号表（勤務時間帯）'!$C$4:$K$35,9,FALSE)) ->  | AV65: =IF(AV64="","",VLOOKUP(AV64,'シフト記号表（勤務時間帯）'!$C$4:$K$35,9,FALSE)) ->  | AW65: =IF(AW64="","",VLOOKUP(AW64,'シフト記号表（勤務時間帯）'!$C$4:$K$35,9,FALSE)) ->  | AX65: =IF(AX64="","",VLOOKUP(AX64,'シフト記号表（勤務時間帯）'!$C$4:$K$35,9,FALSE)) -> 
B66: =B64+1 -> 26 | Q66: シフト記号 | AY66: =IF($BD$3="計画",SUM(T67:AU67),IF($BD$3="実績",SUM(T67:AX67),"")) -> 0 | BA66: =IF($BD$3="計画",AY66/4,IF($BD$3="実績",AY66/($BB$7/7),"")) -> 0
Q67: 勤務時間数 | T67: =IF(T66="","",VLOOKUP(T66,'シフト記号表（勤務時間帯）'!$C$4:$K$35,9,FALSE)) ->  | U67: =IF(U66="","",VLOOKUP(U66,'シフト記号表（勤務時間帯）'!$C$4:$K$35,9,FALSE)) ->  | V67: =IF(V66="","",VLOOKUP(V66,'シフト記号表（勤務時間帯）'!$C$4:$K$35,9,FALSE)) ->  | W67: =IF(W66="","",VLOOKUP(W66,'シフト記号表（勤務時間帯）'!$C$4:$K$35,9,FALSE)) ->  | X67: =IF(X66="","",VLOOKUP(X66,'シフト記号表（勤務時間帯）'!$C$4:$K$35,9,FALSE)) ->  | Y67: =IF(Y66="","",VLOOKUP(Y66,'シフト記号表（勤務時間帯）'!$C$4:$K$35,9,FALSE)) ->  | Z67: =IF(Z66="","",VLOOKUP(Z66,'シフト記号表（勤務時間帯）'!$C$4:$K$35,9,FALSE)) ->  | AA67: =IF(AA66="","",VLOOKUP(AA66,'シフト記号表（勤務時間帯）'!$C$4:$K$35,9,FALSE)) ->  | AB67: =IF(AB66="","",VLOOKUP(AB66,'シフト記号表（勤務時間帯）'!$C$4:$K$35,9,FALSE)) ->  | AC67: =IF(AC66="","",VLOOKUP(AC66,'シフト記号表（勤務時間帯）'!$C$4:$K$35,9,FALSE)) ->  | AD67: =IF(AD66="","",VLOOKUP(AD66,'シフト記号表（勤務時間帯）'!$C$4:$K$35,9,FALSE)) ->  | AE67: =IF(AE66="","",VLOOKUP(AE66,'シフト記号表（勤務時間帯）'!$C$4:$K$35,9,FALSE)) ->  | AF67: =IF(AF66="","",VLOOKUP(AF66,'シフト記号表（勤務時間帯）'!$C$4:$K$35,9,FALSE)) ->  | AG67: =IF(AG66="","",VLOOKUP(AG66,'シフト記号表（勤務時間帯）'!$C$4:$K$35,9,FALSE)) ->  | AH67: =IF(AH66="","",VLOOKUP(AH66,'シフト記号表（勤務時間帯）'!$C$4:$K$35,9,FALSE)) ->  | AI67: =IF(AI66="","",VLOOKUP(AI66,'シフト記号表（勤務時間帯）'!$C$4:$K$35,9,FALSE)) ->  | AJ67: =IF(AJ66="","",VLOOKUP(AJ66,'シフト記号表（勤務時間帯）'!$C$4:$K$35,9,FALSE)) ->  | AK67: =IF(AK66="","",VLOOKUP(AK66,'シフト記号表（勤務時間帯）'!$C$4:$K$35,9,FALSE)) ->  | AL67: =IF(AL66="","",VLOOKUP(AL66,'シフト記号表（勤務時間帯）'!$C$4:$K$35,9,FALSE)) ->  | AM67: =IF(AM66="","",VLOOKUP(AM66,'シフト記号表（勤務時間帯）'!$C$4:$K$35,9,FALSE)) ->  | AN67: =IF(AN66="","",VLOOKUP(AN66,'シフト記号表（勤務時間帯）'!$C$4:$K$35,9,FALSE)) ->  | AO67: =IF(AO66="","",VLOOKUP(AO66,'シフト記号表（勤務時間帯）'!$C$4:$K$35,9,FALSE)) ->  | AP67: =IF(AP66="","",VLOOKUP(AP66,'シフト記号表（勤務時間帯）'!$C$4:$K$35,9,FALSE)) ->  | AQ67: =IF(AQ66="","",VLOOKUP(AQ66,'シフト記号表（勤務時間帯）'!$C$4:$K$35,9,FALSE)) ->  | AR67: =IF(AR66="","",VLOOKUP(AR66,'シフト記号表（勤務時間帯）'!$C$4:$K$35,9,FALSE)) ->  | AS67: =IF(AS66="","",VLOOKUP(AS66,'シフト記号表（勤務時間帯）'!$C$4:$K$35,9,FALSE)) ->  | AT67: =IF(AT66="","",VLOOKUP(AT66,'シフト記号表（勤務時間帯）'!$C$4:$K$35,9,FALSE)) ->  | AU67: =IF(AU66="","",VLOOKUP(AU66,'シフト記号表（勤務時間帯）'!$C$4:$K$35,9,FALSE)) ->  | AV67: =IF(AV66="","",VLOOKUP(AV66,'シフト記号表（勤務時間帯）'!$C$4:$K$35,9,FALSE)) ->  | AW67: =IF(AW66="","",VLOOKUP(AW66,'シフト記号表（勤務時間帯）'!$C$4:$K$35,9,FALSE)) ->  | AX67: =IF(AX66="","",VLOOKUP(AX66,'シフト記号表（勤務時間帯）'!$C$4:$K$35,9,FALSE)) -> 
B68: =B66+1 -> 27 | Q68: シフト記号 | AY68: =IF($BD$3="計画",SUM(T69:AU69),IF($BD$3="実績",SUM(T69:AX69),"")) -> 0 | BA68: =IF($BD$3="計画",AY68/4,IF($BD$3="実績",AY68/($BB$7/7),"")) -> 0
Q69: 勤務時間数 | T69: =IF(T68="","",VLOOKUP(T68,'シフト記号表（勤務時間帯）'!$C$4:$K$35,9,FALSE)) ->  | U69: =IF(U68="","",VLOOKUP(U68,'シフト記号表（勤務時間帯）'!$C$4:$K$35,9,FALSE)) ->  | V69: =IF(V68="","",VLOOKUP(V68,'シフト記号表（勤務時間帯）'!$C$4:$K$35,9,FALSE)) ->  | W69: =IF(W68="","",VLOOKUP(W68,'シフト記号表（勤務時間帯）'!$C$4:$K$35,9,FALSE)) ->  | X69: =IF(X68="","",VLOOKUP(X68,'シフト記号表（勤務時間帯）'!$C$4:$K$35,9,FALSE)) ->  | Y69: =IF(Y68="","",VLOOKUP(Y68,'シフト記号表（勤務時間帯）'!$C$4:$K$35,9,FALSE)) ->  | Z69: =IF(Z68="","",VLOOKUP(Z68,'シフト記号表（勤務時間帯）'!$C$4:$K$35,9,FALSE)) ->  | AA69: =IF(AA68="","",VLOOKUP(AA68,'シフト記号表（勤務時間帯）'!$C$4:$K$35,9,FALSE)) ->  | AB69: =IF(AB68="","",VLOOKUP(AB68,'シフト記号表（勤務時間帯）'!$C$4:$K$35,9,FALSE)) ->  | AC69: =IF(AC68="","",VLOOKUP(AC68,'シフト記号表（勤務時間帯）'!$C$4:$K$35,9,FALSE)) ->  | AD69: =IF(AD68="","",VLOOKUP(AD68,'シフト記号表（勤務時間帯）'!$C$4:$K$35,9,FALSE)) ->  | AE69: =IF(AE68="","",VLOOKUP(AE68,'シフト記号表（勤務時間帯）'!$C$4:$K$35,9,FALSE)) ->  | AF69: =IF(AF68="","",VLOOKUP(AF68,'シフト記号表（勤務時間帯）'!$C$4:$K$35,9,FALSE)) ->  | AG69: =IF(AG68="","",VLOOKUP(AG68,'シフト記号表（勤務時間帯）'!$C$4:$K$35,9,FALSE)) ->  | AH69: =IF(AH68="","",VLOOKUP(AH68,'シフト記号表（勤務時間帯）'!$C$4:$K$35,9,FALSE)) ->  | AI69: =IF(AI68="","",VLOOKUP(AI68,'シフト記号表（勤務時間帯）'!$C$4:$K$35,9,FALSE)) ->  | AJ69: =IF(AJ68="","",VLOOKUP(AJ68,'シフト記号表（勤務時間帯）'!$C$4:$K$35,9,FALSE)) ->  | AK69: =IF(AK68="","",VLOOKUP(AK68,'シフト記号表（勤務時間帯）'!$C$4:$K$35,9,FALSE)) ->  | AL69: =IF(AL68="","",VLOOKUP(AL68,'シフト記号表（勤務時間帯）'!$C$4:$K$35,9,FALSE)) ->  | AM69: =IF(AM68="","",VLOOKUP(AM68,'シフト記号表（勤務時間帯）'!$C$4:$K$35,9,FALSE)) ->  | AN69: =IF(AN68="","",VLOOKUP(AN68,'シフト記号表（勤務時間帯）'!$C$4:$K$35,9,FALSE)) ->  | AO69: =IF(AO68="","",VLOOKUP(AO68,'シフト記号表（勤務時間帯）'!$C$4:$K$35,9,FALSE)) ->  | AP69: =IF(AP68="","",VLOOKUP(AP68,'シフト記号表（勤務時間帯）'!$C$4:$K$35,9,FALSE)) ->  | AQ69: =IF(AQ68="","",VLOOKUP(AQ68,'シフト記号表（勤務時間帯）'!$C$4:$K$35,9,FALSE)) ->  | AR69: =IF(AR68="","",VLOOKUP(AR68,'シフト記号表（勤務時間帯）'!$C$4:$K$35,9,FALSE)) ->  | AS69: =IF(AS68="","",VLOOKUP(AS68,'シフト記号表（勤務時間帯）'!$C$4:$K$35,9,FALSE)) ->  | AT69: =IF(AT68="","",VLOOKUP(AT68,'シフト記号表（勤務時間帯）'!$C$4:$K$35,9,FALSE)) ->  | AU69: =IF(AU68="","",VLOOKUP(AU68,'シフト記号表（勤務時間帯）'!$C$4:$K$35,9,FALSE)) ->  | AV69: =IF(AV68="","",VLOOKUP(AV68,'シフト記号表（勤務時間帯）'!$C$4:$K$35,9,FALSE)) ->  | AW69: =IF(AW68="","",VLOOKUP(AW68,'シフト記号表（勤務時間帯）'!$C$4:$K$35,9,FALSE)) ->  | AX69: =IF(AX68="","",VLOOKUP(AX68,'シフト記号表（勤務時間帯）'!$C$4:$K$35,9,FALSE)) -> 
B70: =B68+1 -> 28 | Q70: シフト記号 | AY70: =IF($BD$3="計画",SUM(T71:AU71),IF($BD$3="実績",SUM(T71:AX71),"")) -> 0 | BA70: =IF($BD$3="計画",AY70/4,IF($BD$3="実績",AY70/($BB$7/7),"")) -> 0
Q71: 勤務時間数 | T71: =IF(T70="","",VLOOKUP(T70,'シフト記号表（勤務時間帯）'!$C$4:$K$35,9,FALSE)) ->  | U71: =IF(U70="","",VLOOKUP(U70,'シフト記号表（勤務時間帯）'!$C$4:$K$35,9,FALSE)) ->  | V71: =IF(V70="","",VLOOKUP(V70,'シフト記号表（勤務時間帯）'!$C$4:$K$35,9,FALSE)) ->  | W71: =IF(W70="","",VLOOKUP(W70,'シフト記号表（勤務時間帯）'!$C$4:$K$35,9,FALSE)) ->  | X71: =IF(X70="","",VLOOKUP(X70,'シフト記号表（勤務時間帯）'!$C$4:$K$35,9,FALSE)) ->  | Y71: =IF(Y70="","",VLOOKUP(Y70,'シフト記号表（勤務時間帯）'!$C$4:$K$35,9,FALSE)) ->  | Z71: =IF(Z70="","",VLOOKUP(Z70,'シフト記号表（勤務時間帯）'!$C$4:$K$35,9,FALSE)) ->  | AA71: =IF(AA70="","",VLOOKUP(AA70,'シフト記号表（勤務時間帯）'!$C$4:$K$35,9,FALSE)) ->  | AB71: =IF(AB70="","",VLOOKUP(AB70,'シフト記号表（勤務時間帯）'!$C$4:$K$35,9,FALSE)) ->  | AC71: =IF(AC70="","",VLOOKUP(AC70,'シフト記号表（勤務時間帯）'!$C$4:$K$35,9,FALSE)) ->  | AD71: =IF(AD70="","",VLOOKUP(AD70,'シフト記号表（勤務時間帯）'!$C$4:$K$35,9,FALSE)) ->  | AE71: =IF(AE70="","",VLOOKUP(AE70,'シフト記号表（勤務時間帯）'!$C$4:$K$35,9,FALSE)) ->  | AF71: =IF(AF70="","",VLOOKUP(AF70,'シフト記号表（勤務時間帯）'!$C$4:$K$35,9,FALSE)) ->  | AG71: =IF(AG70="","",VLOOKUP(AG70,'シフト記号表（勤務時間帯）'!$C$4:$K$35,9,FALSE)) ->  | AH71: =IF(AH70="","",VLOOKUP(AH70,'シフト記号表（勤務時間帯）'!$C$4:$K$35,9,FALSE)) ->  | AI71: =IF(AI70="","",VLOOKUP(AI70,'シフト記号表（勤務時間帯）'!$C$4:$K$35,9,FALSE)) ->  | AJ71: =IF(AJ70="","",VLOOKUP(AJ70,'シフト記号表（勤務時間帯）'!$C$4:$K$35,9,FALSE)) ->  | AK71: =IF(AK70="","",VLOOKUP(AK70,'シフト記号表（勤務時間帯）'!$C$4:$K$35,9,FALSE)) ->  | AL71: =IF(AL70="","",VLOOKUP(AL70,'シフト記号表（勤務時間帯）'!$C$4:$K$35,9,FALSE)) ->  | AM71: =IF(AM70="","",VLOOKUP(AM70,'シフト記号表（勤務時間帯）'!$C$4:$K$35,9,FALSE)) ->  | AN71: =IF(AN70="","",VLOOKUP(AN70,'シフト記号表（勤務時間帯）'!$C$4:$K$35,9,FALSE)) ->  | AO71: =IF(AO70="","",VLOOKUP(AO70,'シフト記号表（勤務時間帯）'!$C$4:$K$35,9,FALSE)) ->  | AP71: =IF(AP70="","",VLOOKUP(AP70,'シフト記号表（勤務時間帯）'!$C$4:$K$35,9,FALSE)) ->  | AQ71: =IF(AQ70="","",VLOOKUP(AQ70,'シフト記号表（勤務時間帯）'!$C$4:$K$35,9,FALSE)) ->  | AR71: =IF(AR70="","",VLOOKUP(AR70,'シフト記号表（勤務時間帯）'!$C$4:$K$35,9,FALSE)) ->  | AS71: =IF(AS70="","",VLOOKUP(AS70,'シフト記号表（勤務時間帯）'!$C$4:$K$35,9,FALSE)) ->  | AT71: =IF(AT70="","",VLOOKUP(AT70,'シフト記号表（勤務時間帯）'!$C$4:$K$35,9,FALSE)) ->  | AU71: =IF(AU70="","",VLOOKUP(AU70,'シフト記号表（勤務時間帯）'!$C$4:$K$35,9,FALSE)) ->  | AV71: =IF(AV70="","",VLOOKUP(AV70,'シフト記号表（勤務時間帯）'!$C$4:$K$35,9,FALSE)) ->  | AW71: =IF(AW70="","",VLOOKUP(AW70,'シフト記号表（勤務時間帯）'!$C$4:$K$35,9,FALSE)) ->  | AX71: =IF(AX70="","",VLOOKUP(AX70,'シフト記号表（勤務時間帯）'!$C$4:$K$35,9,FALSE)) -> 
B72: =B70+1 -> 29 | Q72: シフト記号 | AY72: =IF($BD$3="計画",SUM(T73:AU73),IF($BD$3="実績",SUM(T73:AX73),"")) -> 0 | BA72: =IF($BD$3="計画",AY72/4,IF($BD$3="実績",AY72/($BB$7/7),"")) -> 0
Q73: 勤務時間数 | T73: =IF(T72="","",VLOOKUP(T72,'シフト記号表（勤務時間帯）'!$C$4:$K$35,9,FALSE)) ->  | U73: =IF(U72="","",VLOOKUP(U72,'シフト記号表（勤務時間帯）'!$C$4:$K$35,9,FALSE)) ->  | V73: =IF(V72="","",VLOOKUP(V72,'シフト記号表（勤務時間帯）'!$C$4:$K$35,9,FALSE)) ->  | W73: =IF(W72="","",VLOOKUP(W72,'シフト記号表（勤務時間帯）'!$C$4:$K$35,9,FALSE)) ->  | X73: =IF(X72="","",VLOOKUP(X72,'シフト記号表（勤務時間帯）'!$C$4:$K$35,9,FALSE)) ->  | Y73: =IF(Y72="","",VLOOKUP(Y72,'シフト記号表（勤務時間帯）'!$C$4:$K$35,9,FALSE)) ->  | Z73: =IF(Z72="","",VLOOKUP(Z72,'シフト記号表（勤務時間帯）'!$C$4:$K$35,9,FALSE)) ->  | AA73: =IF(AA72="","",VLOOKUP(AA72,'シフト記号表（勤務時間帯）'!$C$4:$K$35,9,FALSE)) ->  | AB73: =IF(AB72="","",VLOOKUP(AB72,'シフト記号表（勤務時間帯）'!$C$4:$K$35,9,FALSE)) ->  | AC73: =IF(AC72="","",VLOOKUP(AC72,'シフト記号表（勤務時間帯）'!$C$4:$K$35,9,FALSE)) ->  | AD73: =IF(AD72="","",VLOOKUP(AD72,'シフト記号表（勤務時間帯）'!$C$4:$K$35,9,FALSE)) ->  | AE73: =IF(AE72="","",VLOOKUP(AE72,'シフト記号表（勤務時間帯）'!$C$4:$K$35,9,FALSE)) ->  | AF73: =IF(AF72="","",VLOOKUP(AF72,'シフト記号表（勤務時間帯）'!$C$4:$K$35,9,FALSE)) ->  | AG73: =IF(AG72="","",VLOOKUP(AG72,'シフト記号表（勤務時間帯）'!$C$4:$K$35,9,FALSE)) ->  | AH73: =IF(AH72="","",VLOOKUP(AH72,'シフト記号表（勤務時間帯）'!$C$4:$K$35,9,FALSE)) ->  | AI73: =IF(AI72="","",VLOOKUP(AI72,'シフト記号表（勤務時間帯）'!$C$4:$K$35,9,FALSE)) ->  | AJ73: =IF(AJ72="","",VLOOKUP(AJ72,'シフト記号表（勤務時間帯）'!$C$4:$K$35,9,FALSE)) ->  | AK73: =IF(AK72="","",VLOOKUP(AK72,'シフト記号表（勤務時間帯）'!$C$4:$K$35,9,FALSE)) ->  | AL73: =IF(AL72="","",VLOOKUP(AL72,'シフト記号表（勤務時間帯）'!$C$4:$K$35,9,FALSE)) ->  | AM73: =IF(AM72="","",VLOOKUP(AM72,'シフト記号表（勤務時間帯）'!$C$4:$K$35,9,FALSE)) ->  | AN73: =IF(AN72="","",VLOOKUP(AN72,'シフト記号表（勤務時間帯）'!$C$4:$K$35,9,FALSE)) ->  | AO73: =IF(AO72="","",VLOOKUP(AO72,'シフト記号表（勤務時間帯）'!$C$4:$K$35,9,FALSE)) ->  | AP73: =IF(AP72="","",VLOOKUP(AP72,'シフト記号表（勤務時間帯）'!$C$4:$K$35,9,FALSE)) ->  | AQ73: =IF(AQ72="","",VLOOKUP(AQ72,'シフト記号表（勤務時間帯）'!$C$4:$K$35,9,FALSE)) ->  | AR73: =IF(AR72="","",VLOOKUP(AR72,'シフト記号表（勤務時間帯）'!$C$4:$K$35,9,FALSE)) ->  | AS73: =IF(AS72="","",VLOOKUP(AS72,'シフト記号表（勤務時間帯）'!$C$4:$K$35,9,FALSE)) ->  | AT73: =IF(AT72="","",VLOOKUP(AT72,'シフト記号表（勤務時間帯）'!$C$4:$K$35,9,FALSE)) ->  | AU73: =IF(AU72="","",VLOOKUP(AU72,'シフト記号表（勤務時間帯）'!$C$4:$K$35,9,FALSE)) ->  | AV73: =IF(AV72="","",VLOOKUP(AV72,'シフト記号表（勤務時間帯）'!$C$4:$K$35,9,FALSE)) ->  | AW73: =IF(AW72="","",VLOOKUP(AW72,'シフト記号表（勤務時間帯）'!$C$4:$K$35,9,FALSE)) ->  | AX73: =IF(AX72="","",VLOOKUP(AX72,'シフト記号表（勤務時間帯）'!$C$4:$K$35,9,FALSE)) -> 
B74: =B72+1 -> 30 | Q74: シフト記号 | AY74: =IF($BD$3="計画",SUM(T75:AU75),IF($BD$3="実績",SUM(T75:AX75),"")) -> 0 | BA74: =IF($BD$3="計画",AY74/4,IF($BD$3="実績",AY74/($BB$7/7),"")) -> 0
Q75: 勤務時間数 | T75: =IF(T74="","",VLOOKUP(T74,'シフト記号表（勤務時間帯）'!$C$4:$K$35,9,FALSE)) ->  | U75: =IF(U74="","",VLOOKUP(U74,'シフト記号表（勤務時間帯）'!$C$4:$K$35,9,FALSE)) ->  | V75: =IF(V74="","",VLOOKUP(V74,'シフト記号表（勤務時間帯）'!$C$4:$K$35,9,FALSE)) ->  | W75: =IF(W74="","",VLOOKUP(W74,'シフト記号表（勤務時間帯）'!$C$4:$K$35,9,FALSE)) ->  | X75: =IF(X74="","",VLOOKUP(X74,'シフト記号表（勤務時間帯）'!$C$4:$K$35,9,FALSE)) ->  | Y75: =IF(Y74="","",VLOOKUP(Y74,'シフト記号表（勤務時間帯）'!$C$4:$K$35,9,FALSE)) ->  | Z75: =IF(Z74="","",VLOOKUP(Z74,'シフト記号表（勤務時間帯）'!$C$4:$K$35,9,FALSE)) ->  | AA75: =IF(AA74="","",VLOOKUP(AA74,'シフト記号表（勤務時間帯）'!$C$4:$K$35,9,FALSE)) ->  | AB75: =IF(AB74="","",VLOOKUP(AB74,'シフト記号表（勤務時間帯）'!$C$4:$K$35,9,FALSE)) ->  | AC75: =IF(AC74="","",VLOOKUP(AC74,'シフト記号表（勤務時間帯）'!$C$4:$K$35,9,FALSE)) ->  | AD75: =IF(AD74="","",VLOOKUP(AD74,'シフト記号表（勤務時間帯）'!$C$4:$K$35,9,FALSE)) ->  | AE75: =IF(AE74="","",VLOOKUP(AE74,'シフト記号表（勤務時間帯）'!$C$4:$K$35,9,FALSE)) ->  | AF75: =IF(AF74="","",VLOOKUP(AF74,'シフト記号表（勤務時間帯）'!$C$4:$K$35,9,FALSE)) ->  | AG75: =IF(AG74="","",VLOOKUP(AG74,'シフト記号表（勤務時間帯）'!$C$4:$K$35,9,FALSE)) ->  | AH75: =IF(AH74="","",VLOOKUP(AH74,'シフト記号表（勤務時間帯）'!$C$4:$K$35,9,FALSE)) ->  | AI75: =IF(AI74="","",VLOOKUP(AI74,'シフト記号表（勤務時間帯）'!$C$4:$K$35,9,FALSE)) ->  | AJ75: =IF(AJ74="","",VLOOKUP(AJ74,'シフト記号表（勤務時間帯）'!$C$4:$K$35,9,FALSE)) ->  | AK75: =IF(AK74="","",VLOOKUP(AK74,'シフト記号表（勤務時間帯）'!$C$4:$K$35,9,FALSE)) ->  | AL75: =IF(AL74="","",VLOOKUP(AL74,'シフト記号表（勤務時間帯）'!$C$4:$K$35,9,FALSE)) ->  | AM75: =IF(AM74="","",VLOOKUP(AM74,'シフト記号表（勤務時間帯）'!$C$4:$K$35,9,FALSE)) ->  | AN75: =IF(AN74="","",VLOOKUP(AN74,'シフト記号表（勤務時間帯）'!$C$4:$K$35,9,FALSE)) ->  | AO75: =IF(AO74="","",VLOOKUP(AO74,'シフト記号表（勤務時間帯）'!$C$4:$K$35,9,FALSE)) ->  | AP75: =IF(AP74="","",VLOOKUP(AP74,'シフト記号表（勤務時間帯）'!$C$4:$K$35,9,FALSE)) ->  | AQ75: =IF(AQ74="","",VLOOKUP(AQ74,'シフト記号表（勤務時間帯）'!$C$4:$K$35,9,FALSE)) ->  | AR75: =IF(AR74="","",VLOOKUP(AR74,'シフト記号表（勤務時間帯）'!$C$4:$K$35,9,FALSE)) ->  | AS75: =IF(AS74="","",VLOOKUP(AS74,'シフト記号表（勤務時間帯）'!$C$4:$K$35,9,FALSE)) ->  | AT75: =IF(AT74="","",VLOOKUP(AT74,'シフト記号表（勤務時間帯）'!$C$4:$K$35,9,FALSE)) ->  | AU75: =IF(AU74="","",VLOOKUP(AU74,'シフト記号表（勤務時間帯）'!$C$4:$K$35,9,FALSE)) ->  | AV75: =IF(AV74="","",VLOOKUP(AV74,'シフト記号表（勤務時間帯）'!$C$4:$K$35,9,FALSE)) ->  | AW75: =IF(AW74="","",VLOOKUP(AW74,'シフト記号表（勤務時間帯）'!$C$4:$K$35,9,FALSE)) ->  | AX75: =IF(AX74="","",VLOOKUP(AX74,'シフト記号表（勤務時間帯）'!$C$4:$K$35,9,FALSE)) -> 
B76: =B74+1 -> 31 | Q76: シフト記号 | AY76: =IF($BD$3="計画",SUM(T77:AU77),IF($BD$3="実績",SUM(T77:AX77),"")) -> 0 | BA76: =IF($BD$3="計画",AY76/4,IF($BD$3="実績",AY76/($BB$7/7),"")) -> 0
Q77: 勤務時間数 | T77: =IF(T76="","",VLOOKUP(T76,'シフト記号表（勤務時間帯）'!$C$4:$K$35,9,FALSE)) ->  | U77: =IF(U76="","",VLOOKUP(U76,'シフト記号表（勤務時間帯）'!$C$4:$K$35,9,FALSE)) ->  | V77: =IF(V76="","",VLOOKUP(V76,'シフト記号表（勤務時間帯）'!$C$4:$K$35,9,FALSE)) ->  | W77: =IF(W76="","",VLOOKUP(W76,'シフト記号表（勤務時間帯）'!$C$4:$K$35,9,FALSE)) ->  | X77: =IF(X76="","",VLOOKUP(X76,'シフト記号表（勤務時間帯）'!$C$4:$K$35,9,FALSE)) ->  | Y77: =IF(Y76="","",VLOOKUP(Y76,'シフト記号表（勤務時間帯）'!$C$4:$K$35,9,FALSE)) ->  | Z77: =IF(Z76="","",VLOOKUP(Z76,'シフト記号表（勤務時間帯）'!$C$4:$K$35,9,FALSE)) ->  | AA77: =IF(AA76="","",VLOOKUP(AA76,'シフト記号表（勤務時間帯）'!$C$4:$K$35,9,FALSE)) ->  | AB77: =IF(AB76="","",VLOOKUP(AB76,'シフト記号表（勤務時間帯）'!$C$4:$K$35,9,FALSE)) ->  | AC77: =IF(AC76="","",VLOOKUP(AC76,'シフト記号表（勤務時間帯）'!$C$4:$K$35,9,FALSE)) ->  | AD77: =IF(AD76="","",VLOOKUP(AD76,'シフト記号表（勤務時間帯）'!$C$4:$K$35,9,FALSE)) ->  | AE77: =IF(AE76="","",VLOOKUP(AE76,'シフト記号表（勤務時間帯）'!$C$4:$K$35,9,FALSE)) ->  | AF77: =IF(AF76="","",VLOOKUP(AF76,'シフト記号表（勤務時間帯）'!$C$4:$K$35,9,FALSE)) ->  | AG77: =IF(AG76="","",VLOOKUP(AG76,'シフト記号表（勤務時間帯）'!$C$4:$K$35,9,FALSE)) ->  | AH77: =IF(AH76="","",VLOOKUP(AH76,'シフト記号表（勤務時間帯）'!$C$4:$K$35,9,FALSE)) ->  | AI77: =IF(AI76="","",VLOOKUP(AI76,'シフト記号表（勤務時間帯）'!$C$4:$K$35,9,FALSE)) ->  | AJ77: =IF(AJ76="","",VLOOKUP(AJ76,'シフト記号表（勤務時間帯）'!$C$4:$K$35,9,FALSE)) ->  | AK77: =IF(AK76="","",VLOOKUP(AK76,'シフト記号表（勤務時間帯）'!$C$4:$K$35,9,FALSE)) ->  | AL77: =IF(AL76="","",VLOOKUP(AL76,'シフト記号表（勤務時間帯）'!$C$4:$K$35,9,FALSE)) ->  | AM77: =IF(AM76="","",VLOOKUP(AM76,'シフト記号表（勤務時間帯）'!$C$4:$K$35,9,FALSE)) ->  | AN77: =IF(AN76="","",VLOOKUP(AN76,'シフト記号表（勤務時間帯）'!$C$4:$K$35,9,FALSE)) ->  | AO77: =IF(AO76="","",VLOOKUP(AO76,'シフト記号表（勤務時間帯）'!$C$4:$K$35,9,FALSE)) ->  | AP77: =IF(AP76="","",VLOOKUP(AP76,'シフト記号表（勤務時間帯）'!$C$4:$K$35,9,FALSE)) ->  | AQ77: =IF(AQ76="","",VLOOKUP(AQ76,'シフト記号表（勤務時間帯）'!$C$4:$K$35,9,FALSE)) ->  | AR77: =IF(AR76="","",VLOOKUP(AR76,'シフト記号表（勤務時間帯）'!$C$4:$K$35,9,FALSE)) ->  | AS77: =IF(AS76="","",VLOOKUP(AS76,'シフト記号表（勤務時間帯）'!$C$4:$K$35,9,FALSE)) ->  | AT77: =IF(AT76="","",VLOOKUP(AT76,'シフト記号表（勤務時間帯）'!$C$4:$K$35,9,FALSE)) ->  | AU77: =IF(AU76="","",VLOOKUP(AU76,'シフト記号表（勤務時間帯）'!$C$4:$K$35,9,FALSE)) ->  | AV77: =IF(AV76="","",VLOOKUP(AV76,'シフト記号表（勤務時間帯）'!$C$4:$K$35,9,FALSE)) ->  | AW77: =IF(AW76="","",VLOOKUP(AW76,'シフト記号表（勤務時間帯）'!$C$4:$K$35,9,FALSE)) ->  | AX77: =IF(AX76="","",VLOOKUP(AX76,'シフト記号表（勤務時間帯）'!$C$4:$K$35,9,FALSE)) -> 
B78: =B76+1 -> 32 | Q78: シフト記号 | AY78: =IF($BD$3="計画",SUM(T79:AU79),IF($BD$3="実績",SUM(T79:AX79),"")) -> 0 | BA78: =IF($BD$3="計画",AY78/4,IF($BD$3="実績",AY78/($BB$7/7),"")) -> 0
Q79: 勤務時間数 | T79: =IF(T78="","",VLOOKUP(T78,'シフト記号表（勤務時間帯）'!$C$4:$K$35,9,FALSE)) ->  | U79: =IF(U78="","",VLOOKUP(U78,'シフト記号表（勤務時間帯）'!$C$4:$K$35,9,FALSE)) ->  | V79: =IF(V78="","",VLOOKUP(V78,'シフト記号表（勤務時間帯）'!$C$4:$K$35,9,FALSE)) ->  | W79: =IF(W78="","",VLOOKUP(W78,'シフト記号表（勤務時間帯）'!$C$4:$K$35,9,FALSE)) ->  | X79: =IF(X78="","",VLOOKUP(X78,'シフト記号表（勤務時間帯）'!$C$4:$K$35,9,FALSE)) ->  | Y79: =IF(Y78="","",VLOOKUP(Y78,'シフト記号表（勤務時間帯）'!$C$4:$K$35,9,FALSE)) ->  | Z79: =IF(Z78="","",VLOOKUP(Z78,'シフト記号表（勤務時間帯）'!$C$4:$K$35,9,FALSE)) ->  | AA79: =IF(AA78="","",VLOOKUP(AA78,'シフト記号表（勤務時間帯）'!$C$4:$K$35,9,FALSE)) ->  | AB79: =IF(AB78="","",VLOOKUP(AB78,'シフト記号表（勤務時間帯）'!$C$4:$K$35,9,FALSE)) ->  | AC79: =IF(AC78="","",VLOOKUP(AC78,'シフト記号表（勤務時間帯）'!$C$4:$K$35,9,FALSE)) ->  | AD79: =IF(AD78="","",VLOOKUP(AD78,'シフト記号表（勤務時間帯）'!$C$4:$K$35,9,FALSE)) ->  | AE79: =IF(AE78="","",VLOOKUP(AE78,'シフト記号表（勤務時間帯）'!$C$4:$K$35,9,FALSE)) ->  | AF79: =IF(AF78="","",VLOOKUP(AF78,'シフト記号表（勤務時間帯）'!$C$4:$K$35,9,FALSE)) ->  | AG79: =IF(AG78="","",VLOOKUP(AG78,'シフト記号表（勤務時間帯）'!$C$4:$K$35,9,FALSE)) ->  | AH79: =IF(AH78="","",VLOOKUP(AH78,'シフト記号表（勤務時間帯）'!$C$4:$K$35,9,FALSE)) ->  | AI79: =IF(AI78="","",VLOOKUP(AI78,'シフト記号表（勤務時間帯）'!$C$4:$K$35,9,FALSE)) ->  | AJ79: =IF(AJ78="","",VLOOKUP(AJ78,'シフト記号表（勤務時間帯）'!$C$4:$K$35,9,FALSE)) ->  | AK79: =IF(AK78="","",VLOOKUP(AK78,'シフト記号表（勤務時間帯）'!$C$4:$K$35,9,FALSE)) ->  | AL79: =IF(AL78="","",VLOOKUP(AL78,'シフト記号表（勤務時間帯）'!$C$4:$K$35,9,FALSE)) ->  | AM79: =IF(AM78="","",VLOOKUP(AM78,'シフト記号表（勤務時間帯）'!$C$4:$K$35,9,FALSE)) ->  | AN79: =IF(AN78="","",VLOOKUP(AN78,'シフト記号表（勤務時間帯）'!$C$4:$K$35,9,FALSE)) ->  | AO79: =IF(AO78="","",VLOOKUP(AO78,'シフト記号表（勤務時間帯）'!$C$4:$K$35,9,FALSE)) ->  | AP79: =IF(AP78="","",VLOOKUP(AP78,'シフト記号表（勤務時間帯）'!$C$4:$K$35,9,FALSE)) ->  | AQ79: =IF(AQ78="","",VLOOKUP(AQ78,'シフト記号表（勤務時間帯）'!$C$4:$K$35,9,FALSE)) ->  | AR79: =IF(AR78="","",VLOOKUP(AR78,'シフト記号表（勤務時間帯）'!$C$4:$K$35,9,FALSE)) ->  | AS79: =IF(AS78="","",VLOOKUP(AS78,'シフト記号表（勤務時間帯）'!$C$4:$K$35,9,FALSE)) ->  | AT79: =IF(AT78="","",VLOOKUP(AT78,'シフト記号表（勤務時間帯）'!$C$4:$K$35,9,FALSE)) ->  | AU79: =IF(AU78="","",VLOOKUP(AU78,'シフト記号表（勤務時間帯）'!$C$4:$K$35,9,FALSE)) ->  | AV79: =IF(AV78="","",VLOOKUP(AV78,'シフト記号表（勤務時間帯）'!$C$4:$K$35,9,FALSE)) ->  | AW79: =IF(AW78="","",VLOOKUP(AW78,'シフト記号表（勤務時間帯）'!$C$4:$K$35,9,FALSE)) ->  | AX79: =IF(AX78="","",VLOOKUP(AX78,'シフト記号表（勤務時間帯）'!$C$4:$K$35,9,FALSE)) -> 
B80: =B78+1 -> 33 | Q80: シフト記号 | AY80: =IF($BD$3="計画",SUM(T81:AU81),IF($BD$3="実績",SUM(T81:AX81),"")) -> 0 | BA80: =IF($BD$3="計画",AY80/4,IF($BD$3="実績",AY80/($BB$7/7),"")) -> 0
Q81: 勤務時間数 | T81: =IF(T80="","",VLOOKUP(T80,'シフト記号表（勤務時間帯）'!$C$4:$K$35,9,FALSE)) ->  | U81: =IF(U80="","",VLOOKUP(U80,'シフト記号表（勤務時間帯）'!$C$4:$K$35,9,FALSE)) ->  | V81: =IF(V80="","",VLOOKUP(V80,'シフト記号表（勤務時間帯）'!$C$4:$K$35,9,FALSE)) ->  | W81: =IF(W80="","",VLOOKUP(W80,'シフト記号表（勤務時間帯）'!$C$4:$K$35,9,FALSE)) ->  | X81: =IF(X80="","",VLOOKUP(X80,'シフト記号表（勤務時間帯）'!$C$4:$K$35,9,FALSE)) ->  | Y81: =IF(Y80="","",VLOOKUP(Y80,'シフト記号表（勤務時間帯）'!$C$4:$K$35,9,FALSE)) ->  | Z81: =IF(Z80="","",VLOOKUP(Z80,'シフト記号表（勤務時間帯）'!$C$4:$K$35,9,FALSE)) ->  | AA81: =IF(AA80="","",VLOOKUP(AA80,'シフト記号表（勤務時間帯）'!$C$4:$K$35,9,FALSE)) ->  | AB81: =IF(AB80="","",VLOOKUP(AB80,'シフト記号表（勤務時間帯）'!$C$4:$K$35,9,FALSE)) ->  | AC81: =IF(AC80="","",VLOOKUP(AC80,'シフト記号表（勤務時間帯）'!$C$4:$K$35,9,FALSE)) ->  | AD81: =IF(AD80="","",VLOOKUP(AD80,'シフト記号表（勤務時間帯）'!$C$4:$K$35,9,FALSE)) ->  | AE81: =IF(AE80="","",VLOOKUP(AE80,'シフト記号表（勤務時間帯）'!$C$4:$K$35,9,FALSE)) ->  | AF81: =IF(AF80="","",VLOOKUP(AF80,'シフト記号表（勤務時間帯）'!$C$4:$K$35,9,FALSE)) ->  | AG81: =IF(AG80="","",VLOOKUP(AG80,'シフト記号表（勤務時間帯）'!$C$4:$K$35,9,FALSE)) ->  | AH81: =IF(AH80="","",VLOOKUP(AH80,'シフト記号表（勤務時間帯）'!$C$4:$K$35,9,FALSE)) ->  | AI81: =IF(AI80="","",VLOOKUP(AI80,'シフト記号表（勤務時間帯）'!$C$4:$K$35,9,FALSE)) ->  | AJ81: =IF(AJ80="","",VLOOKUP(AJ80,'シフト記号表（勤務時間帯）'!$C$4:$K$35,9,FALSE)) ->  | AK81: =IF(AK80="","",VLOOKUP(AK80,'シフト記号表（勤務時間帯）'!$C$4:$K$35,9,FALSE)) ->  | AL81: =IF(AL80="","",VLOOKUP(AL80,'シフト記号表（勤務時間帯）'!$C$4:$K$35,9,FALSE)) ->  | AM81: =IF(AM80="","",VLOOKUP(AM80,'シフト記号表（勤務時間帯）'!$C$4:$K$35,9,FALSE)) ->  | AN81: =IF(AN80="","",VLOOKUP(AN80,'シフト記号表（勤務時間帯）'!$C$4:$K$35,9,FALSE)) ->  | AO81: =IF(AO80="","",VLOOKUP(AO80,'シフト記号表（勤務時間帯）'!$C$4:$K$35,9,FALSE)) ->  | AP81: =IF(AP80="","",VLOOKUP(AP80,'シフト記号表（勤務時間帯）'!$C$4:$K$35,9,FALSE)) ->  | AQ81: =IF(AQ80="","",VLOOKUP(AQ80,'シフト記号表（勤務時間帯）'!$C$4:$K$35,9,FALSE)) ->  | AR81: =IF(AR80="","",VLOOKUP(AR80,'シフト記号表（勤務時間帯）'!$C$4:$K$35,9,FALSE)) ->  | AS81: =IF(AS80="","",VLOOKUP(AS80,'シフト記号表（勤務時間帯）'!$C$4:$K$35,9,FALSE)) ->  | AT81: =IF(AT80="","",VLOOKUP(AT80,'シフト記号表（勤務時間帯）'!$C$4:$K$35,9,FALSE)) ->  | AU81: =IF(AU80="","",VLOOKUP(AU80,'シフト記号表（勤務時間帯）'!$C$4:$K$35,9,FALSE)) ->  | AV81: =IF(AV80="","",VLOOKUP(AV80,'シフト記号表（勤務時間帯）'!$C$4:$K$35,9,FALSE)) ->  | AW81: =IF(AW80="","",VLOOKUP(AW80,'シフト記号表（勤務時間帯）'!$C$4:$K$35,9,FALSE)) ->  | AX81: =IF(AX80="","",VLOOKUP(AX80,'シフト記号表（勤務時間帯）'!$C$4:$K$35,9,FALSE)) -> 
B82: =B80+1 -> 34 | Q82: シフト記号 | AY82: =IF($BD$3="計画",SUM(T83:AU83),IF($BD$3="実績",SUM(T83:AX83),"")) -> 0 | BA82: =IF($BD$3="計画",AY82/4,IF($BD$3="実績",AY82/($BB$7/7),"")) -> 0
Q83: 勤務時間数 | T83: =IF(T82="","",VLOOKUP(T82,'シフト記号表（勤務時間帯）'!$C$4:$K$35,9,FALSE)) ->  | U83: =IF(U82="","",VLOOKUP(U82,'シフト記号表（勤務時間帯）'!$C$4:$K$35,9,FALSE)) ->  | V83: =IF(V82="","",VLOOKUP(V82,'シフト記号表（勤務時間帯）'!$C$4:$K$35,9,FALSE)) ->  | W83: =IF(W82="","",VLOOKUP(W82,'シフト記号表（勤務時間帯）'!$C$4:$K$35,9,FALSE)) ->  | X83: =IF(X82="","",VLOOKUP(X82,'シフト記号表（勤務時間帯）'!$C$4:$K$35,9,FALSE)) ->  | Y83: =IF(Y82="","",VLOOKUP(Y82,'シフト記号表（勤務時間帯）'!$C$4:$K$35,9,FALSE)) ->  | Z83: =IF(Z82="","",VLOOKUP(Z82,'シフト記号表（勤務時間帯）'!$C$4:$K$35,9,FALSE)) ->  | AA83: =IF(AA82="","",VLOOKUP(AA82,'シフト記号表（勤務時間帯）'!$C$4:$K$35,9,FALSE)) ->  | AB83: =IF(AB82="","",VLOOKUP(AB82,'シフト記号表（勤務時間帯）'!$C$4:$K$35,9,FALSE)) ->  | AC83: =IF(AC82="","",VLOOKUP(AC82,'シフト記号表（勤務時間帯）'!$C$4:$K$35,9,FALSE)) ->  | AD83: =IF(AD82="","",VLOOKUP(AD82,'シフト記号表（勤務時間帯）'!$C$4:$K$35,9,FALSE)) ->  | AE83: =IF(AE82="","",VLOOKUP(AE82,'シフト記号表（勤務時間帯）'!$C$4:$K$35,9,FALSE)) ->  | AF83: =IF(AF82="","",VLOOKUP(AF82,'シフト記号表（勤務時間帯）'!$C$4:$K$35,9,FALSE)) ->  | AG83: =IF(AG82="","",VLOOKUP(AG82,'シフト記号表（勤務時間帯）'!$C$4:$K$35,9,FALSE)) ->  | AH83: =IF(AH82="","",VLOOKUP(AH82,'シフト記号表（勤務時間帯）'!$C$4:$K$35,9,FALSE)) ->  | AI83: =IF(AI82="","",VLOOKUP(AI82,'シフト記号表（勤務時間帯）'!$C$4:$K$35,9,FALSE)) ->  | AJ83: =IF(AJ82="","",VLOOKUP(AJ82,'シフト記号表（勤務時間帯）'!$C$4:$K$35,9,FALSE)) ->  | AK83: =IF(AK82="","",VLOOKUP(AK82,'シフト記号表（勤務時間帯）'!$C$4:$K$35,9,FALSE)) ->  | AL83: =IF(AL82="","",VLOOKUP(AL82,'シフト記号表（勤務時間帯）'!$C$4:$K$35,9,FALSE)) ->  | AM83: =IF(AM82="","",VLOOKUP(AM82,'シフト記号表（勤務時間帯）'!$C$4:$K$35,9,FALSE)) ->  | AN83: =IF(AN82="","",VLOOKUP(AN82,'シフト記号表（勤務時間帯）'!$C$4:$K$35,9,FALSE)) ->  | AO83: =IF(AO82="","",VLOOKUP(AO82,'シフト記号表（勤務時間帯）'!$C$4:$K$35,9,FALSE)) ->  | AP83: =IF(AP82="","",VLOOKUP(AP82,'シフト記号表（勤務時間帯）'!$C$4:$K$35,9,FALSE)) ->  | AQ83: =IF(AQ82="","",VLOOKUP(AQ82,'シフト記号表（勤務時間帯）'!$C$4:$K$35,9,FALSE)) ->  | AR83: =IF(AR82="","",VLOOKUP(AR82,'シフト記号表（勤務時間帯）'!$C$4:$K$35,9,FALSE)) ->  | AS83: =IF(AS82="","",VLOOKUP(AS82,'シフト記号表（勤務時間帯）'!$C$4:$K$35,9,FALSE)) ->  | AT83: =IF(AT82="","",VLOOKUP(AT82,'シフト記号表（勤務時間帯）'!$C$4:$K$35,9,FALSE)) ->  | AU83: =IF(AU82="","",VLOOKUP(AU82,'シフト記号表（勤務時間帯）'!$C$4:$K$35,9,FALSE)) ->  | AV83: =IF(AV82="","",VLOOKUP(AV82,'シフト記号表（勤務時間帯）'!$C$4:$K$35,9,FALSE)) ->  | AW83: =IF(AW82="","",VLOOKUP(AW82,'シフト記号表（勤務時間帯）'!$C$4:$K$35,9,FALSE)) ->  | AX83: =IF(AX82="","",VLOOKUP(AX82,'シフト記号表（勤務時間帯）'!$C$4:$K$35,9,FALSE)) -> 
B84: =B82+1 -> 35 | Q84: シフト記号 | AY84: =IF($BD$3="計画",SUM(T85:AU85),IF($BD$3="実績",SUM(T85:AX85),"")) -> 0 | BA84: =IF($BD$3="計画",AY84/4,IF($BD$3="実績",AY84/($BB$7/7),"")) -> 0
Q85: 勤務時間数 | T85: =IF(T84="","",VLOOKUP(T84,'シフト記号表（勤務時間帯）'!$C$4:$K$35,9,FALSE)) ->  | U85: =IF(U84="","",VLOOKUP(U84,'シフト記号表（勤務時間帯）'!$C$4:$K$35,9,FALSE)) ->  | V85: =IF(V84="","",VLOOKUP(V84,'シフト記号表（勤務時間帯）'!$C$4:$K$35,9,FALSE)) ->  | W85: =IF(W84="","",VLOOKUP(W84,'シフト記号表（勤務時間帯）'!$C$4:$K$35,9,FALSE)) ->  | X85: =IF(X84="","",VLOOKUP(X84,'シフト記号表（勤務時間帯）'!$C$4:$K$35,9,FALSE)) ->  | Y85: =IF(Y84="","",VLOOKUP(Y84,'シフト記号表（勤務時間帯）'!$C$4:$K$35,9,FALSE)) ->  | Z85: =IF(Z84="","",VLOOKUP(Z84,'シフト記号表（勤務時間帯）'!$C$4:$K$35,9,FALSE)) ->  | AA85: =IF(AA84="","",VLOOKUP(AA84,'シフト記号表（勤務時間帯）'!$C$4:$K$35,9,FALSE)) ->  | AB85: =IF(AB84="","",VLOOKUP(AB84,'シフト記号表（勤務時間帯）'!$C$4:$K$35,9,FALSE)) ->  | AC85: =IF(AC84="","",VLOOKUP(AC84,'シフト記号表（勤務時間帯）'!$C$4:$K$35,9,FALSE)) ->  | AD85: =IF(AD84="","",VLOOKUP(AD84,'シフト記号表（勤務時間帯）'!$C$4:$K$35,9,FALSE)) ->  | AE85: =IF(AE84="","",VLOOKUP(AE84,'シフト記号表（勤務時間帯）'!$C$4:$K$35,9,FALSE)) ->  | AF85: =IF(AF84="","",VLOOKUP(AF84,'シフト記号表（勤務時間帯）'!$C$4:$K$35,9,FALSE)) ->  | AG85: =IF(AG84="","",VLOOKUP(AG84,'シフト記号表（勤務時間帯）'!$C$4:$K$35,9,FALSE)) ->  | AH85: =IF(AH84="","",VLOOKUP(AH84,'シフト記号表（勤務時間帯）'!$C$4:$K$35,9,FALSE)) ->  | AI85: =IF(AI84="","",VLOOKUP(AI84,'シフト記号表（勤務時間帯）'!$C$4:$K$35,9,FALSE)) ->  | AJ85: =IF(AJ84="","",VLOOKUP(AJ84,'シフト記号表（勤務時間帯）'!$C$4:$K$35,9,FALSE)) ->  | AK85: =IF(AK84="","",VLOOKUP(AK84,'シフト記号表（勤務時間帯）'!$C$4:$K$35,9,FALSE)) ->  | AL85: =IF(AL84="","",VLOOKUP(AL84,'シフト記号表（勤務時間帯）'!$C$4:$K$35,9,FALSE)) ->  | AM85: =IF(AM84="","",VLOOKUP(AM84,'シフト記号表（勤務時間帯）'!$C$4:$K$35,9,FALSE)) ->  | AN85: =IF(AN84="","",VLOOKUP(AN84,'シフト記号表（勤務時間帯）'!$C$4:$K$35,9,FALSE)) ->  | AO85: =IF(AO84="","",VLOOKUP(AO84,'シフト記号表（勤務時間帯）'!$C$4:$K$35,9,FALSE)) ->  | AP85: =IF(AP84="","",VLOOKUP(AP84,'シフト記号表（勤務時間帯）'!$C$4:$K$35,9,FALSE)) ->  | AQ85: =IF(AQ84="","",VLOOKUP(AQ84,'シフト記号表（勤務時間帯）'!$C$4:$K$35,9,FALSE)) ->  | AR85: =IF(AR84="","",VLOOKUP(AR84,'シフト記号表（勤務時間帯）'!$C$4:$K$35,9,FALSE)) ->  | AS85: =IF(AS84="","",VLOOKUP(AS84,'シフト記号表（勤務時間帯）'!$C$4:$K$35,9,FALSE)) ->  | AT85: =IF(AT84="","",VLOOKUP(AT84,'シフト記号表（勤務時間帯）'!$C$4:$K$35,9,FALSE)) ->  | AU85: =IF(AU84="","",VLOOKUP(AU84,'シフト記号表（勤務時間帯）'!$C$4:$K$35,9,FALSE)) ->  | AV85: =IF(AV84="","",VLOOKUP(AV84,'シフト記号表（勤務時間帯）'!$C$4:$K$35,9,FALSE)) ->  | AW85: =IF(AW84="","",VLOOKUP(AW84,'シフト記号表（勤務時間帯）'!$C$4:$K$35,9,FALSE)) ->  | AX85: =IF(AX84="","",VLOOKUP(AX84,'シフト記号表（勤務時間帯）'!$C$4:$K$35,9,FALSE)) -> 
B86: =B84+1 -> 36 | Q86: シフト記号 | AY86: =IF($BD$3="計画",SUM(T87:AU87),IF($BD$3="実績",SUM(T87:AX87),"")) -> 0 | BA86: =IF($BD$3="計画",AY86/4,IF($BD$3="実績",AY86/($BB$7/7),"")) -> 0
Q87: 勤務時間数 | T87: =IF(T86="","",VLOOKUP(T86,'シフト記号表（勤務時間帯）'!$C$4:$K$35,9,FALSE)) ->  | U87: =IF(U86="","",VLOOKUP(U86,'シフト記号表（勤務時間帯）'!$C$4:$K$35,9,FALSE)) ->  | V87: =IF(V86="","",VLOOKUP(V86,'シフト記号表（勤務時間帯）'!$C$4:$K$35,9,FALSE)) ->  | W87: =IF(W86="","",VLOOKUP(W86,'シフト記号表（勤務時間帯）'!$C$4:$K$35,9,FALSE)) ->  | X87: =IF(X86="","",VLOOKUP(X86,'シフト記号表（勤務時間帯）'!$C$4:$K$35,9,FALSE)) ->  | Y87: =IF(Y86="","",VLOOKUP(Y86,'シフト記号表（勤務時間帯）'!$C$4:$K$35,9,FALSE)) ->  | Z87: =IF(Z86="","",VLOOKUP(Z86,'シフト記号表（勤務時間帯）'!$C$4:$K$35,9,FALSE)) ->  | AA87: =IF(AA86="","",VLOOKUP(AA86,'シフト記号表（勤務時間帯）'!$C$4:$K$35,9,FALSE)) ->  | AB87: =IF(AB86="","",VLOOKUP(AB86,'シフト記号表（勤務時間帯）'!$C$4:$K$35,9,FALSE)) ->  | AC87: =IF(AC86="","",VLOOKUP(AC86,'シフト記号表（勤務時間帯）'!$C$4:$K$35,9,FALSE)) ->  | AD87: =IF(AD86="","",VLOOKUP(AD86,'シフト記号表（勤務時間帯）'!$C$4:$K$35,9,FALSE)) ->  | AE87: =IF(AE86="","",VLOOKUP(AE86,'シフト記号表（勤務時間帯）'!$C$4:$K$35,9,FALSE)) ->  | AF87: =IF(AF86="","",VLOOKUP(AF86,'シフト記号表（勤務時間帯）'!$C$4:$K$35,9,FALSE)) ->  | AG87: =IF(AG86="","",VLOOKUP(AG86,'シフト記号表（勤務時間帯）'!$C$4:$K$35,9,FALSE)) ->  | AH87: =IF(AH86="","",VLOOKUP(AH86,'シフト記号表（勤務時間帯）'!$C$4:$K$35,9,FALSE)) ->  | AI87: =IF(AI86="","",VLOOKUP(AI86,'シフト記号表（勤務時間帯）'!$C$4:$K$35,9,FALSE)) ->  | AJ87: =IF(AJ86="","",VLOOKUP(AJ86,'シフト記号表（勤務時間帯）'!$C$4:$K$35,9,FALSE)) ->  | AK87: =IF(AK86="","",VLOOKUP(AK86,'シフト記号表（勤務時間帯）'!$C$4:$K$35,9,FALSE)) ->  | AL87: =IF(AL86="","",VLOOKUP(AL86,'シフト記号表（勤務時間帯）'!$C$4:$K$35,9,FALSE)) ->  | AM87: =IF(AM86="","",VLOOKUP(AM86,'シフト記号表（勤務時間帯）'!$C$4:$K$35,9,FALSE)) ->  | AN87: =IF(AN86="","",VLOOKUP(AN86,'シフト記号表（勤務時間帯）'!$C$4:$K$35,9,FALSE)) ->  | AO87: =IF(AO86="","",VLOOKUP(AO86,'シフト記号表（勤務時間帯）'!$C$4:$K$35,9,FALSE)) ->  | AP87: =IF(AP86="","",VLOOKUP(AP86,'シフト記号表（勤務時間帯）'!$C$4:$K$35,9,FALSE)) ->  | AQ87: =IF(AQ86="","",VLOOKUP(AQ86,'シフト記号表（勤務時間帯）'!$C$4:$K$35,9,FALSE)) ->  | AR87: =IF(AR86="","",VLOOKUP(AR86,'シフト記号表（勤務時間帯）'!$C$4:$K$35,9,FALSE)) ->  | AS87: =IF(AS86="","",VLOOKUP(AS86,'シフト記号表（勤務時間帯）'!$C$4:$K$35,9,FALSE)) ->  | AT87: =IF(AT86="","",VLOOKUP(AT86,'シフト記号表（勤務時間帯）'!$C$4:$K$35,9,FALSE)) ->  | AU87: =IF(AU86="","",VLOOKUP(AU86,'シフト記号表（勤務時間帯）'!$C$4:$K$35,9,FALSE)) ->  | AV87: =IF(AV86="","",VLOOKUP(AV86,'シフト記号表（勤務時間帯）'!$C$4:$K$35,9,FALSE)) ->  | AW87: =IF(AW86="","",VLOOKUP(AW86,'シフト記号表（勤務時間帯）'!$C$4:$K$35,9,FALSE)) ->  | AX87: =IF(AX86="","",VLOOKUP(AX86,'シフト記号表（勤務時間帯）'!$C$4:$K$35,9,FALSE)) -> 
B88: =B86+1 -> 37 | Q88: シフト記号 | AY88: =IF($BD$3="計画",SUM(T89:AU89),IF($BD$3="実績",SUM(T89:AX89),"")) -> 0 | BA88: =IF($BD$3="計画",AY88/4,IF($BD$3="実績",AY88/($BB$7/7),"")) -> 0
Q89: 勤務時間数 | T89: =IF(T88="","",VLOOKUP(T88,'シフト記号表（勤務時間帯）'!$C$4:$K$35,9,FALSE)) ->  | U89: =IF(U88="","",VLOOKUP(U88,'シフト記号表（勤務時間帯）'!$C$4:$K$35,9,FALSE)) ->  | V89: =IF(V88="","",VLOOKUP(V88,'シフト記号表（勤務時間帯）'!$C$4:$K$35,9,FALSE)) ->  | W89: =IF(W88="","",VLOOKUP(W88,'シフト記号表（勤務時間帯）'!$C$4:$K$35,9,FALSE)) ->  | X89: =IF(X88="","",VLOOKUP(X88,'シフト記号表（勤務時間帯）'!$C$4:$K$35,9,FALSE)) ->  | Y89: =IF(Y88="","",VLOOKUP(Y88,'シフト記号表（勤務時間帯）'!$C$4:$K$35,9,FALSE)) ->  | Z89: =IF(Z88="","",VLOOKUP(Z88,'シフト記号表（勤務時間帯）'!$C$4:$K$35,9,FALSE)) ->  | AA89: =IF(AA88="","",VLOOKUP(AA88,'シフト記号表（勤務時間帯）'!$C$4:$K$35,9,FALSE)) ->  | AB89: =IF(AB88="","",VLOOKUP(AB88,'シフト記号表（勤務時間帯）'!$C$4:$K$35,9,FALSE)) ->  | AC89: =IF(AC88="","",VLOOKUP(AC88,'シフト記号表（勤務時間帯）'!$C$4:$K$35,9,FALSE)) ->  | AD89: =IF(AD88="","",VLOOKUP(AD88,'シフト記号表（勤務時間帯）'!$C$4:$K$35,9,FALSE)) ->  | AE89: =IF(AE88="","",VLOOKUP(AE88,'シフト記号表（勤務時間帯）'!$C$4:$K$35,9,FALSE)) ->  | AF89: =IF(AF88="","",VLOOKUP(AF88,'シフト記号表（勤務時間帯）'!$C$4:$K$35,9,FALSE)) ->  | AG89: =IF(AG88="","",VLOOKUP(AG88,'シフト記号表（勤務時間帯）'!$C$4:$K$35,9,FALSE)) ->  | AH89: =IF(AH88="","",VLOOKUP(AH88,'シフト記号表（勤務時間帯）'!$C$4:$K$35,9,FALSE)) ->  | AI89: =IF(AI88="","",VLOOKUP(AI88,'シフト記号表（勤務時間帯）'!$C$4:$K$35,9,FALSE)) ->  | AJ89: =IF(AJ88="","",VLOOKUP(AJ88,'シフト記号表（勤務時間帯）'!$C$4:$K$35,9,FALSE)) ->  | AK89: =IF(AK88="","",VLOOKUP(AK88,'シフト記号表（勤務時間帯）'!$C$4:$K$35,9,FALSE)) ->  | AL89: =IF(AL88="","",VLOOKUP(AL88,'シフト記号表（勤務時間帯）'!$C$4:$K$35,9,FALSE)) ->  | AM89: =IF(AM88="","",VLOOKUP(AM88,'シフト記号表（勤務時間帯）'!$C$4:$K$35,9,FALSE)) ->  | AN89: =IF(AN88="","",VLOOKUP(AN88,'シフト記号表（勤務時間帯）'!$C$4:$K$35,9,FALSE)) ->  | AO89: =IF(AO88="","",VLOOKUP(AO88,'シフト記号表（勤務時間帯）'!$C$4:$K$35,9,FALSE)) ->  | AP89: =IF(AP88="","",VLOOKUP(AP88,'シフト記号表（勤務時間帯）'!$C$4:$K$35,9,FALSE)) ->  | AQ89: =IF(AQ88="","",VLOOKUP(AQ88,'シフト記号表（勤務時間帯）'!$C$4:$K$35,9,FALSE)) ->  | AR89: =IF(AR88="","",VLOOKUP(AR88,'シフト記号表（勤務時間帯）'!$C$4:$K$35,9,FALSE)) ->  | AS89: =IF(AS88="","",VLOOKUP(AS88,'シフト記号表（勤務時間帯）'!$C$4:$K$35,9,FALSE)) ->  | AT89: =IF(AT88="","",VLOOKUP(AT88,'シフト記号表（勤務時間帯）'!$C$4:$K$35,9,FALSE)) ->  | AU89: =IF(AU88="","",VLOOKUP(AU88,'シフト記号表（勤務時間帯）'!$C$4:$K$35,9,FALSE)) ->  | AV89: =IF(AV88="","",VLOOKUP(AV88,'シフト記号表（勤務時間帯）'!$C$4:$K$35,9,FALSE)) ->  | AW89: =IF(AW88="","",VLOOKUP(AW88,'シフト記号表（勤務時間帯）'!$C$4:$K$35,9,FALSE)) ->  | AX89: =IF(AX88="","",VLOOKUP(AX88,'シフト記号表（勤務時間帯）'!$C$4:$K$35,9,FALSE)) -> 
B90: =B88+1 -> 38 | Q90: シフト記号 | AY90: =IF($BD$3="計画",SUM(T91:AU91),IF($BD$3="実績",SUM(T91:AX91),"")) -> 0 | BA90: =IF($BD$3="計画",AY90/4,IF($BD$3="実績",AY90/($BB$7/7),"")) -> 0
Q91: 勤務時間数 | T91: =IF(T90="","",VLOOKUP(T90,'シフト記号表（勤務時間帯）'!$C$4:$K$35,9,FALSE)) ->  | U91: =IF(U90="","",VLOOKUP(U90,'シフト記号表（勤務時間帯）'!$C$4:$K$35,9,FALSE)) ->  | V91: =IF(V90="","",VLOOKUP(V90,'シフト記号表（勤務時間帯）'!$C$4:$K$35,9,FALSE)) ->  | W91: =IF(W90="","",VLOOKUP(W90,'シフト記号表（勤務時間帯）'!$C$4:$K$35,9,FALSE)) ->  | X91: =IF(X90="","",VLOOKUP(X90,'シフト記号表（勤務時間帯）'!$C$4:$K$35,9,FALSE)) ->  | Y91: =IF(Y90="","",VLOOKUP(Y90,'シフト記号表（勤務時間帯）'!$C$4:$K$35,9,FALSE)) ->  | Z91: =IF(Z90="","",VLOOKUP(Z90,'シフト記号表（勤務時間帯）'!$C$4:$K$35,9,FALSE)) ->  | AA91: =IF(AA90="","",VLOOKUP(AA90,'シフト記号表（勤務時間帯）'!$C$4:$K$35,9,FALSE)) ->  | AB91: =IF(AB90="","",VLOOKUP(AB90,'シフト記号表（勤務時間帯）'!$C$4:$K$35,9,FALSE)) ->  | AC91: =IF(AC90="","",VLOOKUP(AC90,'シフト記号表（勤務時間帯）'!$C$4:$K$35,9,FALSE)) ->  | AD91: =IF(AD90="","",VLOOKUP(AD90,'シフト記号表（勤務時間帯）'!$C$4:$K$35,9,FALSE)) ->  | AE91: =IF(AE90="","",VLOOKUP(AE90,'シフト記号表（勤務時間帯）'!$C$4:$K$35,9,FALSE)) ->  | AF91: =IF(AF90="","",VLOOKUP(AF90,'シフト記号表（勤務時間帯）'!$C$4:$K$35,9,FALSE)) ->  | AG91: =IF(AG90="","",VLOOKUP(AG90,'シフト記号表（勤務時間帯）'!$C$4:$K$35,9,FALSE)) ->  | AH91: =IF(AH90="","",VLOOKUP(AH90,'シフト記号表（勤務時間帯）'!$C$4:$K$35,9,FALSE)) ->  | AI91: =IF(AI90="","",VLOOKUP(AI90,'シフト記号表（勤務時間帯）'!$C$4:$K$35,9,FALSE)) ->  | AJ91: =IF(AJ90="","",VLOOKUP(AJ90,'シフト記号表（勤務時間帯）'!$C$4:$K$35,9,FALSE)) ->  | AK91: =IF(AK90="","",VLOOKUP(AK90,'シフト記号表（勤務時間帯）'!$C$4:$K$35,9,FALSE)) ->  | AL91: =IF(AL90="","",VLOOKUP(AL90,'シフト記号表（勤務時間帯）'!$C$4:$K$35,9,FALSE)) ->  | AM91: =IF(AM90="","",VLOOKUP(AM90,'シフト記号表（勤務時間帯）'!$C$4:$K$35,9,FALSE)) ->  | AN91: =IF(AN90="","",VLOOKUP(AN90,'シフト記号表（勤務時間帯）'!$C$4:$K$35,9,FALSE)) ->  | AO91: =IF(AO90="","",VLOOKUP(AO90,'シフト記号表（勤務時間帯）'!$C$4:$K$35,9,FALSE)) ->  | AP91: =IF(AP90="","",VLOOKUP(AP90,'シフト記号表（勤務時間帯）'!$C$4:$K$35,9,FALSE)) ->  | AQ91: =IF(AQ90="","",VLOOKUP(AQ90,'シフト記号表（勤務時間帯）'!$C$4:$K$35,9,FALSE)) ->  | AR91: =IF(AR90="","",VLOOKUP(AR90,'シフト記号表（勤務時間帯）'!$C$4:$K$35,9,FALSE)) ->  | AS91: =IF(AS90="","",VLOOKUP(AS90,'シフト記号表（勤務時間帯）'!$C$4:$K$35,9,FALSE)) ->  | AT91: =IF(AT90="","",VLOOKUP(AT90,'シフト記号表（勤務時間帯）'!$C$4:$K$35,9,FALSE)) ->  | AU91: =IF(AU90="","",VLOOKUP(AU90,'シフト記号表（勤務時間帯）'!$C$4:$K$35,9,FALSE)) ->  | AV91: =IF(AV90="","",VLOOKUP(AV90,'シフト記号表（勤務時間帯）'!$C$4:$K$35,9,FALSE)) ->  | AW91: =IF(AW90="","",VLOOKUP(AW90,'シフト記号表（勤務時間帯）'!$C$4:$K$35,9,FALSE)) ->  | AX91: =IF(AX90="","",VLOOKUP(AX90,'シフト記号表（勤務時間帯）'!$C$4:$K$35,9,FALSE)) -> 
B92: =B90+1 -> 39 | Q92: シフト記号 | AY92: =IF($BD$3="計画",SUM(T93:AU93),IF($BD$3="実績",SUM(T93:AX93),"")) -> 0 | BA92: =IF($BD$3="計画",AY92/4,IF($BD$3="実績",AY92/($BB$7/7),"")) -> 0
Q93: 勤務時間数 | T93: =IF(T92="","",VLOOKUP(T92,'シフト記号表（勤務時間帯）'!$C$4:$K$35,9,FALSE)) ->  | U93: =IF(U92="","",VLOOKUP(U92,'シフト記号表（勤務時間帯）'!$C$4:$K$35,9,FALSE)) ->  | V93: =IF(V92="","",VLOOKUP(V92,'シフト記号表（勤務時間帯）'!$C$4:$K$35,9,FALSE)) ->  | W93: =IF(W92="","",VLOOKUP(W92,'シフト記号表（勤務時間帯）'!$C$4:$K$35,9,FALSE)) ->  | X93: =IF(X92="","",VLOOKUP(X92,'シフト記号表（勤務時間帯）'!$C$4:$K$35,9,FALSE)) ->  | Y93: =IF(Y92="","",VLOOKUP(Y92,'シフト記号表（勤務時間帯）'!$C$4:$K$35,9,FALSE)) ->  | Z93: =IF(Z92="","",VLOOKUP(Z92,'シフト記号表（勤務時間帯）'!$C$4:$K$35,9,FALSE)) ->  | AA93: =IF(AA92="","",VLOOKUP(AA92,'シフト記号表（勤務時間帯）'!$C$4:$K$35,9,FALSE)) ->  | AB93: =IF(AB92="","",VLOOKUP(AB92,'シフト記号表（勤務時間帯）'!$C$4:$K$35,9,FALSE)) ->  | AC93: =IF(AC92="","",VLOOKUP(AC92,'シフト記号表（勤務時間帯）'!$C$4:$K$35,9,FALSE)) ->  | AD93: =IF(AD92="","",VLOOKUP(AD92,'シフト記号表（勤務時間帯）'!$C$4:$K$35,9,FALSE)) ->  | AE93: =IF(AE92="","",VLOOKUP(AE92,'シフト記号表（勤務時間帯）'!$C$4:$K$35,9,FALSE)) ->  | AF93: =IF(AF92="","",VLOOKUP(AF92,'シフト記号表（勤務時間帯）'!$C$4:$K$35,9,FALSE)) ->  | AG93: =IF(AG92="","",VLOOKUP(AG92,'シフト記号表（勤務時間帯）'!$C$4:$K$35,9,FALSE)) ->  | AH93: =IF(AH92="","",VLOOKUP(AH92,'シフト記号表（勤務時間帯）'!$C$4:$K$35,9,FALSE)) ->  | AI93: =IF(AI92="","",VLOOKUP(AI92,'シフト記号表（勤務時間帯）'!$C$4:$K$35,9,FALSE)) ->  | AJ93: =IF(AJ92="","",VLOOKUP(AJ92,'シフト記号表（勤務時間帯）'!$C$4:$K$35,9,FALSE)) ->  | AK93: =IF(AK92="","",VLOOKUP(AK92,'シフト記号表（勤務時間帯）'!$C$4:$K$35,9,FALSE)) ->  | AL93: =IF(AL92="","",VLOOKUP(AL92,'シフト記号表（勤務時間帯）'!$C$4:$K$35,9,FALSE)) ->  | AM93: =IF(AM92="","",VLOOKUP(AM92,'シフト記号表（勤務時間帯）'!$C$4:$K$35,9,FALSE)) ->  | AN93: =IF(AN92="","",VLOOKUP(AN92,'シフト記号表（勤務時間帯）'!$C$4:$K$35,9,FALSE)) ->  | AO93: =IF(AO92="","",VLOOKUP(AO92,'シフト記号表（勤務時間帯）'!$C$4:$K$35,9,FALSE)) ->  | AP93: =IF(AP92="","",VLOOKUP(AP92,'シフト記号表（勤務時間帯）'!$C$4:$K$35,9,FALSE)) ->  | AQ93: =IF(AQ92="","",VLOOKUP(AQ92,'シフト記号表（勤務時間帯）'!$C$4:$K$35,9,FALSE)) ->  | AR93: =IF(AR92="","",VLOOKUP(AR92,'シフト記号表（勤務時間帯）'!$C$4:$K$35,9,FALSE)) ->  | AS93: =IF(AS92="","",VLOOKUP(AS92,'シフト記号表（勤務時間帯）'!$C$4:$K$35,9,FALSE)) ->  | AT93: =IF(AT92="","",VLOOKUP(AT92,'シフト記号表（勤務時間帯）'!$C$4:$K$35,9,FALSE)) ->  | AU93: =IF(AU92="","",VLOOKUP(AU92,'シフト記号表（勤務時間帯）'!$C$4:$K$35,9,FALSE)) ->  | AV93: =IF(AV92="","",VLOOKUP(AV92,'シフト記号表（勤務時間帯）'!$C$4:$K$35,9,FALSE)) ->  | AW93: =IF(AW92="","",VLOOKUP(AW92,'シフト記号表（勤務時間帯）'!$C$4:$K$35,9,FALSE)) ->  | AX93: =IF(AX92="","",VLOOKUP(AX92,'シフト記号表（勤務時間帯）'!$C$4:$K$35,9,FALSE)) -> 
B94: =B92+1 -> 40 | Q94: シフト記号 | AY94: =IF($BD$3="計画",SUM(T95:AU95),IF($BD$3="実績",SUM(T95:AX95),"")) -> 0 | BA94: =IF($BD$3="計画",AY94/4,IF($BD$3="実績",AY94/($BB$7/7),"")) -> 0
Q95: 勤務時間数 | T95: =IF(T94="","",VLOOKUP(T94,'シフト記号表（勤務時間帯）'!$C$4:$K$35,9,FALSE)) ->  | U95: =IF(U94="","",VLOOKUP(U94,'シフト記号表（勤務時間帯）'!$C$4:$K$35,9,FALSE)) ->  | V95: =IF(V94="","",VLOOKUP(V94,'シフト記号表（勤務時間帯）'!$C$4:$K$35,9,FALSE)) ->  | W95: =IF(W94="","",VLOOKUP(W94,'シフト記号表（勤務時間帯）'!$C$4:$K$35,9,FALSE)) ->  | X95: =IF(X94="","",VLOOKUP(X94,'シフト記号表（勤務時間帯）'!$C$4:$K$35,9,FALSE)) ->  | Y95: =IF(Y94="","",VLOOKUP(Y94,'シフト記号表（勤務時間帯）'!$C$4:$K$35,9,FALSE)) ->  | Z95: =IF(Z94="","",VLOOKUP(Z94,'シフト記号表（勤務時間帯）'!$C$4:$K$35,9,FALSE)) ->  | AA95: =IF(AA94="","",VLOOKUP(AA94,'シフト記号表（勤務時間帯）'!$C$4:$K$35,9,FALSE)) ->  | AB95: =IF(AB94="","",VLOOKUP(AB94,'シフト記号表（勤務時間帯）'!$C$4:$K$35,9,FALSE)) ->  | AC95: =IF(AC94="","",VLOOKUP(AC94,'シフト記号表（勤務時間帯）'!$C$4:$K$35,9,FALSE)) ->  | AD95: =IF(AD94="","",VLOOKUP(AD94,'シフト記号表（勤務時間帯）'!$C$4:$K$35,9,FALSE)) ->  | AE95: =IF(AE94="","",VLOOKUP(AE94,'シフト記号表（勤務時間帯）'!$C$4:$K$35,9,FALSE)) ->  | AF95: =IF(AF94="","",VLOOKUP(AF94,'シフト記号表（勤務時間帯）'!$C$4:$K$35,9,FALSE)) ->  | AG95: =IF(AG94="","",VLOOKUP(AG94,'シフト記号表（勤務時間帯）'!$C$4:$K$35,9,FALSE)) ->  | AH95: =IF(AH94="","",VLOOKUP(AH94,'シフト記号表（勤務時間帯）'!$C$4:$K$35,9,FALSE)) ->  | AI95: =IF(AI94="","",VLOOKUP(AI94,'シフト記号表（勤務時間帯）'!$C$4:$K$35,9,FALSE)) ->  | AJ95: =IF(AJ94="","",VLOOKUP(AJ94,'シフト記号表（勤務時間帯）'!$C$4:$K$35,9,FALSE)) ->  | AK95: =IF(AK94="","",VLOOKUP(AK94,'シフト記号表（勤務時間帯）'!$C$4:$K$35,9,FALSE)) ->  | AL95: =IF(AL94="","",VLOOKUP(AL94,'シフト記号表（勤務時間帯）'!$C$4:$K$35,9,FALSE)) ->  | AM95: =IF(AM94="","",VLOOKUP(AM94,'シフト記号表（勤務時間帯）'!$C$4:$K$35,9,FALSE)) ->  | AN95: =IF(AN94="","",VLOOKUP(AN94,'シフト記号表（勤務時間帯）'!$C$4:$K$35,9,FALSE)) ->  | AO95: =IF(AO94="","",VLOOKUP(AO94,'シフト記号表（勤務時間帯）'!$C$4:$K$35,9,FALSE)) ->  | AP95: =IF(AP94="","",VLOOKUP(AP94,'シフト記号表（勤務時間帯）'!$C$4:$K$35,9,FALSE)) ->  | AQ95: =IF(AQ94="","",VLOOKUP(AQ94,'シフト記号表（勤務時間帯）'!$C$4:$K$35,9,FALSE)) ->  | AR95: =IF(AR94="","",VLOOKUP(AR94,'シフト記号表（勤務時間帯）'!$C$4:$K$35,9,FALSE)) ->  | AS95: =IF(AS94="","",VLOOKUP(AS94,'シフト記号表（勤務時間帯）'!$C$4:$K$35,9,FALSE)) ->  | AT95: =IF(AT94="","",VLOOKUP(AT94,'シフト記号表（勤務時間帯）'!$C$4:$K$35,9,FALSE)) ->  | AU95: =IF(AU94="","",VLOOKUP(AU94,'シフト記号表（勤務時間帯）'!$C$4:$K$35,9,FALSE)) ->  | AV95: =IF(AV94="","",VLOOKUP(AV94,'シフト記号表（勤務時間帯）'!$C$4:$K$35,9,FALSE)) ->  | AW95: =IF(AW94="","",VLOOKUP(AW94,'シフト記号表（勤務時間帯）'!$C$4:$K$35,9,FALSE)) ->  | AX95: =IF(AX94="","",VLOOKUP(AX94,'シフト記号表（勤務時間帯）'!$C$4:$K$35,9,FALSE)) -> 
AY96: =SUM(AY16:AZ95) -> 0 | BA96: =SUM(BA16:BB95) -> 0
F98: (11)人員基準の確認（訪問看護員） | X98: (12)人員基準の確認（登録看護職員） | AM98: （勤務形態の記号）
G99: 勤務形態 | I99: 勤務時間数合計 | N99: 常勤換算の対象時間数 | T99: 常勤換算方法対象外の | Y99: 登録看護職員1人当たりの勤務時間数／週 | AM99: 記号 | AO99: 区分
I100: 当月合計 | K100: 週平均 | N100: 当月合計 | P100: 週平均 | T100: 常勤の従業者の人数 | Y100: 登録看護職員の人数 | AC100: C | AD100: =COUNTIFS($C$16:$D$95,"登録看護職員",$F$16:$G$95,"C") -> 0 | AG100: D | AH100: =COUNTIFS($C$16:$D$95,"登録看護職員",$F$16:$G$95,"D") -> 0 | AM100: A | AO100: 常勤で専従
G101: A | I101: =SUMIFS($AY$16:$AZ$95,$C$16:$D$95,"訪問看護員",$F$16:$G$95,"A") -> 0 | K101: =SUMIFS($BA$16:$BB$95,$C$16:$D$95,"訪問看護員",$F$16:$G$95,"A") -> 0 | N101: 0 | P101: 0 | T101: 0 | Y101: 勤務形態 | AA101: 勤務時間数合計 | AF101: 常勤換算の対象時間数 | AM101: B | AO101: 常勤で兼務
G102: B | I102: =SUMIFS($AY$16:$AZ$95,$C$16:$D$95,"訪問看護員",$F$16:$G$95,"B") -> 0 | K102: =SUMIFS($BA$16:$BB$95,$C$16:$D$95,"訪問看護員",$F$16:$G$95,"B") -> 0 | N102: 0 | P102: 0 | T102: 0 | AA102: 当月合計 | AC102: 週平均 | AF102: 当月合計 | AH102: 週平均 | AM102: C | AO102: 非常勤で専従
G103: C | I103: =SUMIFS($AY$16:$AZ$95,$C$16:$D$95,"訪問看護員",$F$16:$G$95,"C") -> 0 | K103: =SUMIFS($BA$16:$BB$95,$C$16:$D$95,"訪問看護員",$F$16:$G$95,"C") -> 0 | N103: 0 | P103: 0 | T103: - | Y103: C | AA103: =SUMIFS($AY$16:$AZ$95,$C$16:$D$95,"登録看護職員",$F$16:$G$95,"C") -> 0 | AC103: =SUMIFS($BA$16:$BB$95,$C$16:$D$95,"登録看護職員",$F$16:$G$95,"C") -> 0 | AF103: 0 | AH103: 0 | AM103: D | AO103: 非常勤で兼務
G104: D | I104: =SUMIFS($AY$16:$AZ$95,$C$16:$D$95,"訪問看護員",$F$16:$G$95,"D") -> 0 | K104: =SUMIFS($BA$16:$BB$95,$C$16:$D$95,"訪問看護員",$F$16:$G$95,"D") -> 0 | N104: 0 | P104: 0 | T104: - | Y104: D | AA104: =SUMIFS($AY$16:$AZ$95,$C$16:$D$95,"登録看護職員",$F$16:$G$95,"D") -> 0 | AC104: =SUMIFS($BA$16:$BB$95,$C$16:$D$95,"登録看護職員",$F$16:$G$95,"D") -> 0 | AF104: 0 | AH104: 0
G105: 合計 | I105: =SUM(I101:J104) -> 0 | K105: =SUM(K101:L104) -> 0 | N105: =SUM(N101:O104) -> 0 | P105: =SUM(P101:Q104) -> 0 | T105: =SUM(T101:U102) -> 0 | Y105: 合計 | AA105: =SUM(AA103:AB104) -> 0 | AC105: =SUM(AC103:AD104) -> 0 | AF105: =SUM(AF103:AG104) -> 0 | AH105: =SUM(AH103:AI104) -> 0
G107: ■ 常勤換算方法による人数 | M107: 基準： | N107: 週 | Y107: ■ 登録看護職員の常勤換算方法による人数
G108: 常勤換算の | L108: 常勤の従業者が | Y108: 常勤換算の | AD108: 常勤の従業者が
G109: =IF($N$107="週","対象時間数（週平均）","対象時間数（当月合計）") -> 対象時間数（週平均） | L109: =IF($N$107="週","週に勤務すべき時間数","当月に勤務すべき時間数") -> 週に勤務すべき時間数 | Q109: 常勤換算後の人数 | Y109: =IF($N$107="週","対象時間数（週平均）","対象時間数（当月合計）") -> 対象時間数（週平均） | AD109: =IF($N$107="週","週に勤務すべき時間数","当月に勤務すべき時間数") -> 週に勤務すべき時間数 | AI109: 常勤換算後の人数
G110: =IF($N$107="週",P105,N105) -> 0 | K110: ÷ | L110: =IF($N$107="週",$AX$5,$BB$5) -> 40 | P110: ＝ | Q110: =ROUNDDOWN(G110/L110,1) -> 0 | Y110: =IF($N$107="週",AH105,AF105) -> 0 | AC110: ÷ | AD110: =IF($N$107="週",$AX$5,$BB$5) -> 40 | AH110: ＝ | AI110: =ROUNDDOWN(Y110/AD110,1) -> 0
Q111: （小数点第2位以下切り捨て） | AI111: （小数点第2位以下切り捨て）
G112: ■ 看護職員（訪問看護）の常勤換算方法による人数
G113: 常勤換算方法対象外の
G114: 常勤の従業者の人数 | L114: 常勤換算方法による人数 | Q114: 合計 | AO114: (11)(12)の合計
G115: =T105 -> 0 | K115: ＋ | L115: =Q110 -> 0 | P115: ＝ | Q115: =ROUNDDOWN(G115+L115,1) -> 0 | AO115: =Q115+AI110 -> 0

Sheet シフト記号表（勤務時間帯）
B1: ≪要 提出≫
B2: ■シフト記号表（勤務時間帯） | E2: ※24時間表記 | I2: 休憩時間1時間は「1:00」、休憩時間45分は「00:45」と入力してください。
B3: （記号の意味） | C3: 記号 | E3: 始業時間 | G3: 終業時間 | I3: うち、休憩時間 | K3: 勤務時間
B4: 休：休暇 | C4: 休 | D4: ： | E4: - | F4: ～ | G4: - | H4: ( | I4: - | J4: ) | K4: -
B5: 出：出張 | C5: 出 | D5: ： | E5: - | F5: ～ | G5: - | H5: ( | I5: - | J5: ) | K5: -
B6: 研：研修 | C6: 研 | D6: ： | E6: - | F6: ～ | G6: - | H6: ( | I6: - | J6: ) | K6: -
C7: a | D7: ： | E7: 09:00:00 | F7: ～ | G7: 18:00:00 | H7: ( | I7: 01:00:00 | J7: ) | K7: =IF(OR(E7="",G7=""),"",(G7+IF(E7>G7,1,0)-E7-I7)*24) -> 8
C8: b | D8: ： | E8: 07:00:00 | F8: ～ | G8: 16:00:00 | H8: ( | I8: 01:00:00 | J8: ) | K8: =IF(OR(E8="",G8=""),"",(G8+IF(E8>G8,1,0)-E8-I8)*24) -> 8
C9: c | D9: ： | E9: 08:00:00 | F9: ～ | G9: 17:00:00 | H9: ( | I9: 01:00:00 | J9: ) | K9: 8
C10: d | D10: ： | E10: 08:00:00 | F10: ～ | G10: 12:00:00 | H10: ( | I10: 00:00:00 | J10: ) | K10: 4
C11: e | D11: ： | E11: 13:00:00 | F11: ～ | G11: 17:00:00 | H11: ( | I11: 00:00:00 | J11: ) | K11: 4
C12: f | D12: ： | E12: 10:00:00 | F12: ～ | G12: 14:00:00 | H12: ( | I12: 00:00:00 | J12: ) | K12: 4
C13: g | D13: ： | F13: ～ | H13: ( | J13: )
C14: h | D14: ： | F14: ～ | H14: ( | J14: )
C15: i | D15: ： | F15: ～ | H15: ( | J15: )
C16: j | D16: ： | F16: ～ | H16: ( | J16: )
C17: k | D17: ： | F17: ～ | H17: ( | J17: )
C18: l | D18: ： | F18: ～ | H18: ( | J18: )
C19: m | D19: ： | F19: ～ | H19: ( | J19: )
C20: n | D20: ： | F20: ～ | H20: ( | J20: )
C21: o | D21: ： | F21: ～ | H21: ( | J21: ) | K21: 1
C22: p | D22: ： | F22: ～ | H22: ( | J22: ) | K22: 2
C23: q | D23: ： | F23: ～ | H23: ( | J23: ) | K23: 3
C24: r | D24: ： | F24: ～ | H24: ( | J24: ) | K24: 4
C25: s | D25: ： | F25: ～ | H25: ( | J25: ) | K25: 5
C26: t | D26: ： | F26: ～ | H26: ( | J26: ) | K26: 6
C27: u | D27: ： | F27: ～ | H27: ( | J27: ) | K27: 7
C28: v | D28: ： | F28: ～ | H28: ( | J28: ) | K28: 8
C29: w | D29: ： | F29: ～ | H29: ( | J29: )
C30: x | D30: ： | F30: ～ | H30: ( | J30: )
C31: y | D31: ： | F31: ～ | H31: ( | J31: )
C32: z | D32: ： | F32: ～ | H32: ( | J32: ) | K32: =IF(OR(E32="",G32=""),"",(G32+IF(E32>G32,1,0)-E32-I32)*24) -> 
C33: 早退(1) | D33: ： | F33: ～ | H33: ( | J33: ) | M33: 実績で早退者がいた場合に使用
C34: 早退(2) | D34: ： | F34: ～ | H34: ( | J34: ) | M34: 実績で早退者がいた場合に使用
C35: az | D35: ： | F35: ～ | H35: ( | J35: )

Sheet 【記載例】定期巡回・随時対応型
C1: （参考様式1-7） | H1: 従業者の勤務の体制及び勤務形態一覧表 | AO1: サービス種別 | AP1: ( | AQ1: 定期巡回・随時対応型訪問介護看護（一体型） | BF1: ）
X2: 令和 | Y2: 2 | AA2: ( | AB2: =IF(Y2=0,"",YEAR(DATE(2018+Y2,1,1))) -> 2020 | AD2: ) | AE2: 年 | AF2: 4 | AH2: 月 | AO2: 事業所名 | AP2: ( | BF2: ）
BC3: (1) | BD3: 計画
AH5: (2)事業所における常勤の従業者が勤務すべき時間数 | AT5: 8 | AV5: 時間/日 | AX5: 40 | AZ5: 時間/週 | BB5: 168 | BD5: 時間/月
AY7: 当月の日数 | BB7: =DAY(EOMONTH(DATE(AB2,AF2,1),0)) -> 30 | BD7: 日
B11: No | C11: (3) 職種 | F11: (4) 勤務 形態 | H11: (5) 資格 | M11: (6) 氏 名 | T11: (7) 勤 務 時 間 数 | AY11: =IF(BD3="計画","(8)1～4週目の勤務時間数合計","(8)1か月の勤務時間数合計") -> (8)1～4週目の勤務時間数合計 | BA11: (9) 週平均 勤務時間数 | BC11: (10) 兼務状況 （兼務先／兼務する職務の内容 ／兼務先の勤務時間数）
T12: 1週目 | AA12: 2週目 | AH12: 3週目 | AO12: 4週目 | AV12: 5週目
T13: =DAY(DATE($AB$2,$AF$2,1)) -> 1 | U13: =DAY(DATE($AB$2,$AF$2,2)) -> 2 | V13: =DAY(DATE($AB$2,$AF$2,3)) -> 3 | W13: =DAY(DATE($AB$2,$AF$2,4)) -> 4 | X13: =DAY(DATE($AB$2,$AF$2,5)) -> 5 | Y13: =DAY(DATE($AB$2,$AF$2,6)) -> 6 | Z13: =DAY(DATE($AB$2,$AF$2,7)) -> 7 | AA13: =DAY(DATE($AB$2,$AF$2,8)) -> 8 | AB13: =DAY(DATE($AB$2,$AF$2,9)) -> 9 | AC13: =DAY(DATE($AB$2,$AF$2,10)) -> 10 | AD13: =DAY(DATE($AB$2,$AF$2,11)) -> 11 | AE13: =DAY(DATE($AB$2,$AF$2,12)) -> 12 | AF13: =DAY(DATE($AB$2,$AF$2,13)) -> 13 | AG13: =DAY(DATE($AB$2,$AF$2,14)) -> 14 | AH13: =DAY(DATE($AB$2,$AF$2,15)) -> 15 | AI13: =DAY(DATE($AB$2,$AF$2,16)) -> 16 | AJ13: =DAY(DATE($AB$2,$AF$2,17)) -> 17 | AK13: =DAY(DATE($AB$2,$AF$2,18)) -> 18 | AL13: =DAY(DATE($AB$2,$AF$2,19)) -> 19 | AM13: =DAY(DATE($AB$2,$AF$2,20)) -> 20 | AN13: =DAY(DATE($AB$2,$AF$2,21)) -> 21 | AO13: =DAY(DATE($AB$2,$AF$2,22)) -> 22 | AP13: =DAY(DATE($AB$2,$AF$2,23)) -> 23 | AQ13: =DAY(DATE($AB$2,$AF$2,24)) -> 24 | AR13: =DAY(DATE($AB$2,$AF$2,25)) -> 25 | AS13: =DAY(DATE($AB$2,$AF$2,26)) -> 26 | AT13: =DAY(DATE($AB$2,$AF$2,27)) -> 27 | AU13: =DAY(DATE($AB$2,$AF$2,28)) -> 28 | AV13: =IF(BD3="実績",IF(DAY(DATE($AB$2,$AF$2,29))=29,29,""),"") ->  | AW13: =IF(BD3="実績",IF(DAY(DATE($AB$2,$AF$2,30))=30,30,""),"") ->  | AX13: =IF(BD3="実績",IF(DAY(DATE($AB$2,$AF$2,31))=31,31,""),"") -> 
T14: =WEEKDAY(DATE($AB$2,$AF$2,1)) -> 4 | U14: =WEEKDAY(DATE($AB$2,$AF$2,2)) -> 5 | V14: =WEEKDAY(DATE($AB$2,$AF$2,3)) -> 6 | W14: =WEEKDAY(DATE($AB$2,$AF$2,4)) -> 7 | X14: =WEEKDAY(DATE($AB$2,$AF$2,5)) -> 1 | Y14: =WEEKDAY(DATE($AB$2,$AF$2,6)) -> 2 | Z14: =WEEKDAY(DATE($AB$2,$AF$2,7)) -> 3 | AA14: =WEEKDAY(DATE($AB$2,$AF$2,8)) -> 4 | AB14: =WEEKDAY(DATE($AB$2,$AF$2,9)) -> 5 | AC14: =WEEKDAY(DATE($AB$2,$AF$2,10)) -> 6 | AD14: =WEEKDAY(DATE($AB$2,$AF$2,11)) -> 7 | AE14: =WEEKDAY(DATE($AB$2,$AF$2,12)) -> 1 | AF14: =WEEKDAY(DATE($AB$2,$AF$2,13)) -> 2 | AG14: =WEEKDAY(DATE($AB$2,$AF$2,14)) -> 3 | AH14: =WEEKDAY(DATE($AB$2,$AF$2,15)) -> 4 | AI14: =WEEKDAY(DATE($AB$2,$AF$2,16)) -> 5 | AJ14: =WEEKDAY(DATE($AB$2,$AF$2,17)) -> 6 | AK14: =WEEKDAY(DATE($AB$2,$AF$2,18)) -> 7 | AL14: =WEEKDAY(DATE($AB$2,$AF$2,19)) -> 1 | AM14: =WEEKDAY(DATE($AB$2,$AF$2,20)) -> 2 | AN14: =WEEKDAY(DATE($AB$2,$AF$2,21)) -> 3 | AO14: =WEEKDAY(DATE($AB$2,$AF$2,22)) -> 4 | AP14: =WEEKDAY(DATE($AB$2,$AF$2,23)) -> 5 | AQ14: =WEEKDAY(DATE($AB$2,$AF$2,24)) -> 6 | AR14: =WEEKDAY(DATE($AB$2,$AF$2,25)) -> 7 | AS14: =WEEKDAY(DATE($AB$2,$AF$2,26)) -> 1 | AT14: =WEEKDAY(DATE($AB$2,$AF$2,27)) -> 2 | AU14: =WEEKDAY(DATE($AB$2,$AF$2,28)) -> 3 | AV14: =IF(AV13=29,WEEKDAY(DATE($AB$2,$AF$2,29)),0) -> 0 | AW14: =IF(AW13=30,WEEKDAY(DATE($AB$2,$AF$2,30)),0) -> 0 | AX14: =IF(AX13=31,WEEKDAY(DATE($AB$2,$AF$2,31)),0) -> 0
T15: =IF(T14=1,"日",IF(T14=2,"月",IF(T14=3,"火",IF(T14=4,"水",IF(T14=5,"木",IF(T14=6,"金","土")))))) -> 水 | U15: =IF(U14=1,"日",IF(U14=2,"月",IF(U14=3,"火",IF(U14=4,"水",IF(U14=5,"木",IF(U14=6,"金","土")))))) -> 木 | V15: 金 | W15: 土 | X15: 日 | Y15: 月 | Z15: 火 | AA15: 水 | AB15: 木 | AC15: 金 | AD15: 土 | AE15: 日 | AF15: 月 | AG15: 火 | AH15: 水 | AI15: 木 | AJ15: 金 | AK15: 土 | AL15: 日 | AM15: 月 | AN15: 火 | AO15: 水 | AP15: 木 | AQ15: 金 | AR15: 土 | AS15: 日 | AT15: 月 | AU15: 火 | AV15: =IF(AV14=1,"日",IF(AV14=2,"月",IF(AV14=3,"火",IF(AV14=4,"水",IF(AV14=5,"木",IF(AV14=6,"金",IF(AV14=0,"","土"))))))) ->  | AW15: =IF(AW14=1,"日",IF(AW14=2,"月",IF(AW14=3,"火",IF(AW14=4,"水",IF(AW14=5,"木",IF(AW14=6,"金",IF(AW14=0,"","土"))))))) ->  | AX15: =IF(AX14=1,"日",IF(AX14=2,"月",IF(AX14=3,"火",IF(AX14=4,"水",IF(AX14=5,"木",IF(AX14=6,"金",IF(AX14=0,"","土"))))))) -> 
B16: 1 | C16: 管理者 | F16: A | H16: ー | M16: 厚労 太郎 | Q16: シフト記号 | T16: a | U16: a | V16: a | W16: 休 | X16: 休 | Y16: a | Z16: a | AA16: a | AB16: a | AC16: a | AD16: 休 | AE16: 休 | AF16: a | AG16: a | AH16: a | AI16: a | AJ16: a | AK16: 休 | AL16: 休 | AM16: a | AN16: a | AO16: a | AP16: a | AQ16: a | AR16: 休 | AS16: 休 | AT16: a | AU16: a | AY16: =IF($BD$3="計画",SUM(T17:AU17),IF($BD$3="実績",SUM(T17:AX17),"")) -> 160 | BA16: =IF($BD$3="計画",AY16/4,IF($BD$3="実績",AY16/($BB$7/7),"")) -> 40
Q17: 勤務時間数 | T17: =IF(T16="","",VLOOKUP(T16,'【記載例】シフト記号表（勤務時間帯）'!$C$4:$K$35,9,FALSE)) -> 8 | U17: =IF(U16="","",VLOOKUP(U16,'【記載例】シフト記号表（勤務時間帯）'!$C$4:$K$35,9,FALSE)) -> 8 | V17: =IF(V16="","",VLOOKUP(V16,'【記載例】シフト記号表（勤務時間帯）'!$C$4:$K$35,9,FALSE)) -> 8 | W17: =IF(W16="","",VLOOKUP(W16,'【記載例】シフト記号表（勤務時間帯）'!$C$4:$K$35,9,FALSE)) -> - | X17: =IF(X16="","",VLOOKUP(X16,'【記載例】シフト記号表（勤務時間帯）'!$C$4:$K$35,9,FALSE)) -> - | Y17: =IF(Y16="","",VLOOKUP(Y16,'【記載例】シフト記号表（勤務時間帯）'!$C$4:$K$35,9,FALSE)) -> 8 | Z17: =IF(Z16="","",VLOOKUP(Z16,'【記載例】シフト記号表（勤務時間帯）'!$C$4:$K$35,9,FALSE)) -> 8 | AA17: =IF(AA16="","",VLOOKUP(AA16,'【記載例】シフト記号表（勤務時間帯）'!$C$4:$K$35,9,FALSE)) -> 8 | AB17: =IF(AB16="","",VLOOKUP(AB16,'【記載例】シフト記号表（勤務時間帯）'!$C$4:$K$35,9,FALSE)) -> 8 | AC17: =IF(AC16="","",VLOOKUP(AC16,'【記載例】シフト記号表（勤務時間帯）'!$C$4:$K$35,9,FALSE)) -> 8 | AD17: =IF(AD16="","",VLOOKUP(AD16,'【記載例】シフト記号表（勤務時間帯）'!$C$4:$K$35,9,FALSE)) -> - | AE17: =IF(AE16="","",VLOOKUP(AE16,'【記載例】シフト記号表（勤務時間帯）'!$C$4:$K$35,9,FALSE)) -> - | AF17: =IF(AF16="","",VLOOKUP(AF16,'【記載例】シフト記号表（勤務時間帯）'!$C$4:$K$35,9,FALSE)) -> 8 | AG17: =IF(AG16="","",VLOOKUP(AG16,'【記載例】シフト記号表（勤務時間帯）'!$C$4:$K$35,9,FALSE)) -> 8 | AH17: =IF(AH16="","",VLOOKUP(AH16,'【記載例】シフト記号表（勤務時間帯）'!$C$4:$K$35,9,FALSE)) -> 8 | AI17: =IF(AI16="","",VLOOKUP(AI16,'【記載例】シフト記号表（勤務時間帯）'!$C$4:$K$35,9,FALSE)) -> 8 | AJ17: =IF(AJ16="","",VLOOKUP(AJ16,'【記載例】シフト記号表（勤務時間帯）'!$C$4:$K$35,9,FALSE)) -> 8 | AK17: =IF(AK16="","",VLOOKUP(AK16,'【記載例】シフト記号表（勤務時間帯）'!$C$4:$K$35,9,FALSE)) -> - | AL17: =IF(AL16="","",VLOOKUP(AL16,'【記載例】シフト記号表（勤務時間帯）'!$C$4:$K$35,9,FALSE)) -> - | AM17: =IF(AM16="","",VLOOKUP(AM16,'【記載例】シフト記号表（勤務時間帯）'!$C$4:$K$35,9,FALSE)) -> 8 | AN17: =IF(AN16="","",VLOOKUP(AN16,'【記載例】シフト記号表（勤務時間帯）'!$C$4:$K$35,9,FALSE)) -> 8 | AO17: =IF(AO16="","",VLOOKUP(AO16,'【記載例】シフト記号表（勤務時間帯）'!$C$4:$K$35,9,FALSE)) -> 8 | AP17: =IF(AP16="","",VLOOKUP(AP16,'【記載例】シフト記号表（勤務時間帯）'!$C$4:$K$35,9,FALSE)) -> 8 | AQ17: =IF(AQ16="","",VLOOKUP(AQ16,'【記載例】シフト記号表（勤務時間帯）'!$C$4:$K$35,9,FALSE)) -> 8 | AR17: =IF(AR16="","",VLOOKUP(AR16,'【記載例】シフト記号表（勤務時間帯）'!$C$4:$K$35,9,FALSE)) -> - | AS17: =IF(AS16="","",VLOOKUP(AS16,'【記載例】シフト記号表（勤務時間帯）'!$C$4:$K$35,9,FALSE)) -> - | AT17: =IF(AT16="","",VLOOKUP(AT16,'【記載例】シフト記号表（勤務時間帯）'!$C$4:$K$35,9,FALSE)) -> 8 | AU17: =IF(AU16="","",VLOOKUP(AU16,'【記載例】シフト記号表（勤務時間帯）'!$C$4:$K$35,9,FALSE)) -> 8 | AV17: =IF(AV16="","",VLOOKUP(AV16,'【記載例】シフト記号表（勤務時間帯）'!$C$4:$K$35,9,FALSE)) ->  | AW17: =IF(AW16="","",VLOOKUP(AW16,'【記載例】シフト記号表（勤務時間帯）'!$C$4:$K$35,9,FALSE)) ->  | AX17: =IF(AX16="","",VLOOKUP(AX16,'【記載例】シフト記号表（勤務時間帯）'!$C$4:$K$35,9,FALSE)) -> 
B18: =B16+1 -> 2 | C18: 計画作成責任者 | F18: B | H18: 介護福祉士 | M18: ○○ A郎 | Q18: シフト記号 | T18: 休 | U18: r | V18: r | W18: r | X18: 休 | Y18: r | Z18: r | AA18: 休 | AB18: r | AC18: r | AD18: r | AE18: 休 | AF18: r | AG18: r | AH18: 休 | AI18: r | AJ18: r | AK18: r | AL18: 休 | AM18: r | AN18: r | AO18: 休 | AP18: r | AQ18: r | AR18: r | AS18: 休 | AT18: r | AU18: r | AY18: =IF($BD$3="計画",SUM(T19:AU19),IF($BD$3="実績",SUM(T19:AX19),"")) -> 80 | BA18: =IF($BD$3="計画",AY18/4,IF($BD$3="実績",AY18/($BB$7/7),"")) -> 20 | BC18: 訪問介護員_随時
Q19: 勤務時間数 | T19: =IF(T18="","",VLOOKUP(T18,'【記載例】シフト記号表（勤務時間帯）'!$C$4:$K$35,9,FALSE)) -> - | U19: =IF(U18="","",VLOOKUP(U18,'【記載例】シフト記号表（勤務時間帯）'!$C$4:$K$35,9,FALSE)) -> 4 | V19: =IF(V18="","",VLOOKUP(V18,'【記載例】シフト記号表（勤務時間帯）'!$C$4:$K$35,9,FALSE)) -> 4 | W19: =IF(W18="","",VLOOKUP(W18,'【記載例】シフト記号表（勤務時間帯）'!$C$4:$K$35,9,FALSE)) -> 4 | X19: =IF(X18="","",VLOOKUP(X18,'【記載例】シフト記号表（勤務時間帯）'!$C$4:$K$35,9,FALSE)) -> - | Y19: =IF(Y18="","",VLOOKUP(Y18,'【記載例】シフト記号表（勤務時間帯）'!$C$4:$K$35,9,FALSE)) -> 4 | Z19: =IF(Z18="","",VLOOKUP(Z18,'【記載例】シフト記号表（勤務時間帯）'!$C$4:$K$35,9,FALSE)) -> 4 | AA19: =IF(AA18="","",VLOOKUP(AA18,'【記載例】シフト記号表（勤務時間帯）'!$C$4:$K$35,9,FALSE)) -> - | AB19: =IF(AB18="","",VLOOKUP(AB18,'【記載例】シフト記号表（勤務時間帯）'!$C$4:$K$35,9,FALSE)) -> 4 | AC19: =IF(AC18="","",VLOOKUP(AC18,'【記載例】シフト記号表（勤務時間帯）'!$C$4:$K$35,9,FALSE)) -> 4 | AD19: =IF(AD18="","",VLOOKUP(AD18,'【記載例】シフト記号表（勤務時間帯）'!$C$4:$K$35,9,FALSE)) -> 4 | AE19: =IF(AE18="","",VLOOKUP(AE18,'【記載例】シフト記号表（勤務時間帯）'!$C$4:$K$35,9,FALSE)) -> - | AF19: =IF(AF18="","",VLOOKUP(AF18,'【記載例】シフト記号表（勤務時間帯）'!$C$4:$K$35,9,FALSE)) -> 4 | AG19: =IF(AG18="","",VLOOKUP(AG18,'【記載例】シフト記号表（勤務時間帯）'!$C$4:$K$35,9,FALSE)) -> 4 | AH19: =IF(AH18="","",VLOOKUP(AH18,'【記載例】シフト記号表（勤務時間帯）'!$C$4:$K$35,9,FALSE)) -> - | AI19: =IF(AI18="","",VLOOKUP(AI18,'【記載例】シフト記号表（勤務時間帯）'!$C$4:$K$35,9,FALSE)) -> 4 | AJ19: =IF(AJ18="","",VLOOKUP(AJ18,'【記載例】シフト記号表（勤務時間帯）'!$C$4:$K$35,9,FALSE)) -> 4 | AK19: =IF(AK18="","",VLOOKUP(AK18,'【記載例】シフト記号表（勤務時間帯）'!$C$4:$K$35,9,FALSE)) -> 4 | AL19: =IF(AL18="","",VLOOKUP(AL18,'【記載例】シフト記号表（勤務時間帯）'!$C$4:$K$35,9,FALSE)) -> - | AM19: =IF(AM18="","",VLOOKUP(AM18,'【記載例】シフト記号表（勤務時間帯）'!$C$4:$K$35,9,FALSE)) -> 4 | AN19: =IF(AN18="","",VLOOKUP(AN18,'【記載例】シフト記号表（勤務時間帯）'!$C$4:$K$35,9,FALSE)) -> 4 | AO19: =IF(AO18="","",VLOOKUP(AO18,'【記載例】シフト記号表（勤務時間帯）'!$C$4:$K$35,9,FALSE)) -> - | AP19: =IF(AP18="","",VLOOKUP(AP18,'【記載例】シフト記号表（勤務時間帯）'!$C$4:$K$35,9,FALSE)) -> 4 | AQ19: =IF(AQ18="","",VLOOKUP(AQ18,'【記載例】シフト記号表（勤務時間帯）'!$C$4:$K$35,9,FALSE)) -> 4 | AR19: =IF(AR18="","",VLOOKUP(AR18,'【記載例】シフト記号表（勤務時間帯）'!$C$4:$K$35,9,FALSE)) -> 4 | AS19: =IF(AS18="","",VLOOKUP(AS18,'【記載例】シフト記号表（勤務時間帯）'!$C$4:$K$35,9,FALSE)) -> - | AT19: =IF(AT18="","",VLOOKUP(AT18,'【記載例】シフト記号表（勤務時間帯）'!$C$4:$K$35,9,FALSE)) -> 4 | AU19: =IF(AU18="","",VLOOKUP(AU18,'【記載例】シフト記号表（勤務時間帯）'!$C$4:$K$35,9,FALSE)) -> 4 | AV19: =IF(AV18="","",VLOOKUP(AV18,'【記載例】シフト記号表（勤務時間帯）'!$C$4:$K$35,9,FALSE)) ->  | AW19: =IF(AW18="","",VLOOKUP(AW18,'【記載例】シフト記号表（勤務時間帯）'!$C$4:$K$35,9,FALSE)) ->  | AX19: =IF(AX18="","",VLOOKUP(AX18,'【記載例】シフト記号表（勤務時間帯）'!$C$4:$K$35,9,FALSE)) -> 
B20: =B18+1 -> 3 | C20: オペレーター | F20: A | H20: 介護福祉士 | M20: ○○ B子 | Q20: シフト記号 | T20: b | U20: b | V20: 休 | W20: 休 | X20: b | Y20: b | Z20: b | AA20: b | AB20: b | AC20: 休 | AD20: 休 | AE20: b | AF20: b | AG20: b | AH20: b | AI20: b | AJ20: 休 | AK20: 休 | AL20: b | AM20: b | AN20: b | AO20: b | AP20: b | AQ20: 休 | AR20: 休 | AS20: b | AT20: b | AU20: b | AY20: =IF($BD$3="計画",SUM(T21:AU21),IF($BD$3="実績",SUM(T21:AX21),"")) -> 160 | BA20: =IF($BD$3="計画",AY20/4,IF($BD$3="実績",AY20/($BB$7/7),"")) -> 40
Q21: 勤務時間数 | T21: =IF(T20="","",VLOOKUP(T20,'【記載例】シフト記号表（勤務時間帯）'!$C$4:$K$35,9,FALSE)) -> 8 | U21: =IF(U20="","",VLOOKUP(U20,'【記載例】シフト記号表（勤務時間帯）'!$C$4:$K$35,9,FALSE)) -> 8 | V21: =IF(V20="","",VLOOKUP(V20,'【記載例】シフト記号表（勤務時間帯）'!$C$4:$K$35,9,FALSE)) -> - | W21: =IF(W20="","",VLOOKUP(W20,'【記載例】シフト記号表（勤務時間帯）'!$C$4:$K$35,9,FALSE)) -> - | X21: =IF(X20="","",VLOOKUP(X20,'【記載例】シフト記号表（勤務時間帯）'!$C$4:$K$35,9,FALSE)) -> 8 | Y21: =IF(Y20="","",VLOOKUP(Y20,'【記載例】シフト記号表（勤務時間帯）'!$C$4:$K$35,9,FALSE)) -> 8 | Z21: =IF(Z20="","",VLOOKUP(Z20,'【記載例】シフト記号表（勤務時間帯）'!$C$4:$K$35,9,FALSE)) -> 8 | AA21: =IF(AA20="","",VLOOKUP(AA20,'【記載例】シフト記号表（勤務時間帯）'!$C$4:$K$35,9,FALSE)) -> 8 | AB21: =IF(AB20="","",VLOOKUP(AB20,'【記載例】シフト記号表（勤務時間帯）'!$C$4:$K$35,9,FALSE)) -> 8 | AC21: =IF(AC20="","",VLOOKUP(AC20,'【記載例】シフト記号表（勤務時間帯）'!$C$4:$K$35,9,FALSE)) -> - | AD21: =IF(AD20="","",VLOOKUP(AD20,'【記載例】シフト記号表（勤務時間帯）'!$C$4:$K$35,9,FALSE)) -> - | AE21: =IF(AE20="","",VLOOKUP(AE20,'【記載例】シフト記号表（勤務時間帯）'!$C$4:$K$35,9,FALSE)) -> 8 | AF21: =IF(AF20="","",VLOOKUP(AF20,'【記載例】シフト記号表（勤務時間帯）'!$C$4:$K$35,9,FALSE)) -> 8 | AG21: =IF(AG20="","",VLOOKUP(AG20,'【記載例】シフト記号表（勤務時間帯）'!$C$4:$K$35,9,FALSE)) -> 8 | AH21: =IF(AH20="","",VLOOKUP(AH20,'【記載例】シフト記号表（勤務時間帯）'!$C$4:$K$35,9,FALSE)) -> 8 | AI21: =IF(AI20="","",VLOOKUP(AI20,'【記載例】シフト記号表（勤務時間帯）'!$C$4:$K$35,9,FALSE)) -> 8 | AJ21: =IF(AJ20="","",VLOOKUP(AJ20,'【記載例】シフト記号表（勤務時間帯）'!$C$4:$K$35,9,FALSE)) -> - | AK21: =IF(AK20="","",VLOOKUP(AK20,'【記載例】シフト記号表（勤務時間帯）'!$C$4:$K$35,9,FALSE)) -> - | AL21: =IF(AL20="","",VLOOKUP(AL20,'【記載例】シフト記号表（勤務時間帯）'!$C$4:$K$35,9,FALSE)) -> 8 | AM21: =IF(AM20="","",VLOOKUP(AM20,'【記載例】シフト記号表（勤務時間帯）'!$C$4:$K$35,9,FALSE)) -> 8 | AN21: =IF(AN20="","",VLOOKUP(AN20,'【記載例】シフト記号表（勤務時間帯）'!$C$4:$K$35,9,FALSE)) -> 8 | AO21: =IF(AO20="","",VLOOKUP(AO20,'【記載例】シフト記号表（勤務時間帯）'!$C$4:$K$35,9,FALSE)) -> 8 | AP21: =IF(AP20="","",VLOOKUP(AP20,'【記載例】シフト記号表（勤務時間帯）'!$C$4:$K$35,9,FALSE)) -> 8 | AQ21: =IF(AQ20="","",VLOOKUP(AQ20,'【記載例】シフト記号表（勤務時間帯）'!$C$4:$K$35,9,FALSE)) -> - | AR21: =IF(AR20="","",VLOOKUP(AR20,'【記載例】シフト記号表（勤務時間帯）'!$C$4:$K$35,9,FALSE)) -> - | AS21: =IF(AS20="","",VLOOKUP(AS20,'【記載例】シフト記号表（勤務時間帯）'!$C$4:$K$35,9,FALSE)) -> 8 | AT21: =IF(AT20="","",VLOOKUP(AT20,'【記載例】シフト記号表（勤務時間帯）'!$C$4:$K$35,9,FALSE)) -> 8 | AU21: =IF(AU20="","",VLOOKUP(AU20,'【記載例】シフト記号表（勤務時間帯）'!$C$4:$K$35,9,FALSE)) -> 8 | AV21: =IF(AV20="","",VLOOKUP(AV20,'【記載例】シフト記号表（勤務時間帯）'!$C$4:$K$35,9,FALSE)) ->  | AW21: =IF(AW20="","",VLOOKUP(AW20,'【記載例】シフト記号表（勤務時間帯）'!$C$4:$K$35,9,FALSE)) ->  | AX21: =IF(AX20="","",VLOOKUP(AX20,'【記載例】シフト記号表（勤務時間帯）'!$C$4:$K$35,9,FALSE)) -> 
B22: =B20+1 -> 4 | C22: オペレーター | F22: A | H22: ー | M22: ○○ C子 | Q22: シフト記号 | T22: c | U22: c | V22: 休 | W22: 休 | X22: c | Y22: c | Z22: c | AA22: c | AB22: c | AC22: 休 | AD22: 休 | AE22: c | AF22: c | AG22: c | AH22: c | AI22: c | AJ22: 休 | AK22: 休 | AL22: c | AM22: c | AN22: c | AO22: c | AP22: c | AQ22: 休 | AR22: 休 | AS22: c | AT22: c | AU22: c | AY22: =IF($BD$3="計画",SUM(T23:AU23),IF($BD$3="実績",SUM(T23:AX23),"")) -> 160 | BA22: =IF($BD$3="計画",AY22/4,IF($BD$3="実績",AY22/($BB$7/7),"")) -> 40
Q23: 勤務時間数 | T23: =IF(T22="","",VLOOKUP(T22,'【記載例】シフト記号表（勤務時間帯）'!$C$4:$K$35,9,FALSE)) -> 8 | U23: =IF(U22="","",VLOOKUP(U22,'【記載例】シフト記号表（勤務時間帯）'!$C$4:$K$35,9,FALSE)) -> 8 | V23: =IF(V22="","",VLOOKUP(V22,'【記載例】シフト記号表（勤務時間帯）'!$C$4:$K$35,9,FALSE)) -> - | W23: =IF(W22="","",VLOOKUP(W22,'【記載例】シフト記号表（勤務時間帯）'!$C$4:$K$35,9,FALSE)) -> - | X23: =IF(X22="","",VLOOKUP(X22,'【記載例】シフト記号表（勤務時間帯）'!$C$4:$K$35,9,FALSE)) -> 8 | Y23: =IF(Y22="","",VLOOKUP(Y22,'【記載例】シフト記号表（勤務時間帯）'!$C$4:$K$35,9,FALSE)) -> 8 | Z23: =IF(Z22="","",VLOOKUP(Z22,'【記載例】シフト記号表（勤務時間帯）'!$C$4:$K$35,9,FALSE)) -> 8 | AA23: =IF(AA22="","",VLOOKUP(AA22,'【記載例】シフト記号表（勤務時間帯）'!$C$4:$K$35,9,FALSE)) -> 8 | AB23: =IF(AB22="","",VLOOKUP(AB22,'【記載例】シフト記号表（勤務時間帯）'!$C$4:$K$35,9,FALSE)) -> 8 | AC23: =IF(AC22="","",VLOOKUP(AC22,'【記載例】シフト記号表（勤務時間帯）'!$C$4:$K$35,9,FALSE)) -> - | AD23: =IF(AD22="","",VLOOKUP(AD22,'【記載例】シフト記号表（勤務時間帯）'!$C$4:$K$35,9,FALSE)) -> - | AE23: =IF(AE22="","",VLOOKUP(AE22,'【記載例】シフト記号表（勤務時間帯）'!$C$4:$K$35,9,FALSE)) -> 8 | AF23: =IF(AF22="","",VLOOKUP(AF22,'【記載例】シフト記号表（勤務時間帯）'!$C$4:$K$35,9,FALSE)) -> 8 | AG23: =IF(AG22="","",VLOOKUP(AG22,'【記載例】シフト記号表（勤務時間帯）'!$C$4:$K$35,9,FALSE)) -> 8 | AH23: =IF(AH22="","",VLOOKUP(AH22,'【記載例】シフト記号表（勤務時間帯）'!$C$4:$K$35,9,FALSE)) -> 8 | AI23: =IF(AI22="","",VLOOKUP(AI22,'【記載例】シフト記号表（勤務時間帯）'!$C$4:$K$35,9,FALSE)) -> 8 | AJ23: =IF(AJ22="","",VLOOKUP(AJ22,'【記載例】シフト記号表（勤務時間帯）'!$C$4:$K$35,9,FALSE)) -> - | AK23: =IF(AK22="","",VLOOKUP(AK22,'【記載例】シフト記号表（勤務時間帯）'!$C$4:$K$35,9,FALSE)) -> - | AL23: =IF(AL22="","",VLOOKUP(AL22,'【記載例】シフト記号表（勤務時間帯）'!$C$4:$K$35,9,FALSE)) -> 8 | AM23: =IF(AM22="","",VLOOKUP(AM22,'【記載例】シフト記号表（勤務時間帯）'!$C$4:$K$35,9,FALSE)) -> 8 | AN23: =IF(AN22="","",VLOOKUP(AN22,'【記載例】シフト記号表（勤務時間帯）'!$C$4:$K$35,9,FALSE)) -> 8 | AO23: =IF(AO22="","",VLOOKUP(AO22,'【記載例】シフト記号表（勤務時間帯）'!$C$4:$K$35,9,FALSE)) -> 8 | AP23: =IF(AP22="","",VLOOKUP(AP22,'【記載例】シフト記号表（勤務時間帯）'!$C$4:$K$35,9,FALSE)) -> 8 | AQ23: =IF(AQ22="","",VLOOKUP(AQ22,'【記載例】シフト記号表（勤務時間帯）'!$C$4:$K$35,9,FALSE)) -> - | AR23: =IF(AR22="","",VLOOKUP(AR22,'【記載例】シフト記号表（勤務時間帯）'!$C$4:$K$35,9,FALSE)) -> - | AS23: =IF(AS22="","",VLOOKUP(AS22,'【記載例】シフト記号表（勤務時間帯）'!$C$4:$K$35,9,FALSE)) -> 8 | AT23: =IF(AT22="","",VLOOKUP(AT22,'【記載例】シフト記号表（勤務時間帯）'!$C$4:$K$35,9,FALSE)) -> 8 | AU23: =IF(AU22="","",VLOOKUP(AU22,'【記載例】シフト記号表（勤務時間帯）'!$C$4:$K$35,9,FALSE)) -> 8 | AV23: =IF(AV22="","",VLOOKUP(AV22,'【記載例】シフト記号表（勤務時間帯）'!$C$4:$K$35,9,FALSE)) ->  | AW23: =IF(AW22="","",VLOOKUP(AW22,'【記載例】シフト記号表（勤務時間帯）'!$C$4:$K$35,9,FALSE)) ->  | AX23: =IF(AX22="","",VLOOKUP(AX22,'【記載例】シフト記号表（勤務時間帯）'!$C$4:$K$35,9,FALSE)) -> 
B24: =B22+1 -> 5 | C24: オペレーター | F24: A | H24: ー | M24: ○○ D子 | Q24: シフト記号 | T24: d | U24: d | V24: 休 | W24: 休 | X24: d | Y24: d | Z24: d | AA24: d | AB24: d | AC24: 休 | AD24: 休 | AE24: d | AF24: d | AG24: d | AH24: d | AI24: d | AJ24: 休 | AK24: 休 | AL24: d | AM24: d | AN24: d | AO24: d | AP24: d | AQ24: 休 | AR24: 休 | AS24: d | AT24: d | AU24: d | AY24: =IF($BD$3="計画",SUM(T25:AU25),IF($BD$3="実績",SUM(T25:AX25),"")) -> 160 | BA24: =IF($BD$3="計画",AY24/4,IF($BD$3="実績",AY24/($BB$7/7),"")) -> 40
Q25: 勤務時間数 | T25: =IF(T24="","",VLOOKUP(T24,'【記載例】シフト記号表（勤務時間帯）'!$C$4:$K$35,9,FALSE)) -> 8 | U25: =IF(U24="","",VLOOKUP(U24,'【記載例】シフト記号表（勤務時間帯）'!$C$4:$K$35,9,FALSE)) -> 8 | V25: =IF(V24="","",VLOOKUP(V24,'【記載例】シフト記号表（勤務時間帯）'!$C$4:$K$35,9,FALSE)) -> - | W25: =IF(W24="","",VLOOKUP(W24,'【記載例】シフト記号表（勤務時間帯）'!$C$4:$K$35,9,FALSE)) -> - | X25: =IF(X24="","",VLOOKUP(X24,'【記載例】シフト記号表（勤務時間帯）'!$C$4:$K$35,9,FALSE)) -> 8 | Y25: =IF(Y24="","",VLOOKUP(Y24,'【記載例】シフト記号表（勤務時間帯）'!$C$4:$K$35,9,FALSE)) -> 8 | Z25: =IF(Z24="","",VLOOKUP(Z24,'【記載例】シフト記号表（勤務時間帯）'!$C$4:$K$35,9,FALSE)) -> 8 | AA25: =IF(AA24="","",VLOOKUP(AA24,'【記載例】シフト記号表（勤務時間帯）'!$C$4:$K$35,9,FALSE)) -> 8 | AB25: =IF(AB24="","",VLOOKUP(AB24,'【記載例】シフト記号表（勤務時間帯）'!$C$4:$K$35,9,FALSE)) -> 8 | AC25: =IF(AC24="","",VLOOKUP(AC24,'【記載例】シフト記号表（勤務時間帯）'!$C$4:$K$35,9,FALSE)) -> - | AD25: =IF(AD24="","",VLOOKUP(AD24,'【記載例】シフト記号表（勤務時間帯）'!$C$4:$K$35,9,FALSE)) -> - | AE25: =IF(AE24="","",VLOOKUP(AE24,'【記載例】シフト記号表（勤務時間帯）'!$C$4:$K$35,9,FALSE)) -> 8 | AF25: =IF(AF24="","",VLOOKUP(AF24,'【記載例】シフト記号表（勤務時間帯）'!$C$4:$K$35,9,FALSE)) -> 8 | AG25: =IF(AG24="","",VLOOKUP(AG24,'【記載例】シフト記号表（勤務時間帯）'!$C$4:$K$35,9,FALSE)) -> 8 | AH25: =IF(AH24="","",VLOOKUP(AH24,'【記載例】シフト記号表（勤務時間帯）'!$C$4:$K$35,9,FALSE)) -> 8 | AI25: =IF(AI24="","",VLOOKUP(AI24,'【記載例】シフト記号表（勤務時間帯）'!$C$4:$K$35,9,FALSE)) -> 8 | AJ25: =IF(AJ24="","",VLOOKUP(AJ24,'【記載例】シフト記号表（勤務時間帯）'!$C$4:$K$35,9,FALSE)) -> - | AK25: =IF(AK24="","",VLOOKUP(AK24,'【記載例】シフト記号表（勤務時間帯）'!$C$4:$K$35,9,FALSE)) -> - | AL25: =IF(AL24="","",VLOOKUP(AL24,'【記載例】シフト記号表（勤務時間帯）'!$C$4:$K$35,9,FALSE)) -> 8 | AM25: =IF(AM24="","",VLOOKUP(AM24,'【記載例】シフト記号表（勤務時間帯）'!$C$4:$K$35,9,FALSE)) -> 8 | AN25: =IF(AN24="","",VLOOKUP(AN24,'【記載例】シフト記号表（勤務時間帯）'!$C$4:$K$35,9,FALSE)) -> 8 | AO25: =IF(AO24="","",VLOOKUP(AO24,'【記載例】シフト記号表（勤務時間帯）'!$C$4:$K$35,9,FALSE)) -> 8 | AP25: =IF(AP24="","",VLOOKUP(AP24,'【記載例】シフト記号表（勤務時間帯）'!$C$4:$K$35,9,FALSE)) -> 8 | AQ25: =IF(AQ24="","",VLOOKUP(AQ24,'【記載例】シフト記号表（勤務時間帯）'!$C$4:$K$35,9,FALSE)) -> - | AR25: =IF(AR24="","",VLOOKUP(AR24,'【記載例】シフト記号表（勤務時間帯）'!$C$4:$K$35,9,FALSE)) -> - | AS25: =IF(AS24="","",VLOOKUP(AS24,'【記載例】シフト記号表（勤務時間帯）'!$C$4:$K$35,9,FALSE)) -> 8 | AT25: =IF(AT24="","",VLOOKUP(AT24,'【記載例】シフト記号表（勤務時間帯）'!$C$4:$K$35,9,FALSE)) -> 8 | AU25: =IF(AU24="","",VLOOKUP(AU24,'【記載例】シフト記号表（勤務時間帯）'!$C$4:$K$35,9,FALSE)) -> 8 | AV25: =IF(AV24="","",VLOOKUP(AV24,'【記載例】シフト記号表（勤務時間帯）'!$C$4:$K$35,9,FALSE)) ->  | AW25: =IF(AW24="","",VLOOKUP(AW24,'【記載例】シフト記号表（勤務時間帯）'!$C$4:$K$35,9,FALSE)) ->  | AX25: =IF(AX24="","",VLOOKUP(AX24,'【記載例】シフト記号表（勤務時間帯）'!$C$4:$K$35,9,FALSE)) -> 
B26: =B24+1 -> 6 | C26: オペレーター | F26: A | H26: 准看護師 | M26: ○○ E子 | Q26: シフト記号 | T26: b | U26: b | V26: b | W26: b | X26: 休 | Y26: 休 | Z26: b | AA26: b | AB26: b | AC26: b | AD26: b | AE26: 休 | AF26: 休 | AG26: b | AH26: b | AI26: b | AJ26: b | AK26: b | AL26: 休 | AM26: 休 | AN26: b | AO26: b | AP26: b | AQ26: b | AR26: b | AS26: 休 | AT26: 休 | AU26: b | AY26: =IF($BD$3="計画",SUM(T27:AU27),IF($BD$3="実績",SUM(T27:AX27),"")) -> 160 | BA26: =IF($BD$3="計画",AY26/4,IF($BD$3="実績",AY26/($BB$7/7),"")) -> 40
Q27: 勤務時間数 | T27: =IF(T26="","",VLOOKUP(T26,'【記載例】シフト記号表（勤務時間帯）'!$C$4:$K$35,9,FALSE)) -> 8 | U27: =IF(U26="","",VLOOKUP(U26,'【記載例】シフト記号表（勤務時間帯）'!$C$4:$K$35,9,FALSE)) -> 8 | V27: =IF(V26="","",VLOOKUP(V26,'【記載例】シフト記号表（勤務時間帯）'!$C$4:$K$35,9,FALSE)) -> 8 | W27: =IF(W26="","",VLOOKUP(W26,'【記載例】シフト記号表（勤務時間帯）'!$C$4:$K$35,9,FALSE)) -> 8 | X27: =IF(X26="","",VLOOKUP(X26,'【記載例】シフト記号表（勤務時間帯）'!$C$4:$K$35,9,FALSE)) -> - | Y27: =IF(Y26="","",VLOOKUP(Y26,'【記載例】シフト記号表（勤務時間帯）'!$C$4:$K$35,9,FALSE)) -> - | Z27: =IF(Z26="","",VLOOKUP(Z26,'【記載例】シフト記号表（勤務時間帯）'!$C$4:$K$35,9,FALSE)) -> 8 | AA27: =IF(AA26="","",VLOOKUP(AA26,'【記載例】シフト記号表（勤務時間帯）'!$C$4:$K$35,9,FALSE)) -> 8 | AB27: =IF(AB26="","",VLOOKUP(AB26,'【記載例】シフト記号表（勤務時間帯）'!$C$4:$K$35,9,FALSE)) -> 8 | AC27: =IF(AC26="","",VLOOKUP(AC26,'【記載例】シフト記号表（勤務時間帯）'!$C$4:$K$35,9,FALSE)) -> 8 | AD27: =IF(AD26="","",VLOOKUP(AD26,'【記載例】シフト記号表（勤務時間帯）'!$C$4:$K$35,9,FALSE)) -> 8 | AE27: =IF(AE26="","",VLOOKUP(AE26,'【記載例】シフト記号表（勤務時間帯）'!$C$4:$K$35,9,FALSE)) -> - | AF27: =IF(AF26="","",VLOOKUP(AF26,'【記載例】シフト記号表（勤務時間帯）'!$C$4:$K$35,9,FALSE)) -> - | AG27: =IF(AG26="","",VLOOKUP(AG26,'【記載例】シフト記号表（勤務時間帯）'!$C$4:$K$35,9,FALSE)) -> 8 | AH27: =IF(AH26="","",VLOOKUP(AH26,'【記載例】シフト記号表（勤務時間帯）'!$C$4:$K$35,9,FALSE)) -> 8 | AI27: =IF(AI26="","",VLOOKUP(AI26,'【記載例】シフト記号表（勤務時間帯）'!$C$4:$K$35,9,FALSE)) -> 8 | AJ27: =IF(AJ26="","",VLOOKUP(AJ26,'【記載例】シフト記号表（勤務時間帯）'!$C$4:$K$35,9,FALSE)) -> 8 | AK27: =IF(AK26="","",VLOOKUP(AK26,'【記載例】シフト記号表（勤務時間帯）'!$C$4:$K$35,9,FALSE)) -> 8 | AL27: =IF(AL26="","",VLOOKUP(AL26,'【記載例】シフト記号表（勤務時間帯）'!$C$4:$K$35,9,FALSE)) -> - | AM27: =IF(AM26="","",VLOOKUP(AM26,'【記載例】シフト記号表（勤務時間帯）'!$C$4:$K$35,9,FALSE)) -> - | AN27: =IF(AN26="","",VLOOKUP(AN26,'【記載例】シフト記号表（勤務時間帯）'!$C$4:$K$35,9,FALSE)) -> 8 | AO27: =IF(AO26="","",VLOOKUP(AO26,'【記載例】シフト記号表（勤務時間帯）'!$C$4:$K$35,9,FALSE)) -> 8 | AP27: =IF(AP26="","",VLOOKUP(AP26,'【記載例】シフト記号表（勤務時間帯）'!$C$4:$K$35,9,FALSE)) -> 8 | AQ27: =IF(AQ26="","",VLOOKUP(AQ26,'【記載例】シフト記号表（勤務時間帯）'!$C$4:$K$35,9,FALSE)) -> 8 | AR27: =IF(AR26="","",VLOOKUP(AR26,'【記載例】シフト記号表（勤務時間帯）'!$C$4:$K$35,9,FALSE)) -> 8 | AS27: =IF(AS26="","",VLOOKUP(AS26,'【記載例】シフト記号表（勤務時間帯）'!$C$4:$K$35,9,FALSE)) -> - | AT27: =IF(AT26="","",VLOOKUP(AT26,'【記載例】シフト記号表（勤務時間帯）'!$C$4:$K$35,9,FALSE)) -> - | AU27: =IF(AU26="","",VLOOKUP(AU26,'【記載例】シフト記号表（勤務時間帯）'!$C$4:$K$35,9,FALSE)) -> 8 | AV27: =IF(AV26="","",VLOOKUP(AV26,'【記載例】シフト記号表（勤務時間帯）'!$C$4:$K$35,9,FALSE)) ->  | AW27: =IF(AW26="","",VLOOKUP(AW26,'【記載例】シフト記号表（勤務時間帯）'!$C$4:$K$35,9,FALSE)) ->  | AX27: =IF(AX26="","",VLOOKUP(AX26,'【記載例】シフト記号表（勤務時間帯）'!$C$4:$K$35,9,FALSE)) -> 
B28: =B26+1 -> 7 | C28: オペレーター | F28: A | H28: ー | M28: ○○ F太 | Q28: シフト記号 | T28: c | U28: c | V28: c | W28: c | X28: 休 | Y28: 休 | Z28: c | AA28: c | AB28: c | AC28: c | AD28: c | AE28: 休 | AF28: 休 | AG28: c | AH28: c | AI28: c | AJ28: c | AK28: c | AL28: 休 | AM28: 休 | AN28: c | AO28: c | AP28: c | AQ28: c | AR28: c | AS28: 休 | AT28: 休 | AU28: c | AY28: =IF($BD$3="計画",SUM(T29:AU29),IF($BD$3="実績",SUM(T29:AX29),"")) -> 160 | BA28: =IF($BD$3="計画",AY28/4,IF($BD$3="実績",AY28/($BB$7/7),"")) -> 40
Q29: 勤務時間数 | T29: =IF(T28="","",VLOOKUP(T28,'【記載例】シフト記号表（勤務時間帯）'!$C$4:$K$35,9,FALSE)) -> 8 | U29: =IF(U28="","",VLOOKUP(U28,'【記載例】シフト記号表（勤務時間帯）'!$C$4:$K$35,9,FALSE)) -> 8 | V29: =IF(V28="","",VLOOKUP(V28,'【記載例】シフト記号表（勤務時間帯）'!$C$4:$K$35,9,FALSE)) -> 8 | W29: =IF(W28="","",VLOOKUP(W28,'【記載例】シフト記号表（勤務時間帯）'!$C$4:$K$35,9,FALSE)) -> 8 | X29: =IF(X28="","",VLOOKUP(X28,'【記載例】シフト記号表（勤務時間帯）'!$C$4:$K$35,9,FALSE)) -> - | Y29: =IF(Y28="","",VLOOKUP(Y28,'【記載例】シフト記号表（勤務時間帯）'!$C$4:$K$35,9,FALSE)) -> - | Z29: =IF(Z28="","",VLOOKUP(Z28,'【記載例】シフト記号表（勤務時間帯）'!$C$4:$K$35,9,FALSE)) -> 8 | AA29: =IF(AA28="","",VLOOKUP(AA28,'【記載例】シフト記号表（勤務時間帯）'!$C$4:$K$35,9,FALSE)) -> 8 | AB29: =IF(AB28="","",VLOOKUP(AB28,'【記載例】シフト記号表（勤務時間帯）'!$C$4:$K$35,9,FALSE)) -> 8 | AC29: =IF(AC28="","",VLOOKUP(AC28,'【記載例】シフト記号表（勤務時間帯）'!$C$4:$K$35,9,FALSE)) -> 8 | AD29: =IF(AD28="","",VLOOKUP(AD28,'【記載例】シフト記号表（勤務時間帯）'!$C$4:$K$35,9,FALSE)) -> 8 | AE29: =IF(AE28="","",VLOOKUP(AE28,'【記載例】シフト記号表（勤務時間帯）'!$C$4:$K$35,9,FALSE)) -> - | AF29: =IF(AF28="","",VLOOKUP(AF28,'【記載例】シフト記号表（勤務時間帯）'!$C$4:$K$35,9,FALSE)) -> - | AG29: =IF(AG28="","",VLOOKUP(AG28,'【記載例】シフト記号表（勤務時間帯）'!$C$4:$K$35,9,FALSE)) -> 8 | AH29: =IF(AH28="","",VLOOKUP(AH28,'【記載例】シフト記号表（勤務時間帯）'!$C$4:$K$35,9,FALSE)) -> 8 | AI29: =IF(AI28="","",VLOOKUP(AI28,'【記載例】シフト記号表（勤務時間帯）'!$C$4:$K$35,9,FALSE)) -> 8 | AJ29: =IF(AJ28="","",VLOOKUP(AJ28,'【記載例】シフト記号表（勤務時間帯）'!$C$4:$K$35,9,FALSE)) -> 8 | AK29: =IF(AK28="","",VLOOKUP(AK28,'【記載例】シフト記号表（勤務時間帯）'!$C$4:$K$35,9,FALSE)) -> 8 | AL29: =IF(AL28="","",VLOOKUP(AL28,'【記載例】シフト記号表（勤務時間帯）'!$C$4:$K$35,9,FALSE)) -> - | AM29: =IF(AM28="","",VLOOKUP(AM28,'【記載例】シフト記号表（勤務時間帯）'!$C$4:$K$35,9,FALSE)) -> - | AN29: =IF(AN28="","",VLOOKUP(AN28,'【記載例】シフト記号表（勤務時間帯）'!$C$4:$K$35,9,FALSE)) -> 8 | AO29: =IF(AO28="","",VLOOKUP(AO28,'【記載例】シフト記号表（勤務時間帯）'!$C$4:$K$35,9,FALSE)) -> 8 | AP29: =IF(AP28="","",VLOOKUP(AP28,'【記載例】シフト記号表（勤務時間帯）'!$C$4:$K$35,9,FALSE)) -> 8 | AQ29: =IF(AQ28="","",VLOOKUP(AQ28,'【記載例】シフト記号表（勤務時間帯）'!$C$4:$K$35,9,FALSE)) -> 8 | AR29: =IF(AR28="","",VLOOKUP(AR28,'【記載例】シフト記号表（勤務時間帯）'!$C$4:$K$35,9,FALSE)) -> 8 | AS29: =IF(AS28="","",VLOOKUP(AS28,'【記載例】シフト記号表（勤務時間帯）'!$C$4:$K$35,9,FALSE)) -> - | AT29: =IF(AT28="","",VLOOKUP(AT28,'【記載例】シフト記号表（勤務時間帯）'!$C$4:$K$35,9,FALSE)) -> - | AU29: =IF(AU28="","",VLOOKUP(AU28,'【記載例】シフト記号表（勤務時間帯）'!$C$4:$K$35,9,FALSE)) -> 8 | AV29: =IF(AV28="","",VLOOKUP(AV28,'【記載例】シフト記号表（勤務時間帯）'!$C$4:$K$35,9,FALSE)) ->  | AW29: =IF(AW28="","",VLOOKUP(AW28,'【記載例】シフト記号表（勤務時間帯）'!$C$4:$K$35,9,FALSE)) ->  | AX29: =IF(AX28="","",VLOOKUP(AX28,'【記載例】シフト記号表（勤務時間帯）'!$C$4:$K$35,9,FALSE)) -> 
B30: =B28+1 -> 8 | C30: オペレーター | F30: A | H30: ー | M30: ○○ G美 | Q30: シフト記号 | T30: d | U30: d | V30: d | W30: d | X30: 休 | Y30: 休 | Z30: d | AA30: d | AB30: d | AC30: d | AD30: d | AE30: 休 | AF30: 休 | AG30: d | AH30: d | AI30: d | AJ30: d | AK30: d | AL30: 休 | AM30: 休 | AN30: d | AO30: d | AP30: d | AQ30: d | AR30: d | AS30: 休 | AT30: 休 | AU30: d | AY30: =IF($BD$3="計画",SUM(T31:AU31),IF($BD$3="実績",SUM(T31:AX31),"")) -> 160 | BA30: =IF($BD$3="計画",AY30/4,IF($BD$3="実績",AY30/($BB$7/7),"")) -> 40
Q31: 勤務時間数 | T31: =IF(T30="","",VLOOKUP(T30,'【記載例】シフト記号表（勤務時間帯）'!$C$4:$K$35,9,FALSE)) -> 8 | U31: =IF(U30="","",VLOOKUP(U30,'【記載例】シフト記号表（勤務時間帯）'!$C$4:$K$35,9,FALSE)) -> 8 | V31: =IF(V30="","",VLOOKUP(V30,'【記載例】シフト記号表（勤務時間帯）'!$C$4:$K$35,9,FALSE)) -> 8 | W31: =IF(W30="","",VLOOKUP(W30,'【記載例】シフト記号表（勤務時間帯）'!$C$4:$K$35,9,FALSE)) -> 8 | X31: =IF(X30="","",VLOOKUP(X30,'【記載例】シフト記号表（勤務時間帯）'!$C$4:$K$35,9,FALSE)) -> - | Y31: =IF(Y30="","",VLOOKUP(Y30,'【記載例】シフト記号表（勤務時間帯）'!$C$4:$K$35,9,FALSE)) -> - | Z31: =IF(Z30="","",VLOOKUP(Z30,'【記載例】シフト記号表（勤務時間帯）'!$C$4:$K$35,9,FALSE)) -> 8 | AA31: =IF(AA30="","",VLOOKUP(AA30,'【記載例】シフト記号表（勤務時間帯）'!$C$4:$K$35,9,FALSE)) -> 8 | AB31: =IF(AB30="","",VLOOKUP(AB30,'【記載例】シフト記号表（勤務時間帯）'!$C$4:$K$35,9,FALSE)) -> 8 | AC31: =IF(AC30="","",VLOOKUP(AC30,'【記載例】シフト記号表（勤務時間帯）'!$C$4:$K$35,9,FALSE)) -> 8 | AD31: =IF(AD30="","",VLOOKUP(AD30,'【記載例】シフト記号表（勤務時間帯）'!$C$4:$K$35,9,FALSE)) -> 8 | AE31: =IF(AE30="","",VLOOKUP(AE30,'【記載例】シフト記号表（勤務時間帯）'!$C$4:$K$35,9,FALSE)) -> - | AF31: =IF(AF30="","",VLOOKUP(AF30,'【記載例】シフト記号表（勤務時間帯）'!$C$4:$K$35,9,FALSE)) -> - | AG31: =IF(AG30="","",VLOOKUP(AG30,'【記載例】シフト記号表（勤務時間帯）'!$C$4:$K$35,9,FALSE)) -> 8 | AH31: =IF(AH30="","",VLOOKUP(AH30,'【記載例】シフト記号表（勤務時間帯）'!$C$4:$K$35,9,FALSE)) -> 8 | AI31: =IF(AI30="","",VLOOKUP(AI30,'【記載例】シフト記号表（勤務時間帯）'!$C$4:$K$35,9,FALSE)) -> 8 | AJ31: =IF(AJ30="","",VLOOKUP(AJ30,'【記載例】シフト記号表（勤務時間帯）'!$C$4:$K$35,9,FALSE)) -> 8 | AK31: =IF(AK30="","",VLOOKUP(AK30,'【記載例】シフト記号表（勤務時間帯）'!$C$4:$K$35,9,FALSE)) -> 8 | AL31: =IF(AL30="","",VLOOKUP(AL30,'【記載例】シフト記号表（勤務時間帯）'!$C$4:$K$35,9,FALSE)) -> - | AM31: =IF(AM30="","",VLOOKUP(AM30,'【記載例】シフト記号表（勤務時間帯）'!$C$4:$K$35,9,FALSE)) -> - | AN31: =IF(AN30="","",VLOOKUP(AN30,'【記載例】シフト記号表（勤務時間帯）'!$C$4:$K$35,9,FALSE)) -> 8 | AO31: =IF(AO30="","",VLOOKUP(AO30,'【記載例】シフト記号表（勤務時間帯）'!$C$4:$K$35,9,FALSE)) -> 8 | AP31: =IF(AP30="","",VLOOKUP(AP30,'【記載例】シフト記号表（勤務時間帯）'!$C$4:$K$35,9,FALSE)) -> 8 | AQ31: =IF(AQ30="","",VLOOKUP(AQ30,'【記載例】シフト記号表（勤務時間帯）'!$C$4:$K$35,9,FALSE)) -> 8 | AR31: =IF(AR30="","",VLOOKUP(AR30,'【記載例】シフト記号表（勤務時間帯）'!$C$4:$K$35,9,FALSE)) -> 8 | AS31: =IF(AS30="","",VLOOKUP(AS30,'【記載例】シフト記号表（勤務時間帯）'!$C$4:$K$35,9,FALSE)) -> - | AT31: =IF(AT30="","",VLOOKUP(AT30,'【記載例】シフト記号表（勤務時間帯）'!$C$4:$K$35,9,FALSE)) -> - | AU31: =IF(AU30="","",VLOOKUP(AU30,'【記載例】シフト記号表（勤務時間帯）'!$C$4:$K$35,9,FALSE)) -> 8 | AV31: =IF(AV30="","",VLOOKUP(AV30,'【記載例】シフト記号表（勤務時間帯）'!$C$4:$K$35,9,FALSE)) ->  | AW31: =IF(AW30="","",VLOOKUP(AW30,'【記載例】シフト記号表（勤務時間帯）'!$C$4:$K$35,9,FALSE)) ->  | AX31: =IF(AX30="","",VLOOKUP(AX30,'【記載例】シフト記号表（勤務時間帯）'!$C$4:$K$35,9,FALSE)) -> 
B32: =B30+1 -> 9 | C32: 訪問介護員_定期 | F32: A | H32: 介護福祉士 | M32: ○○ H男 | Q32: シフト記号 | T32: b | U32: b | V32: 休 | W32: 休 | X32: b | Y32: b | Z32: b | AA32: b | AB32: b | AC32: 休 | AD32: 休 | AE32: b | AF32: b | AG32: b | AH32: b | AI32: b | AJ32: 休 | AK32: 休 | AL32: b | AM32: b | AN32: b | AO32: b | AP32: b | AQ32: 休 | AR32: 休 | AS32: b | AT32: b | AU32: b | AY32: =IF($BD$3="計画",SUM(T33:AU33),IF($BD$3="実績",SUM(T33:AX33),"")) -> 160 | BA32: =IF($BD$3="計画",AY32/4,IF($BD$3="実績",AY32/($BB$7/7),"")) -> 40
Q33: 勤務時間数 | T33: =IF(T32="","",VLOOKUP(T32,'【記載例】シフト記号表（勤務時間帯）'!$C$4:$K$35,9,FALSE)) -> 8 | U33: =IF(U32="","",VLOOKUP(U32,'【記載例】シフト記号表（勤務時間帯）'!$C$4:$K$35,9,FALSE)) -> 8 | V33: =IF(V32="","",VLOOKUP(V32,'【記載例】シフト記号表（勤務時間帯）'!$C$4:$K$35,9,FALSE)) -> - | W33: =IF(W32="","",VLOOKUP(W32,'【記載例】シフト記号表（勤務時間帯）'!$C$4:$K$35,9,FALSE)) -> - | X33: =IF(X32="","",VLOOKUP(X32,'【記載例】シフト記号表（勤務時間帯）'!$C$4:$K$35,9,FALSE)) -> 8 | Y33: =IF(Y32="","",VLOOKUP(Y32,'【記載例】シフト記号表（勤務時間帯）'!$C$4:$K$35,9,FALSE)) -> 8 | Z33: =IF(Z32="","",VLOOKUP(Z32,'【記載例】シフト記号表（勤務時間帯）'!$C$4:$K$35,9,FALSE)) -> 8 | AA33: =IF(AA32="","",VLOOKUP(AA32,'【記載例】シフト記号表（勤務時間帯）'!$C$4:$K$35,9,FALSE)) -> 8 | AB33: =IF(AB32="","",VLOOKUP(AB32,'【記載例】シフト記号表（勤務時間帯）'!$C$4:$K$35,9,FALSE)) -> 8 | AC33: =IF(AC32="","",VLOOKUP(AC32,'【記載例】シフト記号表（勤務時間帯）'!$C$4:$K$35,9,FALSE)) -> - | AD33: =IF(AD32="","",VLOOKUP(AD32,'【記載例】シフト記号表（勤務時間帯）'!$C$4:$K$35,9,FALSE)) -> - | AE33: =IF(AE32="","",VLOOKUP(AE32,'【記載例】シフト記号表（勤務時間帯）'!$C$4:$K$35,9,FALSE)) -> 8 | AF33: =IF(AF32="","",VLOOKUP(AF32,'【記載例】シフト記号表（勤務時間帯）'!$C$4:$K$35,9,FALSE)) -> 8 | AG33: =IF(AG32="","",VLOOKUP(AG32,'【記載例】シフト記号表（勤務時間帯）'!$C$4:$K$35,9,FALSE)) -> 8 | AH33: =IF(AH32="","",VLOOKUP(AH32,'【記載例】シフト記号表（勤務時間帯）'!$C$4:$K$35,9,FALSE)) -> 8 | AI33: =IF(AI32="","",VLOOKUP(AI32,'【記載例】シフト記号表（勤務時間帯）'!$C$4:$K$35,9,FALSE)) -> 8 | AJ33: =IF(AJ32="","",VLOOKUP(AJ32,'【記載例】シフト記号表（勤務時間帯）'!$C$4:$K$35,9,FALSE)) -> - | AK33: =IF(AK32="","",VLOOKUP(AK32,'【記載例】シフト記号表（勤務時間帯）'!$C$4:$K$35,9,FALSE)) -> - | AL33: =IF(AL32="","",VLOOKUP(AL32,'【記載例】シフト記号表（勤務時間帯）'!$C$4:$K$35,9,FALSE)) -> 8 | AM33: =IF(AM32="","",VLOOKUP(AM32,'【記載例】シフト記号表（勤務時間帯）'!$C$4:$K$35,9,FALSE)) -> 8 | AN33: =IF(AN32="","",VLOOKUP(AN32,'【記載例】シフト記号表（勤務時間帯）'!$C$4:$K$35,9,FALSE)) -> 8 | AO33: =IF(AO32="","",VLOOKUP(AO32,'【記載例】シフト記号表（勤務時間帯）'!$C$4:$K$35,9,FALSE)) -> 8 | AP33: =IF(AP32="","",VLOOKUP(AP32,'【記載例】シフト記号表（勤務時間帯）'!$C$4:$K$35,9,FALSE)) -> 8 | AQ33: =IF(AQ32="","",VLOOKUP(AQ32,'【記載例】シフト記号表（勤務時間帯）'!$C$4:$K$35,9,FALSE)) -> - | AR33: =IF(AR32="","",VLOOKUP(AR32,'【記載例】シフト記号表（勤務時間帯）'!$C$4:$K$35,9,FALSE)) -> - | AS33: =IF(AS32="","",VLOOKUP(AS32,'【記載例】シフト記号表（勤務時間帯）'!$C$4:$K$35,9,FALSE)) -> 8 | AT33: =IF(AT32="","",VLOOKUP(AT32,'【記載例】シフト記号表（勤務時間帯）'!$C$4:$K$35,9,FALSE)) -> 8 | AU33: =IF(AU32="","",VLOOKUP(AU32,'【記載例】シフト記号表（勤務時間帯）'!$C$4:$K$35,9,FALSE)) -> 8 | AV33: =IF(AV32="","",VLOOKUP(AV32,'【記載例】シフト記号表（勤務時間帯）'!$C$4:$K$35,9,FALSE)) ->  | AW33: =IF(AW32="","",VLOOKUP(AW32,'【記載例】シフト記号表（勤務時間帯）'!$C$4:$K$35,9,FALSE)) ->  | AX33: =IF(AX32="","",VLOOKUP(AX32,'【記載例】シフト記号表（勤務時間帯）'!$C$4:$K$35,9,FALSE)) -> 
B34: =B32+1 -> 10 | C34: 訪問介護員_定期 | F34: A | H34: ー | M34: ○○ I子 | Q34: シフト記号 | T34: c | U34: c | V34: 休 | W34: 休 | X34: c | Y34: c | Z34: c | AA34: c | AB34: c | AC34: 休 | AD34: 休 | AE34: c | AF34: c | AG34: c | AH34: c | AI34: c | AJ34: 休 | AK34: 休 | AL34: c | AM34: c | AN34: c | AO34: c | AP34: c | AQ34: 休 | AR34: 休 | AS34: c | AT34: c | AU34: c | AY34: =IF($BD$3="計画",SUM(T35:AU35),IF($BD$3="実績",SUM(T35:AX35),"")) -> 160 | BA34: =IF($BD$3="計画",AY34/4,IF($BD$3="実績",AY34/($BB$7/7),"")) -> 40
Q35: 勤務時間数 | T35: =IF(T34="","",VLOOKUP(T34,'【記載例】シフト記号表（勤務時間帯）'!$C$4:$K$35,9,FALSE)) -> 8 | U35: =IF(U34="","",VLOOKUP(U34,'【記載例】シフト記号表（勤務時間帯）'!$C$4:$K$35,9,FALSE)) -> 8 | V35: =IF(V34="","",VLOOKUP(V34,'【記載例】シフト記号表（勤務時間帯）'!$C$4:$K$35,9,FALSE)) -> - | W35: =IF(W34="","",VLOOKUP(W34,'【記載例】シフト記号表（勤務時間帯）'!$C$4:$K$35,9,FALSE)) -> - | X35: =IF(X34="","",VLOOKUP(X34,'【記載例】シフト記号表（勤務時間帯）'!$C$4:$K$35,9,FALSE)) -> 8 | Y35: =IF(Y34="","",VLOOKUP(Y34,'【記載例】シフト記号表（勤務時間帯）'!$C$4:$K$35,9,FALSE)) -> 8 | Z35: =IF(Z34="","",VLOOKUP(Z34,'【記載例】シフト記号表（勤務時間帯）'!$C$4:$K$35,9,FALSE)) -> 8 | AA35: =IF(AA34="","",VLOOKUP(AA34,'【記載例】シフト記号表（勤務時間帯）'!$C$4:$K$35,9,FALSE)) -> 8 | AB35: =IF(AB34="","",VLOOKUP(AB34,'【記載例】シフト記号表（勤務時間帯）'!$C$4:$K$35,9,FALSE)) -> 8 | AC35: =IF(AC34="","",VLOOKUP(AC34,'【記載例】シフト記号表（勤務時間帯）'!$C$4:$K$35,9,FALSE)) -> - | AD35: =IF(AD34="","",VLOOKUP(AD34,'【記載例】シフト記号表（勤務時間帯）'!$C$4:$K$35,9,FALSE)) -> - | AE35: =IF(AE34="","",VLOOKUP(AE34,'【記載例】シフト記号表（勤務時間帯）'!$C$4:$K$35,9,FALSE)) -> 8 | AF35: =IF(AF34="","",VLOOKUP(AF34,'【記載例】シフト記号表（勤務時間帯）'!$C$4:$K$35,9,FALSE)) -> 8 | AG35: =IF(AG34="","",VLOOKUP(AG34,'【記載例】シフト記号表（勤務時間帯）'!$C$4:$K$35,9,FALSE)) -> 8 | AH35: =IF(AH34="","",VLOOKUP(AH34,'【記載例】シフト記号表（勤務時間帯）'!$C$4:$K$35,9,FALSE)) -> 8 | AI35: =IF(AI34="","",VLOOKUP(AI34,'【記載例】シフト記号表（勤務時間帯）'!$C$4:$K$35,9,FALSE)) -> 8 | AJ35: =IF(AJ34="","",VLOOKUP(AJ34,'【記載例】シフト記号表（勤務時間帯）'!$C$4:$K$35,9,FALSE)) -> - | AK35: =IF(AK34="","",VLOOKUP(AK34,'【記載例】シフト記号表（勤務時間帯）'!$C$4:$K$35,9,FALSE)) -> - | AL35: =IF(AL34="","",VLOOKUP(AL34,'【記載例】シフト記号表（勤務時間帯）'!$C$4:$K$35,9,FALSE)) -> 8 | AM35: =IF(AM34="","",VLOOKUP(AM34,'【記載例】シフト記号表（勤務時間帯）'!$C$4:$K$35,9,FALSE)) -> 8 | AN35: =IF(AN34="","",VLOOKUP(AN34,'【記載例】シフト記号表（勤務時間帯）'!$C$4:$K$35,9,FALSE)) -> 8 | AO35: =IF(AO34="","",VLOOKUP(AO34,'【記載例】シフト記号表（勤務時間帯）'!$C$4:$K$35,9,FALSE)) -> 8 | AP35: =IF(AP34="","",VLOOKUP(AP34,'【記載例】シフト記号表（勤務時間帯）'!$C$4:$K$35,9,FALSE)) -> 8 | AQ35: =IF(AQ34="","",VLOOKUP(AQ34,'【記載例】シフト記号表（勤務時間帯）'!$C$4:$K$35,9,FALSE)) -> - | AR35: =IF(AR34="","",VLOOKUP(AR34,'【記載例】シフト記号表（勤務時間帯）'!$C$4:$K$35,9,FALSE)) -> - | AS35: =IF(AS34="","",VLOOKUP(AS34,'【記載例】シフト記号表（勤務時間帯）'!$C$4:$K$35,9,FALSE)) -> 8 | AT35: =IF(AT34="","",VLOOKUP(AT34,'【記載例】シフト記号表（勤務時間帯）'!$C$4:$K$35,9,FALSE)) -> 8 | AU35: =IF(AU34="","",VLOOKUP(AU34,'【記載例】シフト記号表（勤務時間帯）'!$C$4:$K$35,9,FALSE)) -> 8 | AV35: =IF(AV34="","",VLOOKUP(AV34,'【記載例】シフト記号表（勤務時間帯）'!$C$4:$K$35,9,FALSE)) ->  | AW35: =IF(AW34="","",VLOOKUP(AW34,'【記載例】シフト記号表（勤務時間帯）'!$C$4:$K$35,9,FALSE)) ->  | AX35: =IF(AX34="","",VLOOKUP(AX34,'【記載例】シフト記号表（勤務時間帯）'!$C$4:$K$35,9,FALSE)) -> 
B36: 11 | C36: 訪問介護員_定期 | F36: A | H36: ー | M36: ○○ J太 | Q36: シフト記号 | T36: d | U36: d | V36: 休 | W36: 休 | X36: d | Y36: d | Z36: d | AA36: d | AB36: d | AC36: 休 | AD36: 休 | AE36: d | AF36: d | AG36: d | AH36: d | AI36: d | AJ36: 休 | AK36: 休 | AL36: d | AM36: d | AN36: d | AO36: d | AP36: d | AQ36: 休 | AR36: 休 | AS36: d | AT36: d | AU36: d | AY36: =IF($BD$3="計画",SUM(T37:AU37),IF($BD$3="実績",SUM(T37:AX37),"")) -> 160 | BA36: =IF($BD$3="計画",AY36/4,IF($BD$3="実績",AY36/($BB$7/7),"")) -> 40
Q37: 勤務時間数 | T37: =IF(T36="","",VLOOKUP(T36,'【記載例】シフト記号表（勤務時間帯）'!$C$4:$K$35,9,FALSE)) -> 8 | U37: =IF(U36="","",VLOOKUP(U36,'【記載例】シフト記号表（勤務時間帯）'!$C$4:$K$35,9,FALSE)) -> 8 | V37: =IF(V36="","",VLOOKUP(V36,'【記載例】シフト記号表（勤務時間帯）'!$C$4:$K$35,9,FALSE)) -> - | W37: =IF(W36="","",VLOOKUP(W36,'【記載例】シフト記号表（勤務時間帯）'!$C$4:$K$35,9,FALSE)) -> - | X37: =IF(X36="","",VLOOKUP(X36,'【記載例】シフト記号表（勤務時間帯）'!$C$4:$K$35,9,FALSE)) -> 8 | Y37: =IF(Y36="","",VLOOKUP(Y36,'【記載例】シフト記号表（勤務時間帯）'!$C$4:$K$35,9,FALSE)) -> 8 | Z37: =IF(Z36="","",VLOOKUP(Z36,'【記載例】シフト記号表（勤務時間帯）'!$C$4:$K$35,9,FALSE)) -> 8 | AA37: =IF(AA36="","",VLOOKUP(AA36,'【記載例】シフト記号表（勤務時間帯）'!$C$4:$K$35,9,FALSE)) -> 8 | AB37: =IF(AB36="","",VLOOKUP(AB36,'【記載例】シフト記号表（勤務時間帯）'!$C$4:$K$35,9,FALSE)) -> 8 | AC37: =IF(AC36="","",VLOOKUP(AC36,'【記載例】シフト記号表（勤務時間帯）'!$C$4:$K$35,9,FALSE)) -> - | AD37: =IF(AD36="","",VLOOKUP(AD36,'【記載例】シフト記号表（勤務時間帯）'!$C$4:$K$35,9,FALSE)) -> - | AE37: =IF(AE36="","",VLOOKUP(AE36,'【記載例】シフト記号表（勤務時間帯）'!$C$4:$K$35,9,FALSE)) -> 8 | AF37: =IF(AF36="","",VLOOKUP(AF36,'【記載例】シフト記号表（勤務時間帯）'!$C$4:$K$35,9,FALSE)) -> 8 | AG37: =IF(AG36="","",VLOOKUP(AG36,'【記載例】シフト記号表（勤務時間帯）'!$C$4:$K$35,9,FALSE)) -> 8 | AH37: =IF(AH36="","",VLOOKUP(AH36,'【記載例】シフト記号表（勤務時間帯）'!$C$4:$K$35,9,FALSE)) -> 8 | AI37: =IF(AI36="","",VLOOKUP(AI36,'【記載例】シフト記号表（勤務時間帯）'!$C$4:$K$35,9,FALSE)) -> 8 | AJ37: =IF(AJ36="","",VLOOKUP(AJ36,'【記載例】シフト記号表（勤務時間帯）'!$C$4:$K$35,9,FALSE)) -> - | AK37: =IF(AK36="","",VLOOKUP(AK36,'【記載例】シフト記号表（勤務時間帯）'!$C$4:$K$35,9,FALSE)) -> - | AL37: =IF(AL36="","",VLOOKUP(AL36,'【記載例】シフト記号表（勤務時間帯）'!$C$4:$K$35,9,FALSE)) -> 8 | AM37: =IF(AM36="","",VLOOKUP(AM36,'【記載例】シフト記号表（勤務時間帯）'!$C$4:$K$35,9,FALSE)) -> 8 | AN37: =IF(AN36="","",VLOOKUP(AN36,'【記載例】シフト記号表（勤務時間帯）'!$C$4:$K$35,9,FALSE)) -> 8 | AO37: =IF(AO36="","",VLOOKUP(AO36,'【記載例】シフト記号表（勤務時間帯）'!$C$4:$K$35,9,FALSE)) -> 8 | AP37: =IF(AP36="","",VLOOKUP(AP36,'【記載例】シフト記号表（勤務時間帯）'!$C$4:$K$35,9,FALSE)) -> 8 | AQ37: =IF(AQ36="","",VLOOKUP(AQ36,'【記載例】シフト記号表（勤務時間帯）'!$C$4:$K$35,9,FALSE)) -> - | AR37: =IF(AR36="","",VLOOKUP(AR36,'【記載例】シフト記号表（勤務時間帯）'!$C$4:$K$35,9,FALSE)) -> - | AS37: =IF(AS36="","",VLOOKUP(AS36,'【記載例】シフト記号表（勤務時間帯）'!$C$4:$K$35,9,FALSE)) -> 8 | AT37: =IF(AT36="","",VLOOKUP(AT36,'【記載例】シフト記号表（勤務時間帯）'!$C$4:$K$35,9,FALSE)) -> 8 | AU37: =IF(AU36="","",VLOOKUP(AU36,'【記載例】シフト記号表（勤務時間帯）'!$C$4:$K$35,9,FALSE)) -> 8 | AV37: =IF(AV36="","",VLOOKUP(AV36,'【記載例】シフト記号表（勤務時間帯）'!$C$4:$K$35,9,FALSE)) ->  | AW37: =IF(AW36="","",VLOOKUP(AW36,'【記載例】シフト記号表（勤務時間帯）'!$C$4:$K$35,9,FALSE)) ->  | AX37: =IF(AX36="","",VLOOKUP(AX36,'【記載例】シフト記号表（勤務時間帯）'!$C$4:$K$35,9,FALSE)) -> 
B38: =B36+1 -> 12 | C38: 訪問介護員_定期 | F38: A | H38: ー | M38: ○○ K子 | Q38: シフト記号 | T38: b | U38: b | V38: b | W38: b | X38: 休 | Y38: 休 | Z38: b | AA38: b | AB38: b | AC38: b | AD38: b | AE38: 休 | AF38: 休 | AG38: b | AH38: b | AI38: b | AJ38: b | AK38: b | AL38: 休 | AM38: 休 | AN38: b | AO38: b | AP38: b | AQ38: b | AR38: b | AS38: 休 | AT38: 休 | AU38: b | AY38: =IF($BD$3="計画",SUM(T39:AU39),IF($BD$3="実績",SUM(T39:AX39),"")) -> 160 | BA38: =IF($BD$3="計画",AY38/4,IF($BD$3="実績",AY38/($BB$7/7),"")) -> 40
Q39: 勤務時間数 | T39: =IF(T38="","",VLOOKUP(T38,'【記載例】シフト記号表（勤務時間帯）'!$C$4:$K$35,9,FALSE)) -> 8 | U39: =IF(U38="","",VLOOKUP(U38,'【記載例】シフト記号表（勤務時間帯）'!$C$4:$K$35,9,FALSE)) -> 8 | V39: =IF(V38="","",VLOOKUP(V38,'【記載例】シフト記号表（勤務時間帯）'!$C$4:$K$35,9,FALSE)) -> 8 | W39: =IF(W38="","",VLOOKUP(W38,'【記載例】シフト記号表（勤務時間帯）'!$C$4:$K$35,9,FALSE)) -> 8 | X39: =IF(X38="","",VLOOKUP(X38,'【記載例】シフト記号表（勤務時間帯）'!$C$4:$K$35,9,FALSE)) -> - | Y39: =IF(Y38="","",VLOOKUP(Y38,'【記載例】シフト記号表（勤務時間帯）'!$C$4:$K$35,9,FALSE)) -> - | Z39: =IF(Z38="","",VLOOKUP(Z38,'【記載例】シフト記号表（勤務時間帯）'!$C$4:$K$35,9,FALSE)) -> 8 | AA39: =IF(AA38="","",VLOOKUP(AA38,'【記載例】シフト記号表（勤務時間帯）'!$C$4:$K$35,9,FALSE)) -> 8 | AB39: =IF(AB38="","",VLOOKUP(AB38,'【記載例】シフト記号表（勤務時間帯）'!$C$4:$K$35,9,FALSE)) -> 8 | AC39: =IF(AC38="","",VLOOKUP(AC38,'【記載例】シフト記号表（勤務時間帯）'!$C$4:$K$35,9,FALSE)) -> 8 | AD39: =IF(AD38="","",VLOOKUP(AD38,'【記載例】シフト記号表（勤務時間帯）'!$C$4:$K$35,9,FALSE)) -> 8 | AE39: =IF(AE38="","",VLOOKUP(AE38,'【記載例】シフト記号表（勤務時間帯）'!$C$4:$K$35,9,FALSE)) -> - | AF39: =IF(AF38="","",VLOOKUP(AF38,'【記載例】シフト記号表（勤務時間帯）'!$C$4:$K$35,9,FALSE)) -> - | AG39: =IF(AG38="","",VLOOKUP(AG38,'【記載例】シフト記号表（勤務時間帯）'!$C$4:$K$35,9,FALSE)) -> 8 | AH39: =IF(AH38="","",VLOOKUP(AH38,'【記載例】シフト記号表（勤務時間帯）'!$C$4:$K$35,9,FALSE)) -> 8 | AI39: =IF(AI38="","",VLOOKUP(AI38,'【記載例】シフト記号表（勤務時間帯）'!$C$4:$K$35,9,FALSE)) -> 8 | AJ39: =IF(AJ38="","",VLOOKUP(AJ38,'【記載例】シフト記号表（勤務時間帯）'!$C$4:$K$35,9,FALSE)) -> 8 | AK39: =IF(AK38="","",VLOOKUP(AK38,'【記載例】シフト記号表（勤務時間帯）'!$C$4:$K$35,9,FALSE)) -> 8 | AL39: =IF(AL38="","",VLOOKUP(AL38,'【記載例】シフト記号表（勤務時間帯）'!$C$4:$K$35,9,FALSE)) -> - | AM39: =IF(AM38="","",VLOOKUP(AM38,'【記載例】シフト記号表（勤務時間帯）'!$C$4:$K$35,9,FALSE)) -> - | AN39: =IF(AN38="","",VLOOKUP(AN38,'【記載例】シフト記号表（勤務時間帯）'!$C$4:$K$35,9,FALSE)) -> 8 | AO39: =IF(AO38="","",VLOOKUP(AO38,'【記載例】シフト記号表（勤務時間帯）'!$C$4:$K$35,9,FALSE)) -> 8 | AP39: =IF(AP38="","",VLOOKUP(AP38,'【記載例】シフト記号表（勤務時間帯）'!$C$4:$K$35,9,FALSE)) -> 8 | AQ39: =IF(AQ38="","",VLOOKUP(AQ38,'【記載例】シフト記号表（勤務時間帯）'!$C$4:$K$35,9,FALSE)) -> 8 | AR39: =IF(AR38="","",VLOOKUP(AR38,'【記載例】シフト記号表（勤務時間帯）'!$C$4:$K$35,9,FALSE)) -> 8 | AS39: =IF(AS38="","",VLOOKUP(AS38,'【記載例】シフト記号表（勤務時間帯）'!$C$4:$K$35,9,FALSE)) -> - | AT39: =IF(AT38="","",VLOOKUP(AT38,'【記載例】シフト記号表（勤務時間帯）'!$C$4:$K$35,9,FALSE)) -> - | AU39: =IF(AU38="","",VLOOKUP(AU38,'【記載例】シフト記号表（勤務時間帯）'!$C$4:$K$35,9,FALSE)) -> 8 | AV39: =IF(AV38="","",VLOOKUP(AV38,'【記載例】シフト記号表（勤務時間帯）'!$C$4:$K$35,9,FALSE)) ->  | AW39: =IF(AW38="","",VLOOKUP(AW38,'【記載例】シフト記号表（勤務時間帯）'!$C$4:$K$35,9,FALSE)) ->  | AX39: =IF(AX38="","",VLOOKUP(AX38,'【記載例】シフト記号表（勤務時間帯）'!$C$4:$K$35,9,FALSE)) -> 
B40: =B38+1 -> 13 | C40: 訪問介護員_定期 | F40: A | H40: ー | M40: ○○ L朗 | Q40: シフト記号 | T40: c | U40: c | V40: c | W40: c | X40: 休 | Y40: 休 | Z40: c | AA40: c | AB40: c | AC40: c | AD40: c | AE40: 休 | AF40: 休 | AG40: c | AH40: c | AI40: c | AJ40: c | AK40: c | AL40: 休 | AM40: 休 | AN40: c | AO40: c | AP40: c | AQ40: c | AR40: c | AS40: 休 | AT40: 休 | AU40: c | AY40: =IF($BD$3="計画",SUM(T41:AU41),IF($BD$3="実績",SUM(T41:AX41),"")) -> 160 | BA40: =IF($BD$3="計画",AY40/4,IF($BD$3="実績",AY40/($BB$7/7),"")) -> 40
Q41: 勤務時間数 | T41: =IF(T40="","",VLOOKUP(T40,'【記載例】シフト記号表（勤務時間帯）'!$C$4:$K$35,9,FALSE)) -> 8 | U41: =IF(U40="","",VLOOKUP(U40,'【記載例】シフト記号表（勤務時間帯）'!$C$4:$K$35,9,FALSE)) -> 8 | V41: =IF(V40="","",VLOOKUP(V40,'【記載例】シフト記号表（勤務時間帯）'!$C$4:$K$35,9,FALSE)) -> 8 | W41: =IF(W40="","",VLOOKUP(W40,'【記載例】シフト記号表（勤務時間帯）'!$C$4:$K$35,9,FALSE)) -> 8 | X41: =IF(X40="","",VLOOKUP(X40,'【記載例】シフト記号表（勤務時間帯）'!$C$4:$K$35,9,FALSE)) -> - | Y41: =IF(Y40="","",VLOOKUP(Y40,'【記載例】シフト記号表（勤務時間帯）'!$C$4:$K$35,9,FALSE)) -> - | Z41: =IF(Z40="","",VLOOKUP(Z40,'【記載例】シフト記号表（勤務時間帯）'!$C$4:$K$35,9,FALSE)) -> 8 | AA41: =IF(AA40="","",VLOOKUP(AA40,'【記載例】シフト記号表（勤務時間帯）'!$C$4:$K$35,9,FALSE)) -> 8 | AB41: =IF(AB40="","",VLOOKUP(AB40,'【記載例】シフト記号表（勤務時間帯）'!$C$4:$K$35,9,FALSE)) -> 8 | AC41: =IF(AC40="","",VLOOKUP(AC40,'【記載例】シフト記号表（勤務時間帯）'!$C$4:$K$35,9,FALSE)) -> 8 | AD41: =IF(AD40="","",VLOOKUP(AD40,'【記載例】シフト記号表（勤務時間帯）'!$C$4:$K$35,9,FALSE)) -> 8 | AE41: =IF(AE40="","",VLOOKUP(AE40,'【記載例】シフト記号表（勤務時間帯）'!$C$4:$K$35,9,FALSE)) -> - | AF41: =IF(AF40="","",VLOOKUP(AF40,'【記載例】シフト記号表（勤務時間帯）'!$C$4:$K$35,9,FALSE)) -> - | AG41: =IF(AG40="","",VLOOKUP(AG40,'【記載例】シフト記号表（勤務時間帯）'!$C$4:$K$35,9,FALSE)) -> 8 | AH41: =IF(AH40="","",VLOOKUP(AH40,'【記載例】シフト記号表（勤務時間帯）'!$C$4:$K$35,9,FALSE)) -> 8 | AI41: =IF(AI40="","",VLOOKUP(AI40,'【記載例】シフト記号表（勤務時間帯）'!$C$4:$K$35,9,FALSE)) -> 8 | AJ41: =IF(AJ40="","",VLOOKUP(AJ40,'【記載例】シフト記号表（勤務時間帯）'!$C$4:$K$35,9,FALSE)) -> 8 | AK41: =IF(AK40="","",VLOOKUP(AK40,'【記載例】シフト記号表（勤務時間帯）'!$C$4:$K$35,9,FALSE)) -> 8 | AL41: =IF(AL40="","",VLOOKUP(AL40,'【記載例】シフト記号表（勤務時間帯）'!$C$4:$K$35,9,FALSE)) -> - | AM41: =IF(AM40="","",VLOOKUP(AM40,'【記載例】シフト記号表（勤務時間帯）'!$C$4:$K$35,9,FALSE)) -> - | AN41: =IF(AN40="","",VLOOKUP(AN40,'【記載例】シフト記号表（勤務時間帯）'!$C$4:$K$35,9,FALSE)) -> 8 | AO41: =IF(AO40="","",VLOOKUP(AO40,'【記載例】シフト記号表（勤務時間帯）'!$C$4:$K$35,9,FALSE)) -> 8 | AP41: =IF(AP40="","",VLOOKUP(AP40,'【記載例】シフト記号表（勤務時間帯）'!$C$4:$K$35,9,FALSE)) -> 8 | AQ41: =IF(AQ40="","",VLOOKUP(AQ40,'【記載例】シフト記号表（勤務時間帯）'!$C$4:$K$35,9,FALSE)) -> 8 | AR41: =IF(AR40="","",VLOOKUP(AR40,'【記載例】シフト記号表（勤務時間帯）'!$C$4:$K$35,9,FALSE)) -> 8 | AS41: =IF(AS40="","",VLOOKUP(AS40,'【記載例】シフト記号表（勤務時間帯）'!$C$4:$K$35,9,FALSE)) -> - | AT41: =IF(AT40="","",VLOOKUP(AT40,'【記載例】シフト記号表（勤務時間帯）'!$C$4:$K$35,9,FALSE)) -> - | AU41: =IF(AU40="","",VLOOKUP(AU40,'【記載例】シフト記号表（勤務時間帯）'!$C$4:$K$35,9,FALSE)) -> 8 | AV41: =IF(AV40="","",VLOOKUP(AV40,'【記載例】シフト記号表（勤務時間帯）'!$C$4:$K$35,9,FALSE)) ->  | AW41: =IF(AW40="","",VLOOKUP(AW40,'【記載例】シフト記号表（勤務時間帯）'!$C$4:$K$35,9,FALSE)) ->  | AX41: =IF(AX40="","",VLOOKUP(AX40,'【記載例】シフト記号表（勤務時間帯）'!$C$4:$K$35,9,FALSE)) -> 
B42: =B40+1 -> 14 | C42: 訪問介護員_定期 | F42: A | H42: 介護福祉士 | M42: ○○ M子 | Q42: シフト記号 | T42: d | U42: d | V42: d | W42: d | X42: 休 | Y42: 休 | Z42: d | AA42: d | AB42: d | AC42: d | AD42: d | AE42: 休 | AF42: 休 | AG42: d | AH42: d | AI42: d | AJ42: d | AK42: d | AL42: 休 | AM42: 休 | AN42: d | AO42: d | AP42: d | AQ42: d | AR42: d | AS42: 休 | AT42: 休 | AU42: d | AY42: =IF($BD$3="計画",SUM(T43:AU43),IF($BD$3="実績",SUM(T43:AX43),"")) -> 160 | BA42: =IF($BD$3="計画",AY42/4,IF($BD$3="実績",AY42/($BB$7/7),"")) -> 40
Q43: 勤務時間数 | T43: =IF(T42="","",VLOOKUP(T42,'【記載例】シフト記号表（勤務時間帯）'!$C$4:$K$35,9,FALSE)) -> 8 | U43: =IF(U42="","",VLOOKUP(U42,'【記載例】シフト記号表（勤務時間帯）'!$C$4:$K$35,9,FALSE)) -> 8 | V43: =IF(V42="","",VLOOKUP(V42,'【記載例】シフト記号表（勤務時間帯）'!$C$4:$K$35,9,FALSE)) -> 8 | W43: =IF(W42="","",VLOOKUP(W42,'【記載例】シフト記号表（勤務時間帯）'!$C$4:$K$35,9,FALSE)) -> 8 | X43: =IF(X42="","",VLOOKUP(X42,'【記載例】シフト記号表（勤務時間帯）'!$C$4:$K$35,9,FALSE)) -> - | Y43: =IF(Y42="","",VLOOKUP(Y42,'【記載例】シフト記号表（勤務時間帯）'!$C$4:$K$35,9,FALSE)) -> - | Z43: =IF(Z42="","",VLOOKUP(Z42,'【記載例】シフト記号表（勤務時間帯）'!$C$4:$K$35,9,FALSE)) -> 8 | AA43: =IF(AA42="","",VLOOKUP(AA42,'【記載例】シフト記号表（勤務時間帯）'!$C$4:$K$35,9,FALSE)) -> 8 | AB43: =IF(AB42="","",VLOOKUP(AB42,'【記載例】シフト記号表（勤務時間帯）'!$C$4:$K$35,9,FALSE)) -> 8 | AC43: =IF(AC42="","",VLOOKUP(AC42,'【記載例】シフト記号表（勤務時間帯）'!$C$4:$K$35,9,FALSE)) -> 8 | AD43: =IF(AD42="","",VLOOKUP(AD42,'【記載例】シフト記号表（勤務時間帯）'!$C$4:$K$35,9,FALSE)) -> 8 | AE43: =IF(AE42="","",VLOOKUP(AE42,'【記載例】シフト記号表（勤務時間帯）'!$C$4:$K$35,9,FALSE)) -> - | AF43: =IF(AF42="","",VLOOKUP(AF42,'【記載例】シフト記号表（勤務時間帯）'!$C$4:$K$35,9,FALSE)) -> - | AG43: =IF(AG42="","",VLOOKUP(AG42,'【記載例】シフト記号表（勤務時間帯）'!$C$4:$K$35,9,FALSE)) -> 8 | AH43: =IF(AH42="","",VLOOKUP(AH42,'【記載例】シフト記号表（勤務時間帯）'!$C$4:$K$35,9,FALSE)) -> 8 | AI43: =IF(AI42="","",VLOOKUP(AI42,'【記載例】シフト記号表（勤務時間帯）'!$C$4:$K$35,9,FALSE)) -> 8 | AJ43: =IF(AJ42="","",VLOOKUP(AJ42,'【記載例】シフト記号表（勤務時間帯）'!$C$4:$K$35,9,FALSE)) -> 8 | AK43: =IF(AK42="","",VLOOKUP(AK42,'【記載例】シフト記号表（勤務時間帯）'!$C$4:$K$35,9,FALSE)) -> 8 | AL43: =IF(AL42="","",VLOOKUP(AL42,'【記載例】シフト記号表（勤務時間帯）'!$C$4:$K$35,9,FALSE)) -> - | AM43: =IF(AM42="","",VLOOKUP(AM42,'【記載例】シフト記号表（勤務時間帯）'!$C$4:$K$35,9,FALSE)) -> - | AN43: =IF(AN42="","",VLOOKUP(AN42,'【記載例】シフト記号表（勤務時間帯）'!$C$4:$K$35,9,FALSE)) -> 8 | AO43: =IF(AO42="","",VLOOKUP(AO42,'【記載例】シフト記号表（勤務時間帯）'!$C$4:$K$35,9,FALSE)) -> 8 | AP43: =IF(AP42="","",VLOOKUP(AP42,'【記載例】シフト記号表（勤務時間帯）'!$C$4:$K$35,9,FALSE)) -> 8 | AQ43: =IF(AQ42="","",VLOOKUP(AQ42,'【記載例】シフト記号表（勤務時間帯）'!$C$4:$K$35,9,FALSE)) -> 8 | AR43: =IF(AR42="","",VLOOKUP(AR42,'【記載例】シフト記号表（勤務時間帯）'!$C$4:$K$35,9,FALSE)) -> 8 | AS43: =IF(AS42="","",VLOOKUP(AS42,'【記載例】シフト記号表（勤務時間帯）'!$C$4:$K$35,9,FALSE)) -> - | AT43: =IF(AT42="","",VLOOKUP(AT42,'【記載例】シフト記号表（勤務時間帯）'!$C$4:$K$35,9,FALSE)) -> - | AU43: =IF(AU42="","",VLOOKUP(AU42,'【記載例】シフト記号表（勤務時間帯）'!$C$4:$K$35,9,FALSE)) -> 8 | AV43: =IF(AV42="","",VLOOKUP(AV42,'【記載例】シフト記号表（勤務時間帯）'!$C$4:$K$35,9,FALSE)) ->  | AW43: =IF(AW42="","",VLOOKUP(AW42,'【記載例】シフト記号表（勤務時間帯）'!$C$4:$K$35,9,FALSE)) ->  | AX43: =IF(AX42="","",VLOOKUP(AX42,'【記載例】シフト記号表（勤務時間帯）'!$C$4:$K$35,9,FALSE)) -> 
B44: =B42+1 -> 15 | C44: 訪問介護員_随時 | F44: B | H44: 介護福祉士 | M44: ○○ A郎 | Q44: シフト記号 | T44: 休 | U44: r | V44: r | W44: r | X44: 休 | Y44: r | Z44: r | AA44: 休 | AB44: r | AC44: r | AD44: r | AE44: 休 | AF44: r | AG44: r | AH44: 休 | AI44: r | AJ44: r | AK44: r | AL44: 休 | AM44: r | AN44: r | AO44: 休 | AP44: r | AQ44: r | AR44: r | AS44: 休 | AT44: r | AU44: r | AY44: =IF($BD$3="計画",SUM(T45:AU45),IF($BD$3="実績",SUM(T45:AX45),"")) -> 80 | BA44: =IF($BD$3="計画",AY44/4,IF($BD$3="実績",AY44/($BB$7/7),"")) -> 20 | BC44: 計画作成責任者
Q45: 勤務時間数 | T45: =IF(T44="","",VLOOKUP(T44,'【記載例】シフト記号表（勤務時間帯）'!$C$4:$K$35,9,FALSE)) -> - | U45: =IF(U44="","",VLOOKUP(U44,'【記載例】シフト記号表（勤務時間帯）'!$C$4:$K$35,9,FALSE)) -> 4 | V45: =IF(V44="","",VLOOKUP(V44,'【記載例】シフト記号表（勤務時間帯）'!$C$4:$K$35,9,FALSE)) -> 4 | W45: =IF(W44="","",VLOOKUP(W44,'【記載例】シフト記号表（勤務時間帯）'!$C$4:$K$35,9,FALSE)) -> 4 | X45: =IF(X44="","",VLOOKUP(X44,'【記載例】シフト記号表（勤務時間帯）'!$C$4:$K$35,9,FALSE)) -> - | Y45: =IF(Y44="","",VLOOKUP(Y44,'【記載例】シフト記号表（勤務時間帯）'!$C$4:$K$35,9,FALSE)) -> 4 | Z45: =IF(Z44="","",VLOOKUP(Z44,'【記載例】シフト記号表（勤務時間帯）'!$C$4:$K$35,9,FALSE)) -> 4 | AA45: =IF(AA44="","",VLOOKUP(AA44,'【記載例】シフト記号表（勤務時間帯）'!$C$4:$K$35,9,FALSE)) -> - | AB45: =IF(AB44="","",VLOOKUP(AB44,'【記載例】シフト記号表（勤務時間帯）'!$C$4:$K$35,9,FALSE)) -> 4 | AC45: =IF(AC44="","",VLOOKUP(AC44,'【記載例】シフト記号表（勤務時間帯）'!$C$4:$K$35,9,FALSE)) -> 4 | AD45: =IF(AD44="","",VLOOKUP(AD44,'【記載例】シフト記号表（勤務時間帯）'!$C$4:$K$35,9,FALSE)) -> 4 | AE45: =IF(AE44="","",VLOOKUP(AE44,'【記載例】シフト記号表（勤務時間帯）'!$C$4:$K$35,9,FALSE)) -> - | AF45: =IF(AF44="","",VLOOKUP(AF44,'【記載例】シフト記号表（勤務時間帯）'!$C$4:$K$35,9,FALSE)) -> 4 | AG45: =IF(AG44="","",VLOOKUP(AG44,'【記載例】シフト記号表（勤務時間帯）'!$C$4:$K$35,9,FALSE)) -> 4 | AH45: =IF(AH44="","",VLOOKUP(AH44,'【記載例】シフト記号表（勤務時間帯）'!$C$4:$K$35,9,FALSE)) -> - | AI45: =IF(AI44="","",VLOOKUP(AI44,'【記載例】シフト記号表（勤務時間帯）'!$C$4:$K$35,9,FALSE)) -> 4 | AJ45: =IF(AJ44="","",VLOOKUP(AJ44,'【記載例】シフト記号表（勤務時間帯）'!$C$4:$K$35,9,FALSE)) -> 4 | AK45: =IF(AK44="","",VLOOKUP(AK44,'【記載例】シフト記号表（勤務時間帯）'!$C$4:$K$35,9,FALSE)) -> 4 | AL45: =IF(AL44="","",VLOOKUP(AL44,'【記載例】シフト記号表（勤務時間帯）'!$C$4:$K$35,9,FALSE)) -> - | AM45: =IF(AM44="","",VLOOKUP(AM44,'【記載例】シフト記号表（勤務時間帯）'!$C$4:$K$35,9,FALSE)) -> 4 | AN45: =IF(AN44="","",VLOOKUP(AN44,'【記載例】シフト記号表（勤務時間帯）'!$C$4:$K$35,9,FALSE)) -> 4 | AO45: =IF(AO44="","",VLOOKUP(AO44,'【記載例】シフト記号表（勤務時間帯）'!$C$4:$K$35,9,FALSE)) -> - | AP45: =IF(AP44="","",VLOOKUP(AP44,'【記載例】シフト記号表（勤務時間帯）'!$C$4:$K$35,9,FALSE)) -> 4 | AQ45: =IF(AQ44="","",VLOOKUP(AQ44,'【記載例】シフト記号表（勤務時間帯）'!$C$4:$K$35,9,FALSE)) -> 4 | AR45: =IF(AR44="","",VLOOKUP(AR44,'【記載例】シフト記号表（勤務時間帯）'!$C$4:$K$35,9,FALSE)) -> 4 | AS45: =IF(AS44="","",VLOOKUP(AS44,'【記載例】シフト記号表（勤務時間帯）'!$C$4:$K$35,9,FALSE)) -> - | AT45: =IF(AT44="","",VLOOKUP(AT44,'【記載例】シフト記号表（勤務時間帯）'!$C$4:$K$35,9,FALSE)) -> 4 | AU45: =IF(AU44="","",VLOOKUP(AU44,'【記載例】シフト記号表（勤務時間帯）'!$C$4:$K$35,9,FALSE)) -> 4 | AV45: =IF(AV44="","",VLOOKUP(AV44,'【記載例】シフト記号表（勤務時間帯）'!$C$4:$K$35,9,FALSE)) ->  | AW45: =IF(AW44="","",VLOOKUP(AW44,'【記載例】シフト記号表（勤務時間帯）'!$C$4:$K$35,9,FALSE)) ->  | AX45: =IF(AX44="","",VLOOKUP(AX44,'【記載例】シフト記号表（勤務時間帯）'!$C$4:$K$35,9,FALSE)) -> 
B46: =B44+1 -> 16 | C46: 訪問介護員_随時 | F46: A | H46: ー | M46: ○○ O美 | Q46: シフト記号 | T46: b | U46: b | V46: 休 | W46: 休 | X46: b | Y46: b | Z46: b | AA46: b | AB46: b | AC46: 休 | AD46: 休 | AE46: b | AF46: b | AG46: b | AH46: b | AI46: b | AJ46: 休 | AK46: 休 | AL46: b | AM46: b | AN46: b | AO46: b | AP46: b | AQ46: 休 | AR46: 休 | AS46: b | AT46: b | AU46: b | AY46: =IF($BD$3="計画",SUM(T47:AU47),IF($BD$3="実績",SUM(T47:AX47),"")) -> 160 | BA46: =IF($BD$3="計画",AY46/4,IF($BD$3="実績",AY46/($BB$7/7),"")) -> 40
Q47: 勤務時間数 | T47: =IF(T46="","",VLOOKUP(T46,'【記載例】シフト記号表（勤務時間帯）'!$C$4:$K$35,9,FALSE)) -> 8 | U47: =IF(U46="","",VLOOKUP(U46,'【記載例】シフト記号表（勤務時間帯）'!$C$4:$K$35,9,FALSE)) -> 8 | V47: =IF(V46="","",VLOOKUP(V46,'【記載例】シフト記号表（勤務時間帯）'!$C$4:$K$35,9,FALSE)) -> - | W47: =IF(W46="","",VLOOKUP(W46,'【記載例】シフト記号表（勤務時間帯）'!$C$4:$K$35,9,FALSE)) -> - | X47: =IF(X46="","",VLOOKUP(X46,'【記載例】シフト記号表（勤務時間帯）'!$C$4:$K$35,9,FALSE)) -> 8 | Y47: =IF(Y46="","",VLOOKUP(Y46,'【記載例】シフト記号表（勤務時間帯）'!$C$4:$K$35,9,FALSE)) -> 8 | Z47: =IF(Z46="","",VLOOKUP(Z46,'【記載例】シフト記号表（勤務時間帯）'!$C$4:$K$35,9,FALSE)) -> 8 | AA47: =IF(AA46="","",VLOOKUP(AA46,'【記載例】シフト記号表（勤務時間帯）'!$C$4:$K$35,9,FALSE)) -> 8 | AB47: =IF(AB46="","",VLOOKUP(AB46,'【記載例】シフト記号表（勤務時間帯）'!$C$4:$K$35,9,FALSE)) -> 8 | AC47: =IF(AC46="","",VLOOKUP(AC46,'【記載例】シフト記号表（勤務時間帯）'!$C$4:$K$35,9,FALSE)) -> - | AD47: =IF(AD46="","",VLOOKUP(AD46,'【記載例】シフト記号表（勤務時間帯）'!$C$4:$K$35,9,FALSE)) -> - | AE47: =IF(AE46="","",VLOOKUP(AE46,'【記載例】シフト記号表（勤務時間帯）'!$C$4:$K$35,9,FALSE)) -> 8 | AF47: =IF(AF46="","",VLOOKUP(AF46,'【記載例】シフト記号表（勤務時間帯）'!$C$4:$K$35,9,FALSE)) -> 8 | AG47: =IF(AG46="","",VLOOKUP(AG46,'【記載例】シフト記号表（勤務時間帯）'!$C$4:$K$35,9,FALSE)) -> 8 | AH47: =IF(AH46="","",VLOOKUP(AH46,'【記載例】シフト記号表（勤務時間帯）'!$C$4:$K$35,9,FALSE)) -> 8 | AI47: =IF(AI46="","",VLOOKUP(AI46,'【記載例】シフト記号表（勤務時間帯）'!$C$4:$K$35,9,FALSE)) -> 8 | AJ47: =IF(AJ46="","",VLOOKUP(AJ46,'【記載例】シフト記号表（勤務時間帯）'!$C$4:$K$35,9,FALSE)) -> - | AK47: =IF(AK46="","",VLOOKUP(AK46,'【記載例】シフト記号表（勤務時間帯）'!$C$4:$K$35,9,FALSE)) -> - | AL47: =IF(AL46="","",VLOOKUP(AL46,'【記載例】シフト記号表（勤務時間帯）'!$C$4:$K$35,9,FALSE)) -> 8 | AM47: =IF(AM46="","",VLOOKUP(AM46,'【記載例】シフト記号表（勤務時間帯）'!$C$4:$K$35,9,FALSE)) -> 8 | AN47: =IF(AN46="","",VLOOKUP(AN46,'【記載例】シフト記号表（勤務時間帯）'!$C$4:$K$35,9,FALSE)) -> 8 | AO47: =IF(AO46="","",VLOOKUP(AO46,'【記載例】シフト記号表（勤務時間帯）'!$C$4:$K$35,9,FALSE)) -> 8 | AP47: =IF(AP46="","",VLOOKUP(AP46,'【記載例】シフト記号表（勤務時間帯）'!$C$4:$K$35,9,FALSE)) -> 8 | AQ47: =IF(AQ46="","",VLOOKUP(AQ46,'【記載例】シフト記号表（勤務時間帯）'!$C$4:$K$35,9,FALSE)) -> - | AR47: =IF(AR46="","",VLOOKUP(AR46,'【記載例】シフト記号表（勤務時間帯）'!$C$4:$K$35,9,FALSE)) -> - | AS47: =IF(AS46="","",VLOOKUP(AS46,'【記載例】シフト記号表（勤務時間帯）'!$C$4:$K$35,9,FALSE)) -> 8 | AT47: =IF(AT46="","",VLOOKUP(AT46,'【記載例】シフト記号表（勤務時間帯）'!$C$4:$K$35,9,FALSE)) -> 8 | AU47: =IF(AU46="","",VLOOKUP(AU46,'【記載例】シフト記号表（勤務時間帯）'!$C$4:$K$35,9,FALSE)) -> 8 | AV47: =IF(AV46="","",VLOOKUP(AV46,'【記載例】シフト記号表（勤務時間帯）'!$C$4:$K$35,9,FALSE)) ->  | AW47: =IF(AW46="","",VLOOKUP(AW46,'【記載例】シフト記号表（勤務時間帯）'!$C$4:$K$35,9,FALSE)) ->  | AX47: =IF(AX46="","",VLOOKUP(AX46,'【記載例】シフト記号表（勤務時間帯）'!$C$4:$K$35,9,FALSE)) -> 
B48: =B46+1 -> 17 | C48: 訪問介護員_随時 | F48: A | H48: 介護福祉士 | M48: ○○ P子 | Q48: シフト記号 | T48: c | U48: c | V48: 休 | W48: 休 | X48: c | Y48: c | Z48: c | AA48: c | AB48: c | AC48: 休 | AD48: 休 | AE48: c | AF48: c | AG48: c | AH48: c | AI48: c | AJ48: 休 | AK48: 休 | AL48: c | AM48: c | AN48: c | AO48: c | AP48: c | AQ48: 休 | AR48: 休 | AS48: c | AT48: c | AU48: c | AY48: =IF($BD$3="計画",SUM(T49:AU49),IF($BD$3="実績",SUM(T49:AX49),"")) -> 160 | BA48: =IF($BD$3="計画",AY48/4,IF($BD$3="実績",AY48/($BB$7/7),"")) -> 40
Q49: 勤務時間数 | T49: =IF(T48="","",VLOOKUP(T48,'【記載例】シフト記号表（勤務時間帯）'!$C$4:$K$35,9,FALSE)) -> 8 | U49: =IF(U48="","",VLOOKUP(U48,'【記載例】シフト記号表（勤務時間帯）'!$C$4:$K$35,9,FALSE)) -> 8 | V49: =IF(V48="","",VLOOKUP(V48,'【記載例】シフト記号表（勤務時間帯）'!$C$4:$K$35,9,FALSE)) -> - | W49: =IF(W48="","",VLOOKUP(W48,'【記載例】シフト記号表（勤務時間帯）'!$C$4:$K$35,9,FALSE)) -> - | X49: =IF(X48="","",VLOOKUP(X48,'【記載例】シフト記号表（勤務時間帯）'!$C$4:$K$35,9,FALSE)) -> 8 | Y49: =IF(Y48="","",VLOOKUP(Y48,'【記載例】シフト記号表（勤務時間帯）'!$C$4:$K$35,9,FALSE)) -> 8 | Z49: =IF(Z48="","",VLOOKUP(Z48,'【記載例】シフト記号表（勤務時間帯）'!$C$4:$K$35,9,FALSE)) -> 8 | AA49: =IF(AA48="","",VLOOKUP(AA48,'【記載例】シフト記号表（勤務時間帯）'!$C$4:$K$35,9,FALSE)) -> 8 | AB49: =IF(AB48="","",VLOOKUP(AB48,'【記載例】シフト記号表（勤務時間帯）'!$C$4:$K$35,9,FALSE)) -> 8 | AC49: =IF(AC48="","",VLOOKUP(AC48,'【記載例】シフト記号表（勤務時間帯）'!$C$4:$K$35,9,FALSE)) -> - | AD49: =IF(AD48="","",VLOOKUP(AD48,'【記載例】シフト記号表（勤務時間帯）'!$C$4:$K$35,9,FALSE)) -> - | AE49: =IF(AE48="","",VLOOKUP(AE48,'【記載例】シフト記号表（勤務時間帯）'!$C$4:$K$35,9,FALSE)) -> 8 | AF49: =IF(AF48="","",VLOOKUP(AF48,'【記載例】シフト記号表（勤務時間帯）'!$C$4:$K$35,9,FALSE)) -> 8 | AG49: =IF(AG48="","",VLOOKUP(AG48,'【記載例】シフト記号表（勤務時間帯）'!$C$4:$K$35,9,FALSE)) -> 8 | AH49: =IF(AH48="","",VLOOKUP(AH48,'【記載例】シフト記号表（勤務時間帯）'!$C$4:$K$35,9,FALSE)) -> 8 | AI49: =IF(AI48="","",VLOOKUP(AI48,'【記載例】シフト記号表（勤務時間帯）'!$C$4:$K$35,9,FALSE)) -> 8 | AJ49: =IF(AJ48="","",VLOOKUP(AJ48,'【記載例】シフト記号表（勤務時間帯）'!$C$4:$K$35,9,FALSE)) -> - | AK49: =IF(AK48="","",VLOOKUP(AK48,'【記載例】シフト記号表（勤務時間帯）'!$C$4:$K$35,9,FALSE)) -> - | AL49: =IF(AL48="","",VLOOKUP(AL48,'【記載例】シフト記号表（勤務時間帯）'!$C$4:$K$35,9,FALSE)) -> 8 | AM49: =IF(AM48="","",VLOOKUP(AM48,'【記載例】シフト記号表（勤務時間帯）'!$C$4:$K$35,9,FALSE)) -> 8 | AN49: =IF(AN48="","",VLOOKUP(AN48,'【記載例】シフト記号表（勤務時間帯）'!$C$4:$K$35,9,FALSE)) -> 8 | AO49: =IF(AO48="","",VLOOKUP(AO48,'【記載例】シフト記号表（勤務時間帯）'!$C$4:$K$35,9,FALSE)) -> 8 | AP49: =IF(AP48="","",VLOOKUP(AP48,'【記載例】シフト記号表（勤務時間帯）'!$C$4:$K$35,9,FALSE)) -> 8 | AQ49: =IF(AQ48="","",VLOOKUP(AQ48,'【記載例】シフト記号表（勤務時間帯）'!$C$4:$K$35,9,FALSE)) -> - | AR49: =IF(AR48="","",VLOOKUP(AR48,'【記載例】シフト記号表（勤務時間帯）'!$C$4:$K$35,9,FALSE)) -> - | AS49: =IF(AS48="","",VLOOKUP(AS48,'【記載例】シフト記号表（勤務時間帯）'!$C$4:$K$35,9,FALSE)) -> 8 | AT49: =IF(AT48="","",VLOOKUP(AT48,'【記載例】シフト記号表（勤務時間帯）'!$C$4:$K$35,9,FALSE)) -> 8 | AU49: =IF(AU48="","",VLOOKUP(AU48,'【記載例】シフト記号表（勤務時間帯）'!$C$4:$K$35,9,FALSE)) -> 8 | AV49: =IF(AV48="","",VLOOKUP(AV48,'【記載例】シフト記号表（勤務時間帯）'!$C$4:$K$35,9,FALSE)) ->  | AW49: =IF(AW48="","",VLOOKUP(AW48,'【記載例】シフト記号表（勤務時間帯）'!$C$4:$K$35,9,FALSE)) ->  | AX49: =IF(AX48="","",VLOOKUP(AX48,'【記載例】シフト記号表（勤務時間帯）'!$C$4:$K$35,9,FALSE)) -> 
B50: =B48+1 -> 18 | C50: 訪問介護員_随時 | F50: A | H50: ー | M50: ○○ Q郞 | Q50: シフト記号 | T50: d | U50: d | V50: 休 | W50: 休 | X50: d | Y50: d | Z50: d | AA50: d | AB50: d | AC50: 休 | AD50: 休 | AE50: d | AF50: d | AG50: d | AH50: d | AI50: d | AJ50: 休 | AK50: 休 | AL50: d | AM50: d | AN50: d | AO50: d | AP50: d | AQ50: 休 | AR50: 休 | AS50: d | AT50: d | AU50: d | AY50: =IF($BD$3="計画",SUM(T51:AU51),IF($BD$3="実績",SUM(T51:AX51),"")) -> 160 | BA50: =IF($BD$3="計画",AY50/4,IF($BD$3="実績",AY50/($BB$7/7),"")) -> 40
Q51: 勤務時間数 | T51: =IF(T50="","",VLOOKUP(T50,'【記載例】シフト記号表（勤務時間帯）'!$C$4:$K$35,9,FALSE)) -> 8 | U51: =IF(U50="","",VLOOKUP(U50,'【記載例】シフト記号表（勤務時間帯）'!$C$4:$K$35,9,FALSE)) -> 8 | V51: =IF(V50="","",VLOOKUP(V50,'【記載例】シフト記号表（勤務時間帯）'!$C$4:$K$35,9,FALSE)) -> - | W51: =IF(W50="","",VLOOKUP(W50,'【記載例】シフト記号表（勤務時間帯）'!$C$4:$K$35,9,FALSE)) -> - | X51: =IF(X50="","",VLOOKUP(X50,'【記載例】シフト記号表（勤務時間帯）'!$C$4:$K$35,9,FALSE)) -> 8 | Y51: =IF(Y50="","",VLOOKUP(Y50,'【記載例】シフト記号表（勤務時間帯）'!$C$4:$K$35,9,FALSE)) -> 8 | Z51: =IF(Z50="","",VLOOKUP(Z50,'【記載例】シフト記号表（勤務時間帯）'!$C$4:$K$35,9,FALSE)) -> 8 | AA51: =IF(AA50="","",VLOOKUP(AA50,'【記載例】シフト記号表（勤務時間帯）'!$C$4:$K$35,9,FALSE)) -> 8 | AB51: =IF(AB50="","",VLOOKUP(AB50,'【記載例】シフト記号表（勤務時間帯）'!$C$4:$K$35,9,FALSE)) -> 8 | AC51: =IF(AC50="","",VLOOKUP(AC50,'【記載例】シフト記号表（勤務時間帯）'!$C$4:$K$35,9,FALSE)) -> - | AD51: =IF(AD50="","",VLOOKUP(AD50,'【記載例】シフト記号表（勤務時間帯）'!$C$4:$K$35,9,FALSE)) -> - | AE51: =IF(AE50="","",VLOOKUP(AE50,'【記載例】シフト記号表（勤務時間帯）'!$C$4:$K$35,9,FALSE)) -> 8 | AF51: =IF(AF50="","",VLOOKUP(AF50,'【記載例】シフト記号表（勤務時間帯）'!$C$4:$K$35,9,FALSE)) -> 8 | AG51: =IF(AG50="","",VLOOKUP(AG50,'【記載例】シフト記号表（勤務時間帯）'!$C$4:$K$35,9,FALSE)) -> 8 | AH51: =IF(AH50="","",VLOOKUP(AH50,'【記載例】シフト記号表（勤務時間帯）'!$C$4:$K$35,9,FALSE)) -> 8 | AI51: =IF(AI50="","",VLOOKUP(AI50,'【記載例】シフト記号表（勤務時間帯）'!$C$4:$K$35,9,FALSE)) -> 8 | AJ51: =IF(AJ50="","",VLOOKUP(AJ50,'【記載例】シフト記号表（勤務時間帯）'!$C$4:$K$35,9,FALSE)) -> - | AK51: =IF(AK50="","",VLOOKUP(AK50,'【記載例】シフト記号表（勤務時間帯）'!$C$4:$K$35,9,FALSE)) -> - | AL51: =IF(AL50="","",VLOOKUP(AL50,'【記載例】シフト記号表（勤務時間帯）'!$C$4:$K$35,9,FALSE)) -> 8 | AM51: =IF(AM50="","",VLOOKUP(AM50,'【記載例】シフト記号表（勤務時間帯）'!$C$4:$K$35,9,FALSE)) -> 8 | AN51: =IF(AN50="","",VLOOKUP(AN50,'【記載例】シフト記号表（勤務時間帯）'!$C$4:$K$35,9,FALSE)) -> 8 | AO51: =IF(AO50="","",VLOOKUP(AO50,'【記載例】シフト記号表（勤務時間帯）'!$C$4:$K$35,9,FALSE)) -> 8 | AP51: =IF(AP50="","",VLOOKUP(AP50,'【記載例】シフト記号表（勤務時間帯）'!$C$4:$K$35,9,FALSE)) -> 8 | AQ51: =IF(AQ50="","",VLOOKUP(AQ50,'【記載例】シフト記号表（勤務時間帯）'!$C$4:$K$35,9,FALSE)) -> - | AR51: =IF(AR50="","",VLOOKUP(AR50,'【記載例】シフト記号表（勤務時間帯）'!$C$4:$K$35,9,FALSE)) -> - | AS51: =IF(AS50="","",VLOOKUP(AS50,'【記載例】シフト記号表（勤務時間帯）'!$C$4:$K$35,9,FALSE)) -> 8 | AT51: =IF(AT50="","",VLOOKUP(AT50,'【記載例】シフト記号表（勤務時間帯）'!$C$4:$K$35,9,FALSE)) -> 8 | AU51: =IF(AU50="","",VLOOKUP(AU50,'【記載例】シフト記号表（勤務時間帯）'!$C$4:$K$35,9,FALSE)) -> 8 | AV51: =IF(AV50="","",VLOOKUP(AV50,'【記載例】シフト記号表（勤務時間帯）'!$C$4:$K$35,9,FALSE)) ->  | AW51: =IF(AW50="","",VLOOKUP(AW50,'【記載例】シフト記号表（勤務時間帯）'!$C$4:$K$35,9,FALSE)) ->  | AX51: =IF(AX50="","",VLOOKUP(AX50,'【記載例】シフト記号表（勤務時間帯）'!$C$4:$K$35,9,FALSE)) -> 
B52: =B50+1 -> 19 | C52: 訪問介護員_随時 | F52: A | H52: ー | M52: ○○ R子 | Q52: シフト記号 | T52: b | U52: b | V52: b | W52: b | X52: 休 | Y52: 休 | Z52: b | AA52: b | AB52: b | AC52: b | AD52: b | AE52: 休 | AF52: 休 | AG52: b | AH52: b | AI52: b | AJ52: b | AK52: b | AL52: 休 | AM52: 休 | AN52: b | AO52: b | AP52: b | AQ52: b | AR52: b | AS52: 休 | AT52: 休 | AU52: b | AY52: =IF($BD$3="計画",SUM(T53:AU53),IF($BD$3="実績",SUM(T53:AX53),"")) -> 160 | BA52: =IF($BD$3="計画",AY52/4,IF($BD$3="実績",AY52/($BB$7/7),"")) -> 40
Q53: 勤務時間数 | T53: =IF(T52="","",VLOOKUP(T52,'【記載例】シフト記号表（勤務時間帯）'!$C$4:$K$35,9,FALSE)) -> 8 | U53: =IF(U52="","",VLOOKUP(U52,'【記載例】シフト記号表（勤務時間帯）'!$C$4:$K$35,9,FALSE)) -> 8 | V53: =IF(V52="","",VLOOKUP(V52,'【記載例】シフト記号表（勤務時間帯）'!$C$4:$K$35,9,FALSE)) -> 8 | W53: =IF(W52="","",VLOOKUP(W52,'【記載例】シフト記号表（勤務時間帯）'!$C$4:$K$35,9,FALSE)) -> 8 | X53: =IF(X52="","",VLOOKUP(X52,'【記載例】シフト記号表（勤務時間帯）'!$C$4:$K$35,9,FALSE)) -> - | Y53: =IF(Y52="","",VLOOKUP(Y52,'【記載例】シフト記号表（勤務時間帯）'!$C$4:$K$35,9,FALSE)) -> - | Z53: =IF(Z52="","",VLOOKUP(Z52,'【記載例】シフト記号表（勤務時間帯）'!$C$4:$K$35,9,FALSE)) -> 8 | AA53: =IF(AA52="","",VLOOKUP(AA52,'【記載例】シフト記号表（勤務時間帯）'!$C$4:$K$35,9,FALSE)) -> 8 | AB53: =IF(AB52="","",VLOOKUP(AB52,'【記載例】シフト記号表（勤務時間帯）'!$C$4:$K$35,9,FALSE)) -> 8 | AC53: =IF(AC52="","",VLOOKUP(AC52,'【記載例】シフト記号表（勤務時間帯）'!$C$4:$K$35,9,FALSE)) -> 8 | AD53: =IF(AD52="","",VLOOKUP(AD52,'【記載例】シフト記号表（勤務時間帯）'!$C$4:$K$35,9,FALSE)) -> 8 | AE53: =IF(AE52="","",VLOOKUP(AE52,'【記載例】シフト記号表（勤務時間帯）'!$C$4:$K$35,9,FALSE)) -> - | AF53: =IF(AF52="","",VLOOKUP(AF52,'【記載例】シフト記号表（勤務時間帯）'!$C$4:$K$35,9,FALSE)) -> - | AG53: =IF(AG52="","",VLOOKUP(AG52,'【記載例】シフト記号表（勤務時間帯）'!$C$4:$K$35,9,FALSE)) -> 8 | AH53: =IF(AH52="","",VLOOKUP(AH52,'【記載例】シフト記号表（勤務時間帯）'!$C$4:$K$35,9,FALSE)) -> 8 | AI53: =IF(AI52="","",VLOOKUP(AI52,'【記載例】シフト記号表（勤務時間帯）'!$C$4:$K$35,9,FALSE)) -> 8 | AJ53: =IF(AJ52="","",VLOOKUP(AJ52,'【記載例】シフト記号表（勤務時間帯）'!$C$4:$K$35,9,FALSE)) -> 8 | AK53: =IF(AK52="","",VLOOKUP(AK52,'【記載例】シフト記号表（勤務時間帯）'!$C$4:$K$35,9,FALSE)) -> 8 | AL53: =IF(AL52="","",VLOOKUP(AL52,'【記載例】シフト記号表（勤務時間帯）'!$C$4:$K$35,9,FALSE)) -> - | AM53: =IF(AM52="","",VLOOKUP(AM52,'【記載例】シフト記号表（勤務時間帯）'!$C$4:$K$35,9,FALSE)) -> - | AN53: =IF(AN52="","",VLOOKUP(AN52,'【記載例】シフト記号表（勤務時間帯）'!$C$4:$K$35,9,FALSE)) -> 8 | AO53: =IF(AO52="","",VLOOKUP(AO52,'【記載例】シフト記号表（勤務時間帯）'!$C$4:$K$35,9,FALSE)) -> 8 | AP53: =IF(AP52="","",VLOOKUP(AP52,'【記載例】シフト記号表（勤務時間帯）'!$C$4:$K$35,9,FALSE)) -> 8 | AQ53: =IF(AQ52="","",VLOOKUP(AQ52,'【記載例】シフト記号表（勤務時間帯）'!$C$4:$K$35,9,FALSE)) -> 8 | AR53: =IF(AR52="","",VLOOKUP(AR52,'【記載例】シフト記号表（勤務時間帯）'!$C$4:$K$35,9,FALSE)) -> 8 | AS53: =IF(AS52="","",VLOOKUP(AS52,'【記載例】シフト記号表（勤務時間帯）'!$C$4:$K$35,9,FALSE)) -> - | AT53: =IF(AT52="","",VLOOKUP(AT52,'【記載例】シフト記号表（勤務時間帯）'!$C$4:$K$35,9,FALSE)) -> - | AU53: =IF(AU52="","",VLOOKUP(AU52,'【記載例】シフト記号表（勤務時間帯）'!$C$4:$K$35,9,FALSE)) -> 8 | AV53: =IF(AV52="","",VLOOKUP(AV52,'【記載例】シフト記号表（勤務時間帯）'!$C$4:$K$35,9,FALSE)) ->  | AW53: =IF(AW52="","",VLOOKUP(AW52,'【記載例】シフト記号表（勤務時間帯）'!$C$4:$K$35,9,FALSE)) ->  | AX53: =IF(AX52="","",VLOOKUP(AX52,'【記載例】シフト記号表（勤務時間帯）'!$C$4:$K$35,9,FALSE)) -> 
B54: =B52+1 -> 20 | C54: 訪問介護員_随時 | F54: A | H54: 介護福祉士 | M54: ○○ S夫 | Q54: シフト記号 | T54: c | U54: c | V54: c | W54: c | X54: 休 | Y54: 休 | Z54: c | AA54: c | AB54: c | AC54: c | AD54: c | AE54: 休 | AF54: 休 | AG54: c | AH54: c | AI54: c | AJ54: c | AK54: c | AL54: 休 | AM54: 休 | AN54: c | AO54: c | AP54: c | AQ54: c | AR54: c | AS54: 休 | AT54: 休 | AU54: c | AY54: =IF($BD$3="計画",SUM(T55:AU55),IF($BD$3="実績",SUM(T55:AX55),"")) -> 160 | BA54: =IF($BD$3="計画",AY54/4,IF($BD$3="実績",AY54/($BB$7/7),"")) -> 40
Q55: 勤務時間数 | T55: =IF(T54="","",VLOOKUP(T54,'【記載例】シフト記号表（勤務時間帯）'!$C$4:$K$35,9,FALSE)) -> 8 | U55: =IF(U54="","",VLOOKUP(U54,'【記載例】シフト記号表（勤務時間帯）'!$C$4:$K$35,9,FALSE)) -> 8 | V55: =IF(V54="","",VLOOKUP(V54,'【記載例】シフト記号表（勤務時間帯）'!$C$4:$K$35,9,FALSE)) -> 8 | W55: =IF(W54="","",VLOOKUP(W54,'【記載例】シフト記号表（勤務時間帯）'!$C$4:$K$35,9,FALSE)) -> 8 | X55: =IF(X54="","",VLOOKUP(X54,'【記載例】シフト記号表（勤務時間帯）'!$C$4:$K$35,9,FALSE)) -> - | Y55: =IF(Y54="","",VLOOKUP(Y54,'【記載例】シフト記号表（勤務時間帯）'!$C$4:$K$35,9,FALSE)) -> - | Z55: =IF(Z54="","",VLOOKUP(Z54,'【記載例】シフト記号表（勤務時間帯）'!$C$4:$K$35,9,FALSE)) -> 8 | AA55: =IF(AA54="","",VLOOKUP(AA54,'【記載例】シフト記号表（勤務時間帯）'!$C$4:$K$35,9,FALSE)) -> 8 | AB55: =IF(AB54="","",VLOOKUP(AB54,'【記載例】シフト記号表（勤務時間帯）'!$C$4:$K$35,9,FALSE)) -> 8 | AC55: =IF(AC54="","",VLOOKUP(AC54,'【記載例】シフト記号表（勤務時間帯）'!$C$4:$K$35,9,FALSE)) -> 8 | AD55: =IF(AD54="","",VLOOKUP(AD54,'【記載例】シフト記号表（勤務時間帯）'!$C$4:$K$35,9,FALSE)) -> 8 | AE55: =IF(AE54="","",VLOOKUP(AE54,'【記載例】シフト記号表（勤務時間帯）'!$C$4:$K$35,9,FALSE)) -> - | AF55: =IF(AF54="","",VLOOKUP(AF54,'【記載例】シフト記号表（勤務時間帯）'!$C$4:$K$35,9,FALSE)) -> - | AG55: =IF(AG54="","",VLOOKUP(AG54,'【記載例】シフト記号表（勤務時間帯）'!$C$4:$K$35,9,FALSE)) -> 8 | AH55: =IF(AH54="","",VLOOKUP(AH54,'【記載例】シフト記号表（勤務時間帯）'!$C$4:$K$35,9,FALSE)) -> 8 | AI55: =IF(AI54="","",VLOOKUP(AI54,'【記載例】シフト記号表（勤務時間帯）'!$C$4:$K$35,9,FALSE)) -> 8 | AJ55: =IF(AJ54="","",VLOOKUP(AJ54,'【記載例】シフト記号表（勤務時間帯）'!$C$4:$K$35,9,FALSE)) -> 8 | AK55: =IF(AK54="","",VLOOKUP(AK54,'【記載例】シフト記号表（勤務時間帯）'!$C$4:$K$35,9,FALSE)) -> 8 | AL55: =IF(AL54="","",VLOOKUP(AL54,'【記載例】シフト記号表（勤務時間帯）'!$C$4:$K$35,9,FALSE)) -> - | AM55: =IF(AM54="","",VLOOKUP(AM54,'【記載例】シフト記号表（勤務時間帯）'!$C$4:$K$35,9,FALSE)) -> - | AN55: =IF(AN54="","",VLOOKUP(AN54,'【記載例】シフト記号表（勤務時間帯）'!$C$4:$K$35,9,FALSE)) -> 8 | AO55: =IF(AO54="","",VLOOKUP(AO54,'【記載例】シフト記号表（勤務時間帯）'!$C$4:$K$35,9,FALSE)) -> 8 | AP55: =IF(AP54="","",VLOOKUP(AP54,'【記載例】シフト記号表（勤務時間帯）'!$C$4:$K$35,9,FALSE)) -> 8 | AQ55: =IF(AQ54="","",VLOOKUP(AQ54,'【記載例】シフト記号表（勤務時間帯）'!$C$4:$K$35,9,FALSE)) -> 8 | AR55: =IF(AR54="","",VLOOKUP(AR54,'【記載例】シフト記号表（勤務時間帯）'!$C$4:$K$35,9,FALSE)) -> 8 | AS55: =IF(AS54="","",VLOOKUP(AS54,'【記載例】シフト記号表（勤務時間帯）'!$C$4:$K$35,9,FALSE)) -> - | AT55: =IF(AT54="","",VLOOKUP(AT54,'【記載例】シフト記号表（勤務時間帯）'!$C$4:$K$35,9,FALSE)) -> - | AU55: =IF(AU54="","",VLOOKUP(AU54,'【記載例】シフト記号表（勤務時間帯）'!$C$4:$K$35,9,FALSE)) -> 8 | AV55: =IF(AV54="","",VLOOKUP(AV54,'【記載例】シフト記号表（勤務時間帯）'!$C$4:$K$35,9,FALSE)) ->  | AW55: =IF(AW54="","",VLOOKUP(AW54,'【記載例】シフト記号表（勤務時間帯）'!$C$4:$K$35,9,FALSE)) ->  | AX55: =IF(AX54="","",VLOOKUP(AX54,'【記載例】シフト記号表（勤務時間帯）'!$C$4:$K$35,9,FALSE)) -> 
B56: =B54+1 -> 21 | C56: 訪問介護員_随時 | F56: A | H56: ー | M56: ○○ T美 | Q56: シフト記号 | T56: d | U56: d | V56: d | W56: d | X56: 休 | Y56: 休 | Z56: d | AA56: d | AB56: d | AC56: d | AD56: d | AE56: 休 | AF56: 休 | AG56: d | AH56: d | AI56: d | AJ56: d | AK56: d | AL56: 休 | AM56: 休 | AN56: d | AO56: d | AP56: d | AQ56: d | AR56: d | AS56: 休 | AT56: 休 | AU56: d | AY56: =IF($BD$3="計画",SUM(T57:AU57),IF($BD$3="実績",SUM(T57:AX57),"")) -> 160 | BA56: =IF($BD$3="計画",AY56/4,IF($BD$3="実績",AY56/($BB$7/7),"")) -> 40
Q57: 勤務時間数 | T57: =IF(T56="","",VLOOKUP(T56,'【記載例】シフト記号表（勤務時間帯）'!$C$4:$K$35,9,FALSE)) -> 8 | U57: =IF(U56="","",VLOOKUP(U56,'【記載例】シフト記号表（勤務時間帯）'!$C$4:$K$35,9,FALSE)) -> 8 | V57: =IF(V56="","",VLOOKUP(V56,'【記載例】シフト記号表（勤務時間帯）'!$C$4:$K$35,9,FALSE)) -> 8 | W57: =IF(W56="","",VLOOKUP(W56,'【記載例】シフト記号表（勤務時間帯）'!$C$4:$K$35,9,FALSE)) -> 8 | X57: =IF(X56="","",VLOOKUP(X56,'【記載例】シフト記号表（勤務時間帯）'!$C$4:$K$35,9,FALSE)) -> - | Y57: =IF(Y56="","",VLOOKUP(Y56,'【記載例】シフト記号表（勤務時間帯）'!$C$4:$K$35,9,FALSE)) -> - | Z57: =IF(Z56="","",VLOOKUP(Z56,'【記載例】シフト記号表（勤務時間帯）'!$C$4:$K$35,9,FALSE)) -> 8 | AA57: =IF(AA56="","",VLOOKUP(AA56,'【記載例】シフト記号表（勤務時間帯）'!$C$4:$K$35,9,FALSE)) -> 8 | AB57: =IF(AB56="","",VLOOKUP(AB56,'【記載例】シフト記号表（勤務時間帯）'!$C$4:$K$35,9,FALSE)) -> 8 | AC57: =IF(AC56="","",VLOOKUP(AC56,'【記載例】シフト記号表（勤務時間帯）'!$C$4:$K$35,9,FALSE)) -> 8 | AD57: =IF(AD56="","",VLOOKUP(AD56,'【記載例】シフト記号表（勤務時間帯）'!$C$4:$K$35,9,FALSE)) -> 8 | AE57: =IF(AE56="","",VLOOKUP(AE56,'【記載例】シフト記号表（勤務時間帯）'!$C$4:$K$35,9,FALSE)) -> - | AF57: =IF(AF56="","",VLOOKUP(AF56,'【記載例】シフト記号表（勤務時間帯）'!$C$4:$K$35,9,FALSE)) -> - | AG57: =IF(AG56="","",VLOOKUP(AG56,'【記載例】シフト記号表（勤務時間帯）'!$C$4:$K$35,9,FALSE)) -> 8 | AH57: =IF(AH56="","",VLOOKUP(AH56,'【記載例】シフト記号表（勤務時間帯）'!$C$4:$K$35,9,FALSE)) -> 8 | AI57: =IF(AI56="","",VLOOKUP(AI56,'【記載例】シフト記号表（勤務時間帯）'!$C$4:$K$35,9,FALSE)) -> 8 | AJ57: =IF(AJ56="","",VLOOKUP(AJ56,'【記載例】シフト記号表（勤務時間帯）'!$C$4:$K$35,9,FALSE)) -> 8 | AK57: =IF(AK56="","",VLOOKUP(AK56,'【記載例】シフト記号表（勤務時間帯）'!$C$4:$K$35,9,FALSE)) -> 8 | AL57: =IF(AL56="","",VLOOKUP(AL56,'【記載例】シフト記号表（勤務時間帯）'!$C$4:$K$35,9,FALSE)) -> - | AM57: =IF(AM56="","",VLOOKUP(AM56,'【記載例】シフト記号表（勤務時間帯）'!$C$4:$K$35,9,FALSE)) -> - | AN57: =IF(AN56="","",VLOOKUP(AN56,'【記載例】シフト記号表（勤務時間帯）'!$C$4:$K$35,9,FALSE)) -> 8 | AO57: =IF(AO56="","",VLOOKUP(AO56,'【記載例】シフト記号表（勤務時間帯）'!$C$4:$K$35,9,FALSE)) -> 8 | AP57: =IF(AP56="","",VLOOKUP(AP56,'【記載例】シフト記号表（勤務時間帯）'!$C$4:$K$35,9,FALSE)) -> 8 | AQ57: =IF(AQ56="","",VLOOKUP(AQ56,'【記載例】シフト記号表（勤務時間帯）'!$C$4:$K$35,9,FALSE)) -> 8 | AR57: =IF(AR56="","",VLOOKUP(AR56,'【記載例】シフト記号表（勤務時間帯）'!$C$4:$K$35,9,FALSE)) -> 8 | AS57: =IF(AS56="","",VLOOKUP(AS56,'【記載例】シフト記号表（勤務時間帯）'!$C$4:$K$35,9,FALSE)) -> - | AT57: =IF(AT56="","",VLOOKUP(AT56,'【記載例】シフト記号表（勤務時間帯）'!$C$4:$K$35,9,FALSE)) -> - | AU57: =IF(AU56="","",VLOOKUP(AU56,'【記載例】シフト記号表（勤務時間帯）'!$C$4:$K$35,9,FALSE)) -> 8 | AV57: =IF(AV56="","",VLOOKUP(AV56,'【記載例】シフト記号表（勤務時間帯）'!$C$4:$K$35,9,FALSE)) ->  | AW57: =IF(AW56="","",VLOOKUP(AW56,'【記載例】シフト記号表（勤務時間帯）'!$C$4:$K$35,9,FALSE)) ->  | AX57: =IF(AX56="","",VLOOKUP(AX56,'【記載例】シフト記号表（勤務時間帯）'!$C$4:$K$35,9,FALSE)) -> 
B58: =B56+1 -> 22 | C58: 訪問看護員 | F58: A | H58: 看護師 | M58: ○○ U男 | Q58: シフト記号 | T58: b | U58: b | V58: 休 | W58: 休 | X58: b | Y58: b | Z58: b | AA58: b | AB58: b | AC58: 休 | AD58: 休 | AE58: b | AF58: b | AG58: b | AH58: b | AI58: b | AJ58: 休 | AK58: 休 | AL58: b | AM58: b | AN58: b | AO58: b | AP58: b | AQ58: 休 | AR58: 休 | AS58: b | AT58: b | AU58: b | AY58: =IF($BD$3="計画",SUM(T59:AU59),IF($BD$3="実績",SUM(T59:AX59),"")) -> 160 | BA58: =IF($BD$3="計画",AY58/4,IF($BD$3="実績",AY58/($BB$7/7),"")) -> 40
Q59: 勤務時間数 | T59: =IF(T58="","",VLOOKUP(T58,'【記載例】シフト記号表（勤務時間帯）'!$C$4:$K$35,9,FALSE)) -> 8 | U59: =IF(U58="","",VLOOKUP(U58,'【記載例】シフト記号表（勤務時間帯）'!$C$4:$K$35,9,FALSE)) -> 8 | V59: =IF(V58="","",VLOOKUP(V58,'【記載例】シフト記号表（勤務時間帯）'!$C$4:$K$35,9,FALSE)) -> - | W59: =IF(W58="","",VLOOKUP(W58,'【記載例】シフト記号表（勤務時間帯）'!$C$4:$K$35,9,FALSE)) -> - | X59: =IF(X58="","",VLOOKUP(X58,'【記載例】シフト記号表（勤務時間帯）'!$C$4:$K$35,9,FALSE)) -> 8 | Y59: =IF(Y58="","",VLOOKUP(Y58,'【記載例】シフト記号表（勤務時間帯）'!$C$4:$K$35,9,FALSE)) -> 8 | Z59: =IF(Z58="","",VLOOKUP(Z58,'【記載例】シフト記号表（勤務時間帯）'!$C$4:$K$35,9,FALSE)) -> 8 | AA59: =IF(AA58="","",VLOOKUP(AA58,'【記載例】シフト記号表（勤務時間帯）'!$C$4:$K$35,9,FALSE)) -> 8 | AB59: =IF(AB58="","",VLOOKUP(AB58,'【記載例】シフト記号表（勤務時間帯）'!$C$4:$K$35,9,FALSE)) -> 8 | AC59: =IF(AC58="","",VLOOKUP(AC58,'【記載例】シフト記号表（勤務時間帯）'!$C$4:$K$35,9,FALSE)) -> - | AD59: =IF(AD58="","",VLOOKUP(AD58,'【記載例】シフト記号表（勤務時間帯）'!$C$4:$K$35,9,FALSE)) -> - | AE59: =IF(AE58="","",VLOOKUP(AE58,'【記載例】シフト記号表（勤務時間帯）'!$C$4:$K$35,9,FALSE)) -> 8 | AF59: =IF(AF58="","",VLOOKUP(AF58,'【記載例】シフト記号表（勤務時間帯）'!$C$4:$K$35,9,FALSE)) -> 8 | AG59: =IF(AG58="","",VLOOKUP(AG58,'【記載例】シフト記号表（勤務時間帯）'!$C$4:$K$35,9,FALSE)) -> 8 | AH59: =IF(AH58="","",VLOOKUP(AH58,'【記載例】シフト記号表（勤務時間帯）'!$C$4:$K$35,9,FALSE)) -> 8 | AI59: =IF(AI58="","",VLOOKUP(AI58,'【記載例】シフト記号表（勤務時間帯）'!$C$4:$K$35,9,FALSE)) -> 8 | AJ59: =IF(AJ58="","",VLOOKUP(AJ58,'【記載例】シフト記号表（勤務時間帯）'!$C$4:$K$35,9,FALSE)) -> - | AK59: =IF(AK58="","",VLOOKUP(AK58,'【記載例】シフト記号表（勤務時間帯）'!$C$4:$K$35,9,FALSE)) -> - | AL59: =IF(AL58="","",VLOOKUP(AL58,'【記載例】シフト記号表（勤務時間帯）'!$C$4:$K$35,9,FALSE)) -> 8 | AM59: =IF(AM58="","",VLOOKUP(AM58,'【記載例】シフト記号表（勤務時間帯）'!$C$4:$K$35,9,FALSE)) -> 8 | AN59: =IF(AN58="","",VLOOKUP(AN58,'【記載例】シフト記号表（勤務時間帯）'!$C$4:$K$35,9,FALSE)) -> 8 | AO59: =IF(AO58="","",VLOOKUP(AO58,'【記載例】シフト記号表（勤務時間帯）'!$C$4:$K$35,9,FALSE)) -> 8 | AP59: =IF(AP58="","",VLOOKUP(AP58,'【記載例】シフト記号表（勤務時間帯）'!$C$4:$K$35,9,FALSE)) -> 8 | AQ59: =IF(AQ58="","",VLOOKUP(AQ58,'【記載例】シフト記号表（勤務時間帯）'!$C$4:$K$35,9,FALSE)) -> - | AR59: =IF(AR58="","",VLOOKUP(AR58,'【記載例】シフト記号表（勤務時間帯）'!$C$4:$K$35,9,FALSE)) -> - | AS59: =IF(AS58="","",VLOOKUP(AS58,'【記載例】シフト記号表（勤務時間帯）'!$C$4:$K$35,9,FALSE)) -> 8 | AT59: =IF(AT58="","",VLOOKUP(AT58,'【記載例】シフト記号表（勤務時間帯）'!$C$4:$K$35,9,FALSE)) -> 8 | AU59: =IF(AU58="","",VLOOKUP(AU58,'【記載例】シフト記号表（勤務時間帯）'!$C$4:$K$35,9,FALSE)) -> 8 | AV59: =IF(AV58="","",VLOOKUP(AV58,'【記載例】シフト記号表（勤務時間帯）'!$C$4:$K$35,9,FALSE)) ->  | AW59: =IF(AW58="","",VLOOKUP(AW58,'【記載例】シフト記号表（勤務時間帯）'!$C$4:$K$35,9,FALSE)) ->  | AX59: =IF(AX58="","",VLOOKUP(AX58,'【記載例】シフト記号表（勤務時間帯）'!$C$4:$K$35,9,FALSE)) -> 
B60: =B58+1 -> 23 | C60: 訪問看護員 | F60: A | H60: 准看護師 | M60: ○○ V子 | Q60: シフト記号 | T60: c | U60: c | V60: 休 | W60: 休 | X60: c | Y60: c | Z60: c | AA60: c | AB60: c | AC60: 休 | AD60: 休 | AE60: c | AF60: c | AG60: c | AH60: c | AI60: c | AJ60: 休 | AK60: 休 | AL60: c | AM60: c | AN60: c | AO60: c | AP60: c | AQ60: 休 | AR60: 休 | AS60: c | AT60: c | AU60: c | AY60: =IF($BD$3="計画",SUM(T61:AU61),IF($BD$3="実績",SUM(T61:AX61),"")) -> 160 | BA60: =IF($BD$3="計画",AY60/4,IF($BD$3="実績",AY60/($BB$7/7),"")) -> 40
Q61: 勤務時間数 | T61: =IF(T60="","",VLOOKUP(T60,'【記載例】シフト記号表（勤務時間帯）'!$C$4:$K$35,9,FALSE)) -> 8 | U61: =IF(U60="","",VLOOKUP(U60,'【記載例】シフト記号表（勤務時間帯）'!$C$4:$K$35,9,FALSE)) -> 8 | V61: =IF(V60="","",VLOOKUP(V60,'【記載例】シフト記号表（勤務時間帯）'!$C$4:$K$35,9,FALSE)) -> - | W61: =IF(W60="","",VLOOKUP(W60,'【記載例】シフト記号表（勤務時間帯）'!$C$4:$K$35,9,FALSE)) -> - | X61: =IF(X60="","",VLOOKUP(X60,'【記載例】シフト記号表（勤務時間帯）'!$C$4:$K$35,9,FALSE)) -> 8 | Y61: =IF(Y60="","",VLOOKUP(Y60,'【記載例】シフト記号表（勤務時間帯）'!$C$4:$K$35,9,FALSE)) -> 8 | Z61: =IF(Z60="","",VLOOKUP(Z60,'【記載例】シフト記号表（勤務時間帯）'!$C$4:$K$35,9,FALSE)) -> 8 | AA61: =IF(AA60="","",VLOOKUP(AA60,'【記載例】シフト記号表（勤務時間帯）'!$C$4:$K$35,9,FALSE)) -> 8 | AB61: =IF(AB60="","",VLOOKUP(AB60,'【記載例】シフト記号表（勤務時間帯）'!$C$4:$K$35,9,FALSE)) -> 8 | AC61: =IF(AC60="","",VLOOKUP(AC60,'【記載例】シフト記号表（勤務時間帯）'!$C$4:$K$35,9,FALSE)) -> - | AD61: =IF(AD60="","",VLOOKUP(AD60,'【記載例】シフト記号表（勤務時間帯）'!$C$4:$K$35,9,FALSE)) -> - | AE61: =IF(AE60="","",VLOOKUP(AE60,'【記載例】シフト記号表（勤務時間帯）'!$C$4:$K$35,9,FALSE)) -> 8 | AF61: =IF(AF60="","",VLOOKUP(AF60,'【記載例】シフト記号表（勤務時間帯）'!$C$4:$K$35,9,FALSE)) -> 8 | AG61: =IF(AG60="","",VLOOKUP(AG60,'【記載例】シフト記号表（勤務時間帯）'!$C$4:$K$35,9,FALSE)) -> 8 | AH61: =IF(AH60="","",VLOOKUP(AH60,'【記載例】シフト記号表（勤務時間帯）'!$C$4:$K$35,9,FALSE)) -> 8 | AI61: =IF(AI60="","",VLOOKUP(AI60,'【記載例】シフト記号表（勤務時間帯）'!$C$4:$K$35,9,FALSE)) -> 8 | AJ61: =IF(AJ60="","",VLOOKUP(AJ60,'【記載例】シフト記号表（勤務時間帯）'!$C$4:$K$35,9,FALSE)) -> - | AK61: =IF(AK60="","",VLOOKUP(AK60,'【記載例】シフト記号表（勤務時間帯）'!$C$4:$K$35,9,FALSE)) -> - | AL61: =IF(AL60="","",VLOOKUP(AL60,'【記載例】シフト記号表（勤務時間帯）'!$C$4:$K$35,9,FALSE)) -> 8 | AM61: =IF(AM60="","",VLOOKUP(AM60,'【記載例】シフト記号表（勤務時間帯）'!$C$4:$K$35,9,FALSE)) -> 8 | AN61: =IF(AN60="","",VLOOKUP(AN60,'【記載例】シフト記号表（勤務時間帯）'!$C$4:$K$35,9,FALSE)) -> 8 | AO61: =IF(AO60="","",VLOOKUP(AO60,'【記載例】シフト記号表（勤務時間帯）'!$C$4:$K$35,9,FALSE)) -> 8 | AP61: =IF(AP60="","",VLOOKUP(AP60,'【記載例】シフト記号表（勤務時間帯）'!$C$4:$K$35,9,FALSE)) -> 8 | AQ61: =IF(AQ60="","",VLOOKUP(AQ60,'【記載例】シフト記号表（勤務時間帯）'!$C$4:$K$35,9,FALSE)) -> - | AR61: =IF(AR60="","",VLOOKUP(AR60,'【記載例】シフト記号表（勤務時間帯）'!$C$4:$K$35,9,FALSE)) -> - | AS61: =IF(AS60="","",VLOOKUP(AS60,'【記載例】シフト記号表（勤務時間帯）'!$C$4:$K$35,9,FALSE)) -> 8 | AT61: =IF(AT60="","",VLOOKUP(AT60,'【記載例】シフト記号表（勤務時間帯）'!$C$4:$K$35,9,FALSE)) -> 8 | AU61: =IF(AU60="","",VLOOKUP(AU60,'【記載例】シフト記号表（勤務時間帯）'!$C$4:$K$35,9,FALSE)) -> 8 | AV61: =IF(AV60="","",VLOOKUP(AV60,'【記載例】シフト記号表（勤務時間帯）'!$C$4:$K$35,9,FALSE)) ->  | AW61: =IF(AW60="","",VLOOKUP(AW60,'【記載例】シフト記号表（勤務時間帯）'!$C$4:$K$35,9,FALSE)) ->  | AX61: =IF(AX60="","",VLOOKUP(AX60,'【記載例】シフト記号表（勤務時間帯）'!$C$4:$K$35,9,FALSE)) -> 
B62: =B60+1 -> 24 | C62: 訪問看護員 | F62: A | H62: 准看護師 | M62: ○○ W郞 | Q62: シフト記号 | T62: d | U62: d | V62: 休 | W62: 休 | X62: d | Y62: d | Z62: d | AA62: d | AB62: d | AC62: 休 | AD62: 休 | AE62: d | AF62: d | AG62: d | AH62: d | AI62: d | AJ62: 休 | AK62: 休 | AL62: d | AM62: d | AN62: d | AO62: d | AP62: d | AQ62: 休 | AR62: 休 | AS62: d | AT62: d | AU62: d | AY62: =IF($BD$3="計画",SUM(T63:AU63),IF($BD$3="実績",SUM(T63:AX63),"")) -> 160 | BA62: =IF($BD$3="計画",AY62/4,IF($BD$3="実績",AY62/($BB$7/7),"")) -> 40
Q63: 勤務時間数 | T63: =IF(T62="","",VLOOKUP(T62,'【記載例】シフト記号表（勤務時間帯）'!$C$4:$K$35,9,FALSE)) -> 8 | U63: =IF(U62="","",VLOOKUP(U62,'【記載例】シフト記号表（勤務時間帯）'!$C$4:$K$35,9,FALSE)) -> 8 | V63: =IF(V62="","",VLOOKUP(V62,'【記載例】シフト記号表（勤務時間帯）'!$C$4:$K$35,9,FALSE)) -> - | W63: =IF(W62="","",VLOOKUP(W62,'【記載例】シフト記号表（勤務時間帯）'!$C$4:$K$35,9,FALSE)) -> - | X63: =IF(X62="","",VLOOKUP(X62,'【記載例】シフト記号表（勤務時間帯）'!$C$4:$K$35,9,FALSE)) -> 8 | Y63: =IF(Y62="","",VLOOKUP(Y62,'【記載例】シフト記号表（勤務時間帯）'!$C$4:$K$35,9,FALSE)) -> 8 | Z63: =IF(Z62="","",VLOOKUP(Z62,'【記載例】シフト記号表（勤務時間帯）'!$C$4:$K$35,9,FALSE)) -> 8 | AA63: =IF(AA62="","",VLOOKUP(AA62,'【記載例】シフト記号表（勤務時間帯）'!$C$4:$K$35,9,FALSE)) -> 8 | AB63: =IF(AB62="","",VLOOKUP(AB62,'【記載例】シフト記号表（勤務時間帯）'!$C$4:$K$35,9,FALSE)) -> 8 | AC63: =IF(AC62="","",VLOOKUP(AC62,'【記載例】シフト記号表（勤務時間帯）'!$C$4:$K$35,9,FALSE)) -> - | AD63: =IF(AD62="","",VLOOKUP(AD62,'【記載例】シフト記号表（勤務時間帯）'!$C$4:$K$35,9,FALSE)) -> - | AE63: =IF(AE62="","",VLOOKUP(AE62,'【記載例】シフト記号表（勤務時間帯）'!$C$4:$K$35,9,FALSE)) -> 8 | AF63: =IF(AF62="","",VLOOKUP(AF62,'【記載例】シフト記号表（勤務時間帯）'!$C$4:$K$35,9,FALSE)) -> 8 | AG63: =IF(AG62="","",VLOOKUP(AG62,'【記載例】シフト記号表（勤務時間帯）'!$C$4:$K$35,9,FALSE)) -> 8 | AH63: =IF(AH62="","",VLOOKUP(AH62,'【記載例】シフト記号表（勤務時間帯）'!$C$4:$K$35,9,FALSE)) -> 8 | AI63: =IF(AI62="","",VLOOKUP(AI62,'【記載例】シフト記号表（勤務時間帯）'!$C$4:$K$35,9,FALSE)) -> 8 | AJ63: =IF(AJ62="","",VLOOKUP(AJ62,'【記載例】シフト記号表（勤務時間帯）'!$C$4:$K$35,9,FALSE)) -> - | AK63: =IF(AK62="","",VLOOKUP(AK62,'【記載例】シフト記号表（勤務時間帯）'!$C$4:$K$35,9,FALSE)) -> - | AL63: =IF(AL62="","",VLOOKUP(AL62,'【記載例】シフト記号表（勤務時間帯）'!$C$4:$K$35,9,FALSE)) -> 8 | AM63: =IF(AM62="","",VLOOKUP(AM62,'【記載例】シフト記号表（勤務時間帯）'!$C$4:$K$35,9,FALSE)) -> 8 | AN63: =IF(AN62="","",VLOOKUP(AN62,'【記載例】シフト記号表（勤務時間帯）'!$C$4:$K$35,9,FALSE)) -> 8 | AO63: =IF(AO62="","",VLOOKUP(AO62,'【記載例】シフト記号表（勤務時間帯）'!$C$4:$K$35,9,FALSE)) -> 8 | AP63: =IF(AP62="","",VLOOKUP(AP62,'【記載例】シフト記号表（勤務時間帯）'!$C$4:$K$35,9,FALSE)) -> 8 | AQ63: =IF(AQ62="","",VLOOKUP(AQ62,'【記載例】シフト記号表（勤務時間帯）'!$C$4:$K$35,9,FALSE)) -> - | AR63: =IF(AR62="","",VLOOKUP(AR62,'【記載例】シフト記号表（勤務時間帯）'!$C$4:$K$35,9,FALSE)) -> - | AS63: =IF(AS62="","",VLOOKUP(AS62,'【記載例】シフト記号表（勤務時間帯）'!$C$4:$K$35,9,FALSE)) -> 8 | AT63: =IF(AT62="","",VLOOKUP(AT62,'【記載例】シフト記号表（勤務時間帯）'!$C$4:$K$35,9,FALSE)) -> 8 | AU63: =IF(AU62="","",VLOOKUP(AU62,'【記載例】シフト記号表（勤務時間帯）'!$C$4:$K$35,9,FALSE)) -> 8 | AV63: =IF(AV62="","",VLOOKUP(AV62,'【記載例】シフト記号表（勤務時間帯）'!$C$4:$K$35,9,FALSE)) ->  | AW63: =IF(AW62="","",VLOOKUP(AW62,'【記載例】シフト記号表（勤務時間帯）'!$C$4:$K$35,9,FALSE)) ->  | AX63: =IF(AX62="","",VLOOKUP(AX62,'【記載例】シフト記号表（勤務時間帯）'!$C$4:$K$35,9,FALSE)) -> 
B64: =B62+1 -> 25 | C64: 訪問看護員 | F64: A | H64: 准看護師 | M64: ○○ X美 | Q64: シフト記号 | T64: b | U64: b | V64: b | W64: b | X64: 休 | Y64: 休 | Z64: b | AA64: b | AB64: b | AC64: b | AD64: b | AE64: 休 | AF64: 休 | AG64: b | AH64: b | AI64: b | AJ64: b | AK64: b | AL64: 休 | AM64: 休 | AN64: b | AO64: b | AP64: b | AQ64: b | AR64: b | AS64: 休 | AT64: 休 | AU64: b | AY64: =IF($BD$3="計画",SUM(T65:AU65),IF($BD$3="実績",SUM(T65:AX65),"")) -> 160 | BA64: =IF($BD$3="計画",AY64/4,IF($BD$3="実績",AY64/($BB$7/7),"")) -> 40
Q65: 勤務時間数 | T65: =IF(T64="","",VLOOKUP(T64,'【記載例】シフト記号表（勤務時間帯）'!$C$4:$K$35,9,FALSE)) -> 8 | U65: =IF(U64="","",VLOOKUP(U64,'【記載例】シフト記号表（勤務時間帯）'!$C$4:$K$35,9,FALSE)) -> 8 | V65: =IF(V64="","",VLOOKUP(V64,'【記載例】シフト記号表（勤務時間帯）'!$C$4:$K$35,9,FALSE)) -> 8 | W65: =IF(W64="","",VLOOKUP(W64,'【記載例】シフト記号表（勤務時間帯）'!$C$4:$K$35,9,FALSE)) -> 8 | X65: =IF(X64="","",VLOOKUP(X64,'【記載例】シフト記号表（勤務時間帯）'!$C$4:$K$35,9,FALSE)) -> - | Y65: =IF(Y64="","",VLOOKUP(Y64,'【記載例】シフト記号表（勤務時間帯）'!$C$4:$K$35,9,FALSE)) -> - | Z65: =IF(Z64="","",VLOOKUP(Z64,'【記載例】シフト記号表（勤務時間帯）'!$C$4:$K$35,9,FALSE)) -> 8 | AA65: =IF(AA64="","",VLOOKUP(AA64,'【記載例】シフト記号表（勤務時間帯）'!$C$4:$K$35,9,FALSE)) -> 8 | AB65: =IF(AB64="","",VLOOKUP(AB64,'【記載例】シフト記号表（勤務時間帯）'!$C$4:$K$35,9,FALSE)) -> 8 | AC65: =IF(AC64="","",VLOOKUP(AC64,'【記載例】シフト記号表（勤務時間帯）'!$C$4:$K$35,9,FALSE)) -> 8 | AD65: =IF(AD64="","",VLOOKUP(AD64,'【記載例】シフト記号表（勤務時間帯）'!$C$4:$K$35,9,FALSE)) -> 8 | AE65: =IF(AE64="","",VLOOKUP(AE64,'【記載例】シフト記号表（勤務時間帯）'!$C$4:$K$35,9,FALSE)) -> - | AF65: =IF(AF64="","",VLOOKUP(AF64,'【記載例】シフト記号表（勤務時間帯）'!$C$4:$K$35,9,FALSE)) -> - | AG65: =IF(AG64="","",VLOOKUP(AG64,'【記載例】シフト記号表（勤務時間帯）'!$C$4:$K$35,9,FALSE)) -> 8 | AH65: =IF(AH64="","",VLOOKUP(AH64,'【記載例】シフト記号表（勤務時間帯）'!$C$4:$K$35,9,FALSE)) -> 8 | AI65: =IF(AI64="","",VLOOKUP(AI64,'【記載例】シフト記号表（勤務時間帯）'!$C$4:$K$35,9,FALSE)) -> 8 | AJ65: =IF(AJ64="","",VLOOKUP(AJ64,'【記載例】シフト記号表（勤務時間帯）'!$C$4:$K$35,9,FALSE)) -> 8 | AK65: =IF(AK64="","",VLOOKUP(AK64,'【記載例】シフト記号表（勤務時間帯）'!$C$4:$K$35,9,FALSE)) -> 8 | AL65: =IF(AL64="","",VLOOKUP(AL64,'【記載例】シフト記号表（勤務時間帯）'!$C$4:$K$35,9,FALSE)) -> - | AM65: =IF(AM64="","",VLOOKUP(AM64,'【記載例】シフト記号表（勤務時間帯）'!$C$4:$K$35,9,FALSE)) -> - | AN65: =IF(AN64="","",VLOOKUP(AN64,'【記載例】シフト記号表（勤務時間帯）'!$C$4:$K$35,9,FALSE)) -> 8 | AO65: =IF(AO64="","",VLOOKUP(AO64,'【記載例】シフト記号表（勤務時間帯）'!$C$4:$K$35,9,FALSE)) -> 8 | AP65: =IF(AP64="","",VLOOKUP(AP64,'【記載例】シフト記号表（勤務時間帯）'!$C$4:$K$35,9,FALSE)) -> 8 | AQ65: =IF(AQ64="","",VLOOKUP(AQ64,'【記載例】シフト記号表（勤務時間帯）'!$C$4:$K$35,9,FALSE)) -> 8 | AR65: =IF(AR64="","",VLOOKUP(AR64,'【記載例】シフト記号表（勤務時間帯）'!$C$4:$K$35,9,FALSE)) -> 8 | AS65: =IF(AS64="","",VLOOKUP(AS64,'【記載例】シフト記号表（勤務時間帯）'!$C$4:$K$35,9,FALSE)) -> - | AT65: =IF(AT64="","",VLOOKUP(AT64,'【記載例】シフト記号表（勤務時間帯）'!$C$4:$K$35,9,FALSE)) -> - | AU65: =IF(AU64="","",VLOOKUP(AU64,'【記載例】シフト記号表（勤務時間帯）'!$C$4:$K$35,9,FALSE)) -> 8 | AV65: =IF(AV64="","",VLOOKUP(AV64,'【記載例】シフト記号表（勤務時間帯）'!$C$4:$K$35,9,FALSE)) ->  | AW65: =IF(AW64="","",VLOOKUP(AW64,'【記載例】シフト記号表（勤務時間帯）'!$C$4:$K$35,9,FALSE)) ->  | AX65: =IF(AX64="","",VLOOKUP(AX64,'【記載例】シフト記号表（勤務時間帯）'!$C$4:$K$35,9,FALSE)) -> 
B66: =B64+1 -> 26 | C66: 訪問看護員 | F66: A | H66: 看護師 | M66: ○○ Y男 | Q66: シフト記号 | T66: c | U66: c | V66: c | W66: c | X66: 休 | Y66: 休 | Z66: c | AA66: c | AB66: c | AC66: c | AD66: c | AE66: 休 | AF66: 休 | AG66: c | AH66: c | AI66: c | AJ66: c | AK66: c | AL66: 休 | AM66: 休 | AN66: c | AO66: c | AP66: c | AQ66: c | AR66: c | AS66: 休 | AT66: 休 | AU66: c | AY66: =IF($BD$3="計画",SUM(T67:AU67),IF($BD$3="実績",SUM(T67:AX67),"")) -> 160 | BA66: =IF($BD$3="計画",AY66/4,IF($BD$3="実績",AY66/($BB$7/7),"")) -> 40
Q67: 勤務時間数 | T67: =IF(T66="","",VLOOKUP(T66,'【記載例】シフト記号表（勤務時間帯）'!$C$4:$K$35,9,FALSE)) -> 8 | U67: =IF(U66="","",VLOOKUP(U66,'【記載例】シフト記号表（勤務時間帯）'!$C$4:$K$35,9,FALSE)) -> 8 | V67: =IF(V66="","",VLOOKUP(V66,'【記載例】シフト記号表（勤務時間帯）'!$C$4:$K$35,9,FALSE)) -> 8 | W67: =IF(W66="","",VLOOKUP(W66,'【記載例】シフト記号表（勤務時間帯）'!$C$4:$K$35,9,FALSE)) -> 8 | X67: =IF(X66="","",VLOOKUP(X66,'【記載例】シフト記号表（勤務時間帯）'!$C$4:$K$35,9,FALSE)) -> - | Y67: =IF(Y66="","",VLOOKUP(Y66,'【記載例】シフト記号表（勤務時間帯）'!$C$4:$K$35,9,FALSE)) -> - | Z67: =IF(Z66="","",VLOOKUP(Z66,'【記載例】シフト記号表（勤務時間帯）'!$C$4:$K$35,9,FALSE)) -> 8 | AA67: =IF(AA66="","",VLOOKUP(AA66,'【記載例】シフト記号表（勤務時間帯）'!$C$4:$K$35,9,FALSE)) -> 8 | AB67: =IF(AB66="","",VLOOKUP(AB66,'【記載例】シフト記号表（勤務時間帯）'!$C$4:$K$35,9,FALSE)) -> 8 | AC67: =IF(AC66="","",VLOOKUP(AC66,'【記載例】シフト記号表（勤務時間帯）'!$C$4:$K$35,9,FALSE)) -> 8 | AD67: =IF(AD66="","",VLOOKUP(AD66,'【記載例】シフト記号表（勤務時間帯）'!$C$4:$K$35,9,FALSE)) -> 8 | AE67: =IF(AE66="","",VLOOKUP(AE66,'【記載例】シフト記号表（勤務時間帯）'!$C$4:$K$35,9,FALSE)) -> - | AF67: =IF(AF66="","",VLOOKUP(AF66,'【記載例】シフト記号表（勤務時間帯）'!$C$4:$K$35,9,FALSE)) -> - | AG67: =IF(AG66="","",VLOOKUP(AG66,'【記載例】シフト記号表（勤務時間帯）'!$C$4:$K$35,9,FALSE)) -> 8 | AH67: =IF(AH66="","",VLOOKUP(AH66,'【記載例】シフト記号表（勤務時間帯）'!$C$4:$K$35,9,FALSE)) -> 8 | AI67: =IF(AI66="","",VLOOKUP(AI66,'【記載例】シフト記号表（勤務時間帯）'!$C$4:$K$35,9,FALSE)) -> 8 | AJ67: =IF(AJ66="","",VLOOKUP(AJ66,'【記載例】シフト記号表（勤務時間帯）'!$C$4:$K$35,9,FALSE)) -> 8 | AK67: =IF(AK66="","",VLOOKUP(AK66,'【記載例】シフト記号表（勤務時間帯）'!$C$4:$K$35,9,FALSE)) -> 8 | AL67: =IF(AL66="","",VLOOKUP(AL66,'【記載例】シフト記号表（勤務時間帯）'!$C$4:$K$35,9,FALSE)) -> - | AM67: =IF(AM66="","",VLOOKUP(AM66,'【記載例】シフト記号表（勤務時間帯）'!$C$4:$K$35,9,FALSE)) -> - | AN67: =IF(AN66="","",VLOOKUP(AN66,'【記載例】シフト記号表（勤務時間帯）'!$C$4:$K$35,9,FALSE)) -> 8 | AO67: =IF(AO66="","",VLOOKUP(AO66,'【記載例】シフト記号表（勤務時間帯）'!$C$4:$K$35,9,FALSE)) -> 8 | AP67: =IF(AP66="","",VLOOKUP(AP66,'【記載例】シフト記号表（勤務時間帯）'!$C$4:$K$35,9,FALSE)) -> 8 | AQ67: =IF(AQ66="","",VLOOKUP(AQ66,'【記載例】シフト記号表（勤務時間帯）'!$C$4:$K$35,9,FALSE)) -> 8 | AR67: =IF(AR66="","",VLOOKUP(AR66,'【記載例】シフト記号表（勤務時間帯）'!$C$4:$K$35,9,FALSE)) -> 8 | AS67: =IF(AS66="","",VLOOKUP(AS66,'【記載例】シフト記号表（勤務時間帯）'!$C$4:$K$35,9,FALSE)) -> - | AT67: =IF(AT66="","",VLOOKUP(AT66,'【記載例】シフト記号表（勤務時間帯）'!$C$4:$K$35,9,FALSE)) -> - | AU67: =IF(AU66="","",VLOOKUP(AU66,'【記載例】シフト記号表（勤務時間帯）'!$C$4:$K$35,9,FALSE)) -> 8 | AV67: =IF(AV66="","",VLOOKUP(AV66,'【記載例】シフト記号表（勤務時間帯）'!$C$4:$K$35,9,FALSE)) ->  | AW67: =IF(AW66="","",VLOOKUP(AW66,'【記載例】シフト記号表（勤務時間帯）'!$C$4:$K$35,9,FALSE)) ->  | AX67: =IF(AX66="","",VLOOKUP(AX66,'【記載例】シフト記号表（勤務時間帯）'!$C$4:$K$35,9,FALSE)) -> 
B68: =B66+1 -> 27 | C68: 訪問看護員 | F68: C | H68: 准看護師 | M68: ○○ Z子 | Q68: シフト記号 | T68: d | U68: d | V68: d | W68: d | X68: 休 | Y68: 休 | Z68: d | AA68: d | AB68: d | AC68: d | AD68: d | AE68: 休 | AF68: 休 | AG68: d | AH68: d | AI68: d | AJ68: d | AK68: d | AL68: 休 | AM68: 休 | AN68: d | AO68: d | AP68: d | AQ68: d | AR68: d | AS68: 休 | AT68: 休 | AU68: d | AY68: =IF($BD$3="計画",SUM(T69:AU69),IF($BD$3="実績",SUM(T69:AX69),"")) -> 160 | BA68: =IF($BD$3="計画",AY68/4,IF($BD$3="実績",AY68/($BB$7/7),"")) -> 40
Q69: 勤務時間数 | T69: =IF(T68="","",VLOOKUP(T68,'【記載例】シフト記号表（勤務時間帯）'!$C$4:$K$35,9,FALSE)) -> 8 | U69: =IF(U68="","",VLOOKUP(U68,'【記載例】シフト記号表（勤務時間帯）'!$C$4:$K$35,9,FALSE)) -> 8 | V69: =IF(V68="","",VLOOKUP(V68,'【記載例】シフト記号表（勤務時間帯）'!$C$4:$K$35,9,FALSE)) -> 8 | W69: =IF(W68="","",VLOOKUP(W68,'【記載例】シフト記号表（勤務時間帯）'!$C$4:$K$35,9,FALSE)) -> 8 | X69: =IF(X68="","",VLOOKUP(X68,'【記載例】シフト記号表（勤務時間帯）'!$C$4:$K$35,9,FALSE)) -> - | Y69: =IF(Y68="","",VLOOKUP(Y68,'【記載例】シフト記号表（勤務時間帯）'!$C$4:$K$35,9,FALSE)) -> - | Z69: =IF(Z68="","",VLOOKUP(Z68,'【記載例】シフト記号表（勤務時間帯）'!$C$4:$K$35,9,FALSE)) -> 8 | AA69: =IF(AA68="","",VLOOKUP(AA68,'【記載例】シフト記号表（勤務時間帯）'!$C$4:$K$35,9,FALSE)) -> 8 | AB69: =IF(AB68="","",VLOOKUP(AB68,'【記載例】シフト記号表（勤務時間帯）'!$C$4:$K$35,9,FALSE)) -> 8 | AC69: =IF(AC68="","",VLOOKUP(AC68,'【記載例】シフト記号表（勤務時間帯）'!$C$4:$K$35,9,FALSE)) -> 8 | AD69: =IF(AD68="","",VLOOKUP(AD68,'【記載例】シフト記号表（勤務時間帯）'!$C$4:$K$35,9,FALSE)) -> 8 | AE69: =IF(AE68="","",VLOOKUP(AE68,'【記載例】シフト記号表（勤務時間帯）'!$C$4:$K$35,9,FALSE)) -> - | AF69: =IF(AF68="","",VLOOKUP(AF68,'【記載例】シフト記号表（勤務時間帯）'!$C$4:$K$35,9,FALSE)) -> - | AG69: =IF(AG68="","",VLOOKUP(AG68,'【記載例】シフト記号表（勤務時間帯）'!$C$4:$K$35,9,FALSE)) -> 8 | AH69: =IF(AH68="","",VLOOKUP(AH68,'【記載例】シフト記号表（勤務時間帯）'!$C$4:$K$35,9,FALSE)) -> 8 | AI69: =IF(AI68="","",VLOOKUP(AI68,'【記載例】シフト記号表（勤務時間帯）'!$C$4:$K$35,9,FALSE)) -> 8 | AJ69: =IF(AJ68="","",VLOOKUP(AJ68,'【記載例】シフト記号表（勤務時間帯）'!$C$4:$K$35,9,FALSE)) -> 8 | AK69: =IF(AK68="","",VLOOKUP(AK68,'【記載例】シフト記号表（勤務時間帯）'!$C$4:$K$35,9,FALSE)) -> 8 | AL69: =IF(AL68="","",VLOOKUP(AL68,'【記載例】シフト記号表（勤務時間帯）'!$C$4:$K$35,9,FALSE)) -> - | AM69: =IF(AM68="","",VLOOKUP(AM68,'【記載例】シフト記号表（勤務時間帯）'!$C$4:$K$35,9,FALSE)) -> - | AN69: =IF(AN68="","",VLOOKUP(AN68,'【記載例】シフト記号表（勤務時間帯）'!$C$4:$K$35,9,FALSE)) -> 8 | AO69: =IF(AO68="","",VLOOKUP(AO68,'【記載例】シフト記号表（勤務時間帯）'!$C$4:$K$35,9,FALSE)) -> 8 | AP69: =IF(AP68="","",VLOOKUP(AP68,'【記載例】シフト記号表（勤務時間帯）'!$C$4:$K$35,9,FALSE)) -> 8 | AQ69: =IF(AQ68="","",VLOOKUP(AQ68,'【記載例】シフト記号表（勤務時間帯）'!$C$4:$K$35,9,FALSE)) -> 8 | AR69: =IF(AR68="","",VLOOKUP(AR68,'【記載例】シフト記号表（勤務時間帯）'!$C$4:$K$35,9,FALSE)) -> 8 | AS69: =IF(AS68="","",VLOOKUP(AS68,'【記載例】シフト記号表（勤務時間帯）'!$C$4:$K$35,9,FALSE)) -> - | AT69: =IF(AT68="","",VLOOKUP(AT68,'【記載例】シフト記号表（勤務時間帯）'!$C$4:$K$35,9,FALSE)) -> - | AU69: =IF(AU68="","",VLOOKUP(AU68,'【記載例】シフト記号表（勤務時間帯）'!$C$4:$K$35,9,FALSE)) -> 8 | AV69: =IF(AV68="","",VLOOKUP(AV68,'【記載例】シフト記号表（勤務時間帯）'!$C$4:$K$35,9,FALSE)) ->  | AW69: =IF(AW68="","",VLOOKUP(AW68,'【記載例】シフト記号表（勤務時間帯）'!$C$4:$K$35,9,FALSE)) ->  | AX69: =IF(AX68="","",VLOOKUP(AX68,'【記載例】シフト記号表（勤務時間帯）'!$C$4:$K$35,9,FALSE)) -> 
B70: =B68+1 -> 28 | C70: 理学療法士 | F70: A | H70: 理学療法士 | M70: ○○ AA夫 | Q70: シフト記号 | T70: a | U70: 休 | V70: 休 | W70: a | X70: a | Y70: a | Z70: a | AA70: a | AB70: 休 | AC70: 休 | AD70: a | AE70: a | AF70: a | AG70: a | AH70: a | AI70: 休 | AJ70: 休 | AK70: a | AL70: a | AM70: a | AN70: a | AO70: a | AP70: 休 | AQ70: 休 | AR70: a | AS70: a | AT70: a | AU70: a | AY70: =IF($BD$3="計画",SUM(T71:AU71),IF($BD$3="実績",SUM(T71:AX71),"")) -> 160 | BA70: =IF($BD$3="計画",AY70/4,IF($BD$3="実績",AY70/($BB$7/7),"")) -> 40
Q71: 勤務時間数 | T71: =IF(T70="","",VLOOKUP(T70,'【記載例】シフト記号表（勤務時間帯）'!$C$4:$K$35,9,FALSE)) -> 8 | U71: =IF(U70="","",VLOOKUP(U70,'【記載例】シフト記号表（勤務時間帯）'!$C$4:$K$35,9,FALSE)) -> - | V71: =IF(V70="","",VLOOKUP(V70,'【記載例】シフト記号表（勤務時間帯）'!$C$4:$K$35,9,FALSE)) -> - | W71: =IF(W70="","",VLOOKUP(W70,'【記載例】シフト記号表（勤務時間帯）'!$C$4:$K$35,9,FALSE)) -> 8 | X71: =IF(X70="","",VLOOKUP(X70,'【記載例】シフト記号表（勤務時間帯）'!$C$4:$K$35,9,FALSE)) -> 8 | Y71: =IF(Y70="","",VLOOKUP(Y70,'【記載例】シフト記号表（勤務時間帯）'!$C$4:$K$35,9,FALSE)) -> 8 | Z71: =IF(Z70="","",VLOOKUP(Z70,'【記載例】シフト記号表（勤務時間帯）'!$C$4:$K$35,9,FALSE)) -> 8 | AA71: =IF(AA70="","",VLOOKUP(AA70,'【記載例】シフト記号表（勤務時間帯）'!$C$4:$K$35,9,FALSE)) -> 8 | AB71: =IF(AB70="","",VLOOKUP(AB70,'【記載例】シフト記号表（勤務時間帯）'!$C$4:$K$35,9,FALSE)) -> - | AC71: =IF(AC70="","",VLOOKUP(AC70,'【記載例】シフト記号表（勤務時間帯）'!$C$4:$K$35,9,FALSE)) -> - | AD71: =IF(AD70="","",VLOOKUP(AD70,'【記載例】シフト記号表（勤務時間帯）'!$C$4:$K$35,9,FALSE)) -> 8 | AE71: =IF(AE70="","",VLOOKUP(AE70,'【記載例】シフト記号表（勤務時間帯）'!$C$4:$K$35,9,FALSE)) -> 8 | AF71: =IF(AF70="","",VLOOKUP(AF70,'【記載例】シフト記号表（勤務時間帯）'!$C$4:$K$35,9,FALSE)) -> 8 | AG71: =IF(AG70="","",VLOOKUP(AG70,'【記載例】シフト記号表（勤務時間帯）'!$C$4:$K$35,9,FALSE)) -> 8 | AH71: =IF(AH70="","",VLOOKUP(AH70,'【記載例】シフト記号表（勤務時間帯）'!$C$4:$K$35,9,FALSE)) -> 8 | AI71: =IF(AI70="","",VLOOKUP(AI70,'【記載例】シフト記号表（勤務時間帯）'!$C$4:$K$35,9,FALSE)) -> - | AJ71: =IF(AJ70="","",VLOOKUP(AJ70,'【記載例】シフト記号表（勤務時間帯）'!$C$4:$K$35,9,FALSE)) -> - | AK71: =IF(AK70="","",VLOOKUP(AK70,'【記載例】シフト記号表（勤務時間帯）'!$C$4:$K$35,9,FALSE)) -> 8 | AL71: =IF(AL70="","",VLOOKUP(AL70,'【記載例】シフト記号表（勤務時間帯）'!$C$4:$K$35,9,FALSE)) -> 8 | AM71: =IF(AM70="","",VLOOKUP(AM70,'【記載例】シフト記号表（勤務時間帯）'!$C$4:$K$35,9,FALSE)) -> 8 | AN71: =IF(AN70="","",VLOOKUP(AN70,'【記載例】シフト記号表（勤務時間帯）'!$C$4:$K$35,9,FALSE)) -> 8 | AO71: =IF(AO70="","",VLOOKUP(AO70,'【記載例】シフト記号表（勤務時間帯）'!$C$4:$K$35,9,FALSE)) -> 8 | AP71: =IF(AP70="","",VLOOKUP(AP70,'【記載例】シフト記号表（勤務時間帯）'!$C$4:$K$35,9,FALSE)) -> - | AQ71: =IF(AQ70="","",VLOOKUP(AQ70,'【記載例】シフト記号表（勤務時間帯）'!$C$4:$K$35,9,FALSE)) -> - | AR71: =IF(AR70="","",VLOOKUP(AR70,'【記載例】シフト記号表（勤務時間帯）'!$C$4:$K$35,9,FALSE)) -> 8 | AS71: =IF(AS70="","",VLOOKUP(AS70,'【記載例】シフト記号表（勤務時間帯）'!$C$4:$K$35,9,FALSE)) -> 8 | AT71: =IF(AT70="","",VLOOKUP(AT70,'【記載例】シフト記号表（勤務時間帯）'!$C$4:$K$35,9,FALSE)) -> 8 | AU71: =IF(AU70="","",VLOOKUP(AU70,'【記載例】シフト記号表（勤務時間帯）'!$C$4:$K$35,9,FALSE)) -> 8 | AV71: =IF(AV70="","",VLOOKUP(AV70,'【記載例】シフト記号表（勤務時間帯）'!$C$4:$K$35,9,FALSE)) ->  | AW71: =IF(AW70="","",VLOOKUP(AW70,'【記載例】シフト記号表（勤務時間帯）'!$C$4:$K$35,9,FALSE)) ->  | AX71: =IF(AX70="","",VLOOKUP(AX70,'【記載例】シフト記号表（勤務時間帯）'!$C$4:$K$35,9,FALSE)) -> 
B72: =B70+1 -> 29 | C72: 作業療法士 | F72: A | H72: 作業療法士 | M72: ○○ BB子 | Q72: シフト記号 | T72: a | U72: a | V72: a | W72: a | X72: 休 | Y72: 休 | Z72: a | AA72: a | AB72: a | AC72: a | AD72: a | AE72: 休 | AF72: 休 | AG72: a | AH72: a | AI72: a | AJ72: a | AK72: a | AL72: 休 | AM72: 休 | AN72: a | AO72: a | AP72: a | AQ72: a | AR72: a | AS72: 休 | AT72: 休 | AU72: a | AY72: =IF($BD$3="計画",SUM(T73:AU73),IF($BD$3="実績",SUM(T73:AX73),"")) -> 160 | BA72: =IF($BD$3="計画",AY72/4,IF($BD$3="実績",AY72/($BB$7/7),"")) -> 40
Q73: 勤務時間数 | T73: =IF(T72="","",VLOOKUP(T72,'【記載例】シフト記号表（勤務時間帯）'!$C$4:$K$35,9,FALSE)) -> 8 | U73: =IF(U72="","",VLOOKUP(U72,'【記載例】シフト記号表（勤務時間帯）'!$C$4:$K$35,9,FALSE)) -> 8 | V73: =IF(V72="","",VLOOKUP(V72,'【記載例】シフト記号表（勤務時間帯）'!$C$4:$K$35,9,FALSE)) -> 8 | W73: =IF(W72="","",VLOOKUP(W72,'【記載例】シフト記号表（勤務時間帯）'!$C$4:$K$35,9,FALSE)) -> 8 | X73: =IF(X72="","",VLOOKUP(X72,'【記載例】シフト記号表（勤務時間帯）'!$C$4:$K$35,9,FALSE)) -> - | Y73: =IF(Y72="","",VLOOKUP(Y72,'【記載例】シフト記号表（勤務時間帯）'!$C$4:$K$35,9,FALSE)) -> - | Z73: =IF(Z72="","",VLOOKUP(Z72,'【記載例】シフト記号表（勤務時間帯）'!$C$4:$K$35,9,FALSE)) -> 8 | AA73: =IF(AA72="","",VLOOKUP(AA72,'【記載例】シフト記号表（勤務時間帯）'!$C$4:$K$35,9,FALSE)) -> 8 | AB73: =IF(AB72="","",VLOOKUP(AB72,'【記載例】シフト記号表（勤務時間帯）'!$C$4:$K$35,9,FALSE)) -> 8 | AC73: =IF(AC72="","",VLOOKUP(AC72,'【記載例】シフト記号表（勤務時間帯）'!$C$4:$K$35,9,FALSE)) -> 8 | AD73: =IF(AD72="","",VLOOKUP(AD72,'【記載例】シフト記号表（勤務時間帯）'!$C$4:$K$35,9,FALSE)) -> 8 | AE73: =IF(AE72="","",VLOOKUP(AE72,'【記載例】シフト記号表（勤務時間帯）'!$C$4:$K$35,9,FALSE)) -> - | AF73: =IF(AF72="","",VLOOKUP(AF72,'【記載例】シフト記号表（勤務時間帯）'!$C$4:$K$35,9,FALSE)) -> - | AG73: =IF(AG72="","",VLOOKUP(AG72,'【記載例】シフト記号表（勤務時間帯）'!$C$4:$K$35,9,FALSE)) -> 8 | AH73: =IF(AH72="","",VLOOKUP(AH72,'【記載例】シフト記号表（勤務時間帯）'!$C$4:$K$35,9,FALSE)) -> 8 | AI73: =IF(AI72="","",VLOOKUP(AI72,'【記載例】シフト記号表（勤務時間帯）'!$C$4:$K$35,9,FALSE)) -> 8 | AJ73: =IF(AJ72="","",VLOOKUP(AJ72,'【記載例】シフト記号表（勤務時間帯）'!$C$4:$K$35,9,FALSE)) -> 8 | AK73: =IF(AK72="","",VLOOKUP(AK72,'【記載例】シフト記号表（勤務時間帯）'!$C$4:$K$35,9,FALSE)) -> 8 | AL73: =IF(AL72="","",VLOOKUP(AL72,'【記載例】シフト記号表（勤務時間帯）'!$C$4:$K$35,9,FALSE)) -> - | AM73: =IF(AM72="","",VLOOKUP(AM72,'【記載例】シフト記号表（勤務時間帯）'!$C$4:$K$35,9,FALSE)) -> - | AN73: =IF(AN72="","",VLOOKUP(AN72,'【記載例】シフト記号表（勤務時間帯）'!$C$4:$K$35,9,FALSE)) -> 8 | AO73: =IF(AO72="","",VLOOKUP(AO72,'【記載例】シフト記号表（勤務時間帯）'!$C$4:$K$35,9,FALSE)) -> 8 | AP73: =IF(AP72="","",VLOOKUP(AP72,'【記載例】シフト記号表（勤務時間帯）'!$C$4:$K$35,9,FALSE)) -> 8 | AQ73: =IF(AQ72="","",VLOOKUP(AQ72,'【記載例】シフト記号表（勤務時間帯）'!$C$4:$K$35,9,FALSE)) -> 8 | AR73: =IF(AR72="","",VLOOKUP(AR72,'【記載例】シフト記号表（勤務時間帯）'!$C$4:$K$35,9,FALSE)) -> 8 | AS73: =IF(AS72="","",VLOOKUP(AS72,'【記載例】シフト記号表（勤務時間帯）'!$C$4:$K$35,9,FALSE)) -> - | AT73: =IF(AT72="","",VLOOKUP(AT72,'【記載例】シフト記号表（勤務時間帯）'!$C$4:$K$35,9,FALSE)) -> - | AU73: =IF(AU72="","",VLOOKUP(AU72,'【記載例】シフト記号表（勤務時間帯）'!$C$4:$K$35,9,FALSE)) -> 8 | AV73: =IF(AV72="","",VLOOKUP(AV72,'【記載例】シフト記号表（勤務時間帯）'!$C$4:$K$35,9,FALSE)) ->  | AW73: =IF(AW72="","",VLOOKUP(AW72,'【記載例】シフト記号表（勤務時間帯）'!$C$4:$K$35,9,FALSE)) ->  | AX73: =IF(AX72="","",VLOOKUP(AX72,'【記載例】シフト記号表（勤務時間帯）'!$C$4:$K$35,9,FALSE)) -> 
B74: =B72+1 -> 30 | C74: 言語聴覚士 | F74: A | H74: 言語聴覚士 | M74: ○○ CC太 | Q74: シフト記号 | T74: 休 | U74: a | V74: a | W74: 休 | X74: a | Y74: a | Z74: a | AA74: 休 | AB74: a | AC74: a | AD74: 休 | AE74: a | AF74: a | AG74: a | AH74: 休 | AI74: a | AJ74: a | AK74: 休 | AL74: a | AM74: a | AN74: a | AO74: 休 | AP74: a | AQ74: a | AR74: 休 | AS74: a | AT74: a | AU74: a | AY74: =IF($BD$3="計画",SUM(T75:AU75),IF($BD$3="実績",SUM(T75:AX75),"")) -> 160 | BA74: =IF($BD$3="計画",AY74/4,IF($BD$3="実績",AY74/($BB$7/7),"")) -> 40
Q75: 勤務時間数 | T75: =IF(T74="","",VLOOKUP(T74,'【記載例】シフト記号表（勤務時間帯）'!$C$4:$K$35,9,FALSE)) -> - | U75: =IF(U74="","",VLOOKUP(U74,'【記載例】シフト記号表（勤務時間帯）'!$C$4:$K$35,9,FALSE)) -> 8 | V75: =IF(V74="","",VLOOKUP(V74,'【記載例】シフト記号表（勤務時間帯）'!$C$4:$K$35,9,FALSE)) -> 8 | W75: =IF(W74="","",VLOOKUP(W74,'【記載例】シフト記号表（勤務時間帯）'!$C$4:$K$35,9,FALSE)) -> - | X75: =IF(X74="","",VLOOKUP(X74,'【記載例】シフト記号表（勤務時間帯）'!$C$4:$K$35,9,FALSE)) -> 8 | Y75: =IF(Y74="","",VLOOKUP(Y74,'【記載例】シフト記号表（勤務時間帯）'!$C$4:$K$35,9,FALSE)) -> 8 | Z75: =IF(Z74="","",VLOOKUP(Z74,'【記載例】シフト記号表（勤務時間帯）'!$C$4:$K$35,9,FALSE)) -> 8 | AA75: =IF(AA74="","",VLOOKUP(AA74,'【記載例】シフト記号表（勤務時間帯）'!$C$4:$K$35,9,FALSE)) -> - | AB75: =IF(AB74="","",VLOOKUP(AB74,'【記載例】シフト記号表（勤務時間帯）'!$C$4:$K$35,9,FALSE)) -> 8 | AC75: =IF(AC74="","",VLOOKUP(AC74,'【記載例】シフト記号表（勤務時間帯）'!$C$4:$K$35,9,FALSE)) -> 8 | AD75: =IF(AD74="","",VLOOKUP(AD74,'【記載例】シフト記号表（勤務時間帯）'!$C$4:$K$35,9,FALSE)) -> - | AE75: =IF(AE74="","",VLOOKUP(AE74,'【記載例】シフト記号表（勤務時間帯）'!$C$4:$K$35,9,FALSE)) -> 8 | AF75: =IF(AF74="","",VLOOKUP(AF74,'【記載例】シフト記号表（勤務時間帯）'!$C$4:$K$35,9,FALSE)) -> 8 | AG75: =IF(AG74="","",VLOOKUP(AG74,'【記載例】シフト記号表（勤務時間帯）'!$C$4:$K$35,9,FALSE)) -> 8 | AH75: =IF(AH74="","",VLOOKUP(AH74,'【記載例】シフト記号表（勤務時間帯）'!$C$4:$K$35,9,FALSE)) -> - | AI75: =IF(AI74="","",VLOOKUP(AI74,'【記載例】シフト記号表（勤務時間帯）'!$C$4:$K$35,9,FALSE)) -> 8 | AJ75: =IF(AJ74="","",VLOOKUP(AJ74,'【記載例】シフト記号表（勤務時間帯）'!$C$4:$K$35,9,FALSE)) -> 8 | AK75: =IF(AK74="","",VLOOKUP(AK74,'【記載例】シフト記号表（勤務時間帯）'!$C$4:$K$35,9,FALSE)) -> - | AL75: =IF(AL74="","",VLOOKUP(AL74,'【記載例】シフト記号表（勤務時間帯）'!$C$4:$K$35,9,FALSE)) -> 8 | AM75: =IF(AM74="","",VLOOKUP(AM74,'【記載例】シフト記号表（勤務時間帯）'!$C$4:$K$35,9,FALSE)) -> 8 | AN75: =IF(AN74="","",VLOOKUP(AN74,'【記載例】シフト記号表（勤務時間帯）'!$C$4:$K$35,9,FALSE)) -> 8 | AO75: =IF(AO74="","",VLOOKUP(AO74,'【記載例】シフト記号表（勤務時間帯）'!$C$4:$K$35,9,FALSE)) -> - | AP75: =IF(AP74="","",VLOOKUP(AP74,'【記載例】シフト記号表（勤務時間帯）'!$C$4:$K$35,9,FALSE)) -> 8 | AQ75: =IF(AQ74="","",VLOOKUP(AQ74,'【記載例】シフト記号表（勤務時間帯）'!$C$4:$K$35,9,FALSE)) -> 8 | AR75: =IF(AR74="","",VLOOKUP(AR74,'【記載例】シフト記号表（勤務時間帯）'!$C$4:$K$35,9,FALSE)) -> - | AS75: =IF(AS74="","",VLOOKUP(AS74,'【記載例】シフト記号表（勤務時間帯）'!$C$4:$K$35,9,FALSE)) -> 8 | AT75: =IF(AT74="","",VLOOKUP(AT74,'【記載例】シフト記号表（勤務時間帯）'!$C$4:$K$35,9,FALSE)) -> 8 | AU75: =IF(AU74="","",VLOOKUP(AU74,'【記載例】シフト記号表（勤務時間帯）'!$C$4:$K$35,9,FALSE)) -> 8 | AV75: =IF(AV74="","",VLOOKUP(AV74,'【記載例】シフト記号表（勤務時間帯）'!$C$4:$K$35,9,FALSE)) ->  | AW75: =IF(AW74="","",VLOOKUP(AW74,'【記載例】シフト記号表（勤務時間帯）'!$C$4:$K$35,9,FALSE)) ->  | AX75: =IF(AX74="","",VLOOKUP(AX74,'【記載例】シフト記号表（勤務時間帯）'!$C$4:$K$35,9,FALSE)) -> 
B76: =B74+1 -> 31 | Q76: シフト記号 | AY76: =IF($BD$3="計画",SUM(T77:AU77),IF($BD$3="実績",SUM(T77:AX77),"")) -> 0 | BA76: =IF($BD$3="計画",AY76/4,IF($BD$3="実績",AY76/($BB$7/7),"")) -> 0
Q77: 勤務時間数 | T77: =IF(T76="","",VLOOKUP(T76,'【記載例】シフト記号表（勤務時間帯）'!$C$4:$K$35,9,FALSE)) ->  | U77: =IF(U76="","",VLOOKUP(U76,'【記載例】シフト記号表（勤務時間帯）'!$C$4:$K$35,9,FALSE)) ->  | V77: =IF(V76="","",VLOOKUP(V76,'【記載例】シフト記号表（勤務時間帯）'!$C$4:$K$35,9,FALSE)) ->  | W77: =IF(W76="","",VLOOKUP(W76,'【記載例】シフト記号表（勤務時間帯）'!$C$4:$K$35,9,FALSE)) ->  | X77: =IF(X76="","",VLOOKUP(X76,'【記載例】シフト記号表（勤務時間帯）'!$C$4:$K$35,9,FALSE)) ->  | Y77: =IF(Y76="","",VLOOKUP(Y76,'【記載例】シフト記号表（勤務時間帯）'!$C$4:$K$35,9,FALSE)) ->  | Z77: =IF(Z76="","",VLOOKUP(Z76,'【記載例】シフト記号表（勤務時間帯）'!$C$4:$K$35,9,FALSE)) ->  | AA77: =IF(AA76="","",VLOOKUP(AA76,'【記載例】シフト記号表（勤務時間帯）'!$C$4:$K$35,9,FALSE)) ->  | AB77: =IF(AB76="","",VLOOKUP(AB76,'【記載例】シフト記号表（勤務時間帯）'!$C$4:$K$35,9,FALSE)) ->  | AC77: =IF(AC76="","",VLOOKUP(AC76,'【記載例】シフト記号表（勤務時間帯）'!$C$4:$K$35,9,FALSE)) ->  | AD77: =IF(AD76="","",VLOOKUP(AD76,'【記載例】シフト記号表（勤務時間帯）'!$C$4:$K$35,9,FALSE)) ->  | AE77: =IF(AE76="","",VLOOKUP(AE76,'【記載例】シフト記号表（勤務時間帯）'!$C$4:$K$35,9,FALSE)) ->  | AF77: =IF(AF76="","",VLOOKUP(AF76,'【記載例】シフト記号表（勤務時間帯）'!$C$4:$K$35,9,FALSE)) ->  | AG77: =IF(AG76="","",VLOOKUP(AG76,'【記載例】シフト記号表（勤務時間帯）'!$C$4:$K$35,9,FALSE)) ->  | AH77: =IF(AH76="","",VLOOKUP(AH76,'【記載例】シフト記号表（勤務時間帯）'!$C$4:$K$35,9,FALSE)) ->  | AI77: =IF(AI76="","",VLOOKUP(AI76,'【記載例】シフト記号表（勤務時間帯）'!$C$4:$K$35,9,FALSE)) ->  | AJ77: =IF(AJ76="","",VLOOKUP(AJ76,'【記載例】シフト記号表（勤務時間帯）'!$C$4:$K$35,9,FALSE)) ->  | AK77: =IF(AK76="","",VLOOKUP(AK76,'【記載例】シフト記号表（勤務時間帯）'!$C$4:$K$35,9,FALSE)) ->  | AL77: =IF(AL76="","",VLOOKUP(AL76,'【記載例】シフト記号表（勤務時間帯）'!$C$4:$K$35,9,FALSE)) ->  | AM77: =IF(AM76="","",VLOOKUP(AM76,'【記載例】シフト記号表（勤務時間帯）'!$C$4:$K$35,9,FALSE)) ->  | AN77: =IF(AN76="","",VLOOKUP(AN76,'【記載例】シフト記号表（勤務時間帯）'!$C$4:$K$35,9,FALSE)) ->  | AO77: =IF(AO76="","",VLOOKUP(AO76,'【記載例】シフト記号表（勤務時間帯）'!$C$4:$K$35,9,FALSE)) ->  | AP77: =IF(AP76="","",VLOOKUP(AP76,'【記載例】シフト記号表（勤務時間帯）'!$C$4:$K$35,9,FALSE)) ->  | AQ77: =IF(AQ76="","",VLOOKUP(AQ76,'【記載例】シフト記号表（勤務時間帯）'!$C$4:$K$35,9,FALSE)) ->  | AR77: =IF(AR76="","",VLOOKUP(AR76,'【記載例】シフト記号表（勤務時間帯）'!$C$4:$K$35,9,FALSE)) ->  | AS77: =IF(AS76="","",VLOOKUP(AS76,'【記載例】シフト記号表（勤務時間帯）'!$C$4:$K$35,9,FALSE)) ->  | AT77: =IF(AT76="","",VLOOKUP(AT76,'【記載例】シフト記号表（勤務時間帯）'!$C$4:$K$35,9,FALSE)) ->  | AU77: =IF(AU76="","",VLOOKUP(AU76,'【記載例】シフト記号表（勤務時間帯）'!$C$4:$K$35,9,FALSE)) ->  | AV77: =IF(AV76="","",VLOOKUP(AV76,'【記載例】シフト記号表（勤務時間帯）'!$C$4:$K$35,9,FALSE)) ->  | AW77: =IF(AW76="","",VLOOKUP(AW76,'【記載例】シフト記号表（勤務時間帯）'!$C$4:$K$35,9,FALSE)) ->  | AX77: =IF(AX76="","",VLOOKUP(AX76,'【記載例】シフト記号表（勤務時間帯）'!$C$4:$K$35,9,FALSE)) -> 
B78: =B76+1 -> 32 | Q78: シフト記号 | AY78: =IF($BD$3="計画",SUM(T79:AU79),IF($BD$3="実績",SUM(T79:AX79),"")) -> 0 | BA78: =IF($BD$3="計画",AY78/4,IF($BD$3="実績",AY78/($BB$7/7),"")) -> 0
Q79: 勤務時間数 | T79: =IF(T78="","",VLOOKUP(T78,'【記載例】シフト記号表（勤務時間帯）'!$C$4:$K$35,9,FALSE)) ->  | U79: =IF(U78="","",VLOOKUP(U78,'【記載例】シフト記号表（勤務時間帯）'!$C$4:$K$35,9,FALSE)) ->  | V79: =IF(V78="","",VLOOKUP(V78,'【記載例】シフト記号表（勤務時間帯）'!$C$4:$K$35,9,FALSE)) ->  | W79: =IF(W78="","",VLOOKUP(W78,'【記載例】シフト記号表（勤務時間帯）'!$C$4:$K$35,9,FALSE)) ->  | X79: =IF(X78="","",VLOOKUP(X78,'【記載例】シフト記号表（勤務時間帯）'!$C$4:$K$35,9,FALSE)) ->  | Y79: =IF(Y78="","",VLOOKUP(Y78,'【記載例】シフト記号表（勤務時間帯）'!$C$4:$K$35,9,FALSE)) ->  | Z79: =IF(Z78="","",VLOOKUP(Z78,'【記載例】シフト記号表（勤務時間帯）'!$C$4:$K$35,9,FALSE)) ->  | AA79: =IF(AA78="","",VLOOKUP(AA78,'【記載例】シフト記号表（勤務時間帯）'!$C$4:$K$35,9,FALSE)) ->  | AB79: =IF(AB78="","",VLOOKUP(AB78,'【記載例】シフト記号表（勤務時間帯）'!$C$4:$K$35,9,FALSE)) ->  | AC79: =IF(AC78="","",VLOOKUP(AC78,'【記載例】シフト記号表（勤務時間帯）'!$C$4:$K$35,9,FALSE)) ->  | AD79: =IF(AD78="","",VLOOKUP(AD78,'【記載例】シフト記号表（勤務時間帯）'!$C$4:$K$35,9,FALSE)) ->  | AE79: =IF(AE78="","",VLOOKUP(AE78,'【記載例】シフト記号表（勤務時間帯）'!$C$4:$K$35,9,FALSE)) ->  | AF79: =IF(AF78="","",VLOOKUP(AF78,'【記載例】シフト記号表（勤務時間帯）'!$C$4:$K$35,9,FALSE)) ->  | AG79: =IF(AG78="","",VLOOKUP(AG78,'【記載例】シフト記号表（勤務時間帯）'!$C$4:$K$35,9,FALSE)) ->  | AH79: =IF(AH78="","",VLOOKUP(AH78,'【記載例】シフト記号表（勤務時間帯）'!$C$4:$K$35,9,FALSE)) ->  | AI79: =IF(AI78="","",VLOOKUP(AI78,'【記載例】シフト記号表（勤務時間帯）'!$C$4:$K$35,9,FALSE)) ->  | AJ79: =IF(AJ78="","",VLOOKUP(AJ78,'【記載例】シフト記号表（勤務時間帯）'!$C$4:$K$35,9,FALSE)) ->  | AK79: =IF(AK78="","",VLOOKUP(AK78,'【記載例】シフト記号表（勤務時間帯）'!$C$4:$K$35,9,FALSE)) ->  | AL79: =IF(AL78="","",VLOOKUP(AL78,'【記載例】シフト記号表（勤務時間帯）'!$C$4:$K$35,9,FALSE)) ->  | AM79: =IF(AM78="","",VLOOKUP(AM78,'【記載例】シフト記号表（勤務時間帯）'!$C$4:$K$35,9,FALSE)) ->  | AN79: =IF(AN78="","",VLOOKUP(AN78,'【記載例】シフト記号表（勤務時間帯）'!$C$4:$K$35,9,FALSE)) ->  | AO79: =IF(AO78="","",VLOOKUP(AO78,'【記載例】シフト記号表（勤務時間帯）'!$C$4:$K$35,9,FALSE)) ->  | AP79: =IF(AP78="","",VLOOKUP(AP78,'【記載例】シフト記号表（勤務時間帯）'!$C$4:$K$35,9,FALSE)) ->  | AQ79: =IF(AQ78="","",VLOOKUP(AQ78,'【記載例】シフト記号表（勤務時間帯）'!$C$4:$K$35,9,FALSE)) ->  | AR79: =IF(AR78="","",VLOOKUP(AR78,'【記載例】シフト記号表（勤務時間帯）'!$C$4:$K$35,9,FALSE)) ->  | AS79: =IF(AS78="","",VLOOKUP(AS78,'【記載例】シフト記号表（勤務時間帯）'!$C$4:$K$35,9,FALSE)) ->  | AT79: =IF(AT78="","",VLOOKUP(AT78,'【記載例】シフト記号表（勤務時間帯）'!$C$4:$K$35,9,FALSE)) ->  | AU79: =IF(AU78="","",VLOOKUP(AU78,'【記載例】シフト記号表（勤務時間帯）'!$C$4:$K$35,9,FALSE)) ->  | AV79: =IF(AV78="","",VLOOKUP(AV78,'【記載例】シフト記号表（勤務時間帯）'!$C$4:$K$35,9,FALSE)) ->  | AW79: =IF(AW78="","",VLOOKUP(AW78,'【記載例】シフト記号表（勤務時間帯）'!$C$4:$K$35,9,FALSE)) ->  | AX79: =IF(AX78="","",VLOOKUP(AX78,'【記載例】シフト記号表（勤務時間帯）'!$C$4:$K$35,9,FALSE)) -> 
B80: =B78+1 -> 33 | Q80: シフト記号 | AY80: =IF($BD$3="計画",SUM(T81:AU81),IF($BD$3="実績",SUM(T81:AX81),"")) -> 0 | BA80: =IF($BD$3="計画",AY80/4,IF($BD$3="実績",AY80/($BB$7/7),"")) -> 0
Q81: 勤務時間数 | T81: =IF(T80="","",VLOOKUP(T80,'【記載例】シフト記号表（勤務時間帯）'!$C$4:$K$35,9,FALSE)) ->  | U81: =IF(U80="","",VLOOKUP(U80,'【記載例】シフト記号表（勤務時間帯）'!$C$4:$K$35,9,FALSE)) ->  | V81: =IF(V80="","",VLOOKUP(V80,'【記載例】シフト記号表（勤務時間帯）'!$C$4:$K$35,9,FALSE)) ->  | W81: =IF(W80="","",VLOOKUP(W80,'【記載例】シフト記号表（勤務時間帯）'!$C$4:$K$35,9,FALSE)) ->  | X81: =IF(X80="","",VLOOKUP(X80,'【記載例】シフト記号表（勤務時間帯）'!$C$4:$K$35,9,FALSE)) ->  | Y81: =IF(Y80="","",VLOOKUP(Y80,'【記載例】シフト記号表（勤務時間帯）'!$C$4:$K$35,9,FALSE)) ->  | Z81: =IF(Z80="","",VLOOKUP(Z80,'【記載例】シフト記号表（勤務時間帯）'!$C$4:$K$35,9,FALSE)) ->  | AA81: =IF(AA80="","",VLOOKUP(AA80,'【記載例】シフト記号表（勤務時間帯）'!$C$4:$K$35,9,FALSE)) ->  | AB81: =IF(AB80="","",VLOOKUP(AB80,'【記載例】シフト記号表（勤務時間帯）'!$C$4:$K$35,9,FALSE)) ->  | AC81: =IF(AC80="","",VLOOKUP(AC80,'【記載例】シフト記号表（勤務時間帯）'!$C$4:$K$35,9,FALSE)) ->  | AD81: =IF(AD80="","",VLOOKUP(AD80,'【記載例】シフト記号表（勤務時間帯）'!$C$4:$K$35,9,FALSE)) ->  | AE81: =IF(AE80="","",VLOOKUP(AE80,'【記載例】シフト記号表（勤務時間帯）'!$C$4:$K$35,9,FALSE)) ->  | AF81: =IF(AF80="","",VLOOKUP(AF80,'【記載例】シフト記号表（勤務時間帯）'!$C$4:$K$35,9,FALSE)) ->  | AG81: =IF(AG80="","",VLOOKUP(AG80,'【記載例】シフト記号表（勤務時間帯）'!$C$4:$K$35,9,FALSE)) ->  | AH81: =IF(AH80="","",VLOOKUP(AH80,'【記載例】シフト記号表（勤務時間帯）'!$C$4:$K$35,9,FALSE)) ->  | AI81: =IF(AI80="","",VLOOKUP(AI80,'【記載例】シフト記号表（勤務時間帯）'!$C$4:$K$35,9,FALSE)) ->  | AJ81: =IF(AJ80="","",VLOOKUP(AJ80,'【記載例】シフト記号表（勤務時間帯）'!$C$4:$K$35,9,FALSE)) ->  | AK81: =IF(AK80="","",VLOOKUP(AK80,'【記載例】シフト記号表（勤務時間帯）'!$C$4:$K$35,9,FALSE)) ->  | AL81: =IF(AL80="","",VLOOKUP(AL80,'【記載例】シフト記号表（勤務時間帯）'!$C$4:$K$35,9,FALSE)) ->  | AM81: =IF(AM80="","",VLOOKUP(AM80,'【記載例】シフト記号表（勤務時間帯）'!$C$4:$K$35,9,FALSE)) ->  | AN81: =IF(AN80="","",VLOOKUP(AN80,'【記載例】シフト記号表（勤務時間帯）'!$C$4:$K$35,9,FALSE)) ->  | AO81: =IF(AO80="","",VLOOKUP(AO80,'【記載例】シフト記号表（勤務時間帯）'!$C$4:$K$35,9,FALSE)) ->  | AP81: =IF(AP80="","",VLOOKUP(AP80,'【記載例】シフト記号表（勤務時間帯）'!$C$4:$K$35,9,FALSE)) ->  | AQ81: =IF(AQ80="","",VLOOKUP(AQ80,'【記載例】シフト記号表（勤務時間帯）'!$C$4:$K$35,9,FALSE)) ->  | AR81: =IF(AR80="","",VLOOKUP(AR80,'【記載例】シフト記号表（勤務時間帯）'!$C$4:$K$35,9,FALSE)) ->  | AS81: =IF(AS80="","",VLOOKUP(AS80,'【記載例】シフト記号表（勤務時間帯）'!$C$4:$K$35,9,FALSE)) ->  | AT81: =IF(AT80="","",VLOOKUP(AT80,'【記載例】シフト記号表（勤務時間帯）'!$C$4:$K$35,9,FALSE)) ->  | AU81: =IF(AU80="","",VLOOKUP(AU80,'【記載例】シフト記号表（勤務時間帯）'!$C$4:$K$35,9,FALSE)) ->  | AV81: =IF(AV80="","",VLOOKUP(AV80,'【記載例】シフト記号表（勤務時間帯）'!$C$4:$K$35,9,FALSE)) ->  | AW81: =IF(AW80="","",VLOOKUP(AW80,'【記載例】シフト記号表（勤務時間帯）'!$C$4:$K$35,9,FALSE)) ->  | AX81: =IF(AX80="","",VLOOKUP(AX80,'【記載例】シフト記号表（勤務時間帯）'!$C$4:$K$35,9,FALSE)) -> 
B82: =B80+1 -> 34 | Q82: シフト記号 | AY82: =IF($BD$3="計画",SUM(T83:AU83),IF($BD$3="実績",SUM(T83:AX83),"")) -> 0 | BA82: =IF($BD$3="計画",AY82/4,IF($BD$3="実績",AY82/($BB$7/7),"")) -> 0
Q83: 勤務時間数 | T83: =IF(T82="","",VLOOKUP(T82,'【記載例】シフト記号表（勤務時間帯）'!$C$4:$K$35,9,FALSE)) ->  | U83: =IF(U82="","",VLOOKUP(U82,'【記載例】シフト記号表（勤務時間帯）'!$C$4:$K$35,9,FALSE)) ->  | V83: =IF(V82="","",VLOOKUP(V82,'【記載例】シフト記号表（勤務時間帯）'!$C$4:$K$35,9,FALSE)) ->  | W83: =IF(W82="","",VLOOKUP(W82,'【記載例】シフト記号表（勤務時間帯）'!$C$4:$K$35,9,FALSE)) ->  | X83: =IF(X82="","",VLOOKUP(X82,'【記載例】シフト記号表（勤務時間帯）'!$C$4:$K$35,9,FALSE)) ->  | Y83: =IF(Y82="","",VLOOKUP(Y82,'【記載例】シフト記号表（勤務時間帯）'!$C$4:$K$35,9,FALSE)) ->  | Z83: =IF(Z82="","",VLOOKUP(Z82,'【記載例】シフト記号表（勤務時間帯）'!$C$4:$K$35,9,FALSE)) ->  | AA83: =IF(AA82="","",VLOOKUP(AA82,'【記載例】シフト記号表（勤務時間帯）'!$C$4:$K$35,9,FALSE)) ->  | AB83: =IF(AB82="","",VLOOKUP(AB82,'【記載例】シフト記号表（勤務時間帯）'!$C$4:$K$35,9,FALSE)) ->  | AC83: =IF(AC82="","",VLOOKUP(AC82,'【記載例】シフト記号表（勤務時間帯）'!$C$4:$K$35,9,FALSE)) ->  | AD83: =IF(AD82="","",VLOOKUP(AD82,'【記載例】シフト記号表（勤務時間帯）'!$C$4:$K$35,9,FALSE)) ->  | AE83: =IF(AE82="","",VLOOKUP(AE82,'【記載例】シフト記号表（勤務時間帯）'!$C$4:$K$35,9,FALSE)) ->  | AF83: =IF(AF82="","",VLOOKUP(AF82,'【記載例】シフト記号表（勤務時間帯）'!$C$4:$K$35,9,FALSE)) ->  | AG83: =IF(AG82="","",VLOOKUP(AG82,'【記載例】シフト記号表（勤務時間帯）'!$C$4:$K$35,9,FALSE)) ->  | AH83: =IF(AH82="","",VLOOKUP(AH82,'【記載例】シフト記号表（勤務時間帯）'!$C$4:$K$35,9,FALSE)) ->  | AI83: =IF(AI82="","",VLOOKUP(AI82,'【記載例】シフト記号表（勤務時間帯）'!$C$4:$K$35,9,FALSE)) ->  | AJ83: =IF(AJ82="","",VLOOKUP(AJ82,'【記載例】シフト記号表（勤務時間帯）'!$C$4:$K$35,9,FALSE)) ->  | AK83: =IF(AK82="","",VLOOKUP(AK82,'【記載例】シフト記号表（勤務時間帯）'!$C$4:$K$35,9,FALSE)) ->  | AL83: =IF(AL82="","",VLOOKUP(AL82,'【記載例】シフト記号表（勤務時間帯）'!$C$4:$K$35,9,FALSE)) ->  | AM83: =IF(AM82="","",VLOOKUP(AM82,'【記載例】シフト記号表（勤務時間帯）'!$C$4:$K$35,9,FALSE)) ->  | AN83: =IF(AN82="","",VLOOKUP(AN82,'【記載例】シフト記号表（勤務時間帯）'!$C$4:$K$35,9,FALSE)) ->  | AO83: =IF(AO82="","",VLOOKUP(AO82,'【記載例】シフト記号表（勤務時間帯）'!$C$4:$K$35,9,FALSE)) ->  | AP83: =IF(AP82="","",VLOOKUP(AP82,'【記載例】シフト記号表（勤務時間帯）'!$C$4:$K$35,9,FALSE)) ->  | AQ83: =IF(AQ82="","",VLOOKUP(AQ82,'【記載例】シフト記号表（勤務時間帯）'!$C$4:$K$35,9,FALSE)) ->  | AR83: =IF(AR82="","",VLOOKUP(AR82,'【記載例】シフト記号表（勤務時間帯）'!$C$4:$K$35,9,FALSE)) ->  | AS83: =IF(AS82="","",VLOOKUP(AS82,'【記載例】シフト記号表（勤務時間帯）'!$C$4:$K$35,9,FALSE)) ->  | AT83: =IF(AT82="","",VLOOKUP(AT82,'【記載例】シフト記号表（勤務時間帯）'!$C$4:$K$35,9,FALSE)) ->  | AU83: =IF(AU82="","",VLOOKUP(AU82,'【記載例】シフト記号表（勤務時間帯）'!$C$4:$K$35,9,FALSE)) ->  | AV83: =IF(AV82="","",VLOOKUP(AV82,'【記載例】シフト記号表（勤務時間帯）'!$C$4:$K$35,9,FALSE)) ->  | AW83: =IF(AW82="","",VLOOKUP(AW82,'【記載例】シフト記号表（勤務時間帯）'!$C$4:$K$35,9,FALSE)) ->  | AX83: =IF(AX82="","",VLOOKUP(AX82,'【記載例】シフト記号表（勤務時間帯）'!$C$4:$K$35,9,FALSE)) -> 
B84: =B82+1 -> 35 | Q84: シフト記号 | AY84: =IF($BD$3="計画",SUM(T85:AU85),IF($BD$3="実績",SUM(T85:AX85),"")) -> 0 | BA84: =IF($BD$3="計画",AY84/4,IF($BD$3="実績",AY84/($BB$7/7),"")) -> 0
Q85: 勤務時間数 | T85: =IF(T84="","",VLOOKUP(T84,'【記載例】シフト記号表（勤務時間帯）'!$C$4:$K$35,9,FALSE)) ->  | U85: =IF(U84="","",VLOOKUP(U84,'【記載例】シフト記号表（勤務時間帯）'!$C$4:$K$35,9,FALSE)) ->  | V85: =IF(V84="","",VLOOKUP(V84,'【記載例】シフト記号表（勤務時間帯）'!$C$4:$K$35,9,FALSE)) ->  | W85: =IF(W84="","",VLOOKUP(W84,'【記載例】シフト記号表（勤務時間帯）'!$C$4:$K$35,9,FALSE)) ->  | X85: =IF(X84="","",VLOOKUP(X84,'【記載例】シフト記号表（勤務時間帯）'!$C$4:$K$35,9,FALSE)) ->  | Y85: =IF(Y84="","",VLOOKUP(Y84,'【記載例】シフト記号表（勤務時間帯）'!$C$4:$K$35,9,FALSE)) ->  | Z85: =IF(Z84="","",VLOOKUP(Z84,'【記載例】シフト記号表（勤務時間帯）'!$C$4:$K$35,9,FALSE)) ->  | AA85: =IF(AA84="","",VLOOKUP(AA84,'【記載例】シフト記号表（勤務時間帯）'!$C$4:$K$35,9,FALSE)) ->  | AB85: =IF(AB84="","",VLOOKUP(AB84,'【記載例】シフト記号表（勤務時間帯）'!$C$4:$K$35,9,FALSE)) ->  | AC85: =IF(AC84="","",VLOOKUP(AC84,'【記載例】シフト記号表（勤務時間帯）'!$C$4:$K$35,9,FALSE)) ->  | AD85: =IF(AD84="","",VLOOKUP(AD84,'【記載例】シフト記号表（勤務時間帯）'!$C$4:$K$35,9,FALSE)) ->  | AE85: =IF(AE84="","",VLOOKUP(AE84,'【記載例】シフト記号表（勤務時間帯）'!$C$4:$K$35,9,FALSE)) ->  | AF85: =IF(AF84="","",VLOOKUP(AF84,'【記載例】シフト記号表（勤務時間帯）'!$C$4:$K$35,9,FALSE)) ->  | AG85: =IF(AG84="","",VLOOKUP(AG84,'【記載例】シフト記号表（勤務時間帯）'!$C$4:$K$35,9,FALSE)) ->  | AH85: =IF(AH84="","",VLOOKUP(AH84,'【記載例】シフト記号表（勤務時間帯）'!$C$4:$K$35,9,FALSE)) ->  | AI85: =IF(AI84="","",VLOOKUP(AI84,'【記載例】シフト記号表（勤務時間帯）'!$C$4:$K$35,9,FALSE)) ->  | AJ85: =IF(AJ84="","",VLOOKUP(AJ84,'【記載例】シフト記号表（勤務時間帯）'!$C$4:$K$35,9,FALSE)) ->  | AK85: =IF(AK84="","",VLOOKUP(AK84,'【記載例】シフト記号表（勤務時間帯）'!$C$4:$K$35,9,FALSE)) ->  | AL85: =IF(AL84="","",VLOOKUP(AL84,'【記載例】シフト記号表（勤務時間帯）'!$C$4:$K$35,9,FALSE)) ->  | AM85: =IF(AM84="","",VLOOKUP(AM84,'【記載例】シフト記号表（勤務時間帯）'!$C$4:$K$35,9,FALSE)) ->  | AN85: =IF(AN84="","",VLOOKUP(AN84,'【記載例】シフト記号表（勤務時間帯）'!$C$4:$K$35,9,FALSE)) ->  | AO85: =IF(AO84="","",VLOOKUP(AO84,'【記載例】シフト記号表（勤務時間帯）'!$C$4:$K$35,9,FALSE)) ->  | AP85: =IF(AP84="","",VLOOKUP(AP84,'【記載例】シフト記号表（勤務時間帯）'!$C$4:$K$35,9,FALSE)) ->  | AQ85: =IF(AQ84="","",VLOOKUP(AQ84,'【記載例】シフト記号表（勤務時間帯）'!$C$4:$K$35,9,FALSE)) ->  | AR85: =IF(AR84="","",VLOOKUP(AR84,'【記載例】シフト記号表（勤務時間帯）'!$C$4:$K$35,9,FALSE)) ->  | AS85: =IF(AS84="","",VLOOKUP(AS84,'【記載例】シフト記号表（勤務時間帯）'!$C$4:$K$35,9,FALSE)) ->  | AT85: =IF(AT84="","",VLOOKUP(AT84,'【記載例】シフト記号表（勤務時間帯）'!$C$4:$K$35,9,FALSE)) ->  | AU85: =IF(AU84="","",VLOOKUP(AU84,'【記載例】シフト記号表（勤務時間帯）'!$C$4:$K$35,9,FALSE)) ->  | AV85: =IF(AV84="","",VLOOKUP(AV84,'【記載例】シフト記号表（勤務時間帯）'!$C$4:$K$35,9,FALSE)) ->  | AW85: =IF(AW84="","",VLOOKUP(AW84,'【記載例】シフト記号表（勤務時間帯）'!$C$4:$K$35,9,FALSE)) ->  | AX85: =IF(AX84="","",VLOOKUP(AX84,'【記載例】シフト記号表（勤務時間帯）'!$C$4:$K$35,9,FALSE)) -> 
B86: =B84+1 -> 36 | Q86: シフト記号 | AY86: =IF($BD$3="計画",SUM(T87:AU87),IF($BD$3="実績",SUM(T87:AX87),"")) -> 0 | BA86: =IF($BD$3="計画",AY86/4,IF($BD$3="実績",AY86/($BB$7/7),"")) -> 0
Q87: 勤務時間数 | T87: =IF(T86="","",VLOOKUP(T86,'【記載例】シフト記号表（勤務時間帯）'!$C$4:$K$35,9,FALSE)) ->  | U87: =IF(U86="","",VLOOKUP(U86,'【記載例】シフト記号表（勤務時間帯）'!$C$4:$K$35,9,FALSE)) ->  | V87: =IF(V86="","",VLOOKUP(V86,'【記載例】シフト記号表（勤務時間帯）'!$C$4:$K$35,9,FALSE)) ->  | W87: =IF(W86="","",VLOOKUP(W86,'【記載例】シフト記号表（勤務時間帯）'!$C$4:$K$35,9,FALSE)) ->  | X87: =IF(X86="","",VLOOKUP(X86,'【記載例】シフト記号表（勤務時間帯）'!$C$4:$K$35,9,FALSE)) ->  | Y87: =IF(Y86="","",VLOOKUP(Y86,'【記載例】シフト記号表（勤務時間帯）'!$C$4:$K$35,9,FALSE)) ->  | Z87: =IF(Z86="","",VLOOKUP(Z86,'【記載例】シフト記号表（勤務時間帯）'!$C$4:$K$35,9,FALSE)) ->  | AA87: =IF(AA86="","",VLOOKUP(AA86,'【記載例】シフト記号表（勤務時間帯）'!$C$4:$K$35,9,FALSE)) ->  | AB87: =IF(AB86="","",VLOOKUP(AB86,'【記載例】シフト記号表（勤務時間帯）'!$C$4:$K$35,9,FALSE)) ->  | AC87: =IF(AC86="","",VLOOKUP(AC86,'【記載例】シフト記号表（勤務時間帯）'!$C$4:$K$35,9,FALSE)) ->  | AD87: =IF(AD86="","",VLOOKUP(AD86,'【記載例】シフト記号表（勤務時間帯）'!$C$4:$K$35,9,FALSE)) ->  | AE87: =IF(AE86="","",VLOOKUP(AE86,'【記載例】シフト記号表（勤務時間帯）'!$C$4:$K$35,9,FALSE)) ->  | AF87: =IF(AF86="","",VLOOKUP(AF86,'【記載例】シフト記号表（勤務時間帯）'!$C$4:$K$35,9,FALSE)) ->  | AG87: =IF(AG86="","",VLOOKUP(AG86,'【記載例】シフト記号表（勤務時間帯）'!$C$4:$K$35,9,FALSE)) ->  | AH87: =IF(AH86="","",VLOOKUP(AH86,'【記載例】シフト記号表（勤務時間帯）'!$C$4:$K$35,9,FALSE)) ->  | AI87: =IF(AI86="","",VLOOKUP(AI86,'【記載例】シフト記号表（勤務時間帯）'!$C$4:$K$35,9,FALSE)) ->  | AJ87: =IF(AJ86="","",VLOOKUP(AJ86,'【記載例】シフト記号表（勤務時間帯）'!$C$4:$K$35,9,FALSE)) ->  | AK87: =IF(AK86="","",VLOOKUP(AK86,'【記載例】シフト記号表（勤務時間帯）'!$C$4:$K$35,9,FALSE)) ->  | AL87: =IF(AL86="","",VLOOKUP(AL86,'【記載例】シフト記号表（勤務時間帯）'!$C$4:$K$35,9,FALSE)) ->  | AM87: =IF(AM86="","",VLOOKUP(AM86,'【記載例】シフト記号表（勤務時間帯）'!$C$4:$K$35,9,FALSE)) ->  | AN87: =IF(AN86="","",VLOOKUP(AN86,'【記載例】シフト記号表（勤務時間帯）'!$C$4:$K$35,9,FALSE)) ->  | AO87: =IF(AO86="","",VLOOKUP(AO86,'【記載例】シフト記号表（勤務時間帯）'!$C$4:$K$35,9,FALSE)) ->  | AP87: =IF(AP86="","",VLOOKUP(AP86,'【記載例】シフト記号表（勤務時間帯）'!$C$4:$K$35,9,FALSE)) ->  | AQ87: =IF(AQ86="","",VLOOKUP(AQ86,'【記載例】シフト記号表（勤務時間帯）'!$C$4:$K$35,9,FALSE)) ->  | AR87: =IF(AR86="","",VLOOKUP(AR86,'【記載例】シフト記号表（勤務時間帯）'!$C$4:$K$35,9,FALSE)) ->  | AS87: =IF(AS86="","",VLOOKUP(AS86,'【記載例】シフト記号表（勤務時間帯）'!$C$4:$K$35,9,FALSE)) ->  | AT87: =IF(AT86="","",VLOOKUP(AT86,'【記載例】シフト記号表（勤務時間帯）'!$C$4:$K$35,9,FALSE)) ->  | AU87: =IF(AU86="","",VLOOKUP(AU86,'【記載例】シフト記号表（勤務時間帯）'!$C$4:$K$35,9,FALSE)) ->  | AV87: =IF(AV86="","",VLOOKUP(AV86,'【記載例】シフト記号表（勤務時間帯）'!$C$4:$K$35,9,FALSE)) ->  | AW87: =IF(AW86="","",VLOOKUP(AW86,'【記載例】シフト記号表（勤務時間帯）'!$C$4:$K$35,9,FALSE)) ->  | AX87: =IF(AX86="","",VLOOKUP(AX86,'【記載例】シフト記号表（勤務時間帯）'!$C$4:$K$35,9,FALSE)) -> 
B88: =B86+1 -> 37 | Q88: シフト記号 | AY88: =IF($BD$3="計画",SUM(T89:AU89),IF($BD$3="実績",SUM(T89:AX89),"")) -> 0 | BA88: =IF($BD$3="計画",AY88/4,IF($BD$3="実績",AY88/($BB$7/7),"")) -> 0
Q89: 勤務時間数 | T89: =IF(T88="","",VLOOKUP(T88,'【記載例】シフト記号表（勤務時間帯）'!$C$4:$K$35,9,FALSE)) ->  | U89: =IF(U88="","",VLOOKUP(U88,'【記載例】シフト記号表（勤務時間帯）'!$C$4:$K$35,9,FALSE)) ->  | V89: =IF(V88="","",VLOOKUP(V88,'【記載例】シフト記号表（勤務時間帯）'!$C$4:$K$35,9,FALSE)) ->  | W89: =IF(W88="","",VLOOKUP(W88,'【記載例】シフト記号表（勤務時間帯）'!$C$4:$K$35,9,FALSE)) ->  | X89: =IF(X88="","",VLOOKUP(X88,'【記載例】シフト記号表（勤務時間帯）'!$C$4:$K$35,9,FALSE)) ->  | Y89: =IF(Y88="","",VLOOKUP(Y88,'【記載例】シフト記号表（勤務時間帯）'!$C$4:$K$35,9,FALSE)) ->  | Z89: =IF(Z88="","",VLOOKUP(Z88,'【記載例】シフト記号表（勤務時間帯）'!$C$4:$K$35,9,FALSE)) ->  | AA89: =IF(AA88="","",VLOOKUP(AA88,'【記載例】シフト記号表（勤務時間帯）'!$C$4:$K$35,9,FALSE)) ->  | AB89: =IF(AB88="","",VLOOKUP(AB88,'【記載例】シフト記号表（勤務時間帯）'!$C$4:$K$35,9,FALSE)) ->  | AC89: =IF(AC88="","",VLOOKUP(AC88,'【記載例】シフト記号表（勤務時間帯）'!$C$4:$K$35,9,FALSE)) ->  | AD89: =IF(AD88="","",VLOOKUP(AD88,'【記載例】シフト記号表（勤務時間帯）'!$C$4:$K$35,9,FALSE)) ->  | AE89: =IF(AE88="","",VLOOKUP(AE88,'【記載例】シフト記号表（勤務時間帯）'!$C$4:$K$35,9,FALSE)) ->  | AF89: =IF(AF88="","",VLOOKUP(AF88,'【記載例】シフト記号表（勤務時間帯）'!$C$4:$K$35,9,FALSE)) ->  | AG89: =IF(AG88="","",VLOOKUP(AG88,'【記載例】シフト記号表（勤務時間帯）'!$C$4:$K$35,9,FALSE)) ->  | AH89: =IF(AH88="","",VLOOKUP(AH88,'【記載例】シフト記号表（勤務時間帯）'!$C$4:$K$35,9,FALSE)) ->  | AI89: =IF(AI88="","",VLOOKUP(AI88,'【記載例】シフト記号表（勤務時間帯）'!$C$4:$K$35,9,FALSE)) ->  | AJ89: =IF(AJ88="","",VLOOKUP(AJ88,'【記載例】シフト記号表（勤務時間帯）'!$C$4:$K$35,9,FALSE)) ->  | AK89: =IF(AK88="","",VLOOKUP(AK88,'【記載例】シフト記号表（勤務時間帯）'!$C$4:$K$35,9,FALSE)) ->  | AL89: =IF(AL88="","",VLOOKUP(AL88,'【記載例】シフト記号表（勤務時間帯）'!$C$4:$K$35,9,FALSE)) ->  | AM89: =IF(AM88="","",VLOOKUP(AM88,'【記載例】シフト記号表（勤務時間帯）'!$C$4:$K$35,9,FALSE)) ->  | AN89: =IF(AN88="","",VLOOKUP(AN88,'【記載例】シフト記号表（勤務時間帯）'!$C$4:$K$35,9,FALSE)) ->  | AO89: =IF(AO88="","",VLOOKUP(AO88,'【記載例】シフト記号表（勤務時間帯）'!$C$4:$K$35,9,FALSE)) ->  | AP89: =IF(AP88="","",VLOOKUP(AP88,'【記載例】シフト記号表（勤務時間帯）'!$C$4:$K$35,9,FALSE)) ->  | AQ89: =IF(AQ88="","",VLOOKUP(AQ88,'【記載例】シフト記号表（勤務時間帯）'!$C$4:$K$35,9,FALSE)) ->  | AR89: =IF(AR88="","",VLOOKUP(AR88,'【記載例】シフト記号表（勤務時間帯）'!$C$4:$K$35,9,FALSE)) ->  | AS89: =IF(AS88="","",VLOOKUP(AS88,'【記載例】シフト記号表（勤務時間帯）'!$C$4:$K$35,9,FALSE)) ->  | AT89: =IF(AT88="","",VLOOKUP(AT88,'【記載例】シフト記号表（勤務時間帯）'!$C$4:$K$35,9,FALSE)) ->  | AU89: =IF(AU88="","",VLOOKUP(AU88,'【記載例】シフト記号表（勤務時間帯）'!$C$4:$K$35,9,FALSE)) ->  | AV89: =IF(AV88="","",VLOOKUP(AV88,'【記載例】シフト記号表（勤務時間帯）'!$C$4:$K$35,9,FALSE)) ->  | AW89: =IF(AW88="","",VLOOKUP(AW88,'【記載例】シフト記号表（勤務時間帯）'!$C$4:$K$35,9,FALSE)) ->  | AX89: =IF(AX88="","",VLOOKUP(AX88,'【記載例】シフト記号表（勤務時間帯）'!$C$4:$K$35,9,FALSE)) -> 
B90: =B88+1 -> 38 | Q90: シフト記号 | AY90: =IF($BD$3="計画",SUM(T91:AU91),IF($BD$3="実績",SUM(T91:AX91),"")) -> 0 | BA90: =IF($BD$3="計画",AY90/4,IF($BD$3="実績",AY90/($BB$7/7),"")) -> 0
Q91: 勤務時間数 | T91: =IF(T90="","",VLOOKUP(T90,'【記載例】シフト記号表（勤務時間帯）'!$C$4:$K$35,9,FALSE)) ->  | U91: =IF(U90="","",VLOOKUP(U90,'【記載例】シフト記号表（勤務時間帯）'!$C$4:$K$35,9,FALSE)) ->  | V91: =IF(V90="","",VLOOKUP(V90,'【記載例】シフト記号表（勤務時間帯）'!$C$4:$K$35,9,FALSE)) ->  | W91: =IF(W90="","",VLOOKUP(W90,'【記載例】シフト記号表（勤務時間帯）'!$C$4:$K$35,9,FALSE)) ->  | X91: =IF(X90="","",VLOOKUP(X90,'【記載例】シフト記号表（勤務時間帯）'!$C$4:$K$35,9,FALSE)) ->  | Y91: =IF(Y90="","",VLOOKUP(Y90,'【記載例】シフト記号表（勤務時間帯）'!$C$4:$K$35,9,FALSE)) ->  | Z91: =IF(Z90="","",VLOOKUP(Z90,'【記載例】シフト記号表（勤務時間帯）'!$C$4:$K$35,9,FALSE)) ->  | AA91: =IF(AA90="","",VLOOKUP(AA90,'【記載例】シフト記号表（勤務時間帯）'!$C$4:$K$35,9,FALSE)) ->  | AB91: =IF(AB90="","",VLOOKUP(AB90,'【記載例】シフト記号表（勤務時間帯）'!$C$4:$K$35,9,FALSE)) ->  | AC91: =IF(AC90="","",VLOOKUP(AC90,'【記載例】シフト記号表（勤務時間帯）'!$C$4:$K$35,9,FALSE)) ->  | AD91: =IF(AD90="","",VLOOKUP(AD90,'【記載例】シフト記号表（勤務時間帯）'!$C$4:$K$35,9,FALSE)) ->  | AE91: =IF(AE90="","",VLOOKUP(AE90,'【記載例】シフト記号表（勤務時間帯）'!$C$4:$K$35,9,FALSE)) ->  | AF91: =IF(AF90="","",VLOOKUP(AF90,'【記載例】シフト記号表（勤務時間帯）'!$C$4:$K$35,9,FALSE)) ->  | AG91: =IF(AG90="","",VLOOKUP(AG90,'【記載例】シフト記号表（勤務時間帯）'!$C$4:$K$35,9,FALSE)) ->  | AH91: =IF(AH90="","",VLOOKUP(AH90,'【記載例】シフト記号表（勤務時間帯）'!$C$4:$K$35,9,FALSE)) ->  | AI91: =IF(AI90="","",VLOOKUP(AI90,'【記載例】シフト記号表（勤務時間帯）'!$C$4:$K$35,9,FALSE)) ->  | AJ91: =IF(AJ90="","",VLOOKUP(AJ90,'【記載例】シフト記号表（勤務時間帯）'!$C$4:$K$35,9,FALSE)) ->  | AK91: =IF(AK90="","",VLOOKUP(AK90,'【記載例】シフト記号表（勤務時間帯）'!$C$4:$K$35,9,FALSE)) ->  | AL91: =IF(AL90="","",VLOOKUP(AL90,'【記載例】シフト記号表（勤務時間帯）'!$C$4:$K$35,9,FALSE)) ->  | AM91: =IF(AM90="","",VLOOKUP(AM90,'【記載例】シフト記号表（勤務時間帯）'!$C$4:$K$35,9,FALSE)) ->  | AN91: =IF(AN90="","",VLOOKUP(AN90,'【記載例】シフト記号表（勤務時間帯）'!$C$4:$K$35,9,FALSE)) ->  | AO91: =IF(AO90="","",VLOOKUP(AO90,'【記載例】シフト記号表（勤務時間帯）'!$C$4:$K$35,9,FALSE)) ->  | AP91: =IF(AP90="","",VLOOKUP(AP90,'【記載例】シフト記号表（勤務時間帯）'!$C$4:$K$35,9,FALSE)) ->  | AQ91: =IF(AQ90="","",VLOOKUP(AQ90,'【記載例】シフト記号表（勤務時間帯）'!$C$4:$K$35,9,FALSE)) ->  | AR91: =IF(AR90="","",VLOOKUP(AR90,'【記載例】シフト記号表（勤務時間帯）'!$C$4:$K$35,9,FALSE)) ->  | AS91: =IF(AS90="","",VLOOKUP(AS90,'【記載例】シフト記号表（勤務時間帯）'!$C$4:$K$35,9,FALSE)) ->  | AT91: =IF(AT90="","",VLOOKUP(AT90,'【記載例】シフト記号表（勤務時間帯）'!$C$4:$K$35,9,FALSE)) ->  | AU91: =IF(AU90="","",VLOOKUP(AU90,'【記載例】シフト記号表（勤務時間帯）'!$C$4:$K$35,9,FALSE)) ->  | AV91: =IF(AV90="","",VLOOKUP(AV90,'【記載例】シフト記号表（勤務時間帯）'!$C$4:$K$35,9,FALSE)) ->  | AW91: =IF(AW90="","",VLOOKUP(AW90,'【記載例】シフト記号表（勤務時間帯）'!$C$4:$K$35,9,FALSE)) ->  | AX91: =IF(AX90="","",VLOOKUP(AX90,'【記載例】シフト記号表（勤務時間帯）'!$C$4:$K$35,9,FALSE)) -> 
B92: =B90+1 -> 39 | Q92: シフト記号 | AY92: =IF($BD$3="計画",SUM(T93:AU93),IF($BD$3="実績",SUM(T93:AX93),"")) -> 0 | BA92: =IF($BD$3="計画",AY92/4,IF($BD$3="実績",AY92/($BB$7/7),"")) -> 0
Q93: 勤務時間数 | T93: =IF(T92="","",VLOOKUP(T92,'【記載例】シフト記号表（勤務時間帯）'!$C$4:$K$35,9,FALSE)) ->  | U93: =IF(U92="","",VLOOKUP(U92,'【記載例】シフト記号表（勤務時間帯）'!$C$4:$K$35,9,FALSE)) ->  | V93: =IF(V92="","",VLOOKUP(V92,'【記載例】シフト記号表（勤務時間帯）'!$C$4:$K$35,9,FALSE)) ->  | W93: =IF(W92="","",VLOOKUP(W92,'【記載例】シフト記号表（勤務時間帯）'!$C$4:$K$35,9,FALSE)) ->  | X93: =IF(X92="","",VLOOKUP(X92,'【記載例】シフト記号表（勤務時間帯）'!$C$4:$K$35,9,FALSE)) ->  | Y93: =IF(Y92="","",VLOOKUP(Y92,'【記載例】シフト記号表（勤務時間帯）'!$C$4:$K$35,9,FALSE)) ->  | Z93: =IF(Z92="","",VLOOKUP(Z92,'【記載例】シフト記号表（勤務時間帯）'!$C$4:$K$35,9,FALSE)) ->  | AA93: =IF(AA92="","",VLOOKUP(AA92,'【記載例】シフト記号表（勤務時間帯）'!$C$4:$K$35,9,FALSE)) ->  | AB93: =IF(AB92="","",VLOOKUP(AB92,'【記載例】シフト記号表（勤務時間帯）'!$C$4:$K$35,9,FALSE)) ->  | AC93: =IF(AC92="","",VLOOKUP(AC92,'【記載例】シフト記号表（勤務時間帯）'!$C$4:$K$35,9,FALSE)) ->  | AD93: =IF(AD92="","",VLOOKUP(AD92,'【記載例】シフト記号表（勤務時間帯）'!$C$4:$K$35,9,FALSE)) ->  | AE93: =IF(AE92="","",VLOOKUP(AE92,'【記載例】シフト記号表（勤務時間帯）'!$C$4:$K$35,9,FALSE)) ->  | AF93: =IF(AF92="","",VLOOKUP(AF92,'【記載例】シフト記号表（勤務時間帯）'!$C$4:$K$35,9,FALSE)) ->  | AG93: =IF(AG92="","",VLOOKUP(AG92,'【記載例】シフト記号表（勤務時間帯）'!$C$4:$K$35,9,FALSE)) ->  | AH93: =IF(AH92="","",VLOOKUP(AH92,'【記載例】シフト記号表（勤務時間帯）'!$C$4:$K$35,9,FALSE)) ->  | AI93: =IF(AI92="","",VLOOKUP(AI92,'【記載例】シフト記号表（勤務時間帯）'!$C$4:$K$35,9,FALSE)) ->  | AJ93: =IF(AJ92="","",VLOOKUP(AJ92,'【記載例】シフト記号表（勤務時間帯）'!$C$4:$K$35,9,FALSE)) ->  | AK93: =IF(AK92="","",VLOOKUP(AK92,'【記載例】シフト記号表（勤務時間帯）'!$C$4:$K$35,9,FALSE)) ->  | AL93: =IF(AL92="","",VLOOKUP(AL92,'【記載例】シフト記号表（勤務時間帯）'!$C$4:$K$35,9,FALSE)) ->  | AM93: =IF(AM92="","",VLOOKUP(AM92,'【記載例】シフト記号表（勤務時間帯）'!$C$4:$K$35,9,FALSE)) ->  | AN93: =IF(AN92="","",VLOOKUP(AN92,'【記載例】シフト記号表（勤務時間帯）'!$C$4:$K$35,9,FALSE)) ->  | AO93: =IF(AO92="","",VLOOKUP(AO92,'【記載例】シフト記号表（勤務時間帯）'!$C$4:$K$35,9,FALSE)) ->  | AP93: =IF(AP92="","",VLOOKUP(AP92,'【記載例】シフト記号表（勤務時間帯）'!$C$4:$K$35,9,FALSE)) ->  | AQ93: =IF(AQ92="","",VLOOKUP(AQ92,'【記載例】シフト記号表（勤務時間帯）'!$C$4:$K$35,9,FALSE)) ->  | AR93: =IF(AR92="","",VLOOKUP(AR92,'【記載例】シフト記号表（勤務時間帯）'!$C$4:$K$35,9,FALSE)) ->  | AS93: =IF(AS92="","",VLOOKUP(AS92,'【記載例】シフト記号表（勤務時間帯）'!$C$4:$K$35,9,FALSE)) ->  | AT93: =IF(AT92="","",VLOOKUP(AT92,'【記載例】シフト記号表（勤務時間帯）'!$C$4:$K$35,9,FALSE)) ->  | AU93: =IF(AU92="","",VLOOKUP(AU92,'【記載例】シフト記号表（勤務時間帯）'!$C$4:$K$35,9,FALSE)) ->  | AV93: =IF(AV92="","",VLOOKUP(AV92,'【記載例】シフト記号表（勤務時間帯）'!$C$4:$K$35,9,FALSE)) ->  | AW93: =IF(AW92="","",VLOOKUP(AW92,'【記載例】シフト記号表（勤務時間帯）'!$C$4:$K$35,9,FALSE)) ->  | AX93: =IF(AX92="","",VLOOKUP(AX92,'【記載例】シフト記号表（勤務時間帯）'!$C$4:$K$35,9,FALSE)) -> 
B94: =B92+1 -> 40 | Q94: シフト記号 | AY94: =IF($BD$3="計画",SUM(T95:AU95),IF($BD$3="実績",SUM(T95:AX95),"")) -> 0 | BA94: =IF($BD$3="計画",AY94/4,IF($BD$3="実績",AY94/($BB$7/7),"")) -> 0
Q95: 勤務時間数 | T95: =IF(T94="","",VLOOKUP(T94,'【記載例】シフト記号表（勤務時間帯）'!$C$4:$K$35,9,FALSE)) ->  | U95: =IF(U94="","",VLOOKUP(U94,'【記載例】シフト記号表（勤務時間帯）'!$C$4:$K$35,9,FALSE)) ->  | V95: =IF(V94="","",VLOOKUP(V94,'【記載例】シフト記号表（勤務時間帯）'!$C$4:$K$35,9,FALSE)) ->  | W95: =IF(W94="","",VLOOKUP(W94,'【記載例】シフト記号表（勤務時間帯）'!$C$4:$K$35,9,FALSE)) ->  | X95: =IF(X94="","",VLOOKUP(X94,'【記載例】シフト記号表（勤務時間帯）'!$C$4:$K$35,9,FALSE)) ->  | Y95: =IF(Y94="","",VLOOKUP(Y94,'【記載例】シフト記号表（勤務時間帯）'!$C$4:$K$35,9,FALSE)) ->  | Z95: =IF(Z94="","",VLOOKUP(Z94,'【記載例】シフト記号表（勤務時間帯）'!$C$4:$K$35,9,FALSE)) ->  | AA95: =IF(AA94="","",VLOOKUP(AA94,'【記載例】シフト記号表（勤務時間帯）'!$C$4:$K$35,9,FALSE)) ->  | AB95: =IF(AB94="","",VLOOKUP(AB94,'【記載例】シフト記号表（勤務時間帯）'!$C$4:$K$35,9,FALSE)) ->  | AC95: =IF(AC94="","",VLOOKUP(AC94,'【記載例】シフト記号表（勤務時間帯）'!$C$4:$K$35,9,FALSE)) ->  | AD95: =IF(AD94="","",VLOOKUP(AD94,'【記載例】シフト記号表（勤務時間帯）'!$C$4:$K$35,9,FALSE)) ->  | AE95: =IF(AE94="","",VLOOKUP(AE94,'【記載例】シフト記号表（勤務時間帯）'!$C$4:$K$35,9,FALSE)) ->  | AF95: =IF(AF94="","",VLOOKUP(AF94,'【記載例】シフト記号表（勤務時間帯）'!$C$4:$K$35,9,FALSE)) ->  | AG95: =IF(AG94="","",VLOOKUP(AG94,'【記載例】シフト記号表（勤務時間帯）'!$C$4:$K$35,9,FALSE)) ->  | AH95: =IF(AH94="","",VLOOKUP(AH94,'【記載例】シフト記号表（勤務時間帯）'!$C$4:$K$35,9,FALSE)) ->  | AI95: =IF(AI94="","",VLOOKUP(AI94,'【記載例】シフト記号表（勤務時間帯）'!$C$4:$K$35,9,FALSE)) ->  | AJ95: =IF(AJ94="","",VLOOKUP(AJ94,'【記載例】シフト記号表（勤務時間帯）'!$C$4:$K$35,9,FALSE)) ->  | AK95: =IF(AK94="","",VLOOKUP(AK94,'【記載例】シフト記号表（勤務時間帯）'!$C$4:$K$35,9,FALSE)) ->  | AL95: =IF(AL94="","",VLOOKUP(AL94,'【記載例】シフト記号表（勤務時間帯）'!$C$4:$K$35,9,FALSE)) ->  | AM95: =IF(AM94="","",VLOOKUP(AM94,'【記載例】シフト記号表（勤務時間帯）'!$C$4:$K$35,9,FALSE)) ->  | AN95: =IF(AN94="","",VLOOKUP(AN94,'【記載例】シフト記号表（勤務時間帯）'!$C$4:$K$35,9,FALSE)) ->  | AO95: =IF(AO94="","",VLOOKUP(AO94,'【記載例】シフト記号表（勤務時間帯）'!$C$4:$K$35,9,FALSE)) ->  | AP95: =IF(AP94="","",VLOOKUP(AP94,'【記載例】シフト記号表（勤務時間帯）'!$C$4:$K$35,9,FALSE)) ->  | AQ95: =IF(AQ94="","",VLOOKUP(AQ94,'【記載例】シフト記号表（勤務時間帯）'!$C$4:$K$35,9,FALSE)) ->  | AR95: =IF(AR94="","",VLOOKUP(AR94,'【記載例】シフト記号表（勤務時間帯）'!$C$4:$K$35,9,FALSE)) ->  | AS95: =IF(AS94="","",VLOOKUP(AS94,'【記載例】シフト記号表（勤務時間帯）'!$C$4:$K$35,9,FALSE)) ->  | AT95: =IF(AT94="","",VLOOKUP(AT94,'【記載例】シフト記号表（勤務時間帯）'!$C$4:$K$35,9,FALSE)) ->  | AU95: =IF(AU94="","",VLOOKUP(AU94,'【記載例】シフト記号表（勤務時間帯）'!$C$4:$K$35,9,FALSE)) ->  | AV95: =IF(AV94="","",VLOOKUP(AV94,'【記載例】シフト記号表（勤務時間帯）'!$C$4:$K$35,9,FALSE)) ->  | AW95: =IF(AW94="","",VLOOKUP(AW94,'【記載例】シフト記号表（勤務時間帯）'!$C$4:$K$35,9,FALSE)) ->  | AX95: =IF(AX94="","",VLOOKUP(AX94,'【記載例】シフト記号表（勤務時間帯）'!$C$4:$K$35,9,FALSE)) -> 
AY96: =SUM(AY16:AZ95) -> 4640 | BA96: =SUM(BA16:BB95) -> 1160
F98: (11)人員基準の確認（訪問看護員） | X98: (12)人員基準の確認（登録看護職員） | AM98: （勤務形態の記号）
G99: 勤務形態 | I99: 勤務時間数合計 | N99: 常勤換算の対象時間数 | T99: 常勤換算方法対象外の | Y99: 登録看護職員1人当たりの勤務時間数／週 | AH99: 0 | AM99: 記号 | AO99: 区分
I100: 当月合計 | K100: 週平均 | N100: 当月合計 | P100: 週平均 | T100: 常勤の従業者の人数 | Y100: 登録看護職員の人数 | AC100: C | AD100: =COUNTIFS($C$16:$D$95,"登録看護職員",$F$16:$G$95,"C") -> 0 | AG100: D | AH100: =COUNTIFS($C$16:$D$95,"登録看護職員",$F$16:$G$95,"D") -> 0 | AM100: A | AO100: 常勤で専従
G101: A | I101: =SUMIFS($AY$16:$AZ$95,$C$16:$D$95,"訪問看護員",$F$16:$G$95,"A") -> 800 | K101: =SUMIFS($BA$16:$BB$95,$C$16:$D$95,"訪問看護員",$F$16:$G$95,"A") -> 200 | N101: 0 | P101: 0 | T101: 6 | Y101: 勤務形態 | AA101: 勤務時間数合計 | AF101: 常勤換算の対象時間数 | AM101: B | AO101: 常勤で兼務
G102: B | I102: =SUMIFS($AY$16:$AZ$95,$C$16:$D$95,"訪問看護員",$F$16:$G$95,"B") -> 0 | K102: =SUMIFS($BA$16:$BB$95,$C$16:$D$95,"訪問看護員",$F$16:$G$95,"B") -> 0 | N102: 0 | P102: 0 | T102: 0 | AA102: 当月合計 | AC102: 週平均 | AF102: 当月合計 | AH102: 週平均 | AM102: C | AO102: 非常勤で専従
G103: C | I103: =SUMIFS($AY$16:$AZ$95,$C$16:$D$95,"訪問看護員",$F$16:$G$95,"C") -> 160 | K103: =SUMIFS($BA$16:$BB$95,$C$16:$D$95,"訪問看護員",$F$16:$G$95,"C") -> 40 | N103: 160 | P103: 40 | T103: - | Y103: C | AA103: =SUMIFS($AY$16:$AZ$95,$C$16:$D$95,"登録看護職員",$F$16:$G$95,"C") -> 0 | AC103: =SUMIFS($BA$16:$BB$95,$C$16:$D$95,"登録看護職員",$F$16:$G$95,"C") -> 0 | AF103: 0 | AH103: 0 | AM103: D | AO103: 非常勤で兼務
G104: D | I104: =SUMIFS($AY$16:$AZ$95,$C$16:$D$95,"訪問看護員",$F$16:$G$95,"D") -> 0 | K104: =SUMIFS($BA$16:$BB$95,$C$16:$D$95,"訪問看護員",$F$16:$G$95,"D") -> 0 | N104: 0 | P104: 0 | T104: - | Y104: D | AA104: =SUMIFS($AY$16:$AZ$95,$C$16:$D$95,"登録看護職員",$F$16:$G$95,"D") -> 0 | AC104: =SUMIFS($BA$16:$BB$95,$C$16:$D$95,"登録看護職員",$F$16:$G$95,"D") -> 0 | AF104: 0 | AH104: 0
G105: 合計 | I105: =SUM(I101:J104) -> 960 | K105: =SUM(K101:L104) -> 240 | N105: =SUM(N101:O104) -> 160 | P105: =SUM(P101:Q104) -> 40 | T105: =SUM(T101:U102) -> 6 | Y105: 合計 | AA105: =SUM(AA103:AB104) -> 0 | AC105: =SUM(AC103:AD104) -> 0 | AF105: =SUM(AF103:AG104) -> 0 | AH105: =SUM(AH103:AI104) -> 0
G107: ■ 常勤換算方法による人数 | M107: 基準： | N107: 週 | Y107: ■ 登録看護職員の常勤換算方法による人数
G108: 常勤換算の | L108: 常勤の従業者が | Y108: 常勤換算の | AD108: 常勤の従業者が
G109: =IF($N$107="週","対象時間数（週平均）","対象時間数（当月合計）") -> 対象時間数（週平均） | L109: =IF($N$107="週","週に勤務すべき時間数","当月に勤務すべき時間数") -> 週に勤務すべき時間数 | Q109: 常勤換算後の人数 | Y109: =IF($N$107="週","対象時間数（週平均）","対象時間数（当月合計）") -> 対象時間数（週平均） | AD109: =IF($N$107="週","週に勤務すべき時間数","当月に勤務すべき時間数") -> 週に勤務すべき時間数 | AI109: 常勤換算後の人数
G110: =IF($N$107="週",P105,N105) -> 40 | K110: ÷ | L110: =IF($N$107="週",$AX$5,$BB$5) -> 40 | P110: ＝ | Q110: =ROUNDDOWN(G110/L110,1) -> 1 | Y110: =IF($N$107="週",AH105,AF105) -> 0 | AC110: ÷ | AD110: =IF($N$107="週",$AX$5,$BB$5) -> 40 | AH110: ＝ | AI110: =ROUNDDOWN(Y110/AD110,1) -> 0
Q111: （小数点第2位以下切り捨て） | AI111: （小数点第2位以下切り捨て）
G112: ■ 訪問看護員の常勤換算方法による人数
G113: 常勤換算方法対象外の
G114: 常勤の従業者の人数 | L114: 常勤換算方法による人数 | Q114: 合計 | AO114: (11)(12)の合計
G115: =T105 -> 6 | K115: ＋ | L115: =Q110 -> 1 | P115: ＝ | Q115: =ROUNDDOWN(G115+L115,1) -> 7 | AO115: =Q115+AI110 -> 7

Sheet 【記載例】シフト記号表（勤務時間帯）
B1: ≪要 提出≫
B2: ■シフト記号表（勤務時間帯） | E2: ※24時間表記 | I2: 休憩時間1時間は「1:00」、休憩時間45分は「00:45」と入力してください。
B3: （記号の意味） | C3: 記号 | E3: 始業時間 | G3: 終業時間 | I3: うち、休憩時間 | K3: 勤務時間
B4: 休：休暇 | C4: 休 | D4: ： | E4: - | F4: ～ | G4: - | H4: ( | I4: - | J4: ) | K4: -
B5: 出：出張 | C5: 出 | D5: ： | E5: - | F5: ～ | G5: - | H5: ( | I5: - | J5: ) | K5: -
B6: 研：研修 | C6: 研 | D6: ： | E6: - | F6: ～ | G6: - | H6: ( | I6: - | J6: ) | K6: -
C7: a | D7: ： | E7: 09:00:00 | F7: ～ | G7: 18:00:00 | H7: ( | I7: 01:00:00 | J7: ) | K7: =IF(OR(E7="",G7=""),"",(G7+IF(E7>G7,1,0)-E7-I7)*24) -> 8
C8: b | D8: ： | E8: 14:00:00 | F8: ～ | G8: 23:00:00 | H8: ( | I8: 01:00:00 | J8: ) | K8: =IF(OR(E8="",G8=""),"",(G8+IF(E8>G8,1,0)-E8-I8)*24) -> 8
C9: c | D9: ： | E9: 22:00:00 | F9: ～ | G9: 07:00:00 | H9: ( | I9: 01:00:00 | J9: ) | K9: 8
C10: d | D10: ： | E10: 06:00:00 | F10: ～ | G10: 15:00:00 | H10: ( | I10: 01:00:00 | J10: ) | K10: 8
C11: e | D11: ： | F11: ～ | H11: ( | J11: )
C12: f | D12: ： | F12: ～ | H12: ( | J12: )
C13: g | D13: ： | F13: ～ | H13: ( | J13: )
C14: h | D14: ： | F14: ～ | H14: ( | J14: )
C15: i | D15: ： | F15: ～ | H15: ( | J15: )
C16: j | D16: ： | F16: ～ | H16: ( | J16: )
C17: k | D17: ： | F17: ～ | H17: ( | J17: )
C18: l | D18: ： | F18: ～ | H18: ( | J18: )
C19: m | D19: ： | F19: ～ | H19: ( | J19: )
C20: n | D20: ： | F20: ～ | H20: ( | J20: )
C21: o | D21: ： | F21: ～ | H21: ( | J21: ) | K21: 1
C22: p | D22: ： | F22: ～ | H22: ( | J22: ) | K22: 2
C23: q | D23: ： | F23: ～ | H23: ( | J23: ) | K23: 3
C24: r | D24: ： | F24: ～ | H24: ( | J24: ) | K24: 4
C25: s | D25: ： | F25: ～ | H25: ( | J25: ) | K25: 5
C26: t | D26: ： | F26: ～ | H26: ( | J26: ) | K26: 6
C27: u | D27: ： | F27: ～ | H27: ( | J27: ) | K27: 7
C28: v | D28: ： | F28: ～ | H28: ( | J28: ) | K28: 8
C29: w | D29: ： | F29: ～ | H29: ( | J29: )
C30: x | D30: ： | F30: ～ | H30: ( | J30: )
C31: y | D31: ： | F31: ～ | H31: ( | J31: )
C32: z | D32: ： | F32: ～ | H32: ( | J32: ) | K32: =IF(OR(E32="",G32=""),"",(G32+IF(E32>G32,1,0)-E32-I32)*24) -> 
C33: 早退(1) | D33: ： | F33: ～ | H33: ( | J33: ) | M33: 実績で早退者がいた場合に使用
C34: 早退(2) | D34: ： | F34: ～ | H34: ( | J34: ) | M34: 実績で早退者がいた場合に使用
C35: az | D35: ： | F35: ～ | H35: ( | J35: )

Sheet プルダウン・リスト
B1: １．サービス種別
B3: No | C3: サービス種別名
B4: 1 | C4: 定期巡回・随時対応型訪問介護看護（一体型）
B5: 2 | C5: 定期巡回・随時対応型訪問介護看護（連携型）
B6: 3
B7: 4
B8: 5
B10: ２．職種名・資格名称
B12: 職種名 | C12: 管理者 | D12: オペレーター | E12: 訪問介護員_定期 | F12: 訪問介護員_随時 | G12: 訪問看護員 | H12: 登録看護職員 | I12: 理学療法士 | J12: 作業療法士 | K12: 言語聴覚士 | L12: 計画作成責任者
B13: 資格 | C13: ー | D13: 看護師 | E13: 介護福祉士 | F13: 介護福祉士 | G13: 保健師 | H13: 保健師 | I13: 理学療法士 | J13: 作業療法士 | K13: 言語聴覚士 | L13: 看護師
D14: 准看護師 | E14: 看護師 | F14: 看護師 | G14: 看護師 | H14: 看護師 | L14: 准看護師
D15: 介護福祉士 | E15: 准看護師 | F15: 准看護師 | G15: 准看護師 | H15: 准看護師 | L15: 介護福祉士
D16: 医師 | E16: 実務者研修修了者 | F16: 実務者研修修了者 | L16: 医師
D17: 保健師 | E17: 介護職員初任者研修修了者 | F17: 介護職員初任者研修修了者 | L17: 保健師
D18: 社会福祉士 | E18: 旧介護職員基礎研修課程修了者 | F18: 旧介護職員基礎研修課程修了者 | L18: 社会福祉士
D19: 介護支援専門員 | E19: 旧ホームヘルパー1級課程修了者 | F19: 旧ホームヘルパー1級課程修了者 | L19: 介護支援専門員
D20: 一定期間のサービス提供責任者経験 | E20: 旧ホームヘルパー2級課程修了者 | F20: 旧ホームヘルパー2級課程修了者
D21: ー | E21: ー | F21: ー
C28: 【自治体の皆様へ】
C29: ※ INDIRECT関数使用のため、以下のとおりセルに「名前の定義」をしています。
C30: 12行目・・・「職種」
C31: C列・・・「管理者」
C32: D列・・・「オペレーター」
C33: E列・・・「訪問介護員_定期」
C34: F列・・・「訪問介護員_随時」
C35: G列・・・「訪問看護員」
C36: H列・・・「登録看護職員」
C37: I列・・・「理学療法士」
C38: J列・・・「作業療法士」
C39: K列・・・「言語聴覚士」
C40: L列・・・「計画作成責任者」
C42: ※自治体の条例により定められた資格等、自治体独自の資格を追加する必要がある場合は、上表の空欄に資格名称を追加してください。
C43: 行が足りない場合は、適宜追加してください。
C45: ※職種を追加したい場合は、M12に職種名を追加し、それぞれの列に必要資格を入力してください。
C46: その後、以下の手順で必要資格について「名前の定義」をします。
C47: ・「数式」タブ ⇒ 「名前の定義」を選択
C48: ・「名前」に職種名を入力
C49: ・「参照範囲」にその職種の必要資格を範囲設定する ⇒ OKボタン
C50: 編集したい場合は、「数式」タブ ⇒ 「名前の管理」で編集してください。
